Workbook

Sheet Instructions
B7: ="Farm Gross Margin Guide -"&TEXT(m_year,"0000") -> Farm Gross Margin Guide -2025
B8: This spreadsheet can take a few moments to load
B9: PLEASE NOTE:THIS VERSION WILL ONLY WORK WITH EXCEL VERSIONS 2013 & ABOVE FOR WINDOWS ONLY. It will not work with Excel for Mac, Ipad, Android, tablets etc.
B12: Before you start you will need to enable macros, otherwise the program will not work.
B13: This may appear as a Security Warning at the top of your page. To do this, click on “Enable Content”.
B14: Clicking “Enable Content” allows you to enter data into the Excel Worksheet.
B22: You may also see a message about "PROTECTED VIEW". Please click "Enable Editing".
B29: Start in the “Main” sheet:
B31: Select
B32: 1. “Crop Types” (including pastures) you want to use,
B33: 2. “Rainfall Zone” and
B34: 3. “Machinery Treatment Method”.
B35: 4. Prices for key inputs (fertiliser, fuel and glyphosate) can be changed.
B36: NB this will update these prices for all gross margins.
B37: Selecting the “Crop Types” will open up new sheets for each crop type chosen.
B38: Click on the individual sheets and make the necessary changes. The crop area needs to be inserted in the “Red” box in each of the sheets to enable the “Summary” sheet.
B40: To compare two different rotations go to the “Main” sheet and select “Compare Crop Rotations” (top left).
B41: This will open a new list of “Crop Types”. Select a new list. If there are crop types with the same gross
B42: margin in Rotation 1 and 2, “click” the copy button to copy the information you have entered (Rotation 1)
B43: to the new sheet (Rotation 2). For new crop types the information will need to be adjusted as required.
B45: The “Summary” sheet compares the outputs of the two different rotations/ farming systems. This
B46: can be used to analyse land purchase, land leasing etc. as well as different crop types.
B47: Use the “Livestock Gross Margin” file to generate the income for the pasture options.
B49: In the “Summary” sheet Overhead or Fixed costs can be added to quickly come up with a
B50: Profit and Loss Statement for the business.
B85: Yellow cells = data entry (some yellow cells contain formulas, these usually represent default
B86: values but may be over written. To revert back to the default value formula click the blue 'Reset…'
B87: link next to the cell.
B88: Blue cells contain formulas, are protected and can not be overwritten.
B89: Red cell = crop / pasture area.
B103: The “Cash Flow” sheet is a new initiative and still in development, so any feedback would be appreciated.
B104: This sheet can be used to quickly give an indication of the likely "Peak debt" of the business to ensure
B105: there is sufficient funds and/or borrowing capacity for the coming season.
B107: Insert percentages in each month for cropping "Income" and "Expenses". (The actual $ for Income and Expenses comes from the "Summary" sheet.)
B108: You will need to add livestock income and expenses as well as other cropping costs (yellow boxes) i.e. seed, Fuel & oil, Machinery R&M etc.
B109: The figures in Column O are from the "Summary" sheet. Additional costs from the Livestock enterprises will need to be added to these cropping costs.
B111: Note: These figures do not account for GST or diesel excise tax
B114: For technical support or to report errors/omissions regarding this spreadsheet please
B115: email Michael Wurst at:
B116: michaelwurst1@gmail.com

Sheet Main
C3: ="FARM GROSS MARGIN GUIDE - "&TEXT(m_year,"0000") -> FARM GROSS MARGIN GUIDE - 2025 | L3: ="Version-"&TEXT(MODEL_VERSION,"0.0") -> Version-9.0
C6: by clicking checkboxes or All or None buttons | F6: by clicking checkboxes or All or None buttons | K6: if more than one rainfall zone is required, please save a separate copy of this spreadsheet.
B7: FALSE | C7: Wheat | F7: Wheat | H7: FALSE | K7: LOW (<350mm)
B8: FALSE | C8: Faba Beans | F8: Faba Beans | H8: FALSE | K8: MEDIUM (350-400mm)
B9: FALSE | C9: Canola Clearfield | F9: Canola Clearfield | H9: FALSE | K9: HIGH (>400MM)
B10: FALSE | C10: Canola Conventional | F10: Canola Conventional | H10: FALSE
B11: FALSE | C11: Canola RoundUp Ready | F11: Canola RoundUp Ready | H11: FALSE
B12: FALSE | C12: Canola Tri Tolerant | F12: Canola Tri Tolerant | H12: FALSE
B13: FALSE | C13: Kabuli Chickpeas | F13: Kabuli Chickpeas | H13: FALSE
B14: FALSE | C14: Durum | F14: Durum | H14: FALSE
B15: FALSE | C15: Export Oaten Hay | F15: Export Oaten Hay | H15: FALSE
B16: FALSE | C16: Feed Barley | F16: Feed Barley | H16: FALSE
B17: FALSE | C17: Field Peas | F17: Field Peas | H17: FALSE | K17: Contract Rates for Machinery Ops
B18: FALSE | C18: Lupins | F18: Lupins | H18: FALSE | K18: Variable costs (Fuel and Repairs) only
B19: FALSE | C19: Malt Barley | F19: Malt Barley | H19: FALSE
B20: FALSE | C20: Milling Oats | F20: Milling Oats | H20: FALSE
B21: FALSE | C21: Lentils | F21: Lentils | H21: FALSE
B22: FALSE | C22: Lentils IMI Tolerant | F22: Lentils IMI Tolerant | H22: FALSE
B23: FALSE | C23: Triticale | F23: Triticale | H23: FALSE
B24: FALSE | C24: Vetch | F24: Vetch | H24: FALSE | K24: Item | L24: Cost | M24: Unit
B25: FALSE | C25: Sown Pasture | F25: Sown Pasture | H25: FALSE | K25: DAP 18:20 | L25: =defaultcost_1 -> 1.07 | M25: kg | N25: Reset cost to system default rate | O25: =IF(NOT(ISERROR(user_cost1)),IF(user_cost1>0,"","**Warning** - invalid cost amount. Please enter a value greater than zero"),"**Warning** - invalid cost amount. Please enter a value greater than zero") -> 
B26: FALSE | C26: Self Regen Pasture | F26: Self Regen Pasture | H26: FALSE | K26: Urea | L26: =defaultcost_2 -> 0.65 | M26: kg | N26: Reset cost to system default rate | O26: =IF(NOT(ISERROR(user_cost2)),IF(user_cost2>0,"","**Warning** - invalid cost amount. Please enter a value greater than zero"),"**Warning** - invalid cost amount. Please enter a value greater than zero") -> 
B27: FALSE | C27: Lucerne Pasture Cereal Zone | F27: Lucerne Pasture Cereal Zone | H27: FALSE | K27: Glyphosate 540 | L27: =defaultcost_3 -> 7.65 | M27: litre | N27: Reset cost to system default rate | O27: =IF(NOT(ISERROR(user_cost3)),IF(user_cost3>0,"","**Warning** - invalid cost amount. Please enter a value greater than zero"),"**Warning** - invalid cost amount. Please enter a value greater than zero") -> 
B28: FALSE | C28: Lucerne Pasture High Rainfall | F28: Lucerne Pasture High Rainfall | H28: FALSE | K28: Diesel (excl gst) | L28: =defaultcost_4 -> 1.58 | M28: litre | N28: Reset cost to system default rate | O28: =IF(NOT(ISERROR(user_cost4)),IF(user_cost4>0,"","**Warning** - invalid cost amount. Please enter a value greater than zero"),"**Warning** - invalid cost amount. Please enter a value greater than zero") -> 
B29: FALSE | C29: Phalaris Sub Cereal Zone | F29: Phalaris Sub Cereal Zone | H29: FALSE
B30: FALSE | C30: Phalaris Sub HR Grazing | F30: Phalaris Sub HR Grazing | H30: FALSE
B31: FALSE | H31: FALSE
B32: FALSE | H32: FALSE
B33: FALSE | H33: FALSE

Sheet Excel References (hidden)
B3: vlookup array formulas in individual sheets | C3: http://chandoo.org/wp/2014/10/28/multi-condition-vlookup/
B5: Or this embed word doc

Sheet Data_Main (hidden)
B4: Year | C4: 2025 | D4: Enter
B5: Year_Long | C5: =m_year&"/"&m_year+1 -> 2025/2026 | D5: Calculated
B6: Year_Short | C6: =RIGHT(m_year,2)&"/"&RIGHT(m_year,2)+1 -> 25/26 | D6: Calculated
B7: Selected Rainfall Zone | C7: =CHOOSE(rng_rainfall,"Low","Medium","High") ->  | D7: Calculated
B8: show_disclaimer | C8: TRUE | D8: Enter
B9: MODEL VERSION | C9: 9
B10: Rotation Type | C10: 1 | D10: Calculated
B16: Crop_Type
B17: Wheat
B18: Faba Beans
B19: Canola Clearfield
B20: Canola Conventional
B21: Canola Tri Tolerant
B22: Canola Roundup Ready
B23: Kabuli Chickpeas
B24: Durum
B25: Export Oaten Hay
B26: Feed Barley
B27: Field Peas
B28: Lupins
B29: Malt Barley
B30: Milling Oats
B31: Lentils
B32: Lentils IMI Tolerant
B33: Triticale
B34: Vetch
B35: Sown Pasture
B36: Self Regen Pasture
B37: Lucerne Pasture Cereal
B38: Lucerne Pasture Grazing
B39: Phalaris Sub Pasture Cereal
B40: Phalaris Sub Grazing

Sheet Data_Sheets (hidden)
B10: Sheet | C10: State(show to keep sheet visible or blank to hide)
B11: Instructions | C11: Show
B12: Main | C12: Show
B13: Excel References
B14: Data_Main
B15: Data_Sheets | C15: Show
B16: GM_INFO
B17: GM Crib
B18: DV_TABLES
B19: Summary GM figures
B20: Summary | C20: Show
B21: Cash Flow | C21: Show
B22: Cashflow Template
B23: CROP SHEETS>> | C23: Show
B24: WHEAT
B25: WHEAT R2
B26: BEANS
B27: BEANS R2
B28: CANOLA CLEARFIELD
B29: CANOLA CLEARFIELD R2
B30: CANOLA ROUNDUP READY
B31: CANOLA ROUNDUP READY R2
B32: CANOLA CONVENTIONAL
B33: CANOLA CONVENTIONAL R2
B34: CANOLA TRITOLERANT
B35: CANOLA TRITOLERANT R2
B36: CHICKPEAS
B37: CHICKPEAS R2
B38: DURUM
B39: DURUM R2
B40: EXPORT OATEN HAY
B41: EXPORT OATEN HAY R2
B42: FEED BARLEY
B43: FEED BARLEY R2
B44: PEAS
B45: PEAS R2
B46: LUPINS
B47: LUPINS R2
B48: MALT BARLEY
B49: MALT BARLEY R2
B50: MILLING OATS
B51: MILLING OATS R2
B52: LENTILS
B53: LENTILS R2
B54: TRITICALE
B55: TRITICALE R2
B56: VETCH
B57: VETCH R2
B58: LENTILS IMI TOLERANT
B59: LENTILS IMI TOLERANT R2
B60: SOWN PASTURE
B61: SOWN PASTURE R2
B62: SELF REGEN PASTURE
B63: SELF REGEN PASTURE R2
B64: LUCERNE PASTURE CEREAL
B65: LUCERNE PASTURE CEREAL R2
B66: LUCERNE PASTURE GRAZING
B67: LUCERNE PASTURE GRAZING R2
B68: PHALARIS SUB PASTURE CEREAL
B69: PHALARIS SUB PASTURE CEREAL R2
B70: PHALARIS SUB PASTURE GRAZING
B71: PHALARIS SUB PASTURE GRAZING R2

Sheet GM_INFO (hidden)
B1: G.M. LINK SHEET
B3: GRDC Levy % | C3: 0.01
B4: Summer Weed Control | C4: 25
B11: ="Machinery Cost Information - " & TEXT(m_year,"0000") -> Machinery Cost Information - 2025
B14: Repairs & Maintenance - as a % of new value (shown below).
B15: Lubrication costs | C15: 0.05 | D15: of fuel cost.
B17: This Table is now used. Please update each year! | J17: Costs per Hectare | O17: These cells have number of operations for Fuel costs from the tables in Michaels model (a couple of crops have 2 sets of fuel prices, hence the duplication of crop names with (2) appended to them. These are used in the table further down to calc fuel costs (R&M from his tables aren't used here) >>>>>
B18: Machine | C18: New Value $ | D18: Life-hrs | E18: Work Efficiency % | F18: Work Rate ha/hr | G18: Fuel Use l/hr | H18: RM % New Value | I18: Hrs use pa | J18: R&M | K18: Fuel | L18: Lube | M18: Total Fuel Lube | N18: Total | O18: Wheat | P18: Faba Beans | Q18: Canola Clearfield | R18: Canola Conventional | S18: Canola Tri Tolerant | T18: Canola Roundup Ready | U18: Kabuli Chickpeas | V18: Durum | W18: Export Oaten Hay | X18: Feed Barley | Y18: Field Peas | Z18: Lupins | AA18: Malt Barley | AB18: Milling Oats | AC18: Lentils | AD18: Lentils IMI Tolerant | AE18: Triticale | AF18: Vetch | AG18: Sown Pasture | AH18: Self Regen Pasture | AI18: Lucerne Pasture Cereal | AJ18: Lucerne Pasture Grazing | AK18: Phalaris Sub Pasture Cereal | AL18: Phalaris Sub Grazing | AM18: Wheat(2) | AN18: Faba Beans(2) | AO18: Canola Clearfield(2) | AP18: Canola Conventional(2) | AQ18: Canola Tri Tolerant(2) | AR18: Canola Roundup Ready(2) | AS18: Kabuli Chickpeas(2) | AT18: Durum(2) | AU18: Export Oaten Hay(2) | AV18: Feed Barley(2) | AW18: Field Peas(2) | AX18: Lupins(2) | AY18: Malt Barley(2) | AZ18: Milling Oats(2) | BA18: Lentils(2) | BB18: Lentils IMI Tolerant(2) | BC18: Triticale(2) | BD18: Vetch(2) | BE18: Sown Pasture(2) | BF18: Self Regen Pasture(2) | BG18: Lucerne Pasture Cereal(2) | BH18: Lucerne Pasture Grazing(2) | BI18: Phalaris Sub Pasture Cereal(2) | BJ18: Phalaris Sub Grazing(2)
B19: Tractor (300 kW) | C19: 600000 | D19: 8000 | H19: 0.02 | I19: 500 | J19: =C19*(H19*100)/100/I19/IF(tbl_machinery[[#This Row],[Work Rate ha/hr]]=0,1,tbl_machinery[[#This Row],[Work Rate ha/hr]]) -> 24 | K19: Cost per Hr | L19: Cost per Hr | M19: =SUM(tbl_machinery[[#This Row],[ Fuel]:[Lube]]) -> 0 | N19: =SUM(tbl_machinery[[#This Row],[R&M]:[Lube]]) -> 24
B20: Tractor (90 kW) | C20: 180000 | D20: 8000 | H20: 0.02 | I20: 500 | J20: =C20*(H20*100)/100/I20/IF(tbl_machinery[[#This Row],[Work Rate ha/hr]]=0,1,tbl_machinery[[#This Row],[Work Rate ha/hr]]) -> 7.2 | K20: Cost per Hr | L20: Cost per Hr | M20: =SUM(tbl_machinery[[#This Row],[ Fuel]:[Lube]]) -> 0 | N20: =SUM(tbl_machinery[[#This Row],[R&M]:[Lube]]) -> 7.2
B21: S.P. header (13.5 m) | C21: 1000000 | D21: 2500 | E21: 0.95 | F21: 12 | G21: 50 | H21: 0.025 | I21: 250 | J21: =C21*(H21*100)/100/I21/IF(tbl_machinery[[#This Row],[Work Rate ha/hr]]=0,1,tbl_machinery[[#This Row],[Work Rate ha/hr]]) -> 8.333333333 | K21: =G21*diesel_price/F21 -> 4.475 | L21: =K21*var_lube_factor -> 0.22375 | M21: =SUM(tbl_machinery[[#This Row],[ Fuel]:[Lube]]) -> 4.69875 | N21: =SUM(tbl_machinery[[#This Row],[R&M]:[Lube]]) -> 13.03208333 | O21: 1 | Q21: 1 | R21: 1 | S21: 1 | T21: 1 | V21: 1 | X21: 1 | AA21: 1 | AB21: 1 | AE21: 1
B22: S.P. header 13.5 m)(peas, lentils, vetch) | C22: 1000000 | D22: 2500 | E22: 0.86 | F22: 9 | G22: 50 | H22: 0.04 | I22: 250 | J22: =C22*(H22*100)/100/I22/IF(tbl_machinery[[#This Row],[Work Rate ha/hr]]=0,1,tbl_machinery[[#This Row],[Work Rate ha/hr]]) -> 17.77777778 | K22: 5.966666667 | L22: 0.2983333333 | M22: =SUM(tbl_machinery[[#This Row],[ Fuel]:[Lube]]) -> 6.265 | N22: =SUM(tbl_machinery[[#This Row],[R&M]:[Lube]]) -> 24.04277778 | Y22: 1 | AC22: 1 | AD22: 1 | AF22: 1
B23: SP header(13.5m) beans, chicks, lupins) | C23: 1000000 | D23: 2500 | E23: 0.9 | F23: 9.5 | G23: 50 | H23: 0.03 | I23: 250 | J23: =C23*(H23*100)/100/I23/IF(tbl_machinery[[#This Row],[Work Rate ha/hr]]=0,1,tbl_machinery[[#This Row],[Work Rate ha/hr]]) -> 12.63157895 | K23: 5.652631579 | L23: 0.2826315789 | M23: =SUM(tbl_machinery[[#This Row],[ Fuel]:[Lube]]) -> 5.935263158 | N23: =SUM(tbl_machinery[[#This Row],[R&M]:[Lube]]) -> 18.56684211 | P23: 1 | U23: 1 | Z23: 1
B24: Chaser bin | C24: 90000 | D24: 8000 | E24: 0.5 | F24: 11.4 | G24: 10 | H24: 0.02 | I24: 250 | J24: =C24*(H24*100)/100/I24/IF(tbl_machinery[[#This Row],[Work Rate ha/hr]]=0,1,tbl_machinery[[#This Row],[Work Rate ha/hr]]) -> 0.6315789474 | K24: 0.9421052632 | L24: 0.04710526316 | M24: =SUM(tbl_machinery[[#This Row],[ Fuel]:[Lube]]) -> 0.9892105263 | N24: =SUM(tbl_machinery[[#This Row],[R&M]:[Lube]]) -> 1.620789474 | O24: 1 | P24: 1 | Q24: 1 | R24: 1 | S24: 1 | T24: 1 | U24: 1 | V24: 1 | X24: 1 | Y24: 1 | Z24: 1 | AA24: 1 | AB24: 1 | AC24: 1 | AD24: 1 | AE24: 1 | AF24: 1
B25: Airseeder (15m) | C25: 600000 | D25: 2000 | E25: 0.8 | F25: 12 | G25: 50 | H25: 0.02 | I25: 250 | J25: =C25*(H25*100)/100/I25/IF(tbl_machinery[[#This Row],[Work Rate ha/hr]]=0,1,tbl_machinery[[#This Row],[Work Rate ha/hr]]) -> 4 | K25: 4.475 | L25: 0.22375 | M25: =SUM(tbl_machinery[[#This Row],[ Fuel]:[Lube]]) -> 4.69875 | N25: =SUM(tbl_machinery[[#This Row],[R&M]:[Lube]]) -> 8.69875 | O25: 1 | P25: 1 | Q25: 1 | R25: 1 | S25: 1 | T25: 1 | U25: 1 | V25: 1 | W25: 1 | X25: 1 | Y25: 1 | Z25: 1 | AA25: 1 | AB25: 1 | AC25: 1 | AD25: 1 | AE25: 1 | AF25: 1 | AG25: 1 | AI25: 1 | AJ25: 1 | AK25: 1 | AL25: 1
B26: Boomspray (36 m) | C26: 400000 | D26: 1500 | E26: 0.75 | F26: 45 | G26: 30 | H26: 0.02 | I26: 150 | J26: =C26*(H26*100)/100/I26/IF(tbl_machinery[[#This Row],[Work Rate ha/hr]]=0,1,tbl_machinery[[#This Row],[Work Rate ha/hr]]) -> 1.185185185 | K26: 0.716 | L26: 0.0358 | M26: =SUM(tbl_machinery[[#This Row],[ Fuel]:[Lube]]) -> 0.7518 | N26: =SUM(tbl_machinery[[#This Row],[R&M]:[Lube]]) -> 1.936985185 | O26: 6 | P26: 10 | Q26: 11 | R26: 11 | S26: 11 | T26: 8 | U26: 10 | V26: 5 | W26: 6 | X26: 5 | Y26: 9 | Z26: 8 | AA26: 5 | AB26: 6 | AC26: 10 | AD26: 10 | AE26: 6 | AF26: 8 | AG26: 4 | AH26: 3 | AI26: 3 | AJ26: 3 | AK26: 3 | AL26: 3 | BG26: 2 | BH26: 2 | BI26: 2 | BJ26: 2
B27: Roller (12 m) | C27: 35000 | D27: 5000 | E27: 0.9 | F27: 10 | G27: 20 | H27: 0.01 | I27: 20 | J27: =C27*(H27*100)/100/I27/IF(tbl_machinery[[#This Row],[Work Rate ha/hr]]=0,1,tbl_machinery[[#This Row],[Work Rate ha/hr]]) -> 1.75 | K27: 2.148 | L27: 0.1074 | M27: =SUM(tbl_machinery[[#This Row],[ Fuel]:[Lube]]) -> 2.2554 | N27: =SUM(tbl_machinery[[#This Row],[R&M]:[Lube]]) -> 4.0054 | W27: 1 | Y27: 1 | AC27: 1 | AD27: 1 | AF27: 1 | BG27: 1 | BH27: 1 | BI27: 1 | BJ27: 1
B28: Mower-conditioner (5m) | C28: 60000 | D28: 2000 | E28: 0.8 | F28: 4 | G28: 12 | H28: 0.02 | I28: 100 | J28: =C28*(H28*100)/100/I28/IF(tbl_machinery[[#This Row],[Work Rate ha/hr]]=0,1,tbl_machinery[[#This Row],[Work Rate ha/hr]]) -> 3 | K28: 3.222 | L28: =K28/10 -> 0.3222 | M28: =SUM(tbl_machinery[[#This Row],[ Fuel]:[Lube]]) -> 3.5442 | N28: =SUM(tbl_machinery[[#This Row],[R&M]:[Lube]]) -> 6.5442
B32: FEED & OTHER COSTS | C32: water | E32: 2.5 | F32: /DSE
C33: Veh fuel, R&M | E33: 1 | F33: /DSE
C34: other | E34: 0.5 | F34: /DSE
C35: hay | E35: 180 | F35: /tonne incl freight
C36: Feed Cereal grain | E36: 200 | F36: /tonne incl freight
C37: lupins | E37: 300 | F37: /tonne incl freight
A40: Default Cost Selected Items | B40: CHEMICALS | H40: RATES>>>>
B41: Name | C41: Rainfall | D41: Type | E41: Category | F41: Units | G41: Cost | H41: Wheat | I41: Faba Beans | J41: Canola Clearfield | K41: Canola Conventional | L41: Canola Tri Tolerant | M41: Canola Roundup Ready | N41: Kabuli Chickpeas | O41: Durum | P41: Export Oaten Hay | Q41: Feed Barley | R41: Field Peas | S41: Lupins | T41: Malt Barley | U41: Milling Oats | V41: Lentils | W41: Lentils IMI Tolerant | X41: Triticale | Y41: Vetch | Z41: Sown Pasture | AA41: Self Regen Pasture | AB41: Lucerne Pasture Cereal | AC41: Lucerne Pasture Grazing | AD41: Phalaris Sub Pasture Cereal | AE41: Phalaris Sub Grazing | AF41: Adjuvant Desc | AG41: Adjuvant Cost/ha
B42: 2,4-D Amine (625g/l) | C42: LOW | D42: Chemical | E42: Herbicide-Post Emergent | F42: litre
B43: 2,4-D Amine (625g/l) | C43: MEDIUM | D43: Chemical | E43: Herbicide-Post Emergent | F43: litre
B44: 2,4-D Amine (625g/l) | C44: HIGH | D44: Chemical | E44: Herbicide-Post Emergent | F44: litre
B45: 2,4-D LV Ester (680g/l) | C45: LOW | D45: Chemical | F45: litre | G45: 8.15
B46: 2,4-D LV Ester (680g/l) | C46: MEDIUM | D46: Chemical | F46: litre | G46: 8.15
B47: 2,4-D LV Ester (680g/l) | C47: HIGH | D47: Chemical | F47: litre | G47: 8.15
B48: Achieve® WG | C48: LOW | D48: Chemical | E48: Herbicide-Post Emergent | F48: kg | G48: 60 | AF48: Surfactant | AG48: 4.01
B49: Achieve® WG | C49: MEDIUM | D49: Chemical | E49: Herbicide-Post Emergent | F49: kg | G49: 60 | X49: 0.4 | AF49: Surfactant | AG49: 4.01
B50: Achieve® WG | C50: HIGH | D50: Chemical | E50: Herbicide-Post Emergent | F50: kg | G50: 60 | X50: 0.4 | AF50: Surfactant | AG50: 4.01
B51: Adigor® | C51: LOW | D51: Chemical | F51: litre | G51: 12.75
B52: Adigor® | C52: MEDIUM | D52: Chemical | F52: litre | G52: 12.75
B53: Adigor® | C53: HIGH | D53: Chemical | F53: litre | G53: 12.75
B54: Affinity® | C54: LOW | D54: Chemical | E54: Herbicide-Post Emergent | F54: litre | G54: 179
B55: Affinity® | C55: MEDIUM | D55: Chemical | E55: Herbicide-Post Emergent | F55: litre | G55: 179 | H55: 0.1 | O55: 0.1 | Q55: 0.1 | T55: 0.1
B56: Affinity® | C56: HIGH | D56: Chemical | E56: Herbicide-Post Emergent | F56: litre | G56: 179 | H56: 0.1 | O56: 0.1 | Q56: 0.1 | T56: 0.1
B57: Affirm | C57: LOW | D57: Chemical | E57: Insecticide | F57: litre | G57: 80 | J57: 0 | K57: 0 | L57: 0 | M57: 0
B58: Affirm | C58: MEDIUM | D58: Chemical | E58: Insecticide | F58: litre | G58: 80 | J58: 0.3 | K58: 0.3 | L58: 0.3 | M58: 0.3
B59: Affirm | C59: HIGH | D59: Chemical | E59: Insecticide | F59: litre | G59: 80 | J59: 0.3 | K59: 0.3 | L59: 0.3 | M59: 0.3
B60: Alpha-cypermethrin 250g/L | C60: LOW | D60: Chemical | E60: Insecticide | F60: litre | G60: 21
B61: Alpha-cypermethrin 250g/L | C61: MEDIUM | D61: Chemical | E61: Insecticide | F61: litre | G61: 21
B62: Alpha-cypermethrin 250g/L | C62: HIGH | D62: Chemical | E62: Insecticide | F62: litre | G62: 21
B63: Amistar® | C63: LOW | D63: Chemical | E63: Fungicide | F63: litre
B64: Amistar® | C64: MEDIUM | D64: Chemical | E64: Fungicide | F64: litre
B65: Amistar® | C65: HIGH | D65: Chemical | E65: Fungicide | F65: litre
B66: Amistar Xtra | C66: LOW | D66: Chemical | E66: Fungicide | F66: litre | G66: 29
B67: Amistar Xtra | C67: MEDIUM | D67: Chemical | E67: Fungicide | F67: litre | G67: 29 | Q67: 0.4 | T67: 0.4
B68: Amistar Xtra | C68: HIGH | D68: Chemical | E68: Fungicide | F68: litre | G68: 29 | H68: 0.4 | Q68: 0.4 | T68: 0.4
B69: Aphid Control | J69: 4 | K69: 4 | L69: 4
B70: Apron® XL 350 ES | C70: LOW | D70: Chemical | E70: Fungicide | F70: litre | G70: 475
B71: Apron® XL 350 ES | C71: MEDIUM | D71: Chemical | E71: Fungicide | F71: litre | G71: 475
B72: Apron® XL 350 ES | C72: HIGH | D72: Chemical | E72: Fungicide | F72: litre | G72: 475
B73: Aptitude® | C73: LOW | D73: Chemical | F73: kg
B74: Aptitude® | C74: MEDIUM | D74: Chemical | F74: kg
B75: Aptitude® | C75: HIGH | D75: Chemical | F75: kg
B76: Atlantis® (mesosulfuron 30g/L) | C76: LOW | D76: Chemical | E76: Herbicide-Post Emergent | F76: litre | G76: 95
B77: Atlantis® (mesosulfuron 30g/L) | C77: MEDIUM | D77: Chemical | E77: Herbicide-Post Emergent | F77: litre | G77: 95
B78: Atlantis® (mesosulfuron 30g/L) | C78: HIGH | D78: Chemical | E78: Herbicide-Post Emergent | F78: litre | G78: 95
B79: Atrazine 900g/kg | C79: LOW | D79: Chemical | E79: Herbicide-Pre Emergent | F79: kg | G79: 11.2 | I79: 0.83 | L79: 1.1 | S79: 0.83
B80: Atrazine 900g/kg | C80: MEDIUM | D80: Chemical | E80: Herbicide-Pre Emergent | F80: kg | G80: 11.2 | I80: 0.83 | L80: 1.1 | S80: 0.83
B81: Atrazine 900g/kg | C81: HIGH | D81: Chemical | E81: Herbicide-Pre Emergent | F81: kg | G81: 11.2 | I81: 0.83 | L81: 1.1 | S81: 0.83
B82: Aviator X-Pro® | C82: LOW | D82: Chemical | E82: Fungicide | F82: litre | G82: 59.7 | N82: 0
B83: Aviator X-Pro® | C83: MEDIUM | D83: Chemical | E83: Fungicide | F83: litre | G83: 59.7 | N83: 0.6
B84: Aviator X-Pro® | C84: HIGH | D84: Chemical | E84: Fungicide | F84: litre | G84: 59.7 | N84: 1.2
B85: Axial Extra® | C85: LOW | D85: Chemical | E85: Herbicide-Post Emergent | F85: litre | G85: 75
B86: Axial Extra® | C86: MEDIUM | D86: Chemical | E86: Herbicide-Post Emergent | F86: litre | G86: 75
B87: Axial Extra® | C87: HIGH | D87: Chemical | E87: Herbicide-Post Emergent | F87: litre | G87: 75
B88: Balance ® | C88: LOW | D88: Chemical | E88: Herbicide-Pre Emergent | F88: gram | G88: 0.14 | N88: 75
B89: Balance ® | C89: MEDIUM | D89: Chemical | E89: Herbicide-Pre Emergent | F89: gram | G89: 0.14 | N89: 100
B90: Balance ® | C90: HIGH | D90: Chemical | E90: Herbicide-Pre Emergent | F90: gram | G90: 0.14 | N90: 100
B91: Banjo® | C91: LOW | D91: Chemical | E91: Herbicide-Post Emergent | F91: litre | G91: 5.5
B92: Banjo® | C92: MEDIUM | D92: Chemical | E92: Herbicide-Post Emergent | F92: litre | G92: 5.5
B93: Banjo® | C93: HIGH | D93: Chemical | E93: Herbicide-Post Emergent | F93: litre | G93: 5.5
B94: Bifenthrin 250g/L (Talstar®) | C94: LOW | D94: Chemical | E94: Insecticide | F94: litre | G94: 36.25 | J94: 0.04 | K94: 0.04 | L94: 0.04 | M94: 0.04 | S94: 0.04
B95: Bifenthrin 250g/L (Talstar®) | C95: MEDIUM | D95: Chemical | E95: Insecticide | F95: litre | G95: 36.25 | J95: 0.04 | K95: 0.04 | L95: 0.04 | M95: 0.04 | S95: 0.04
B96: Bifenthrin 250g/L (Talstar®) | C96: HIGH | D96: Chemical | E96: Insecticide | F96: litre | G96: 36.25 | J96: 0.04 | K96: 0.04 | L96: 0.04 | M96: 0.04 | S96: 0.04
B97: Boxer Gold® | C97: LOW | D97: Chemical | E97: Herbicide-Pre Emergent | F97: litre | G97: 10.2
B98: Boxer Gold® | C98: MEDIUM | D98: Chemical | E98: Herbicide-Pre Emergent | F98: litre | G98: 10.2 | O98: 2.5 | Q98: 2.5 | T98: 2.5
B99: Boxer Gold® | C99: HIGH | D99: Chemical | E99: Herbicide-Pre Emergent | F99: litre | G99: 10.2 | O99: 2.5 | Q99: 2.5 | T99: 2.5
B100: Broadstrike® | C100: LOW | D100: Chemical | E100: Herbicide-Post Emergent | F100: gram | G100: 0.43 | AB100: 25 | AC100: 25 | AF100: Oil | AG100: 3.65625
B101: Broadstrike® | C101: MEDIUM | D101: Chemical | E101: Herbicide-Post Emergent | F101: gram | G101: 0.43 | V101: 25 | AA101: 25 | AB101: 25 | AC101: 25 | AF101: Oil | AG101: 3.65625
B102: Broadstrike® | C102: HIGH | D102: Chemical | E102: Herbicide-Post Emergent | F102: gram | G102: 0.43 | V102: 25 | AA102: 50 | AB102: 25 | AC102: 25 | AF102: Oil | AG102: 3.65625
B103: Bromoxynil /MCPA | C103: LOW | D103: Chemical | E103: Herbicide-Post Emergent | F103: litre | G103: 18
B104: Bromoxynil /MCPA | C104: MEDIUM | D104: Chemical | E104: Herbicide-Post Emergent | F104: litre | G104: 18
B105: Bromoxynil /MCPA | C105: HIGH | D105: Chemical | E105: Herbicide-Post Emergent | F105: litre | G105: 18
B106: Bromoxynil 200 | C106: LOW | D106: Chemical | E106: Herbicide-Post Emergent | F106: litre | G106: 15.25 | AD106: 1.5 | AE106: 1.5 | AF106: Wetter | AG106: 0.61875
B107: Bromoxynil 200 | C107: MEDIUM | D107: Chemical | E107: Herbicide-Post Emergent | F107: litre | G107: 15.25 | AD107: 1.5 | AE107: 1.5 | AF107: Wetter | AG107: 0.61875
B108: Bromoxynil 200 | C108: HIGH | D108: Chemical | E108: Herbicide-Post Emergent | F108: litre | G108: 15.25 | AD108: 1.5 | AE108: 1.5 | AF108: Wetter | AG108: 0.61875
B109: Butisan 500 | C109: LOW | D109: Chemical | F109: litre | G109: 44.75
B110: Butisan 500 | C110: MEDIUM | D110: Chemical | F110: litre | G110: 44.75
B111: Butisan 500 | C111: HIGH | D111: Chemical | F111: litre | G111: 44.75
B112: Cadence® (700gm/Kg Dicamba) | C112: LOW | D112: Chemical | E112: Herbicide-Post Emergent | F112: kg | G112: 42.15
B113: Cadence® (700gm/Kg Dicamba) | C113: MEDIUM | D113: Chemical | E113: Herbicide-Post Emergent | F113: kg | G113: 42.15
B114: Cadence® (700gm/Kg Dicamba) | C114: HIGH | D114: Chemical | E114: Herbicide-Post Emergent | F114: kg | G114: 42.15
B115: Carbendazim 500g/kg | C115: LOW | D115: Chemical | E115: Fungicide | F115: kg | G115: 12 | N115: 0.5 | V115: 0.5 | W115: 0.5
B116: Carbendazim 500g/kg | C116: MEDIUM | D116: Chemical | E116: Fungicide | F116: kg | G116: 12 | I116: 0.5 | N116: 0.5 | V116: 1 | W116: 1
B117: Carbendazim 500g/kg | C117: HIGH | D117: Chemical | E117: Fungicide | F117: kg | G117: 12 | I117: 1 | N117: 0.5 | V117: 1 | W117: 1
B118: Carfentrazone 400g/L (Hammer) | C118: LOW | D118: Chemical | E118: Herbicide-Pre Emergent | F118: litre | G118: 185 | H118: 0.02 | I118: 0.02 | J118: 0.02 | K118: 0.02 | L118: 0.02 | M118: 0.02 | N118: 0.02 | O118: 0.02 | P118: 0.02 | Q118: 0.02 | R118: 0.02 | S118: 0.02 | T118: 0.02 | U118: 0.02 | V118: 0.02 | W118: 0.02 | X118: 0.02 | Y118: 0.02 | Z118: 0.02 | AB118: 0.02 | AC118: 0.02 | AD118: 0.02 | AE118: 0.02
B119: Carfentrazone 400g/L (Hammer) | C119: MEDIUM | D119: Chemical | E119: Herbicide-Pre Emergent | F119: litre | G119: 185 | H119: 0.02 | I119: 0.02 | J119: 0.02 | K119: 0.02 | L119: 0.02 | M119: 0.02 | N119: 0.02 | O119: 0.02 | P119: 0.02 | Q119: 0.02 | R119: 0.02 | S119: 0.02 | T119: 0.02 | U119: 0.02 | V119: 0.02 | W119: 0.02 | X119: 0.02 | Y119: 0.02 | Z119: 0.02 | AB119: 0.02 | AC119: 0.02 | AD119: 0.02 | AE119: 0.02
B120: Carfentrazone 400g/L (Hammer) | C120: HIGH | D120: Chemical | E120: Herbicide-Pre Emergent | F120: litre | G120: 185 | H120: 0.02 | I120: 0.02 | J120: 0.02 | K120: 0.02 | L120: 0.02 | M120: 0.02 | N120: 0.02 | O120: 0.02 | P120: 0.02 | Q120: 0.02 | R120: 0.02 | S120: 0.02 | T120: 0.02 | U120: 0.02 | V120: 0.02 | W120: 0.02 | X120: 0.02 | Y120: 0.02 | Z120: 0.02 | AB120: 0.02 | AC120: 0.02 | AD120: 0.02 | AE120: 0.02
B121: Chlorothalonil 720g/L | C121: LOW | D121: Chemical | E121: Fungicide | F121: litre | G121: 14 | N121: 2 | W121: 0.8
B122: Chlorothalonil 720g/L | C122: MEDIUM | D122: Chemical | E122: Fungicide | F122: litre | G122: 14 | N122: 2 | V122: 1.6 | W122: 1.6
B123: Chlorothalonil 720g/L | C123: HIGH | D123: Chemical | E123: Fungicide | F123: litre | G123: 14 | N123: 2 | V123: 2.4 | W123: 2.4
B124: Chlorpyrifos 500g/L | C124: LOW | D124: Chemical | E124: Insecticide | F124: litre | G124: 13.5 | I124: 0.14 | J124: 0.5 | K124: 0.5 | L124: 0.5 | M124: 0.5 | N124: 0.14
B125: Chlorpyrifos 500g/L | C125: MEDIUM | D125: Chemical | E125: Insecticide | F125: litre | G125: 13.5 | I125: 0.14 | J125: 0.5 | K125: 0.5 | L125: 0.5 | M125: 0.5 | N125: 0.14
B126: Chlorpyrifos 500g/L | C126: HIGH | D126: Chemical | E126: Insecticide | F126: litre | G126: 13.5 | I126: 0.14 | J126: 0.5 | K126: 0.5 | L126: 0.5 | M126: 0.5 | N126: 0.14
B127: Chlorsulfuron 750g/kg (Glean®) | C127: LOW | D127: Chemical | E127: Herbicide-Pre Emergent | F127: gram | G127: 0.09
B128: Chlorsulfuron 750g/kg (Glean®) | C128: MEDIUM | D128: Chemical | E128: Herbicide-Pre Emergent | F128: gram | G128: 0.09
B129: Chlorsulfuron 750g/kg (Glean®) | C129: HIGH | D129: Chemical | E129: Herbicide-Pre Emergent | F129: gram | G129: 0.09
B130: Clethodim (360g/L) | C130: LOW | D130: Chemical | E130: Herbicide-Post Emergent | F130: litre | G130: 17.9 | I130: 0.33 | J130: 0.33 | K130: 0.33 | L130: 0.33 | N130: 0.33 | R130: 0.33 | S130: 0.33 | V130: 0.33 | W130: 0.33 | Y130: 0.33 | Z130: 0.33 | AA130: 0.33 | AF130: Oil | AG130: 3.66
B131: Clethodim (360g/L) | C131: MEDIUM | D131: Chemical | E131: Herbicide-Post Emergent | F131: litre | G131: 17.9 | I131: 0.33 | J131: 0.33 | K131: 0.33 | L131: 0.33 | N131: 0.33 | R131: 0.33 | S131: 0.33 | V131: 0.33 | W131: 0.33 | Y131: 0.33 | Z131: 0.33 | AA131: 0.33 | AF131: Oil | AG131: 3.66
B132: Clethodim (360g/L) | C132: HIGH | D132: Chemical | E132: Herbicide-Post Emergent | F132: litre | G132: 17.9 | I132: 0.33 | J132: 0.33 | K132: 0.33 | L132: 0.33 | M132: 0.33 | N132: 0.33 | R132: 0.33 | S132: 0.33 | V132: 0.33 | W132: 0.33 | Y132: 0.33 | Z132: 0.33 | AA132: 0.33 | AF132: Oil | AG132: 3.66
B133: Clethodim (360g/L) + Wetter | C133: LOW | D133: Chemical | E133: Herbicide-Post Emergent | F133: litre | G133: 17.9 | I133: 0.33 | J133: 0.33 | K133: 0.33 | L133: 0.33 | N133: 0.33 | R133: 0.33 | S133: 0.33 | V133: 0.33 | W133: 0.33 | Y133: 0.33 | Z133: 0.33 | AA133: 0.33 | AF133: Wetter | AG133: 0.61875
B134: Clethodim (360g/L) + Wetter | C134: MEDIUM | D134: Chemical | E134: Herbicide-Post Emergent | F134: litre | G134: 17.9 | I134: 0.33 | J134: 0.33 | K134: 0.33 | L134: 0.33 | N134: 0.33 | R134: 0.33 | S134: 0.33 | V134: 0.33 | W134: 0.33 | Y134: 0.33 | Z134: 0.33 | AA134: 0.33 | AF134: Wetter | AG134: 0.61875
B135: Clethodim (360g/L) + Wetter | C135: HIGH | D135: Chemical | E135: Herbicide-Post Emergent | F135: litre | G135: 17.9 | I135: 0.33 | J135: 0.33 | K135: 0.33 | L135: 0.33 | M135: 0.33 | N135: 0.33 | R135: 0.33 | S135: 0.33 | V135: 0.33 | W135: 0.33 | Y135: 0.33 | Z135: 0.33 | AA135: 0.33 | AF135: Wetter | AG135: 0.61875
B136: Clopyralid 600g/L (Lontrel® Advanced) | C136: LOW | D136: Chemical | E136: Herbicide-Post Emergent | F136: litre | G136: 75 | H136: 0.05 | J136: 0.1 | K136: 0.1 | L136: 0.1 | O136: 0.075 | Q136: 0.05 | T136: 0.03 | X136: 0.03
B137: Clopyralid 600g/L (Lontrel® Advanced) | C137: MEDIUM | D137: Chemical | E137: Herbicide-Post Emergent | F137: litre | G137: 75 | J137: 0.125 | K137: 0.125 | L137: 0.125 | X137: 0.03
B138: Clopyralid 600g/L (Lontrel® Advanced) | C138: HIGH | D138: Chemical | E138: Herbicide-Post Emergent | F138: litre | G138: 75 | J138: 0.125 | K138: 0.125 | L138: 0.125 | X138: 0.03
B139: Cogito® | C139: LOW | D139: Chemical | E139: Fungicide | F139: litre
B140: Cogito® | C140: MEDIUM | D140: Chemical | E140: Fungicide | F140: litre
B141: Cogito® | C141: HIGH | D141: Chemical | E141: Fungicide | F141: litre
B142: Cruiser 350 | C142: LOW | D142: Chemical | E142: Insecticide | F142: litre | G142: 49.5
B143: Cruiser 350 | C143: MEDIUM | D143: Chemical | E143: Insecticide | F143: litre | G143: 49.5
B144: Cruiser 350 | C144: HIGH | D144: Chemical | E144: Insecticide | F144: litre | G144: 49.5
B145: Diflufenican (Brodal) | C145: LOW | D145: Chemical | E145: Herbicide-Post Emergent | F145: litre | G145: 49.5 | R145: 0.15 | V145: 0.15
B146: Diflufenican (Brodal) | C146: MEDIUM | D146: Chemical | E146: Herbicide-Post Emergent | F146: litre | G146: 49.5 | R146: 0.15 | V146: 0.15
B147: Diflufenican (Brodal) | C147: HIGH | D147: Chemical | E147: Herbicide-Post Emergent | F147: litre | G147: 49.5 | R147: 0.15 | V147: 0.15
B148: Dimethoate 400g/L | C148: LOW | D148: Chemical | E148: Insecticide | F148: litre | G148: 17 | I148: 0.5 | R148: 0.1 | V148: 0.4 | W148: 0.4 | Y148: 0.4 | Z148: 0.4 | AA148: 0.085 | AB148: 0.1 | AC148: 0.1 | AD148: 0.1 | AE148: 0.1
B149: Dimethoate 400g/L | C149: MEDIUM | D149: Chemical | E149: Insecticide | F149: litre | G149: 17 | I149: 0.5 | R149: 0.1 | V149: 0.4 | W149: 0.4 | Y149: 0.4 | Z149: 0.4 | AA149: 0.085 | AB149: 0.1 | AC149: 0.1 | AD149: 0.1 | AE149: 0.1
B150: Dimethoate 400g/L | C150: HIGH | D150: Chemical | E150: Insecticide | F150: litre | G150: 17 | I150: 0.5 | R150: 0.1 | V150: 0.4 | W150: 0.4 | Y150: 0.4 | Z150: 0.4 | AA150: 0.085 | AB150: 0.1 | AC150: 0.1 | AD150: 0.1 | AE150: 0.1
B151: Dimethoate 400g/L (2) | C151: LOW | D151: Chemical | E151: Insecticide | F151: litre | G151: 17 | AC151: 0.375 | AD151: 0.1 | AE151: 0.1
B152: Dimethoate 400g/L (2) | C152: MEDIUM | D152: Chemical | E152: Insecticide | F152: litre | G152: 17 | Z152: 0.1 | AC152: 0.375 | AD152: 0.1 | AE152: 0.1
B153: Dimethoate 400g/L (2) | C153: HIGH | D153: Chemical | E153: Insecticide | F153: litre | G153: 17 | Z153: 0.1 | AB153: 0.375 | AC153: 0.375 | AD153: 0.1 | AE153: 0.1
B154: Diuron 900 gm a.i. granules | C154: LOW | D154: Chemical | E154: Herbicide-Pre Emergent | F154: kg | G154: 15.95 | P154: 0.4 | U154: 0.4 | AB154: 1 | AC154: 1
B155: Diuron 900 gm a.i. granules | C155: MEDIUM | D155: Chemical | E155: Herbicide-Pre Emergent | F155: kg | G155: 15.95 | P155: 0.4 | U155: 0.4 | AB155: 1 | AC155: 1
B156: Diuron 900 gm a.i. granules | C156: HIGH | D156: Chemical | E156: Herbicide-Pre Emergent | F156: kg | G156: 15.95 | P156: 0.4 | U156: 0.4 | AB156: 1 | AC156: 1
B157: dummy | C157: LOW | H157: 0 | I157: 0 | J157: 0 | K157: 0 | L157: 0 | N157: 0 | O157: 0 | P157: 0 | Q157: 0 | R157: 0 | S157: 0 | T157: 0 | U157: 0 | V157: 0 | X157: 0 | Y157: 0
B158: dummy | C158: MEDIUM | H158: 0 | I158: 0 | J158: 0 | K158: 0 | L158: 0 | N158: 0 | O158: 0 | P158: 0 | Q158: 0 | R158: 0 | S158: 0 | T158: 0 | U158: 0 | V158: 0 | X158: 0 | Y158: 0
B159: dummy | C159: HIGH | H159: 0 | I159: 0 | J159: 0 | K159: 0 | L159: 0 | N159: 0 | O159: 0 | P159: 0 | Q159: 0 | R159: 0 | S159: 0 | T159: 0 | U159: 0 | V159: 0 | X159: 0 | Y159: 0
B160: Epoxiconazole 125g/L | C160: LOW | D160: Chemical | E160: Fungicide | F160: litre | G160: 30
B161: Epoxiconazole 125g/L | C161: MEDIUM | D161: Chemical | E161: Fungicide | F161: litre | G161: 30 | H161: 0.5
B162: Epoxiconazole 125g/L | C162: HIGH | D162: Chemical | E162: Fungicide | F162: litre | G162: 30 | H162: 0.5
B163: Factor® (butroxydim 250g/kg) | C163: LOW | D163: Chemical | E163: Herbicide-Post Emergent | F163: gram | G163: 0.13
B164: Factor® (butroxydim 250g/kg) | C164: MEDIUM | D164: Chemical | E164: Herbicide-Post Emergent | F164: gram | G164: 0.13
B165: Factor® (butroxydim 250g/kg) | C165: HIGH | D165: Chemical | E165: Herbicide-Post Emergent | F165: gram | G165: 0.13 | I165: 180 | N165: 180 | R165: 180 | S165: 180 | V165: 180 | W165: 180 | Y165: 180
B166: Flight® | C166: LOW | D166: Chemical | F166: litre | G166: 32.25
B167: Flight® | C167: MEDIUM | D167: Chemical | F167: litre | G167: 32.25
B168: Flight® | C168: HIGH | D168: Chemical | F168: litre | G168: 32.25
A169: THIS APPEARS IN BOTH THE CHEM | B169: Flutriafol (500g/l) | C169: LOW | D169: Chemical | E169: Fungicide | F169: litre | G169: 45
A170: AND SEEDS TABLES. SO BE CAREFUL | B170: Flutriafol (500g/l) | C170: MEDIUM | D170: Chemical | E170: Fungicide | F170: litre | G170: 45
A171: WHEN UPDATING PRICES! | B171: Flutriafol (500g/l) | C171: HIGH | D171: Chemical | E171: Fungicide | F171: litre | G171: 45
B172: Flutriafol (on fert) | C172: LOW | D172: Chemical | E172: Fungicide | F172: litre | G172: 45 | H172: 0.2 | J172: 0.2 | K172: 0.2 | L172: 0.2
B173: Flutriafol (on fert) | C173: MEDIUM | D173: Chemical | E173: Fungicide | F173: litre | G173: 45 | H173: 0.2 | J173: 0.2 | K173: 0.2 | L173: 0.2
B174: Flutriafol (on fert) | C174: HIGH | D174: Chemical | E174: Fungicide | F174: litre | G174: 45 | H174: 0.2 | J174: 0.2 | K174: 0.2 | L174: 0.2
B175: Glypho (pre-harvest) | C175: LOW | D175: Chemical | E175: Herbicide-Pre Emergent | F175: litre | G175: 7.65 | J175: 2 | K175: 2 | L175: 2
B176: Glypho (pre-harvest) | C176: MEDIUM | D176: Chemical | E176: Herbicide-Pre Emergent | F176: litre | G176: 7.65 | J176: 2 | K176: 2 | L176: 2 | M176: 1.2
B177: Glypho (pre-harvest) | C177: HIGH | D177: Chemical | E177: Herbicide-Pre Emergent | F177: litre | G177: 7.65 | J177: 2 | K177: 2 | L177: 2 | M177: 1.2
B178: Glyphosate 450g/L | C178: LOW | D178: Chemical | E178: Herbicide-Pre Emergent | F178: litre | G178: 5.9
B179: Glyphosate 450g/L | C179: MEDIUM | D179: Chemical | E179: Herbicide-Pre Emergent | F179: litre | G179: 5.9
B180: Glyphosate 450g/L | C180: HIGH | D180: Chemical | E180: Herbicide-Pre Emergent | F180: litre | G180: 5.9
A181: 7.65 | B181: Glyphosate 540g/L | C181: LOW | D181: Chemical | E181: Herbicide-Pre Emergent | F181: litre | G181: =user_cost3 -> 7.65 | H181: 1.2 | I181: 1.2 | J181: 1.2 | K181: 1.2 | L181: 1.2 | M181: 1.2 | N181: 1.2 | O181: 1.2 | P181: 1.2 | Q181: 1.2 | R181: 1.2 | S181: 1.2 | T181: 1.2 | U181: 1.2 | V181: 1.2 | W181: 1.2 | X181: 1.2 | Y181: 1.2 | Z181: 1.2 | AB181: 1.2 | AC181: 1.2 | AD181: 1.2 | AE181: 1.2
B182: Glyphosate 540g/L | C182: MEDIUM | D182: Chemical | E182: Herbicide-Pre Emergent | F182: litre | G182: =user_cost3 -> 7.65 | H182: 1.2 | I182: 1.2 | J182: 1.2 | K182: 1.2 | L182: 1.2 | M182: 1.2 | N182: 1.2 | O182: 1.2 | P182: 1.2 | Q182: 1.2 | R182: 1.2 | S182: 1.2 | T182: 1.2 | U182: 1.2 | V182: 1.2 | W182: 1.2 | X182: 1.2 | Y182: 1.2 | Z182: 1.2 | AB182: 1.2 | AC182: 1.2 | AD182: 1.2 | AE182: 1.2
B183: Glyphosate 540g/L | C183: HIGH | D183: Chemical | E183: Herbicide-Pre Emergent | F183: litre | G183: =user_cost3 -> 7.65 | H183: 1.2 | I183: 1.2 | J183: 1.2 | K183: 1.2 | L183: 1.2 | M183: 1.2 | N183: 1.2 | O183: 1.2 | P183: 1.2 | Q183: 1.2 | R183: 1.2 | S183: 1.2 | T183: 1.2 | U183: 1.2 | V183: 1.2 | W183: 1.2 | X183: 1.2 | Y183: 1.2 | Z183: 1.2 | AB183: 1.2 | AC183: 1.2 | AD183: 1.2 | AE183: 1.2
B184: Glyphosate 540g/L (desiccant) | C184: LOW | D184: Chemical | E184: Herbicide-Post Emergent | F184: litre | G184: 7.65 | Z184: 1.5
B185: Glyphosate 540g/L (desiccant) | C185: MEDIUM | D185: Chemical | E185: Herbicide-Post Emergent | F185: litre | G185: 7.65 | Z185: 1.5
B186: Glyphosate 540g/L (desiccant) | C186: HIGH | D186: Chemical | E186: Herbicide-Post Emergent | F186: litre | G186: 7.65 | Z186: 1.5
B187: Glyphosate 540g/L Pre cutting | C187: LOW | D187: Chemical | E187: Herbicide-Pre Emergent | F187: litre | G187: 7.65 | I187: 1.2 | P187: 2
B188: Glyphosate 540g/L Pre cutting | C188: MEDIUM | D188: Chemical | E188: Herbicide-Pre Emergent | F188: litre | G188: 7.65 | I188: 1.2 | P188: 2.5
B189: Glyphosate 540g/L Pre cutting | C189: HIGH | D189: Chemical | E189: Herbicide-Pre Emergent | F189: litre | G189: 7.65 | I189: 1.2 | P189: 2.5
B190: Haloxyfop 520g/L (Verdict) | C190: LOW | D190: Chemical | E190: Herbicide-Post Emergent | F190: litre | G190: 49.6 | I190: 0.04 | J190: 0.075 | K190: 0.04 | L190: 0.04 | N190: 0.04 | R190: 0.04 | S190: 0.04 | V190: 0.04 | W190: 0.04 | Y190: 0.04 | Z190: 0.075 | AA190: 0.075 | AB190: 0.075 | AC190: 0.075
B191: Haloxyfop 520g/L (Verdict) | C191: MEDIUM | D191: Chemical | E191: Herbicide-Post Emergent | F191: litre | G191: 49.6 | I191: 0.08 | J191: 0.075 | K191: 0.04 | L191: 0.04 | N191: 0.08 | R191: 0.04 | S191: 0.04 | V191: 0.04 | W191: 0.04 | Y191: 0.04 | Z191: 0.075 | AA191: 0.075 | AB191: 0.075 | AC191: 0.075
B192: Haloxyfop 520g/L (Verdict) | C192: HIGH | D192: Chemical | E192: Herbicide-Post Emergent | F192: litre | G192: 49.6 | J192: 0.075 | K192: 0.04 | L192: 0.04 | Z192: 0.075 | AA192: 0.075 | AB192: 0.075 | AC192: 0.075
B193: Adjuvant | C193: LOW | D193: Chemical | E193: Herbicide-Post Emergent | F193: litre | G193: 8.25 | J193: 0.375
B194: Adjuvant | C194: MEDIUM | D194: Chemical | E194: Herbicide-Post Emergent | F194: litre | G194: 8.25 | J194: 0.375
B195: Adjuvant | C195: HIGH | D195: Chemical | E195: Herbicide-Post Emergent | F195: litre | G195: 8.25 | J195: 0.375
B196: Hot-up® | C196: LOW | D196: Chemical | E196: Adjuvant | F196: litre | G196: 8
B197: Hot-up® | C197: MEDIUM | D197: Chemical | E197: Adjuvant | F197: litre | G197: 8
B198: Hot-up® | C198: HIGH | D198: Chemical | E198: Adjuvant | F198: litre | G198: 8
B199: Imazethapyr 700g/kg | C199: LOW | D199: Chemical | E199: Herbicide-Pre Emergent | F199: kg | G199: 107 | W199: 0.07
B200: Imazethapyr 700g/kg | C200: MEDIUM | D200: Chemical | E200: Herbicide-Pre Emergent | F200: kg | G200: 107 | W200: 0.07
B201: Imazethapyr 700g/kg | C201: HIGH | D201: Chemical | E201: Herbicide-Pre Emergent | F201: kg | G201: 107 | W201: 0.07
B202: Imidacloprid 600g/L | C202: LOW | D202: Chemical | E202: Insecticide | F202: litre | G202: 42.5
B203: Imidacloprid 600g/L | C203: MEDIUM | D203: Chemical | E203: Insecticide | F203: litre | G203: 42.5
B204: Imidacloprid 600g/L | C204: HIGH | D204: Chemical | E204: Insecticide | F204: litre | G204: 42.5
B205: Imidan® | C205: LOW | D205: Chemical | E205: Insecticide | F205: litre | G205: 17.5
B206: Imidan® | C206: MEDIUM | D206: Chemical | E206: Insecticide | F206: litre | G206: 17.5
B207: Imidan® | C207: HIGH | D207: Chemical | E207: Insecticide | F207: litre | G207: 17.5
B208: Intervix® | C208: LOW | D208: Chemical | E208: Herbicide-Post Emergent | F208: litre | G208: 33.25 | J208: 0.4 | W208: 0.75
B209: Intervix® | C209: MEDIUM | D209: Chemical | E209: Herbicide-Post Emergent | F209: litre | G209: 33.25 | J209: 0.6 | W209: 0.75
B210: Intervix® | C210: HIGH | D210: Chemical | E210: Herbicide-Post Emergent | F210: litre | G210: 33.25 | J210: 0.6 | W210: 0.75
B211: Intervix® 1 | C211: LOW | D211: Chemical | E211: Herbicide-Post Emergent | F211: litre | G211: 33.25 | J211: 0.4 | W211: 0.75 | AF211: Hasten | AG211: =6.75*0.375 -> 2.53125
B212: Intervix® 1 | C212: MEDIUM | D212: Chemical | E212: Herbicide-Post Emergent | F212: litre | G212: 33.25 | J212: 0.6 | W212: 0.75 | AF212: Hasten | AG212: =6.75*0.375 -> 2.53125
B213: Intervix® 1 | C213: HIGH | D213: Chemical | E213: Herbicide-Post Emergent | F213: litre | G213: 33.25 | J213: 0.6 | W213: 0.75 | AF213: Hasten | AG213: =6.75*0.375 -> 2.53125
B214: Lambda-cyhalothrin (Karate Zeon) 1st | C214: LOW | D214: Chemical | E214: Insecticide | F214: litre | G214: 99 | J214: 0.024 | K214: 0.024 | L214: 0.024 | M214: 0.024 | N214: 0.024 | R214: 0.024 | S214: 0.024 | V214: 0.024 | W214: 0.024 | Y214: 0.024
B215: Lambda-cyhalothrin (Karate Zeon) 1st | C215: MEDIUM | D215: Chemical | E215: Insecticide | F215: litre | G215: 99 | J215: 0.024 | K215: 0.024 | L215: 0.024 | M215: 0.024 | N215: 0.024 | R215: 0.024 | S215: 0.024 | V215: 0.024 | W215: 0.024 | Y215: 0.024
... 450 more rows

Sheet GM Crib (hidden)
A1: This sheet takes the total GM/HA at the bottom of each sheet and compares it. Useful to make sure the R2 versions of each sheet agree to the R1 versions
A2: When the model is unpopulated the variances should all be zero
A3: GM/HA (row 162) | F3: GM/HA (row 162) | K3: GM/HA (row 162)
A4: Sheet | B4: LOW | C4: MED | D4: HIGH | F4: Sheet | G4: LOW | H4: MED | I4: HIGH | K4: Sheet | L4: LOW | M4: MED | N4: HIGH
A5: WHEAT | B5: =INDIRECT("'"&$A5&"'!l162") -> 352.85725 | C5: =INDIRECT("'"&$A5&"'!o162") -> 630.6325 | D5: =INDIRECT("'"&$A5&"'!r162") -> 947.2545 | F5: EXPORT OATEN HAY | G5: =INDIRECT("'"&$F5&"'!l162") -> 578.3675 | H5: =INDIRECT("'"&$F5&"'!o162") -> 907.7275 | I5: =INDIRECT("'"&$F5&"'!r162") -> 1109.2525 | K5: VETCH | L5: =INDIRECT("'"&$K5&"'!l162") -> 213.643 | M5: =INDIRECT("'"&$K5&"'!o162") -> 470.468 | N5: =INDIRECT("'"&$K5&"'!r162") -> 734.127
A6: WHEAT R2 | B6: =INDIRECT("'"&$A6&"'!l162") -> 352.85725 | C6: =INDIRECT("'"&$A6&"'!o162") -> 630.6325 | D6: =INDIRECT("'"&$A6&"'!r162") -> 947.2545 | F6: EXPORT OATEN HAY R2 | G6: =INDIRECT("'"&$F6&"'!l162") -> 578.3675 | H6: =INDIRECT("'"&$F6&"'!o162") -> 907.7275 | I6: =INDIRECT("'"&$F6&"'!r162") -> 1109.2525 | K6: VETCH R2 | L6: =INDIRECT("'"&$K6&"'!l162") -> 213.643 | M6: =INDIRECT("'"&$K6&"'!o162") -> 470.468 | N6: =INDIRECT("'"&$K6&"'!r162") -> 734.127
A7: VAR | B7: =B6-B5 -> 0 | C7: =C6-C5 -> 0 | D7: =D6-D5 -> 0 | F7: VAR | G7: =G6-G5 -> 0 | H7: =H6-H5 -> 0 | I7: =I6-I5 -> 0 | K7: VAR | L7: =L6-L5 -> 0 | M7: =M6-M5 -> 0 | N7: =N6-N5 -> 0
A9: BEANS | B9: =INDIRECT("'"&$A9&"'!l162") -> 72.4995 | C9: =INDIRECT("'"&$A9&"'!o162") -> 306.0315 | D9: =INDIRECT("'"&$A9&"'!r162") -> 698.1035 | F9: FEED BARLEY | G9: =INDIRECT("'"&$F9&"'!l162") -> 231.19325 | H9: =INDIRECT("'"&$F9&"'!o162") -> 479.29175 | I9: =INDIRECT("'"&$F9&"'!r162") -> 753.65075 | K9: LENTILS IMI TOLERANT | L9: =INDIRECT("'"&$K9&"'!l162") -> 274.5355 | M9: =INDIRECT("'"&$K9&"'!o162") -> 671.1995 | N9: =INDIRECT("'"&$K9&"'!r162") -> 1049.2735
A10: BEANS R2 | B10: =INDIRECT("'"&$A10&"'!l162") -> 72.4995 | C10: =INDIRECT("'"&$A10&"'!o162") -> 306.0315 | D10: =INDIRECT("'"&$A10&"'!r162") -> 698.1035 | F10: FEED BARLEY R2 | G10: =INDIRECT("'"&$F10&"'!l162") -> 231.19325 | H10: =INDIRECT("'"&$F10&"'!o162") -> 479.29175 | I10: =INDIRECT("'"&$F10&"'!r162") -> 753.65075 | K10: LENTILS IMI TOLERANT R2 | L10: =INDIRECT("'"&$K10&"'!l162") -> 274.5355 | M10: =INDIRECT("'"&$K10&"'!o162") -> 671.1995 | N10: =INDIRECT("'"&$K10&"'!r162") -> 1049.2735
A11: VAR | B11: =B10-B9 -> 0 | C11: =C10-C9 -> 0 | D11: =D10-D9 -> 0 | F11: VAR | G11: =G10-G9 -> 0 | H11: =H10-H9 -> 0 | I11: =I10-I9 -> 0 | K11: VAR | L11: =L10-L9 -> 0 | M11: =M10-M9 -> 0 | N11: =N10-N9 -> 0
A13: CANOLA CLEARFIELD | B13: =INDIRECT("'"&$A13&"'!l162") -> 170.87875 | C13: =INDIRECT("'"&$A13&"'!o162") -> 503.61625 | D13: =INDIRECT("'"&$A13&"'!r162") -> 817.17125 | F13: PEAS | G13: =INDIRECT("'"&$F13&"'!l162") -> 170.01425 | H13: =INDIRECT("'"&$F13&"'!o162") -> 397.34825 | I13: =INDIRECT("'"&$F13&"'!r162") -> 608.72875 | K13: SOWN PASTURE | L13: =INDIRECT("'"&$K13&"'!l162") -> 2.208 | M13: =INDIRECT("'"&$K13&"'!o162") -> 61.283 | N13: =INDIRECT("'"&$K13&"'!r162") -> 179.308
A14: CANOLA CLEARFIELD R2 | B14: =INDIRECT("'"&$A14&"'!l162") -> 170.87875 | C14: =INDIRECT("'"&$A14&"'!o162") -> 503.61625 | D14: =INDIRECT("'"&$A14&"'!r162") -> 817.17125 | F14: PEAS R2 | G14: =INDIRECT("'"&$F14&"'!l162") -> 170.01425 | H14: =INDIRECT("'"&$F14&"'!o162") -> 397.34825 | I14: =INDIRECT("'"&$F14&"'!r162") -> 608.72875 | K14: SOWN PASTURE R2 | L14: =INDIRECT("'"&$K14&"'!l162") -> 2.208 | M14: =INDIRECT("'"&$K14&"'!o162") -> 61.283 | N14: =INDIRECT("'"&$K14&"'!r162") -> 179.308
A15: VAR | B15: =B14-B13 -> 0 | C15: =C14-C13 -> 0 | D15: =D14-D13 -> 0 | F15: VAR | G15: =G14-G13 -> 0 | H15: =H14-H13 -> 0 | I15: =I14-I13 -> 0 | K15: VAR | L15: =L14-L13 -> 0 | M15: =M14-M13 -> 0 | N15: =N14-N13 -> 0
A17: CANOLA ROUNDUP READY | B17: =INDIRECT("'"&$A17&"'!l162") -> 212.069 | C17: =INDIRECT("'"&$A17&"'!o162") -> 448.617 | D17: =INDIRECT("'"&$A17&"'!r162") -> 789.323 | F17: LUPINS | G17: =INDIRECT("'"&$F17&"'!l162") -> 154.5485 | H17: =INDIRECT("'"&$F17&"'!o162") -> 334.7405 | I17: =INDIRECT("'"&$F17&"'!r162") -> 523.5165 | K17: SELF REGEN PASTURE | L17: =INDIRECT("'"&$K17&"'!l162") -> 59.868 | M17: =INDIRECT("'"&$K17&"'!o162") -> 119.718 | N17: =INDIRECT("'"&$K17&"'!r162") -> 239.568
A18: CANOLA ROUNDUP READY R2 | B18: =INDIRECT("'"&$A18&"'!l162") -> 212.069 | C18: =INDIRECT("'"&$A18&"'!o162") -> 448.617 | D18: =INDIRECT("'"&$A18&"'!r162") -> 789.323 | F18: LUPINS R2 | G18: =INDIRECT("'"&$F18&"'!l162") -> 154.5485 | H18: =INDIRECT("'"&$F18&"'!o162") -> 334.7405 | I18: =INDIRECT("'"&$F18&"'!r162") -> 523.5165 | K18: SELF REGEN PASTURE R2 | L18: =INDIRECT("'"&$K18&"'!l162") -> 59.868 | M18: =INDIRECT("'"&$K18&"'!o162") -> 119.718 | N18: =INDIRECT("'"&$K18&"'!r162") -> 239.568
A19: VAR | B19: =B18-B17 -> 0 | C19: =C18-C17 -> 0 | D19: =D18-D17 -> 0 | F19: VAR | G19: =G18-G17 -> 0 | H19: =H18-H17 -> 0 | I19: =I18-I17 -> 0 | K19: VAR | L19: =L18-L17 -> 0 | M19: =M18-M17 -> 0 | N19: =N18-N17 -> 0
A21: CANOLA CONVENTIONAL | B21: =INDIRECT("'"&$A21&"'!l162") -> 185.2885 | C21: =INDIRECT("'"&$A21&"'!o162") -> 524.676 | D21: =INDIRECT("'"&$A21&"'!r162") -> 897.146 | F21: MALT BARLEY | G21: =INDIRECT("'"&$F21&"'!l162") -> 296.56325 | H21: =INDIRECT("'"&$F21&"'!o162") -> 577.92175 | I21: =INDIRECT("'"&$F21&"'!r162") -> 920.42075 | K21: LUCERNE PASTURE CEREAL | L21: =INDIRECT("'"&$K21&"'!l162") -> 0 | M21: =INDIRECT("'"&$K21&"'!o162") -> 0 | N21: =INDIRECT("'"&$K21&"'!r162") -> 0
A22: CANOLA CONVENTIONAL R2 | B22: =INDIRECT("'"&$A22&"'!l162") -> 185.2885 | C22: =INDIRECT("'"&$A22&"'!o162") -> 524.676 | D22: =INDIRECT("'"&$A22&"'!r162") -> 897.146 | F22: MALT BARLEY R2 | G22: =INDIRECT("'"&$F22&"'!l162") -> 296.56325 | H22: =INDIRECT("'"&$F22&"'!o162") -> 577.92175 | I22: =INDIRECT("'"&$F22&"'!r162") -> 920.42075 | K22: LUCERNE PASTURE CEREAL R2 | L22: =INDIRECT("'"&$K22&"'!l162") -> 0 | M22: =INDIRECT("'"&$K22&"'!o162") -> 0 | N22: =INDIRECT("'"&$K22&"'!r162") -> 0
A23: VAR | B23: =B22-B21 -> 0 | C23: =C22-C21 -> 0 | D23: =D22-D21 -> 0 | F23: VAR | G23: =G22-G21 -> 0 | H23: =H22-H21 -> 0 | I23: =I22-I21 -> 0 | K23: VAR | L23: =L22-L21 -> 0 | M23: =M22-M21 -> 0 | N23: =N22-N21 -> 0
A25: CANOLA TRITOLERANT | B25: =INDIRECT("'"&$A25&"'!l162") -> 104.9035 | C25: =INDIRECT("'"&$A25&"'!o162") -> 392.226 | D25: =INDIRECT("'"&$A25&"'!r162") -> 771.546 | F25: MILLING OATS | G25: =INDIRECT("'"&$F25&"'!l162") -> 218.475 | H25: =INDIRECT("'"&$F25&"'!o162") -> 476.618 | I25: =INDIRECT("'"&$F25&"'!r162") -> 694.21 | K25: LUCERNE PASTURE GRAZING | L25: =INDIRECT("'"&$K25&"'!l162") -> 0 | M25: =INDIRECT("'"&$K25&"'!o162") -> 0 | N25: =INDIRECT("'"&$K25&"'!r162") -> 0
A26: CANOLA TRITOLERANT R2 | B26: =INDIRECT("'"&$A26&"'!l162") -> 104.9035 | C26: =INDIRECT("'"&$A26&"'!o162") -> 392.226 | D26: =INDIRECT("'"&$A26&"'!r162") -> 771.546 | F26: MILLING OATS R2 | G26: =INDIRECT("'"&$F26&"'!l162") -> 218.475 | H26: =INDIRECT("'"&$F26&"'!o162") -> 476.618 | I26: =INDIRECT("'"&$F26&"'!r162") -> 694.21 | K26: LUCERNE PASTURE GRAZING R2 | L26: =INDIRECT("'"&$K26&"'!l162") -> 0 | M26: =INDIRECT("'"&$K26&"'!o162") -> 0 | N26: =INDIRECT("'"&$K26&"'!r162") -> 0
A27: VAR | B27: =B26-B25 -> 0 | C27: =C26-C25 -> 0 | D27: =D26-D25 -> 0 | F27: VAR | G27: =G26-G25 -> 0 | H27: =H26-H25 -> 0 | I27: =I26-I25 -> 0 | K27: VAR | L27: =L26-L25 -> 0 | M27: =M26-M25 -> 0 | N27: =N26-N25 -> 0
A29: CHICKPEAS | B29: =INDIRECT("'"&$A29&"'!l162") -> 217.433 | C29: =INDIRECT("'"&$A29&"'!o162") -> 435.699 | D29: =INDIRECT("'"&$A29&"'!r162") -> 711.351 | F29: LENTILS | G29: =INDIRECT("'"&$F29&"'!l162") -> 350.338 | H29: =INDIRECT("'"&$F29&"'!o162") -> 805.052 | I29: =INDIRECT("'"&$F29&"'!r162") -> 1246.486 | K29: PHALARIS SUB PASTURE CEREAL | L29: =INDIRECT("'"&$K29&"'!l162") -> 228.5122 | M29: =INDIRECT("'"&$K29&"'!o162") -> 228.5122 | N29: =INDIRECT("'"&$K29&"'!r162") -> 228.5122
A30: CHICKPEAS R2 | B30: =INDIRECT("'"&$A30&"'!l162") -> 217.433 | C30: =INDIRECT("'"&$A30&"'!o162") -> 435.699 | D30: =INDIRECT("'"&$A30&"'!r162") -> 711.351 | F30: LENTILS R2 | G30: =INDIRECT("'"&$F30&"'!l162") -> 350.338 | H30: =INDIRECT("'"&$F30&"'!o162") -> 805.052 | I30: =INDIRECT("'"&$F30&"'!r162") -> 1246.486 | K30: PHALARIS SUB PASTURE CEREAL R2 | L30: =INDIRECT("'"&$K30&"'!l162") -> 228.5122 | M30: =INDIRECT("'"&$K30&"'!o162") -> 228.5122 | N30: =INDIRECT("'"&$K30&"'!r162") -> 228.5122
A31: VAR | B31: =B30-B29 -> 0 | C31: =C30-C29 -> 0 | D31: =D30-D29 -> 0 | F31: VAR | G31: =G30-G29 -> 0 | H31: =H30-H29 -> 0 | I31: =I30-I29 -> 0 | K31: VAR | L31: =L30-L29 -> 0 | M31: =M30-M29 -> 0 | N31: =N30-N29 -> 0
A33: DURUM | B33: =INDIRECT("'"&$A33&"'!l162") -> 361.65625 | C33: =INDIRECT("'"&$A33&"'!o162") -> 805.62875 | D33: =INDIRECT("'"&$A33&"'!r162") -> 1273.78375 | F33: TRITICALE | G33: =INDIRECT("'"&$F33&"'!l162") -> 165.45025 | H33: =INDIRECT("'"&$F33&"'!o162") -> 357.80225 | I33: =INDIRECT("'"&$F33&"'!r162") -> 556.01325 | K33: PHALARIS SUB PASTURE GRAZING | L33: =INDIRECT("'"&$K33&"'!l162") -> 347.0062 | M33: =INDIRECT("'"&$K33&"'!o162") -> 347.0062 | N33: =INDIRECT("'"&$K33&"'!r162") -> 347.0062
A34: DURUM R2 | B34: =INDIRECT("'"&$A34&"'!l162") -> 361.65625 | C34: =INDIRECT("'"&$A34&"'!o162") -> 805.62875 | D34: =INDIRECT("'"&$A34&"'!r162") -> 1273.78375 | F34: TRITICALE R2 | G34: =INDIRECT("'"&$F34&"'!l162") -> 165.45025 | H34: =INDIRECT("'"&$F34&"'!o162") -> 357.80225 | I34: =INDIRECT("'"&$F34&"'!r162") -> 556.01325 | K34: PHALARIS SUB PASTURE GRAZING R2 | L34: =INDIRECT("'"&$K34&"'!l162") -> 347.0062 | M34: =INDIRECT("'"&$K34&"'!o162") -> 347.0062 | N34: =INDIRECT("'"&$K34&"'!r162") -> 347.0062
A35: VAR | B35: =B34-B33 -> 0 | C35: =C34-C33 -> 0 | D35: =D34-D33 -> 0 | F35: VAR | G35: =G34-G33 -> 0 | H35: =H34-H33 -> 0 | I35: =I34-I33 -> 0 | K35: VAR | L35: =L34-L33 -> 0 | M35: =M34-M33 -> 0 | N35: =N34-N33 -> 0

Sheet DV_TABLES (hidden)
B3: Fertiliser
B4: Name
B5: DAP + Urea 24:16
B6: DAP + Urea 28:13
B7: DAP + Urea 32:10
B8: DAP 18:20
B9: DAP Plus 2% Zn
B10: Flutriafol (on fert)
B11: Granulock Z 11:22:0:4 plus 1% Zinc
B12: Lime
B13: MAP + Urea 22:15
B14: MAP + Urea 27:12
B15: MAP + Urea 32:09
B16: MAP 10:22
B17: SOA + DAP 19:13
B18: Sulphate of Ammonia
B19: Superphosphate
B20: Trace Elements
B21: Urea
B25: Seed Data
B26: Name
B27: Apron® XL 350 ES
B28: Baytan® T Flowable
B29: EverGol® Energy
B30: Flutriafol (500g/l)
B31: Innoculant
B32: P-Pickel
B33: Rancona Dimension®
B34: Seed
B35: Seed Grading
B36: Seed Treatment(1) Smuts and Bunts
B37: Seed Treatment(2) Systiva Seed Dressing
B38: Seed Treatment(3) Aphid Control
B39: Uniform®
B40: Veto® 25C Flowable
B41: Vibrance®
B45: CHEMICALS-HERBICIDES
B46: Name
B48: 2,4-D Amine (625g/l)
B49: 2,4-D LV Ester (680g/l)
B50: Achieve® WG
B51: Adigor®
B52: Adjuvant
B53: Affinity®
B54: Aptitude®
B55: Atlantis® (mesosulfuron 30g/L)
B56: Atrazine (900 gm/litre)
B57: Atrazine 900g/kg
B58: Axial®
B59: Balance ®
B60: Banjo®
B61: Boxer Gold®
B62: Broadstrike®
B63: Bromoxynil /MCPA
B64: Bromoxynil 200
B65: Butisan
B66: Cadence® (700gm/Kg Dicamba)
B67: Carfentrazone 400g/L (Hammer)
B68: Chlorsulfuron 750g/kg (Glean)
B69: Clethodim (360g/L)
B70: Clethodim (360g/L) + Wetter
B71: Clopyralid 600g/L (Lontrel® Advanced)
B72: Crusader®
B73: Diflufenican (Brodal)
B74: Diuron 900 gm a.i. granules
B75: Factor® (butroxydim 250g/kg)
B76: Flight®
B77: Glypho (pre-harvest)
B78: Glyphosate 450g/L
B79: Glyphosate 540g/L
B80: Glyphosate 540g/L (desiccant)
B81: Glyphosate 540g/L Pre cutting
B82: Haloxyfop 520g/L (Verdict)
B83: Imazethapyr 700g/kg
B84: Intervix®
B85: Intervix® 1
B86: Luximax
B87: M.C.P.A. LVE
B88: MCPA Amine (750g/L)
B89: Metribuzin 750 gm/kg
B90: Metsulfuron methyl
B91: Overwatch
B92: Oxyfluorfen 240g/L
B93: Paradigm®
B94: Paraquat
B95: Pixxaro
B96: Precept®
B97: Propyzamide (500 g/L)
B98: Prosulfocarb
B99: Quizalofop 200g/L
B100: Raptor
B101: Reglone®
B102: Rexade® (New formulation of Crusader®)
B103: Roundup Ready 540
B104: Roundup Ready PL with Plantshield
B105: Sakura®
B106: Sentry®
B107: Sharpen®
B108: Simazine Granules
B109: S-metolachlor 960g/L (Dual®Gold)
B110: Sprayseed®
B111: Starane® Advanced (fluroxypyr 333g/L)
B112: Talinor
B113: Terbyne® 875
B114: Tigrex®
B115: Topik® EC
B116: Tri-allate 500g/L
B117: Triasulfuron 750g/kg (Logran)
B118: Triclopyr 600g/L
B119: Triclopyr 755g/L
B120: Trifluralin 480g/L
B121: Valor®
B122: Velocity®
B130: CHEMICALS-FUNGICIDES
B131: NAME
B133: Amistar®
B134: Amistar Xtra
B135: Apron® XL 350 ES
B136: Aviator X-Pro®
B137: Baytan® T Flowable
B138: Carbendazim 500g/kg
B139: Chlorothalonil 720g/L
B140: Cogito®
B141: Epoxiconazole 125g/L
B142: EverGol® Energy
B143: Flutriafol (on fert)
B144: Flutriafol (500g/l)
B145: Mancozeb 750g/kg
B146: Maxentis
B147: P-Pickel T
B148: Pontiac®
B149: Procymidone 500g/L
B150: Propiconazole 430g/L
B151: Prosaro®
B152: Rancona Dimension®
B153: Systiva®
B154: Tazer® Xpert
B155: Tebuconazole 430
B156: Uniform®
B157: Veritas®
B158: Veto® 25C Flowable
B159: Vibrance®
B164: CHEMICAL-INSECTICIDES
B165: NAME
B167: Affirm
B168: Alpha-cypermethrin 16g/L
B169: Bifenthrin 250g/L (Talstar®)
B170: Chlorpyrifos 500g/L
B171: Cruiser 350
B172: Dimethoate 400g/L
B173: Dimethoate 400g/L (2)
B174: Glyphosate 540g/L Pre cutting
B175: Imidacloprid 600 g/L
B176: Imidan®
B177: Lambda-cyhalothrin (Karate Zeon) 1st
B178: Lambda-cyhalothrin (Karate Zeon) 2nd
B179: Omethoate 400g/L
B180: Pirimicarb 500g/kg
B181: Pyrinex® Super
B182: Sumi-Alpha® Flex
B183: Transform
B184: Trojan®

Sheet Summary GM figures (hidden)
A1: =m_year&" GROSS MARGIN ESTIMATES" -> 2025 GROSS MARGIN ESTIMATES | L1: COMMODITY PRICES HISTORICAL DATA
A2: ="The tables below summarise the anticipated gross margins for all crops for "&m_year -> The tables below summarise the anticipated gross margins for all crops for 2025 | L2: Historical commodity price data and trends can be used as a guide in assessing average returns over time and also the variability of those returns for any given commodity.
L4: ="NOTE: "&Year_Short&" Forecast Grain Prices: Forecast grain prices for "&Year_Short&" are affected by the value of the Australian Dollar, world consumption, and Australian and other major grain exporting countries production. Future pricing is uncertain and caution is needed with projections." -> NOTE: 25/26 Forecast Grain Prices: Forecast grain prices for 25/26 are affected by the value of the Australian Dollar, world consumption, and Australian and other major grain exporting countries production. Future pricing is uncertain and caution is needed with projections.
A5: THIS TABLE NOT USED | T5: PRICES (usually prices will be the same across rainfall zones. For some crops however these are different)
A6: CROPPING | M6: Not Used | P6: Not Used | Q6: Not Used | R6: Not Used | S6: =m_year -> 2025 | T6: LOW | Y6: MEDIUM | AD6: HIGH | AI6: YIELD SPREAD (Factors)
A7: Commodity $/ha | B7: Low | C7: Medium | D7: High | L7: Commodity | M7: Current_LOW | N7: Current_MED | O7: Current_HIGH | P7: notused1 | Q7: notused2 | R7: notused3 | S7: notused4 | T7: Price_Low_Poor | U7: Price_Low_Below Average | V7: Price_Low_Average | W7: Price_Low_Above Average | X7: Price_Low_Very Good | Y7: Price_Medium_Poor | Z7: Price_Medium_Below Average | AA7: Price_Medium_Average | AB7: Price_Medium_Above Average | AC7: Price_Medium_Very Good | AD7: Price_High_Poor | AE7: Price_High_Below Average | AF7: Price_High_Average | AG7: Price_High_Above Average | AH7: Price_High_Very Good | AI7: Low_Poor | AJ7: Low_Below Average | AK7: Low_Average | AL7: Low_Above Average | AM7: Low_Very Good | AN7: Medium_Poor | AO7: Medium_Below Average | AP7: Medium_Average | AQ7: Medium_Above Average | AR7: Medium_Very Good | AS7: High_Poor | AT7: High_Below Average | AU7: High_Average | AV7: High_Above Average | AW7: High_Very Good
A8: APW Wheat | L8: Wheat | T8: 280 | U8: 310 | V8: 340 | W8: 370 | X8: 400 | Y8: 280 | Z8: 310 | AA8: 340 | AB8: 370 | AC8: 400 | AD8: 280 | AE8: 310 | AF8: 340 | AG8: 370 | AH8: 400 | AI8: 0.5 | AJ8: 1.2 | AK8: 1.8 | AL8: 2.5 | AM8: 3.5 | AN8: 1 | AO8: 2 | AP8: 3.2 | AQ8: 4 | AR8: 5 | AS8: 2.5 | AT8: 3.5 | AU8: 4.8 | AV8: 5.5 | AW8: 6.5
A9: Durum | L9: Durum | T9: 395 | U9: 435 | V9: 475 | W9: 515 | X9: 555 | Y9: 395 | Z9: 435 | AA9: 475 | AB9: 515 | AC9: 555 | AD9: 395 | AE9: 435 | AF9: 475 | AG9: 515 | AH9: 555 | AI9: 0.5 | AJ9: 0.8 | AK9: 1.4 | AL9: 2 | AM9: 2.8 | AN9: 1 | AO9: 1.5 | AP9: 2.7 | AQ9: 3.5 | AR9: 4.5 | AS9: 2 | AT9: 3 | AU9: 4 | AV9: 6 | AW9: 7
A10: Malt Barley | L10: Malt Barley | T10: 270 | U10: 300 | V10: 330 | W10: 360 | X10: 390 | Y10: 270 | Z10: 300 | AA10: 330 | AB10: 360 | AC10: 390 | AD10: 270 | AE10: 300 | AF10: 330 | AG10: 360 | AH10: 390 | AI10: 0.5 | AJ10: 1.2 | AK10: 1.8 | AL10: 2.5 | AM10: 3.5 | AN10: 1 | AO10: 2 | AP10: 3.2 | AQ10: 4 | AR10: 5 | AS10: 2.5 | AT10: 3.5 | AU10: 4.8 | AV10: 5.5 | AW10: 6.5
A11: Feed Barley | L11: Feed Barley | T11: 230 | U11: 260 | V11: 290 | W11: 320 | X11: 350 | Y11: 230 | Z11: 260 | AA11: 290 | AB11: 320 | AC11: 350 | AD11: 230 | AE11: 260 | AF11: 290 | AG11: 320 | AH11: 350 | AI11: 0.5 | AJ11: 1.2 | AK11: 1.8 | AL11: 2.5 | AM11: 3.5 | AN11: 1 | AO11: 2 | AP11: 3.2 | AQ11: 4 | AR11: 5 | AS11: 2.5 | AT11: 3.5 | AU11: 4.8 | AV11: 5.5 | AW11: 6.5
A12: Milling Oats | L12: Milling Oats | T12: 245 | U12: 270 | V12: 295 | W12: 300 | X12: 350 | Y12: 245 | Z12: 270 | AA12: 295 | AB12: 300 | AC12: 350 | AD12: 245 | AE12: 270 | AF12: 295 | AG12: 300 | AH12: 350 | AI12: 0.2 | AJ12: 0.5 | AK12: 1.5 | AL12: 2.5 | AM12: 3.5 | AN12: 1 | AO12: 2 | AP12: 2.8 | AQ12: 4 | AR12: 5 | AS12: 2 | AT12: 3 | AU12: 4 | AV12: 5 | AW12: 6
A13: Triticale | L13: Triticale | T13: 210 | U13: 240 | V13: 270 | W13: 300 | X13: 330 | Y13: 210 | Z13: 240 | AA13: 270 | AB13: 300 | AC13: 330 | AD13: 210 | AE13: 240 | AF13: 270 | AG13: 300 | AH13: 330 | AI13: 0.5 | AJ13: 1 | AK13: 1.4 | AL13: 2 | AM13: 3 | AN13: 1 | AO13: 1.6 | AP13: 2.6 | AQ13: 3.2 | AR13: 4 | AS13: 1.5 | AT13: 2.5 | AU13: 3.7 | AV13: 4.5 | AW13: 5.5
A14: Oaten Hay | L14: Vetch | T14: 300 | U14: 400 | V14: 500 | W14: 600 | X14: 700 | Y14: 300 | Z14: 400 | AA14: 500 | AB14: 600 | AC14: 700 | AD14: 300 | AE14: 400 | AF14: 500 | AG14: 600 | AH14: 700 | AI14: 0.2 | AJ14: 0.3 | AK14: 0.8 | AL14: 1.2 | AM14: 2 | AN14: 0.5 | AO14: 1 | AP14: 1.5 | AQ14: 2.5 | AR14: 3 | AS14: 0.8 | AT14: 1.5 | AU14: 2.2 | AV14: 3 | AW14: 3.2
A15: Grain Vetch | L15: Lupins | T15: 320 | U15: 350 | V15: 380 | W15: 410 | X15: 440 | Y15: 320 | Z15: 350 | AA15: 380 | AB15: 410 | AC15: 440 | AD15: 320 | AE15: 350 | AF15: 380 | AG15: 410 | AH15: 440 | AI15: 0.3 | AJ15: 0.5 | AK15: 1 | AL15: 1.5 | AM15: 2 | AN15: 0.3 | AO15: 0.5 | AP15: 1.7 | AQ15: 2 | AR15: 2.5 | AS15: 1 | AT15: 1.8 | AU15: 2.4 | AV15: 3 | AW15: 3.5
A16: Lupins | L16: Lentils | T16: 500 | U16: 600 | V16: 700 | W16: 800 | X16: 900 | Y16: 500 | Z16: 600 | AA16: 700 | AB16: 800 | AC16: 900 | AD16: 500 | AE16: 600 | AF16: 700 | AG16: 800 | AH16: 900 | AI16: 0.3 | AJ16: 0.6 | AK16: 0.9 | AL16: 1.1 | AM16: 1.5 | AN16: 0.8 | AO16: 1 | AP16: 1.7 | AQ16: 2.2 | AR16: 3 | AS16: 1.2 | AT16: 2 | AU16: 2.5 | AV16: 3.5 | AW16: 4
A17: Lentils | L17: Lentils IMI Tolerant | T17: 500 | U17: 600 | V17: 700 | W17: 800 | X17: 900 | Y17: 500 | Z17: 600 | AA17: 700 | AB17: 800 | AC17: 900 | AD17: 500 | AE17: 600 | AF17: 700 | AG17: 800 | AH17: 900 | AI17: 0.3 | AJ17: 0.5 | AK17: 0.8 | AL17: 1.1 | AM17: 1.5 | AN17: 0.8 | AO17: 1 | AP17: 1.5 | AQ17: 2 | AR17: 3 | AS17: 0.8 | AT17: 1.5 | AU17: 2.2 | AV17: 3 | AW17: 3.5
A18: Field Peas | L18: Field Peas | T18: 330 | U18: 380 | V18: 430 | W18: 480 | X18: 530 | Y18: 330 | Z18: 380 | AA18: 430 | AB18: 480 | AC18: 530 | AD18: 330 | AE18: 380 | AF18: 430 | AG18: 480 | AH18: 530 | AI18: 0.5 | AJ18: 0.75 | AK18: 1 | AL18: 1.5 | AM18: 2 | AN18: 1 | AO18: 1.3 | AP18: 1.7 | AQ18: 2 | AR18: 2.5 | AS18: 1.5 | AT18: 2 | AU18: 2.5 | AV18: 3 | AW18: 3.5
A19: Faba Beans | L19: Faba Beans | T19: 340 | U19: 390 | V19: 440 | W19: 490 | X19: 540 | Y19: 340 | Z19: 390 | AA19: 440 | AB19: 490 | AC19: 540 | AD19: 340 | AE19: 390 | AF19: 440 | AG19: 490 | AH19: 540 | AI19: 0.4 | AJ19: 0.6 | AK19: 0.8 | AL19: 1.5 | AM19: 2 | AN19: 1 | AO19: 1.2 | AP19: 1.6 | AQ19: 2 | AR19: 2.5 | AS19: 1 | AT19: 2 | AU19: 2.8 | AV19: 3.5 | AW19: 4
A20: Chickpeas (Kabuli) | L20: Kabuli Chickpeas | T20: 600 | U20: 700 | V20: 800 | W20: 900 | X20: 1000 | Y20: 600 | Z20: 700 | AA20: 800 | AB20: 900 | AC20: 1000 | AD20: 600 | AE20: 700 | AF20: 800 | AG20: 900 | AH20: 1000 | AI20: 0.4 | AJ20: 0.6 | AK20: 0.7 | AL20: 1.2 | AM20: 1.8 | AN20: 0.5 | AO20: 0.8 | AP20: 1.1 | AQ20: 1.8 | AR20: 2.3 | AS20: 1 | AT20: 1.5 | AU20: 1.6 | AV20: 2.5 | AW20: 3
A21: Canola- Conv | L21: Export Oaten Hay | T21: 240 | U21: 260 | V21: 280 | W21: 300 | X21: 320 | Y21: 210 | Z21: 230 | AA21: 250 | AB21: 270 | AC21: 290 | AD21: 180 | AE21: 200 | AF21: 220 | AG21: 250 | AH21: 280 | AI21: 1.5 | AJ21: 2.5 | AK21: 3.2 | AL21: 4 | AM21: 4.5 | AN21: 2 | AO21: 3.5 | AP21: 5.5 | AQ21: 7.5 | AR21: 8 | AS21: 4 | AT21: 6 | AU21: 8 | AV21: 10 | AW21: 12
A22: Canola-TT | L22: Canola Clearfield | T22: 550 | U22: 600 | V22: 650 | W22: 700 | X22: 750 | Y22: 550 | Z22: 600 | AA22: 650 | AB22: 700 | AC22: 750 | AD22: 550 | AE22: 600 | AF22: 650 | AG22: 700 | AH22: 750 | AI22: 0.3 | AJ22: 0.5 | AK22: 0.85 | AL22: 1.1 | AM22: 1.5 | AN22: 0.7 | AO22: 1 | AP22: 1.6 | AQ22: 2 | AR22: 2.5 | AS22: 1 | AT22: 1.5 | AU22: 2.3 | AV22: 2.5 | AW22: 2.7
A23: Canola-Clear | L23: Canola Conventional | T23: 550 | U23: 600 | V23: 650 | W23: 700 | X23: 750 | Y23: 550 | Z23: 600 | AA23: 650 | AB23: 700 | AC23: 750 | AD23: 550 | AE23: 600 | AF23: 650 | AG23: 700 | AH23: 750 | AI23: 0.3 | AJ23: 0.5 | AK23: 0.85 | AL23: 1.1 | AM23: 1.5 | AN23: 0.7 | AO23: 1 | AP23: 1.6 | AQ23: 2 | AR23: 2.5 | AS23: 1 | AT23: 1.5 | AU23: 2.4 | AV23: 2.7 | AW23: 3
L24: Canola Roundup Ready | T24: 520 | U24: 570 | V24: 620 | W24: 670 | X24: 720 | Y24: 520 | Z24: 570 | AA24: 620 | AB24: 670 | AC24: 720 | AD24: 520 | AE24: 570 | AF24: 620 | AG24: 670 | AH24: 720 | AI24: 0.3 | AJ24: 0.5 | AK24: 0.85 | AL24: 1.1 | AM24: 1.5 | AN24: 0.7 | AO24: 1 | AP24: 1.5 | AQ24: 2 | AR24: 2.5 | AS24: 1 | AT24: 1.5 | AU24: 2.3 | AV24: 2.7 | AW24: 3
L25: Canola Tri Tolerant | T25: 550 | U25: 600 | V25: 650 | W25: 700 | X25: 750 | Y25: 550 | Z25: 600 | AA25: 650 | AB25: 700 | AC25: 750 | AD25: 550 | AE25: 600 | AF25: 650 | AG25: 700 | AH25: 750 | AI25: 0.3 | AJ25: 0.5 | AK25: 0.75 | AL25: 1.1 | AM25: 1.5 | AN25: 0.7 | AO25: 1 | AP25: 1.4 | AQ25: 2 | AR25: 2.5 | AS25: 1 | AT25: 1.5 | AU25: 2.2 | AV25: 2.6 | AW25: 3
L26: Sown Pasture | T26: 20 | U26: 25 | V26: 30 | W26: 35 | X26: 40 | Y26: 20 | Z26: 25 | AA26: 30 | AB26: 35 | AC26: 40 | AD26: 26 | AE26: 31 | AF26: 36 | AG26: 41 | AH26: 46 | AI26: 2 | AJ26: 3 | AK26: 4 | AL26: 6 | AM26: 8 | AN26: 3 | AO26: 5 | AP26: 7 | AQ26: 8 | AR26: 9 | AS26: 4 | AT26: 7 | AU26: 10 | AV26: 11 | AW26: 12
L27: Self Regen Pasture | T27: 20 | U27: 25 | V27: 30 | W27: 35 | X27: 40 | Y27: 20 | Z27: 25 | AA27: 30 | AB27: 35 | AC27: 40 | AD27: 26 | AE27: 31 | AF27: 36 | AG27: 41 | AH27: 46 | AI27: 2 | AJ27: 3 | AK27: 4 | AL27: 6 | AM27: 8 | AN27: 3 | AO27: 5 | AP27: 7 | AQ27: 8 | AR27: 9 | AS27: 4 | AT27: 7 | AU27: 10 | AV27: 11 | AW27: 12
L28: Lucerne Pasture Cereal | T28: 20 | U28: 25 | V28: 30 | W28: 35 | X28: 40 | Y28: 20 | Z28: 25 | AA28: 30 | AB28: 35 | AC28: 40 | AD28: 26 | AE28: 31 | AF28: 36 | AG28: 41 | AH28: 46 | AI28: 2 | AJ28: 4 | AK28: 6 | AL28: 8 | AM28: 10 | AN28: 2 | AO28: 4 | AP28: 6 | AQ28: 8 | AR28: 10 | AS28: 5 | AT28: 7 | AU28: 9 | AV28: 11 | AW28: 13
L29: Lucerne Pasture Grazing | T29: 26 | U29: 31 | V29: 36 | W29: 41 | X29: 46 | Y29: 26 | Z29: 31 | AA29: 36 | AB29: 41 | AC29: 46 | AD29: 26 | AE29: 31 | AF29: 36 | AG29: 41 | AH29: 46 | AI29: 7 | AJ29: 9 | AK29: 11 | AL29: 13 | AM29: 14 | AN29: 7 | AO29: 9 | AP29: 11 | AQ29: 13 | AR29: 14 | AS29: 7 | AT29: 9 | AU29: 11 | AV29: 13 | AW29: 14
L30: Phalaris Sub Pasture Cereal | T30: 26 | U30: 31 | V30: 36 | W30: 41 | X30: 46 | Y30: 26 | Z30: 31 | AA30: 36 | AB30: 41 | AC30: 46 | AD30: 26 | AE30: 31 | AF30: 36 | AG30: 41 | AH30: 46 | AI30: 6 | AJ30: 8 | AK30: 10 | AL30: 12 | AM30: 14 | AN30: 6 | AO30: 8 | AP30: 10 | AQ30: 12 | AR30: 14 | AS30: 6 | AT30: 8 | AU30: 10 | AV30: 12 | AW30: 14
L31: Phalaris Sub Grazing | T31: 26 | U31: 31 | V31: 36 | W31: 41 | X31: 46 | Y31: 26 | Z31: 31 | AA31: 36 | AB31: 41 | AC31: 46 | AD31: 26 | AE31: 31 | AF31: 36 | AG31: 41 | AH31: 46 | AI31: 8 | AJ31: 10 | AK31: 14 | AL31: 16 | AM31: 18 | AN31: 8 | AO31: 10 | AP31: 14 | AQ31: 16 | AR31: 18 | AS31: 8 | AT31: 10 | AU31: 14 | AV31: 16 | AW31: 18

Sheet Summary
B2: ="GROSS MARGINS SUMMARY - "&TEXT(m_year,"0000") -> GROSS MARGINS SUMMARY - 2025
B3: =var_rain&" Rainfall Zone" -> 
D4: Gross Margin | F4: Income | H4: Seeds & Levies | J4: Fertiliser | L4: Chemicals | N4: Fuel & Oil | P4: Machinery R&M | R4: Freight | T4: Other | V4: Total Var Costs
B5: ="Crop "&IF(var_rotationtype=2,"-Rotation 1","") -> Crop | C5: Area
B6: Wheat | C6: =(WHEAT!$U$6)*(rng_APW_Wheat_DATA_SHEET) -> 0 | D6: =(SUM(WHEAT!$L$162)*(rng_rainfall=1)+SUM(WHEAT!$O$162)*(rng_rainfall=2)+SUM(WHEAT!$R$162)*(rng_rainfall=3))*(rng_APW_Wheat_DATA_SHEET) -> 0 | E6: =(WHEAT!$U$162)*(rng_APW_Wheat_DATA_SHEET) -> 0 | F6: =(SUM(WHEAT!$L$11)*(rng_rainfall=1)+SUM(WHEAT!$O$11)*(rng_rainfall=2)+SUM(WHEAT!$R$11)*(rng_rainfall=3))*(rng_APW_Wheat_DATA_SHEET) -> 0 | G6: =(WHEAT!$U$11)*(rng_APW_Wheat_DATA_SHEET) -> 0 | H6: =(SUM(WHEAT!$L$14:$L$34)*(rng_rainfall=1)+SUM(WHEAT!$O$14:$O$34)*(rng_rainfall=2)+SUM(WHEAT!$R$14:$R$34)*(rng_rainfall=3))*(rng_APW_Wheat_DATA_SHEET) -> 0 | I6: =(SUM(WHEAT!$U$14:$U$34))*(rng_APW_Wheat_DATA_SHEET) -> 0 | J6: =(SUM(WHEAT!$L$37:$L$53)*(rng_rainfall=1)+SUM(WHEAT!$O$37:$O$53)*(rng_rainfall=2)+SUM(WHEAT!$R$37:$R$53)*(rng_rainfall=3))*(rng_APW_Wheat_DATA_SHEET) -> 0 | K6: =(SUM(WHEAT!$U$37:$U$53))*(rng_APW_Wheat_DATA_SHEET) -> 0 | L6: =(SUM(WHEAT!$L$57:$L$128)*(rng_rainfall=1)+SUM(WHEAT!$O$57:$O$128)*(rng_rainfall=2)+SUM(WHEAT!$R$57:$R$128)*(rng_rainfall=3))*(rng_APW_Wheat_DATA_SHEET) -> 0 | M6: =(SUM(WHEAT!$U$57:$U$128))*(rng_APW_Wheat_DATA_SHEET) -> 0 | N6: =(SUM(WHEAT!$L$132:$L$132)*(rng_rainfall=1)+SUM(WHEAT!$O$132:$O$132)*(rng_rainfall=2)+SUM(WHEAT!$R$132:$R$132)*(rng_rainfall=3))*(rng_APW_Wheat_DATA_SHEET) -> 0 | O6: =(SUM(WHEAT!$U$132:$U$132))*(rng_APW_Wheat_DATA_SHEET) -> 0 | P6: =(SUM(WHEAT!$L$133:$L$133)*(rng_rainfall=1)+SUM(WHEAT!$O$133:$O$133)*(rng_rainfall=2)+SUM(WHEAT!$R$133:$R$133)*(rng_rainfall=3))*(rng_APW_Wheat_DATA_SHEET) -> 0 | Q6: =(SUM(WHEAT!$U$133:$U$133))*(rng_APW_Wheat_DATA_SHEET) -> 0 | R6: =(SUM(WHEAT!$L$136:$L$137)*(rng_rainfall=1)+SUM(WHEAT!$O$136:$O$137)*(rng_rainfall=2)+SUM(WHEAT!$R$136:$R$137)*(rng_rainfall=3))*(rng_APW_Wheat_DATA_SHEET) -> 0 | S6: =(SUM(WHEAT!$U$136:$U$137))*(rng_APW_Wheat_DATA_SHEET) -> 0 | T6: =SUM(V6,-R6,-P6,-N6,-L6,-J6,-H6) -> 0 | U6: 0 | V6: =IFERROR(W6/C6,0) -> 0 | W6: =(WHEAT!$U$160)*(rng_APW_Wheat_DATA_SHEET) -> 0
B7: Durum | C7: =(DURUM!$U$6)*(rng_Durum_DATA_SHEET) -> 0 | D7: =(SUM(DURUM!$L$162)*(rng_rainfall=1)+SUM(DURUM!$O$162)*(rng_rainfall=2)+SUM(DURUM!$R$162)*(rng_rainfall=3))*(rng_Durum_DATA_SHEET) -> 0 | E7: =(DURUM!$U$162)*(rng_Durum_DATA_SHEET) -> 0 | F7: =(SUM(DURUM!$L$11)*(rng_rainfall=1)+SUM(DURUM!$O$11)*(rng_rainfall=2)+SUM(DURUM!$R$11)*(rng_rainfall=3))*(rng_Durum_DATA_SHEET) -> 0 | G7: =(DURUM!$U$11)*(rng_Durum_DATA_SHEET) -> 0 | H7: =(SUM(DURUM!$L$14:$L$34)*(rng_rainfall=1)+SUM(DURUM!$O$14:$O$34)*(rng_rainfall=2)+SUM(DURUM!$R$14:$R$34)*(rng_rainfall=3))*(rng_Durum_DATA_SHEET) -> 0 | I7: =(SUM(DURUM!$U$14:$U$34))*(rng_Durum_DATA_SHEET) -> 0 | J7: =(SUM(DURUM!$L$37:$L$53)*(rng_rainfall=1)+SUM(DURUM!$O$37:$O$53)*(rng_rainfall=2)+SUM(DURUM!$R$37:$R$53)*(rng_rainfall=3))*(rng_Durum_DATA_SHEET) -> 0 | K7: =(SUM(DURUM!$U$37:$U$53))*(rng_Durum_DATA_SHEET) -> 0 | L7: =(SUM(DURUM!$L$57:$L$128)*(rng_rainfall=1)+SUM(DURUM!$O$57:$O$128)*(rng_rainfall=2)+SUM(DURUM!$R$57:$R$128)*(rng_rainfall=3))*(rng_Durum_DATA_SHEET) -> 0 | M7: =(SUM(DURUM!$U$57:$U$128))*(rng_Durum_DATA_SHEET) -> 0 | N7: =(SUM(DURUM!$L$132:$L$132)*(rng_rainfall=1)+SUM(DURUM!$O$132:$O$132)*(rng_rainfall=2)+SUM(DURUM!$R$132:$R$132)*(rng_rainfall=3))*(rng_Durum_DATA_SHEET) -> 0 | O7: =(SUM(DURUM!$U$132:$U$132))*(rng_Durum_DATA_SHEET) -> 0 | P7: =(SUM(DURUM!$L$133:$L$133)*(rng_rainfall=1)+SUM(DURUM!$O$133:$O$133)*(rng_rainfall=2)+SUM(DURUM!$R$133:$R$133)*(rng_rainfall=3))*(rng_Durum_DATA_SHEET) -> 0 | Q7: =(SUM(DURUM!$U$133:$U$133))*(rng_Durum_DATA_SHEET) -> 0 | R7: =(SUM(DURUM!$L$136:$L$137)*(rng_rainfall=1)+SUM(DURUM!$O$136:$O$137)*(rng_rainfall=2)+SUM(DURUM!$R$136:$R$137)*(rng_rainfall=3))*(rng_Durum_DATA_SHEET) -> 0 | S7: =(SUM(DURUM!$U$136:$U$137))*(rng_Durum_DATA_SHEET) -> 0 | T7: 0 | U7: 0 | V7: 0 | W7: =(DURUM!$U$160)*(rng_Durum_DATA_SHEET) -> 0
B8: Malt Barley | C8: =('MALT BARLEY'!$U$6)*(rng_Malt_Barley_DATA_SHEET) -> 0 | D8: =(SUM('MALT BARLEY'!$L$162)*(rng_rainfall=1)+SUM('MALT BARLEY'!$O$162)*(rng_rainfall=2)+SUM('MALT BARLEY'!$R$162)*(rng_rainfall=3))*(rng_Malt_Barley_DATA_SHEET) -> 0 | E8: =('MALT BARLEY'!$U$162)*(rng_Malt_Barley_DATA_SHEET) -> 0 | F8: =(SUM('MALT BARLEY'!$L$11)*(rng_rainfall=1)+SUM('MALT BARLEY'!$O$11)*(rng_rainfall=2)+SUM('MALT BARLEY'!$R$11)*(rng_rainfall=3))*(rng_Malt_Barley_DATA_SHEET) -> 0 | G8: =('MALT BARLEY'!$U$11)*(rng_Malt_Barley_DATA_SHEET) -> 0 | H8: =(SUM('MALT BARLEY'!$L$14:$L$34)*(rng_rainfall=1)+SUM('MALT BARLEY'!$O$14:$O$34)*(rng_rainfall=2)+SUM('MALT BARLEY'!$R$14:$R$34)*(rng_rainfall=3))*(rng_Malt_Barley_DATA_SHEET) -> 0 | I8: =(SUM('MALT BARLEY'!$U$14:$U$34))*(rng_Malt_Barley_DATA_SHEET) -> 0 | J8: =(SUM('MALT BARLEY'!$L$37:$L$53)*(rng_rainfall=1)+SUM('MALT BARLEY'!$O$37:$O$53)*(rng_rainfall=2)+SUM('MALT BARLEY'!$R$37:$R$53)*(rng_rainfall=3))*(rng_Malt_Barley_DATA_SHEET) -> 0 | K8: =(SUM('MALT BARLEY'!$U$37:$U$53))*(rng_Malt_Barley_DATA_SHEET) -> 0 | L8: =(SUM('MALT BARLEY'!$L$57:$L$128)*(rng_rainfall=1)+SUM('MALT BARLEY'!$O$57:$O$128)*(rng_rainfall=2)+SUM('MALT BARLEY'!$R$57:$R$128)*(rng_rainfall=3))*(rng_Malt_Barley_DATA_SHEET) -> 0 | M8: =(SUM('MALT BARLEY'!$U$57:$U$128))*(rng_Malt_Barley_DATA_SHEET) -> 0 | N8: =(SUM('MALT BARLEY'!$L$132:$L$132)*(rng_rainfall=1)+SUM('MALT BARLEY'!$O$132:$O$132)*(rng_rainfall=2)+SUM('MALT BARLEY'!$R$132:$R$132)*(rng_rainfall=3))*(rng_Malt_Barley_DATA_SHEET) -> 0 | O8: =(SUM('MALT BARLEY'!$U$132:$U$132))*(rng_Malt_Barley_DATA_SHEET) -> 0 | P8: =(SUM('MALT BARLEY'!$L$133:$L$133)*(rng_rainfall=1)+SUM('MALT BARLEY'!$O$133:$O$133)*(rng_rainfall=2)+SUM('MALT BARLEY'!$R$133:$R$133)*(rng_rainfall=3))*(rng_Malt_Barley_DATA_SHEET) -> 0 | Q8: =(SUM('MALT BARLEY'!$U$133:$U$133))*(rng_Malt_Barley_DATA_SHEET) -> 0 | R8: =(SUM('MALT BARLEY'!$L$136:$L$137)*(rng_rainfall=1)+SUM('MALT BARLEY'!$O$136:$O$137)*(rng_rainfall=2)+SUM('MALT BARLEY'!$R$136:$R$137)*(rng_rainfall=3))*(rng_Malt_Barley_DATA_SHEET) -> 0 | S8: =(SUM('MALT BARLEY'!$U$136:$U$137))*(rng_Malt_Barley_DATA_SHEET) -> 0 | T8: 0 | U8: 0 | V8: 0 | W8: =('MALT BARLEY'!$U$160)*(rng_Malt_Barley_DATA_SHEET) -> 0
B9: Feed Barley | C9: =('FEED BARLEY'!$U$6)*(rng_Feed_Barley_DATA_SHEET) -> 0 | D9: =(SUM('FEED BARLEY'!$L$162)*(rng_rainfall=1)+SUM('FEED BARLEY'!$O$162)*(rng_rainfall=2)+SUM('FEED BARLEY'!$R$162)*(rng_rainfall=3))*(rng_Feed_Barley_DATA_SHEET) -> 0 | E9: =('FEED BARLEY'!$U$162)*(rng_Feed_Barley_DATA_SHEET) -> 0 | F9: =(SUM('FEED BARLEY'!$L$11)*(rng_rainfall=1)+SUM('FEED BARLEY'!$O$11)*(rng_rainfall=2)+SUM('FEED BARLEY'!$R$11)*(rng_rainfall=3))*(rng_Feed_Barley_DATA_SHEET) -> 0 | G9: =('FEED BARLEY'!$U$11)*(rng_Feed_Barley_DATA_SHEET) -> 0 | H9: =(SUM('FEED BARLEY'!$L$14:$L$34)*(rng_rainfall=1)+SUM('FEED BARLEY'!$O$14:$O$34)*(rng_rainfall=2)+SUM('FEED BARLEY'!$R$14:$R$34)*(rng_rainfall=3))*(rng_Feed_Barley_DATA_SHEET) -> 0 | I9: =(SUM('FEED BARLEY'!$U$14:$U$34))*(rng_Feed_Barley_DATA_SHEET) -> 0 | J9: =(SUM('FEED BARLEY'!$L$37:$L$53)*(rng_rainfall=1)+SUM('FEED BARLEY'!$O$37:$O$53)*(rng_rainfall=2)+SUM('FEED BARLEY'!$R$37:$R$53)*(rng_rainfall=3))*(rng_Feed_Barley_DATA_SHEET) -> 0 | K9: =(SUM('FEED BARLEY'!$U$37:$U$53))*(rng_Feed_Barley_DATA_SHEET) -> 0 | L9: =(SUM('FEED BARLEY'!$L$57:$L$128)*(rng_rainfall=1)+SUM('FEED BARLEY'!$O$57:$O$128)*(rng_rainfall=2)+SUM('FEED BARLEY'!$R$57:$R$128)*(rng_rainfall=3))*(rng_Feed_Barley_DATA_SHEET) -> 0 | M9: =(SUM('FEED BARLEY'!$U$57:$U$128))*(rng_Feed_Barley_DATA_SHEET) -> 0 | N9: =(SUM('FEED BARLEY'!$L$132:$L$132)*(rng_rainfall=1)+SUM('FEED BARLEY'!$O$132:$O$132)*(rng_rainfall=2)+SUM('FEED BARLEY'!$R$132:$R$132)*(rng_rainfall=3))*(rng_Feed_Barley_DATA_SHEET) -> 0 | O9: =(SUM('FEED BARLEY'!$U$132:$U$132))*(rng_Feed_Barley_DATA_SHEET) -> 0 | P9: =(SUM('FEED BARLEY'!$L$133:$L$133)*(rng_rainfall=1)+SUM('FEED BARLEY'!$O$133:$O$133)*(rng_rainfall=2)+SUM('FEED BARLEY'!$R$133:$R$133)*(rng_rainfall=3))*(rng_Feed_Barley_DATA_SHEET) -> 0 | Q9: =(SUM('FEED BARLEY'!$U$133:$U$133))*(rng_Feed_Barley_DATA_SHEET) -> 0 | R9: =(SUM('FEED BARLEY'!$L$136:$L$137)*(rng_rainfall=1)+SUM('FEED BARLEY'!$O$136:$O$137)*(rng_rainfall=2)+SUM('FEED BARLEY'!$R$136:$R$137)*(rng_rainfall=3))*(rng_Feed_Barley_DATA_SHEET) -> 0 | S9: =(SUM('FEED BARLEY'!$U$136:$U$137))*(rng_Feed_Barley_DATA_SHEET) -> 0 | T9: 0 | U9: 0 | V9: 0 | W9: =('FEED BARLEY'!$U$160)*(rng_Feed_Barley_DATA_SHEET) -> 0
B10: Milling Oats | C10: =('MILLING OATS'!$U$6)*(rng_Milling_DATA_SHEET) -> 0 | D10: =(SUM('MILLING OATS'!$L$162)*(rng_rainfall=1)+SUM('MILLING OATS'!$O$162)*(rng_rainfall=2)+SUM('MILLING OATS'!$R$162)*(rng_rainfall=3))*(rng_Milling_DATA_SHEET) -> 0 | E10: =('MILLING OATS'!$U$162)*(rng_Milling_DATA_SHEET) -> 0 | F10: =(SUM('MILLING OATS'!$L$11)*(rng_rainfall=1)+SUM('MILLING OATS'!$O$11)*(rng_rainfall=2)+SUM('MILLING OATS'!$R$11)*(rng_rainfall=3))*(rng_Milling_DATA_SHEET) -> 0 | G10: =('MILLING OATS'!$U$11)*(rng_Milling_DATA_SHEET) -> 0 | H10: =(SUM('MILLING OATS'!$L$14:$L$34)*(rng_rainfall=1)+SUM('MILLING OATS'!$O$14:$O$34)*(rng_rainfall=2)+SUM('MILLING OATS'!$R$14:$R$34)*(rng_rainfall=3))*(rng_Milling_DATA_SHEET) -> 0 | I10: =(SUM('MILLING OATS'!$U$14:$U$34))*(rng_Milling_DATA_SHEET) -> 0 | J10: =(SUM('MILLING OATS'!$L$37:$L$53)*(rng_rainfall=1)+SUM('MILLING OATS'!$O$37:$O$53)*(rng_rainfall=2)+SUM('MILLING OATS'!$R$37:$R$53)*(rng_rainfall=3))*(rng_Milling_DATA_SHEET) -> 0 | K10: =(SUM('MILLING OATS'!$U$37:$U$53))*(rng_Milling_DATA_SHEET) -> 0 | L10: =(SUM('MILLING OATS'!$L$57:$L$128)*(rng_rainfall=1)+SUM('MILLING OATS'!$O$57:$O$128)*(rng_rainfall=2)+SUM('MILLING OATS'!$R$57:$R$128)*(rng_rainfall=3))*(rng_Milling_DATA_SHEET) -> 0 | M10: =(SUM('MILLING OATS'!$U$57:$U$128))*(rng_Milling_DATA_SHEET) -> 0 | N10: =(SUM('MILLING OATS'!$L$132:$L$132)*(rng_rainfall=1)+SUM('MILLING OATS'!$O$132:$O$132)*(rng_rainfall=2)+SUM('MILLING OATS'!$R$132:$R$132)*(rng_rainfall=3))*(rng_Milling_DATA_SHEET) -> 0 | O10: =(SUM('MILLING OATS'!$U$132:$U$132))*(rng_Milling_DATA_SHEET) -> 0 | P10: =(SUM('MILLING OATS'!$L$133:$L$133)*(rng_rainfall=1)+SUM('MILLING OATS'!$O$133:$O$133)*(rng_rainfall=2)+SUM('MILLING OATS'!$R$133:$R$133)*(rng_rainfall=3))*(rng_Milling_DATA_SHEET) -> 0 | Q10: =(SUM('MILLING OATS'!$U$133:$U$133))*(rng_Milling_DATA_SHEET) -> 0 | R10: =(SUM('MILLING OATS'!$L$136:$L$137)*(rng_rainfall=1)+SUM('MILLING OATS'!$O$136:$O$137)*(rng_rainfall=2)+SUM('MILLING OATS'!$R$136:$R$137)*(rng_rainfall=3))*(rng_Milling_DATA_SHEET) -> 0 | S10: =(SUM('MILLING OATS'!$U$136:$U$137))*(rng_Milling_DATA_SHEET) -> 0 | T10: 0 | U10: 0 | V10: 0 | W10: =('MILLING OATS'!$U$160)*(rng_Milling_DATA_SHEET) -> 0
B11: Triticale | C11: =(TRITICALE!$U$6)*(rng_Triticale_DATA_SHEET) -> 0 | D11: =(SUM(TRITICALE!$L$162)*(rng_rainfall=1)+SUM(TRITICALE!$O$162)*(rng_rainfall=2)+SUM(TRITICALE!$R$162)*(rng_rainfall=3))*(rng_Triticale_DATA_SHEET) -> 0 | E11: =(TRITICALE!$U$162)*(rng_Triticale_DATA_SHEET) -> 0 | F11: =(SUM(TRITICALE!$L$11)*(rng_rainfall=1)+SUM(TRITICALE!$O$11)*(rng_rainfall=2)+SUM(TRITICALE!$R$11)*(rng_rainfall=3))*(rng_Triticale_DATA_SHEET) -> 0 | G11: =(TRITICALE!$U$11)*(rng_Triticale_DATA_SHEET) -> 0 | H11: =(SUM(TRITICALE!$L$14:$L$34)*(rng_rainfall=1)+SUM(TRITICALE!$O$14:$O$34)*(rng_rainfall=2)+SUM(TRITICALE!$R$14:$R$34)*(rng_rainfall=3))*(rng_Triticale_DATA_SHEET) -> 0 | I11: =(SUM(TRITICALE!$U$14:$U$34))*(rng_Triticale_DATA_SHEET) -> 0 | J11: =(SUM(TRITICALE!$L$37:$L$53)*(rng_rainfall=1)+SUM(TRITICALE!$O$37:$O$53)*(rng_rainfall=2)+SUM(TRITICALE!$R$37:$R$53)*(rng_rainfall=3))*(rng_Triticale_DATA_SHEET) -> 0 | K11: =(SUM(TRITICALE!$U$37:$U$53))*(rng_Triticale_DATA_SHEET) -> 0 | L11: =(SUM(TRITICALE!$L$57:$L$128)*(rng_rainfall=1)+SUM(TRITICALE!$O$57:$O$128)*(rng_rainfall=2)+SUM(TRITICALE!$R$57:$R$128)*(rng_rainfall=3))*(rng_Triticale_DATA_SHEET) -> 0 | M11: =(SUM(TRITICALE!$U$57:$U$128))*(rng_Triticale_DATA_SHEET) -> 0 | N11: =(SUM(TRITICALE!$L$132:$L$132)*(rng_rainfall=1)+SUM(TRITICALE!$O$132:$O$132)*(rng_rainfall=2)+SUM(TRITICALE!$R$132:$R$132)*(rng_rainfall=3))*(rng_Triticale_DATA_SHEET) -> 0 | O11: =(SUM(TRITICALE!$U$132:$U$132))*(rng_Triticale_DATA_SHEET) -> 0 | P11: =(SUM(TRITICALE!$L$133:$L$133)*(rng_rainfall=1)+SUM(TRITICALE!$O$133:$O$133)*(rng_rainfall=2)+SUM(TRITICALE!$R$133:$R$133)*(rng_rainfall=3))*(rng_Triticale_DATA_SHEET) -> 0 | Q11: =(SUM(TRITICALE!$U$133:$U$133))*(rng_Triticale_DATA_SHEET) -> 0 | R11: =(SUM(TRITICALE!$L$136:$L$137)*(rng_rainfall=1)+SUM(TRITICALE!$O$136:$O$137)*(rng_rainfall=2)+SUM(TRITICALE!$R$136:$R$137)*(rng_rainfall=3))*(rng_Triticale_DATA_SHEET) -> 0 | S11: =(SUM(TRITICALE!$U$136:$U$137))*(rng_Triticale_DATA_SHEET) -> 0 | T11: 0 | U11: 0 | V11: 0 | W11: =(TRITICALE!$U$160)*(rng_Triticale_DATA_SHEET) -> 0
B12: Export Oaten Hay | C12: =('EXPORT OATEN HAY'!$U$6)*(rng_Export_DATA_SHEET) -> 0 | D12: =(SUM('EXPORT OATEN HAY'!$L$162)*(rng_rainfall=1)+SUM('EXPORT OATEN HAY'!$O$162)*(rng_rainfall=2)+SUM('EXPORT OATEN HAY'!$R$162)*(rng_rainfall=3))*(rng_Export_DATA_SHEET) -> 0 | E12: =('EXPORT OATEN HAY'!$U$162)*(rng_Export_DATA_SHEET) -> 0 | F12: =(SUM('EXPORT OATEN HAY'!$L$11)*(rng_rainfall=1)+SUM('EXPORT OATEN HAY'!$O$11)*(rng_rainfall=2)+SUM('EXPORT OATEN HAY'!$R$11)*(rng_rainfall=3))*(rng_Export_DATA_SHEET) -> 0 | G12: =('EXPORT OATEN HAY'!$U$11)*(rng_Export_DATA_SHEET) -> 0 | H12: =(SUM('EXPORT OATEN HAY'!$L$14:$L$34)*(rng_rainfall=1)+SUM('EXPORT OATEN HAY'!$O$14:$O$34)*(rng_rainfall=2)+SUM('EXPORT OATEN HAY'!$R$14:$R$34)*(rng_rainfall=3))*(rng_Export_DATA_SHEET) -> 0 | I12: =(SUM('EXPORT OATEN HAY'!$U$14:$U$34))*(rng_Export_DATA_SHEET) -> 0 | J12: =(SUM('EXPORT OATEN HAY'!$L$37:$L$53)*(rng_rainfall=1)+SUM('EXPORT OATEN HAY'!$O$37:$O$53)*(rng_rainfall=2)+SUM('EXPORT OATEN HAY'!$R$37:$R$53)*(rng_rainfall=3))*(rng_Export_DATA_SHEET) -> 0 | K12: =(SUM('EXPORT OATEN HAY'!$U$37:$U$53))*(rng_Export_DATA_SHEET) -> 0 | L12: =(SUM('EXPORT OATEN HAY'!$L$57:$L$128)*(rng_rainfall=1)+SUM('EXPORT OATEN HAY'!$O$57:$O$128)*(rng_rainfall=2)+SUM('EXPORT OATEN HAY'!$R$57:$R$128)*(rng_rainfall=3))*(rng_Export_DATA_SHEET) -> 0 | M12: =(SUM('EXPORT OATEN HAY'!$U$57:$U$128))*(rng_Export_DATA_SHEET) -> 0 | N12: =(SUM('EXPORT OATEN HAY'!$L$132:$L$132)*(rng_rainfall=1)+SUM('EXPORT OATEN HAY'!$O$132:$O$132)*(rng_rainfall=2)+SUM('EXPORT OATEN HAY'!$R$132:$R$132)*(rng_rainfall=3))*(rng_Export_DATA_SHEET) -> 0 | O12: =(SUM('EXPORT OATEN HAY'!$U$132:$U$132))*(rng_Export_DATA_SHEET) -> 0 | P12: =(SUM('EXPORT OATEN HAY'!$L$133:$L$133)*(rng_rainfall=1)+SUM('EXPORT OATEN HAY'!$O$133:$O$133)*(rng_rainfall=2)+SUM('EXPORT OATEN HAY'!$R$133:$R$133)*(rng_rainfall=3))*(rng_Export_DATA_SHEET) -> 0 | Q12: =(SUM('EXPORT OATEN HAY'!$U$133:$U$133))*(rng_Export_DATA_SHEET) -> 0 | R12: =(SUM('EXPORT OATEN HAY'!$L$136:$L$137)*(rng_rainfall=1)+SUM('EXPORT OATEN HAY'!$O$136:$O$137)*(rng_rainfall=2)+SUM('EXPORT OATEN HAY'!$R$136:$R$137)*(rng_rainfall=3))*(rng_Export_DATA_SHEET) -> 0 | S12: =(SUM('EXPORT OATEN HAY'!$U$136:$U$137))*(rng_Export_DATA_SHEET) -> 0 | T12: 0 | U12: 0 | V12: 0 | W12: =('EXPORT OATEN HAY'!$U$160)*(rng_Export_DATA_SHEET) -> 0
B13: Vetch | C13: =(VETCH!$U$6)*(rng_Vetch_DATA_SHEET) -> 0 | D13: =(SUM(VETCH!$L$162)*(rng_rainfall=1)+SUM(VETCH!$O$162)*(rng_rainfall=2)+SUM(VETCH!$R$162)*(rng_rainfall=3))*(rng_Vetch_DATA_SHEET) -> 0 | E13: =(VETCH!$U$162)*(rng_Vetch_DATA_SHEET) -> 0 | F13: =(SUM(VETCH!$L$11)*(rng_rainfall=1)+SUM(VETCH!$O$11)*(rng_rainfall=2)+SUM(VETCH!$R$11)*(rng_rainfall=3))*(rng_Vetch_DATA_SHEET) -> 0 | G13: =(VETCH!$U$11)*(rng_Vetch_DATA_SHEET) -> 0 | H13: =(SUM(VETCH!$L$14:$L$34)*(rng_rainfall=1)+SUM(VETCH!$O$14:$O$34)*(rng_rainfall=2)+SUM(VETCH!$R$14:$R$34)*(rng_rainfall=3))*(rng_Vetch_DATA_SHEET) -> 0 | I13: =(SUM(VETCH!$U$14:$U$34))*(rng_Vetch_DATA_SHEET) -> 0 | J13: =(SUM(VETCH!$L$37:$L$53)*(rng_rainfall=1)+SUM(VETCH!$O$37:$O$53)*(rng_rainfall=2)+SUM(VETCH!$R$37:$R$53)*(rng_rainfall=3))*(rng_Vetch_DATA_SHEET) -> 0 | K13: =(SUM(VETCH!$U$37:$U$53))*(rng_Vetch_DATA_SHEET) -> 0 | L13: =(SUM(VETCH!$L$57:$L$128)*(rng_rainfall=1)+SUM(VETCH!$O$57:$O$128)*(rng_rainfall=2)+SUM(VETCH!$R$57:$R$128)*(rng_rainfall=3))*(rng_Vetch_DATA_SHEET) -> 0 | M13: =(SUM(VETCH!$U$57:$U$128))*(rng_Vetch_DATA_SHEET) -> 0 | N13: =(SUM(VETCH!$L$132:$L$132)*(rng_rainfall=1)+SUM(VETCH!$O$132:$O$132)*(rng_rainfall=2)+SUM(VETCH!$R$132:$R$132)*(rng_rainfall=3))*(rng_Vetch_DATA_SHEET) -> 0 | O13: =(SUM(VETCH!$U$132:$U$132))*(rng_Vetch_DATA_SHEET) -> 0 | P13: =(SUM(VETCH!$L$133:$L$133)*(rng_rainfall=1)+SUM(VETCH!$O$133:$O$133)*(rng_rainfall=2)+SUM(VETCH!$R$133:$R$133)*(rng_rainfall=3))*(rng_Vetch_DATA_SHEET) -> 0 | Q13: =(SUM(VETCH!$U$133:$U$133))*(rng_Vetch_DATA_SHEET) -> 0 | R13: =(SUM(VETCH!$L$136:$L$137)*(rng_rainfall=1)+SUM(VETCH!$O$136:$O$137)*(rng_rainfall=2)+SUM(VETCH!$R$136:$R$137)*(rng_rainfall=3))*(rng_Vetch_DATA_SHEET) -> 0 | S13: =(SUM(VETCH!$U$136:$U$137))*(rng_Vetch_DATA_SHEET) -> 0 | T13: 0 | U13: 0 | V13: 0 | W13: =(VETCH!$U$160)*(rng_Vetch_DATA_SHEET) -> 0
B14: Lupins | C14: =(LUPINS!$U$6)*(rng_Lupins_DATA_SHEET) -> 0 | D14: =(SUM(LUPINS!$L$162)*(rng_rainfall=1)+SUM(LUPINS!$O$162)*(rng_rainfall=2)+SUM(LUPINS!$R$162)*(rng_rainfall=3))*(rng_Lupins_DATA_SHEET) -> 0 | E14: =(LUPINS!$U$162)*(rng_Lupins_DATA_SHEET) -> 0 | F14: =(SUM(LUPINS!$L$11)*(rng_rainfall=1)+SUM(LUPINS!$O$11)*(rng_rainfall=2)+SUM(LUPINS!$R$11)*(rng_rainfall=3))*(rng_Lupins_DATA_SHEET) -> 0 | G14: =(LUPINS!$U$11)*(rng_Lupins_DATA_SHEET) -> 0 | H14: =(SUM(LUPINS!$L$14:$L$34)*(rng_rainfall=1)+SUM(LUPINS!$O$14:$O$34)*(rng_rainfall=2)+SUM(LUPINS!$R$14:$R$34)*(rng_rainfall=3))*(rng_Lupins_DATA_SHEET) -> 0 | I14: =(SUM(LUPINS!$U$14:$U$34))*(rng_Lupins_DATA_SHEET) -> 0 | J14: =(SUM(LUPINS!$L$37:$L$53)*(rng_rainfall=1)+SUM(LUPINS!$O$37:$O$53)*(rng_rainfall=2)+SUM(LUPINS!$R$37:$R$53)*(rng_rainfall=3))*(rng_Lupins_DATA_SHEET) -> 0 | K14: =(SUM(LUPINS!$U$37:$U$53))*(rng_Lupins_DATA_SHEET) -> 0 | L14: =(SUM(LUPINS!$L$57:$L$128)*(rng_rainfall=1)+SUM(LUPINS!$O$57:$O$128)*(rng_rainfall=2)+SUM(LUPINS!$R$57:$R$128)*(rng_rainfall=3))*(rng_Lupins_DATA_SHEET) -> 0 | M14: =(SUM(LUPINS!$U$57:$U$128))*(rng_Lupins_DATA_SHEET) -> 0 | N14: =(SUM(LUPINS!$L$132:$L$132)*(rng_rainfall=1)+SUM(LUPINS!$O$132:$O$132)*(rng_rainfall=2)+SUM(LUPINS!$R$132:$R$132)*(rng_rainfall=3))*(rng_Lupins_DATA_SHEET) -> 0 | O14: =(SUM(LUPINS!$U$132:$U$132))*(rng_Lupins_DATA_SHEET) -> 0 | P14: =(SUM(LUPINS!$L$133:$L$133)*(rng_rainfall=1)+SUM(LUPINS!$O$133:$O$133)*(rng_rainfall=2)+SUM(LUPINS!$R$133:$R$133)*(rng_rainfall=3))*(rng_Lupins_DATA_SHEET) -> 0 | Q14: =(SUM(LUPINS!$U$133:$U$133))*(rng_Lupins_DATA_SHEET) -> 0 | R14: =(SUM(LUPINS!$L$136:$L$137)*(rng_rainfall=1)+SUM(LUPINS!$O$136:$O$137)*(rng_rainfall=2)+SUM(LUPINS!$R$136:$R$137)*(rng_rainfall=3))*(rng_Lupins_DATA_SHEET) -> 0 | S14: =(SUM(LUPINS!$U$136:$U$137))*(rng_Lupins_DATA_SHEET) -> 0 | T14: 0 | U14: 0 | V14: 0 | W14: =(LUPINS!$U$160)*(rng_Lupins_DATA_SHEET) -> 0
B15: Lentils | C15: =(LENTILS!$U$6)*(rng_lentils_DATA_SHEET) -> 0 | D15: =(SUM(LENTILS!$L$162)*(rng_rainfall=1)+SUM(LENTILS!$O$162)*(rng_rainfall=2)+SUM(LENTILS!$R$162)*(rng_rainfall=3))*(rng_lentils_DATA_SHEET) -> 0 | E15: =(LENTILS!$U$162)*(rng_lentils_DATA_SHEET) -> 0 | F15: =(SUM(LENTILS!$L$11)*(rng_rainfall=1)+SUM(LENTILS!$O$11)*(rng_rainfall=2)+SUM(LENTILS!$R$11)*(rng_rainfall=3))*(rng_lentils_DATA_SHEET) -> 0 | G15: =(LENTILS!$U$11)*(rng_lentils_DATA_SHEET) -> 0 | H15: =(SUM(LENTILS!$L$14:$L$34)*(rng_rainfall=1)+SUM(LENTILS!$O$14:$O$34)*(rng_rainfall=2)+SUM(LENTILS!$R$14:$R$34)*(rng_rainfall=3))*(rng_lentils_DATA_SHEET) -> 0 | I15: =(SUM(LENTILS!$U$14:$U$34))*(rng_lentils_DATA_SHEET) -> 0 | J15: =(SUM(LENTILS!$L$37:$L$53)*(rng_rainfall=1)+SUM(LENTILS!$O$37:$O$53)*(rng_rainfall=2)+SUM(LENTILS!$R$37:$R$53)*(rng_rainfall=3))*(rng_lentils_DATA_SHEET) -> 0 | K15: =(SUM(LENTILS!$U$37:$U$53))*(rng_lentils_DATA_SHEET) -> 0 | L15: =(SUM(LENTILS!$L$57:$L$128)*(rng_rainfall=1)+SUM(LENTILS!$O$57:$O$128)*(rng_rainfall=2)+SUM(LENTILS!$R$57:$R$128)*(rng_rainfall=3))*(rng_lentils_DATA_SHEET) -> 0 | M15: =(SUM(LENTILS!$U$57:$U$128))*(rng_lentils_DATA_SHEET) -> 0 | N15: =(SUM(LENTILS!$L$132:$L$132)*(rng_rainfall=1)+SUM(LENTILS!$O$132:$O$132)*(rng_rainfall=2)+SUM(LENTILS!$R$132:$R$132)*(rng_rainfall=3))*(rng_lentils_DATA_SHEET) -> 0 | O15: =(SUM(LENTILS!$U$132:$U$132))*(rng_lentils_DATA_SHEET) -> 0 | P15: =(SUM(LENTILS!$L$133:$L$133)*(rng_rainfall=1)+SUM(LENTILS!$O$133:$O$133)*(rng_rainfall=2)+SUM(LENTILS!$R$133:$R$133)*(rng_rainfall=3))*(rng_lentils_DATA_SHEET) -> 0 | Q15: =(SUM(LENTILS!$U$133:$U$133))*(rng_lentils_DATA_SHEET) -> 0 | R15: =(SUM(LENTILS!$L$136:$L$137)*(rng_rainfall=1)+SUM(LENTILS!$O$136:$O$137)*(rng_rainfall=2)+SUM(LENTILS!$R$136:$R$137)*(rng_rainfall=3))*(rng_lentils_DATA_SHEET) -> 0 | S15: =(SUM(LENTILS!$U$136:$U$137))*(rng_lentils_DATA_SHEET) -> 0 | T15: 0 | U15: 0 | V15: 0 | W15: =(LENTILS!$U$160)*(rng_lentils_DATA_SHEET) -> 0
B16: Lentils IMI Tolerant | C16: =('LENTILS IMI TOLERANT'!$U$6)*(rng_lentils_imi_DATA_SHEET) -> 0 | D16: =(SUM('LENTILS IMI TOLERANT'!$L$162)*(rng_rainfall=1)+SUM('LENTILS IMI TOLERANT'!$O$162)*(rng_rainfall=2)+SUM('LENTILS IMI TOLERANT'!$R$162)*(rng_rainfall=3))*(rng_lentils_imi_DATA_SHEET) -> 0 | E16: =('LENTILS IMI TOLERANT'!$U$162)*(rng_lentils_imi_DATA_SHEET) -> 0 | F16: =(SUM('LENTILS IMI TOLERANT'!$L$11)*(rng_rainfall=1)+SUM('LENTILS IMI TOLERANT'!$O$11)*(rng_rainfall=2)+SUM('LENTILS IMI TOLERANT'!$R$11)*(rng_rainfall=3))*(rng_lentils_imi_DATA_SHEET) -> 0 | G16: =('LENTILS IMI TOLERANT'!$U$11)*(rng_lentils_imi_DATA_SHEET) -> 0 | H16: =(SUM('LENTILS IMI TOLERANT'!$L$14:$L$34)*(rng_rainfall=1)+SUM('LENTILS IMI TOLERANT'!$O$14:$O$34)*(rng_rainfall=2)+SUM('LENTILS IMI TOLERANT'!$R$14:$R$34)*(rng_rainfall=3))*(rng_lentils_imi_DATA_SHEET) -> 0 | I16: =(SUM('LENTILS IMI TOLERANT'!$U$14:$U$34))*(rng_lentils_imi_DATA_SHEET) -> 0 | J16: =(SUM('LENTILS IMI TOLERANT'!$L$37:$L$53)*(rng_rainfall=1)+SUM('LENTILS IMI TOLERANT'!$O$37:$O$53)*(rng_rainfall=2)+SUM('LENTILS IMI TOLERANT'!$R$37:$R$53)*(rng_rainfall=3))*(rng_lentils_imi_DATA_SHEET) -> 0 | K16: =(SUM('LENTILS IMI TOLERANT'!$U$37:$U$53))*(rng_lentils_imi_DATA_SHEET) -> 0 | L16: =(SUM('LENTILS IMI TOLERANT'!$L$57:$L$128)*(rng_rainfall=1)+SUM('LENTILS IMI TOLERANT'!$O$57:$O$128)*(rng_rainfall=2)+SUM('LENTILS IMI TOLERANT'!$R$57:$R$128)*(rng_rainfall=3))*(rng_lentils_imi_DATA_SHEET) -> 0 | M16: =(SUM('LENTILS IMI TOLERANT'!$U$57:$U$128))*(rng_lentils_imi_DATA_SHEET) -> 0 | N16: =(SUM('LENTILS IMI TOLERANT'!$L$132:$L$132)*(rng_rainfall=1)+SUM('LENTILS IMI TOLERANT'!$O$132:$O$132)*(rng_rainfall=2)+SUM('LENTILS IMI TOLERANT'!$R$132:$R$132)*(rng_rainfall=3))*(rng_lentils_imi_DATA_SHEET) -> 0 | O16: =(SUM('LENTILS IMI TOLERANT'!$U$132:$U$132))*(rng_lentils_imi_DATA_SHEET) -> 0 | P16: =(SUM('LENTILS IMI TOLERANT'!$L$133:$L$133)*(rng_rainfall=1)+SUM('LENTILS IMI TOLERANT'!$O$133:$O$133)*(rng_rainfall=2)+SUM('LENTILS IMI TOLERANT'!$R$133:$R$133)*(rng_rainfall=3))*(rng_lentils_imi_DATA_SHEET) -> 0 | Q16: =(SUM('LENTILS IMI TOLERANT'!$U$133:$U$133))*(rng_lentils_imi_DATA_SHEET) -> 0 | R16: =(SUM('LENTILS IMI TOLERANT'!$L$136:$L$137)*(rng_rainfall=1)+SUM('LENTILS IMI TOLERANT'!$O$136:$O$137)*(rng_rainfall=2)+SUM('LENTILS IMI TOLERANT'!$R$136:$R$137)*(rng_rainfall=3))*(rng_lentils_imi_DATA_SHEET) -> 0 | S16: =(SUM('LENTILS IMI TOLERANT'!$U$136:$U$137))*(rng_lentils_imi_DATA_SHEET) -> 0 | T16: 0 | U16: 0 | V16: 0 | W16: =('LENTILS IMI TOLERANT'!$U$160)*(rng_lentils_imi_DATA_SHEET) -> 0
B17: Field Peas | C17: =(PEAS!$U$6)*(rng_Field_Peas_DATA_SHEET) -> 0 | D17: =(SUM(PEAS!$L$162)*(rng_rainfall=1)+SUM(PEAS!$O$162)*(rng_rainfall=2)+SUM(PEAS!$R$162)*(rng_rainfall=3))*(rng_Field_Peas_DATA_SHEET) -> 0 | E17: =(PEAS!$U$162)*(rng_Field_Peas_DATA_SHEET) -> 0 | F17: =(SUM(PEAS!$L$11)*(rng_rainfall=1)+SUM(PEAS!$O$11)*(rng_rainfall=2)+SUM(PEAS!$R$11)*(rng_rainfall=3))*(rng_Field_Peas_DATA_SHEET) -> 0 | G17: =(PEAS!$U$11)*(rng_Field_Peas_DATA_SHEET) -> 0 | H17: =(SUM(PEAS!$L$14:$L$34)*(rng_rainfall=1)+SUM(PEAS!$O$14:$O$34)*(rng_rainfall=2)+SUM(PEAS!$R$14:$R$34)*(rng_rainfall=3))*(rng_Field_Peas_DATA_SHEET) -> 0 | I17: =(SUM(PEAS!$U$14:$U$34))*(rng_Field_Peas_DATA_SHEET) -> 0 | J17: =(SUM(PEAS!$L$37:$L$53)*(rng_rainfall=1)+SUM(PEAS!$O$37:$O$53)*(rng_rainfall=2)+SUM(PEAS!$R$37:$R$53)*(rng_rainfall=3))*(rng_Field_Peas_DATA_SHEET) -> 0 | K17: =(SUM(PEAS!$U$37:$U$53))*(rng_Field_Peas_DATA_SHEET) -> 0 | L17: =(SUM(PEAS!$L$57:$L$128)*(rng_rainfall=1)+SUM(PEAS!$O$57:$O$128)*(rng_rainfall=2)+SUM(PEAS!$R$57:$R$128)*(rng_rainfall=3))*(rng_Field_Peas_DATA_SHEET) -> 0 | M17: =(SUM(PEAS!$U$57:$U$128))*(rng_Field_Peas_DATA_SHEET) -> 0 | N17: =(SUM(PEAS!$L$132:$L$132)*(rng_rainfall=1)+SUM(PEAS!$O$132:$O$132)*(rng_rainfall=2)+SUM(PEAS!$R$132:$R$132)*(rng_rainfall=3))*(rng_Field_Peas_DATA_SHEET) -> 0 | O17: =(SUM(PEAS!$U$132:$U$132))*(rng_Field_Peas_DATA_SHEET) -> 0 | P17: =(SUM(PEAS!$L$133:$L$133)*(rng_rainfall=1)+SUM(PEAS!$O$133:$O$133)*(rng_rainfall=2)+SUM(PEAS!$R$133:$R$133)*(rng_rainfall=3))*(rng_Field_Peas_DATA_SHEET) -> 0 | Q17: =(SUM(PEAS!$U$133:$U$133))*(rng_Field_Peas_DATA_SHEET) -> 0 | R17: =(SUM(PEAS!$L$136:$L$137)*(rng_rainfall=1)+SUM(PEAS!$O$136:$O$137)*(rng_rainfall=2)+SUM(PEAS!$R$136:$R$137)*(rng_rainfall=3))*(rng_Field_Peas_DATA_SHEET) -> 0 | S17: =(SUM(PEAS!$U$136:$U$137))*(rng_Field_Peas_DATA_SHEET) -> 0 | T17: 0 | U17: 0 | V17: 0 | W17: =(PEAS!$U$160)*(rng_Field_Peas_DATA_SHEET) -> 0
B18: Faba Beans | C18: =(BEANS!$U$6)*(rng_Beans_DATA_SHEET) -> 0 | D18: =(SUM(BEANS!$L$162)*(rng_rainfall=1)+SUM(BEANS!$O$162)*(rng_rainfall=2)+SUM(BEANS!$R$162)*(rng_rainfall=3))*(rng_Beans_DATA_SHEET) -> 0 | E18: =(BEANS!$U$162)*(rng_Beans_DATA_SHEET) -> 0 | F18: =(SUM(BEANS!$L$11)*(rng_rainfall=1)+SUM(BEANS!$O$11)*(rng_rainfall=2)+SUM(BEANS!$R$11)*(rng_rainfall=3))*(rng_Beans_DATA_SHEET) -> 0 | G18: =(BEANS!$U$11)*(rng_Beans_DATA_SHEET) -> 0 | H18: =(SUM(BEANS!$L$14:$L$34)*(rng_rainfall=1)+SUM(BEANS!$O$14:$O$34)*(rng_rainfall=2)+SUM(BEANS!$R$14:$R$34)*(rng_rainfall=3))*(rng_Beans_DATA_SHEET) -> 0 | I18: =(SUM(BEANS!$U$14:$U$34))*(rng_Beans_DATA_SHEET) -> 0 | J18: =(SUM(BEANS!$L$37:$L$53)*(rng_rainfall=1)+SUM(BEANS!$O$37:$O$53)*(rng_rainfall=2)+SUM(BEANS!$R$37:$R$53)*(rng_rainfall=3))*(rng_Beans_DATA_SHEET) -> 0 | K18: =(SUM(BEANS!$U$37:$U$53))*(rng_Beans_DATA_SHEET) -> 0 | L18: =(SUM(BEANS!$L$57:$L$128)*(rng_rainfall=1)+SUM(BEANS!$O$57:$O$128)*(rng_rainfall=2)+SUM(BEANS!$R$57:$R$128)*(rng_rainfall=3))*(rng_Beans_DATA_SHEET) -> 0 | M18: =(SUM(BEANS!$U$57:$U$128))*(rng_Beans_DATA_SHEET) -> 0 | N18: =(SUM(BEANS!$L$132:$L$132)*(rng_rainfall=1)+SUM(BEANS!$O$132:$O$132)*(rng_rainfall=2)+SUM(BEANS!$R$132:$R$132)*(rng_rainfall=3))*(rng_Beans_DATA_SHEET) -> 0 | O18: =(SUM(BEANS!$U$132:$U$132))*(rng_Beans_DATA_SHEET) -> 0 | P18: =(SUM(BEANS!$L$133:$L$133)*(rng_rainfall=1)+SUM(BEANS!$O$133:$O$133)*(rng_rainfall=2)+SUM(BEANS!$R$133:$R$133)*(rng_rainfall=3))*(rng_Beans_DATA_SHEET) -> 0 | Q18: =(SUM(BEANS!$U$133:$U$133))*(rng_Beans_DATA_SHEET) -> 0 | R18: =(SUM(BEANS!$L$136:$L$137)*(rng_rainfall=1)+SUM(BEANS!$O$136:$O$137)*(rng_rainfall=2)+SUM(BEANS!$R$136:$R$137)*(rng_rainfall=3))*(rng_Beans_DATA_SHEET) -> 0 | S18: =(SUM(BEANS!$U$136:$U$137))*(rng_Beans_DATA_SHEET) -> 0 | T18: 0 | U18: 0 | V18: 0 | W18: =(BEANS!$U$160)*(rng_Beans_DATA_SHEET) -> 0
B19: Kabuli Chickpeas | C19: =(CHICKPEAS!$U$6)*(rng_Chickpeas_DATA_SHEET) -> 0 | D19: =(SUM(CHICKPEAS!$L$162)*(rng_rainfall=1)+SUM(CHICKPEAS!$O$162)*(rng_rainfall=2)+SUM(CHICKPEAS!$R$162)*(rng_rainfall=3))*(rng_Chickpeas_DATA_SHEET) -> 0 | E19: =(CHICKPEAS!$U$162)*(rng_Chickpeas_DATA_SHEET) -> 0 | F19: =(SUM(CHICKPEAS!$L$11)*(rng_rainfall=1)+SUM(CHICKPEAS!$O$11)*(rng_rainfall=2)+SUM(CHICKPEAS!$R$11)*(rng_rainfall=3))*(rng_Chickpeas_DATA_SHEET) -> 0 | G19: =(CHICKPEAS!$U$11)*(rng_Chickpeas_DATA_SHEET) -> 0 | H19: =(SUM(CHICKPEAS!$L$14:$L$34)*(rng_rainfall=1)+SUM(CHICKPEAS!$O$14:$O$34)*(rng_rainfall=2)+SUM(CHICKPEAS!$R$14:$R$34)*(rng_rainfall=3))*(rng_Chickpeas_DATA_SHEET) -> 0 | I19: =(SUM(CHICKPEAS!$U$14:$U$34))*(rng_Chickpeas_DATA_SHEET) -> 0 | J19: =(SUM(CHICKPEAS!$L$37:$L$53)*(rng_rainfall=1)+SUM(CHICKPEAS!$O$37:$O$53)*(rng_rainfall=2)+SUM(CHICKPEAS!$R$37:$R$53)*(rng_rainfall=3))*(rng_Chickpeas_DATA_SHEET) -> 0 | K19: =(SUM(CHICKPEAS!$U$37:$U$53))*(rng_Chickpeas_DATA_SHEET) -> 0 | L19: =(SUM(CHICKPEAS!$L$57:$L$128)*(rng_rainfall=1)+SUM(CHICKPEAS!$O$57:$O$128)*(rng_rainfall=2)+SUM(CHICKPEAS!$R$57:$R$128)*(rng_rainfall=3))*(rng_Chickpeas_DATA_SHEET) -> 0 | M19: =(SUM(CHICKPEAS!$U$57:$U$128))*(rng_Chickpeas_DATA_SHEET) -> 0 | N19: =(SUM(CHICKPEAS!$L$132:$L$132)*(rng_rainfall=1)+SUM(CHICKPEAS!$O$132:$O$132)*(rng_rainfall=2)+SUM(CHICKPEAS!$R$132:$R$132)*(rng_rainfall=3))*(rng_Chickpeas_DATA_SHEET) -> 0 | O19: =(SUM(CHICKPEAS!$U$132:$U$132))*(rng_Chickpeas_DATA_SHEET) -> 0 | P19: =(SUM(CHICKPEAS!$L$133:$L$133)*(rng_rainfall=1)+SUM(CHICKPEAS!$O$133:$O$133)*(rng_rainfall=2)+SUM(CHICKPEAS!$R$133:$R$133)*(rng_rainfall=3))*(rng_Chickpeas_DATA_SHEET) -> 0 | Q19: =(SUM(CHICKPEAS!$U$133:$U$133))*(rng_Chickpeas_DATA_SHEET) -> 0 | R19: =(SUM(CHICKPEAS!$L$136:$L$137)*(rng_rainfall=1)+SUM(CHICKPEAS!$O$136:$O$137)*(rng_rainfall=2)+SUM(CHICKPEAS!$R$136:$R$137)*(rng_rainfall=3))*(rng_Chickpeas_DATA_SHEET) -> 0 | S19: =(SUM(CHICKPEAS!$U$136:$U$137))*(rng_Chickpeas_DATA_SHEET) -> 0 | T19: 0 | U19: 0 | V19: 0 | W19: =(CHICKPEAS!$U$160)*(rng_Chickpeas_DATA_SHEET) -> 0
B20: Canola Clearfield | C20: =('CANOLA CLEARFIELD'!$U$6)*(rng_Canola_Clear_DATA_SHEET) -> 0 | D20: =(SUM('CANOLA CLEARFIELD'!$L$162)*(rng_rainfall=1)+SUM('CANOLA CLEARFIELD'!$O$162)*(rng_rainfall=2)+SUM('CANOLA CLEARFIELD'!$R$162)*(rng_rainfall=3))*(rng_Canola_Clear_DATA_SHEET) -> 0 | E20: =('CANOLA CLEARFIELD'!$U$162)*(rng_Canola_Clear_DATA_SHEET) -> 0 | F20: =(SUM('CANOLA CLEARFIELD'!$L$11)*(rng_rainfall=1)+SUM('CANOLA CLEARFIELD'!$O$11)*(rng_rainfall=2)+SUM('CANOLA CLEARFIELD'!$R$11)*(rng_rainfall=3))*(rng_Canola_Clear_DATA_SHEET) -> 0 | G20: =('CANOLA CLEARFIELD'!$U$11)*(rng_Canola_Clear_DATA_SHEET) -> 0 | H20: =(SUM('CANOLA CLEARFIELD'!$L$14:$L$34)*(rng_rainfall=1)+SUM('CANOLA CLEARFIELD'!$O$14:$O$34)*(rng_rainfall=2)+SUM('CANOLA CLEARFIELD'!$R$14:$R$34)*(rng_rainfall=3))*(rng_Canola_Clear_DATA_SHEET) -> 0 | I20: =(SUM('CANOLA CLEARFIELD'!$U$14:$U$34))*(rng_Canola_Clear_DATA_SHEET) -> 0 | J20: =(SUM('CANOLA CLEARFIELD'!$L$37:$L$53)*(rng_rainfall=1)+SUM('CANOLA CLEARFIELD'!$O$37:$O$53)*(rng_rainfall=2)+SUM('CANOLA CLEARFIELD'!$R$37:$R$53)*(rng_rainfall=3))*(rng_Canola_Clear_DATA_SHEET) -> 0 | K20: =(SUM('CANOLA CLEARFIELD'!$U$37:$U$53))*(rng_Canola_Clear_DATA_SHEET) -> 0 | L20: =(SUM('CANOLA CLEARFIELD'!$L$57:$L$128)*(rng_rainfall=1)+SUM('CANOLA CLEARFIELD'!$O$57:$O$128)*(rng_rainfall=2)+SUM('CANOLA CLEARFIELD'!$R$57:$R$128)*(rng_rainfall=3))*(rng_Canola_Clear_DATA_SHEET) -> 0 | M20: =(SUM('CANOLA CLEARFIELD'!$U$57:$U$128))*(rng_Canola_Clear_DATA_SHEET) -> 0 | N20: =(SUM('CANOLA CLEARFIELD'!$L$132:$L$132)*(rng_rainfall=1)+SUM('CANOLA CLEARFIELD'!$O$132:$O$132)*(rng_rainfall=2)+SUM('CANOLA CLEARFIELD'!$R$132:$R$132)*(rng_rainfall=3))*(rng_Canola_Clear_DATA_SHEET) -> 0 | O20: =(SUM('CANOLA CLEARFIELD'!$U$132:$U$132))*(rng_Canola_Clear_DATA_SHEET) -> 0 | P20: =(SUM('CANOLA CLEARFIELD'!$L$133:$L$133)*(rng_rainfall=1)+SUM('CANOLA CLEARFIELD'!$O$133:$O$133)*(rng_rainfall=2)+SUM('CANOLA CLEARFIELD'!$R$133:$R$133)*(rng_rainfall=3))*(rng_Canola_Clear_DATA_SHEET) -> 0 | Q20: =(SUM('CANOLA CLEARFIELD'!$U$133:$U$133))*(rng_Canola_Clear_DATA_SHEET) -> 0 | R20: =(SUM('CANOLA CLEARFIELD'!$L$136:$L$137)*(rng_rainfall=1)+SUM('CANOLA CLEARFIELD'!$O$136:$O$137)*(rng_rainfall=2)+SUM('CANOLA CLEARFIELD'!$R$136:$R$137)*(rng_rainfall=3))*(rng_Canola_Clear_DATA_SHEET) -> 0 | S20: =(SUM('CANOLA CLEARFIELD'!$U$136:$U$137))*(rng_Canola_Clear_DATA_SHEET) -> 0 | T20: 0 | U20: 0 | V20: 0 | W20: =('CANOLA CLEARFIELD'!$U$160)*(rng_Canola_Clear_DATA_SHEET) -> 0
B21: Canola Conventional | C21: =('CANOLA CONVENTIONAL'!$U$6)*(rng_Canola_Conv_DATA_SHEET) -> 0 | D21: =(SUM('CANOLA CONVENTIONAL'!$L$162)*(rng_rainfall=1)+SUM('CANOLA CONVENTIONAL'!$O$162)*(rng_rainfall=2)+SUM('CANOLA CONVENTIONAL'!$R$162)*(rng_rainfall=3))*(rng_Canola_Conv_DATA_SHEET) -> 0 | E21: =('CANOLA CONVENTIONAL'!$U$162)*(rng_Canola_Conv_DATA_SHEET) -> 0 | F21: =(SUM('CANOLA CONVENTIONAL'!$L$11)*(rng_rainfall=1)+SUM('CANOLA CONVENTIONAL'!$O$11)*(rng_rainfall=2)+SUM('CANOLA CONVENTIONAL'!$R$11)*(rng_rainfall=3))*(rng_Canola_Conv_DATA_SHEET) -> 0 | G21: =('CANOLA CONVENTIONAL'!$U$11)*(rng_Canola_Conv_DATA_SHEET) -> 0 | H21: =(SUM('CANOLA CONVENTIONAL'!$L$14:$L$34)*(rng_rainfall=1)+SUM('CANOLA CONVENTIONAL'!$O$14:$O$34)*(rng_rainfall=2)+SUM('CANOLA CONVENTIONAL'!$R$14:$R$34)*(rng_rainfall=3))*(rng_Canola_Conv_DATA_SHEET) -> 0 | I21: =(SUM('CANOLA CONVENTIONAL'!$U$14:$U$34))*(rng_Canola_Conv_DATA_SHEET) -> 0 | J21: =(SUM('CANOLA CONVENTIONAL'!$L$37:$L$53)*(rng_rainfall=1)+SUM('CANOLA CONVENTIONAL'!$O$37:$O$53)*(rng_rainfall=2)+SUM('CANOLA CONVENTIONAL'!$R$37:$R$53)*(rng_rainfall=3))*(rng_Canola_Conv_DATA_SHEET) -> 0 | K21: =(SUM('CANOLA CONVENTIONAL'!$U$37:$U$53))*(rng_Canola_Conv_DATA_SHEET) -> 0 | L21: =(SUM('CANOLA CONVENTIONAL'!$L$57:$L$128)*(rng_rainfall=1)+SUM('CANOLA CONVENTIONAL'!$O$57:$O$128)*(rng_rainfall=2)+SUM('CANOLA CONVENTIONAL'!$R$57:$R$128)*(rng_rainfall=3))*(rng_Canola_Conv_DATA_SHEET) -> 0 | M21: =(SUM('CANOLA CONVENTIONAL'!$U$57:$U$128))*(rng_Canola_Conv_DATA_SHEET) -> 0 | N21: =(SUM('CANOLA CONVENTIONAL'!$L$132:$L$132)*(rng_rainfall=1)+SUM('CANOLA CONVENTIONAL'!$O$132:$O$132)*(rng_rainfall=2)+SUM('CANOLA CONVENTIONAL'!$R$132:$R$132)*(rng_rainfall=3))*(rng_Canola_Conv_DATA_SHEET) -> 0 | O21: =(SUM('CANOLA CONVENTIONAL'!$U$132:$U$132))*(rng_Canola_Conv_DATA_SHEET) -> 0 | P21: =(SUM('CANOLA CONVENTIONAL'!$L$133:$L$133)*(rng_rainfall=1)+SUM('CANOLA CONVENTIONAL'!$O$133:$O$133)*(rng_rainfall=2)+SUM('CANOLA CONVENTIONAL'!$R$133:$R$133)*(rng_rainfall=3))*(rng_Canola_Conv_DATA_SHEET) -> 0 | Q21: =(SUM('CANOLA CONVENTIONAL'!$U$133:$U$133))*(rng_Canola_Conv_DATA_SHEET) -> 0 | R21: =(SUM('CANOLA CONVENTIONAL'!$L$136:$L$137)*(rng_rainfall=1)+SUM('CANOLA CONVENTIONAL'!$O$136:$O$137)*(rng_rainfall=2)+SUM('CANOLA CONVENTIONAL'!$R$136:$R$137)*(rng_rainfall=3))*(rng_Canola_Conv_DATA_SHEET) -> 0 | S21: =(SUM('CANOLA CONVENTIONAL'!$U$136:$U$137))*(rng_Canola_Conv_DATA_SHEET) -> 0 | T21: 0 | U21: 0 | V21: 0 | W21: =('CANOLA CONVENTIONAL'!$U$160)*(rng_Canola_Conv_DATA_SHEET) -> 0
B22: Canola RoundUp Ready | C22: =('CANOLA ROUNDUP READY'!$U$6)*(rng_Canola_Round_DATA_SHEET) -> 0 | D22: =(SUM('CANOLA ROUNDUP READY'!$L$162)*(rng_rainfall=1)+SUM('CANOLA ROUNDUP READY'!$O$162)*(rng_rainfall=2)+SUM('CANOLA ROUNDUP READY'!$R$162)*(rng_rainfall=3))*(rng_Canola_Round_DATA_SHEET) -> 0 | E22: =('CANOLA ROUNDUP READY'!$U$162)*(rng_Canola_Round_DATA_SHEET) -> 0 | F22: =(SUM('CANOLA ROUNDUP READY'!$L$11)*(rng_rainfall=1)+SUM('CANOLA ROUNDUP READY'!$O$11)*(rng_rainfall=2)+SUM('CANOLA ROUNDUP READY'!$R$11)*(rng_rainfall=3))*(rng_Canola_Round_DATA_SHEET) -> 0 | G22: =('CANOLA ROUNDUP READY'!$U$11)*(rng_Canola_Round_DATA_SHEET) -> 0 | H22: =(SUM('CANOLA ROUNDUP READY'!$L$14:$L$34)*(rng_rainfall=1)+SUM('CANOLA ROUNDUP READY'!$O$14:$O$34)*(rng_rainfall=2)+SUM('CANOLA ROUNDUP READY'!$R$15:$R$35)*(rng_rainfall=3))*(rng_Canola_Round_DATA_SHEET) -> 0 | I22: =(SUM('CANOLA ROUNDUP READY'!$U$14:$U$34))*(rng_Canola_Round_DATA_SHEET) -> 0 | J22: =(SUM('CANOLA ROUNDUP READY'!$L$37:$L$53)*(rng_rainfall=1)+SUM('CANOLA ROUNDUP READY'!$O$37:$O$53)*(rng_rainfall=2)+SUM('CANOLA ROUNDUP READY'!$R$37:$R$53)*(rng_rainfall=3))*(rng_Canola_Round_DATA_SHEET) -> 0 | K22: =(SUM('CANOLA ROUNDUP READY'!$U$37:$U$53))*(rng_Canola_Round_DATA_SHEET) -> 0 | L22: =(SUM('CANOLA ROUNDUP READY'!$L$57:$L$118)*(rng_rainfall=1)+SUM('CANOLA ROUNDUP READY'!$O$57:$O$118)*(rng_rainfall=2)+SUM('CANOLA ROUNDUP READY'!$R$57:$R$118)*(rng_rainfall=3))*(rng_Canola_Round_DATA_SHEET) -> 0 | M22: =(SUM('CANOLA ROUNDUP READY'!$U$57:$U$128))*(rng_Canola_Round_DATA_SHEET) -> 0 | N22: =(SUM('CANOLA ROUNDUP READY'!$L$118:$L$132)*(rng_rainfall=1)+SUM('CANOLA ROUNDUP READY'!$O$118:$O$132)*(rng_rainfall=2)+SUM('CANOLA ROUNDUP READY'!$R$118:$R$132)*(rng_rainfall=3))*(rng_Canola_Round_DATA_SHEET) -> 0 | O22: =(SUM('CANOLA ROUNDUP READY'!$U$132:$U$132))*(rng_Canola_Round_DATA_SHEET) -> 0 | P22: =(SUM('CANOLA ROUNDUP READY'!$L$118:$L$133)*(rng_rainfall=1)+SUM('CANOLA ROUNDUP READY'!$O$118:$O$133)*(rng_rainfall=2)+SUM('CANOLA ROUNDUP READY'!$R$118:$R$133)*(rng_rainfall=3))*(rng_Canola_Round_DATA_SHEET) -> 0 | Q22: =(SUM('CANOLA ROUNDUP READY'!$U$133:$U$133))*(rng_Canola_Round_DATA_SHEET) -> 0 | R22: =(SUM('CANOLA ROUNDUP READY'!$L$136:$L$137)*(rng_rainfall=1)+SUM('CANOLA ROUNDUP READY'!$O$136:$O$137)*(rng_rainfall=2)+SUM('CANOLA ROUNDUP READY'!$R$15:$R$35)*(rng_rainfall=3))*(rng_Canola_Round_DATA_SHEET) -> 0 | S22: =(SUM('CANOLA ROUNDUP READY'!$U$136:$U$137))*(rng_Canola_Round_DATA_SHEET) -> 0 | T22: 0 | U22: 0 | V22: 0 | W22: =('CANOLA ROUNDUP READY'!$U$160)*(rng_Canola_Round_DATA_SHEET) -> 0
B23: Canola Tri Tolerant | C23: =('CANOLA TRITOLERANT'!$U$6)*(rng_Canola_Tri_DATA_SHEET) -> 0 | D23: =(SUM('CANOLA TRITOLERANT'!$L$162)*(rng_rainfall=1)+SUM('CANOLA TRITOLERANT'!$O$162)*(rng_rainfall=2)+SUM('CANOLA TRITOLERANT'!$R$162)*(rng_rainfall=3))*(rng_Canola_Tri_DATA_SHEET) -> 0 | E23: =('CANOLA TRITOLERANT'!$U$162)*(rng_Canola_Tri_DATA_SHEET) -> 0 | F23: =(SUM('CANOLA TRITOLERANT'!$L$11)*(rng_rainfall=1)+SUM('CANOLA TRITOLERANT'!$O$11)*(rng_rainfall=2)+SUM('CANOLA TRITOLERANT'!$R$11)*(rng_rainfall=3))*(rng_Canola_Tri_DATA_SHEET) -> 0 | G23: =('CANOLA TRITOLERANT'!$U$11)*(rng_Canola_Tri_DATA_SHEET) -> 0 | H23: =(SUM('CANOLA TRITOLERANT'!$L$14:$L$34)*(rng_rainfall=1)+SUM('CANOLA TRITOLERANT'!$O$14:$O$34)*(rng_rainfall=2)+SUM('CANOLA TRITOLERANT'!$R$14:$R$34)*(rng_rainfall=3))*(rng_Canola_Tri_DATA_SHEET) -> 0 | I23: =(SUM('CANOLA TRITOLERANT'!$U$14:$U$34))*(rng_Canola_Tri_DATA_SHEET) -> 0 | J23: =(SUM('CANOLA TRITOLERANT'!$L$37:$L$53)*(rng_rainfall=1)+SUM('CANOLA TRITOLERANT'!$O$37:$O$53)*(rng_rainfall=2)+SUM('CANOLA TRITOLERANT'!$R$37:$R$53)*(rng_rainfall=3))*(rng_Canola_Tri_DATA_SHEET) -> 0 | K23: =(SUM('CANOLA TRITOLERANT'!$U$37:$U$53))*(rng_Canola_Tri_DATA_SHEET) -> 0 | L23: =(SUM('CANOLA TRITOLERANT'!$L$57:$L$128)*(rng_rainfall=1)+SUM('CANOLA TRITOLERANT'!$O$57:$O$128)*(rng_rainfall=2)+SUM('CANOLA TRITOLERANT'!$R$57:$R$128)*(rng_rainfall=3))*(rng_Canola_Tri_DATA_SHEET) -> 0 | M23: =(SUM('CANOLA TRITOLERANT'!$U$57:$U$128))*(rng_Canola_Tri_DATA_SHEET) -> 0 | N23: =(SUM('CANOLA TRITOLERANT'!$L$132:$L$132)*(rng_rainfall=1)+SUM('CANOLA TRITOLERANT'!$O$132:$O$132)*(rng_rainfall=2)+SUM('CANOLA TRITOLERANT'!$R$132:$R$132)*(rng_rainfall=3))*(rng_Canola_Tri_DATA_SHEET) -> 0 | O23: =(SUM('CANOLA TRITOLERANT'!$U$132:$U$132))*(rng_Canola_Tri_DATA_SHEET) -> 0 | P23: =(SUM('CANOLA TRITOLERANT'!$L$133:$L$133)*(rng_rainfall=1)+SUM('CANOLA TRITOLERANT'!$O$133:$O$133)*(rng_rainfall=2)+SUM('CANOLA TRITOLERANT'!$R$133:$R$133)*(rng_rainfall=3))*(rng_Canola_Tri_DATA_SHEET) -> 0 | Q23: =(SUM('CANOLA TRITOLERANT'!$U$133:$U$133))*(rng_Canola_Tri_DATA_SHEET) -> 0 | R23: =(SUM('CANOLA TRITOLERANT'!$L$136:$L$137)*(rng_rainfall=1)+SUM('CANOLA TRITOLERANT'!$O$136:$O$137)*(rng_rainfall=2)+SUM('CANOLA TRITOLERANT'!$R$136:$R$137)*(rng_rainfall=3))*(rng_Canola_Tri_DATA_SHEET) -> 0 | S23: =(SUM('CANOLA TRITOLERANT'!$U$136:$U$137))*(rng_Canola_Tri_DATA_SHEET) -> 0 | T23: 0 | U23: 0 | V23: 0 | W23: =('CANOLA TRITOLERANT'!$U$160)*(rng_Canola_Tri_DATA_SHEET) -> 0
B24: Sown Pasture | C24: =('SOWN PASTURE'!$U$6)*(rng_sown_pasture_DATA_SHEET) -> 0 | D24: =(SUM('SOWN PASTURE'!$L$162)*(rng_rainfall=1)+SUM('SOWN PASTURE'!$O$162)*(rng_rainfall=2)+SUM('SOWN PASTURE'!$R$162)*(rng_rainfall=3))*(rng_sown_pasture_DATA_SHEET) -> 0 | E24: =('SOWN PASTURE'!$U$162)*(rng_sown_pasture_DATA_SHEET) -> 0 | F24: =(SUM('SOWN PASTURE'!$L$11)*(rng_rainfall=1)+SUM('SOWN PASTURE'!$O$11)*(rng_rainfall=2)+SUM('SOWN PASTURE'!$R$11)*(rng_rainfall=3))*(rng_sown_pasture_DATA_SHEET) -> 0 | G24: =('SOWN PASTURE'!$U$11)*(rng_sown_pasture_DATA_SHEET) -> 0 | H24: =(SUM('SOWN PASTURE'!$L$14:$L$34)*(rng_rainfall=1)+SUM('SOWN PASTURE'!$O$14:$O$34)*(rng_rainfall=2)+SUM('SOWN PASTURE'!$R$14:$R$34)*(rng_rainfall=3))*(rng_sown_pasture_DATA_SHEET) -> 0 | I24: =(SUM('SOWN PASTURE'!$U$14:$U$34))*(rng_sown_pasture_DATA_SHEET) -> 0 | J24: =(SUM('SOWN PASTURE'!$L$37:$L$53)*(rng_rainfall=1)+SUM('SOWN PASTURE'!$O$37:$O$53)*(rng_rainfall=2)+SUM('SOWN PASTURE'!$R$37:$R$53)*(rng_rainfall=3))*(rng_sown_pasture_DATA_SHEET) -> 0 | K24: =(SUM('SOWN PASTURE'!$U$37:$U$53))*(rng_sown_pasture_DATA_SHEET) -> 0 | L24: =(SUM('SOWN PASTURE'!$L$57:$L$128)*(rng_rainfall=1)+SUM('SOWN PASTURE'!$O$57:$O$128)*(rng_rainfall=2)+SUM('SOWN PASTURE'!$R$57:$R$128)*(rng_rainfall=3))*(rng_sown_pasture_DATA_SHEET) -> 0 | M24: =(SUM('SOWN PASTURE'!$U$57:$U$128))*(rng_sown_pasture_DATA_SHEET) -> 0 | N24: =(SUM('SOWN PASTURE'!$L$132:$L$132)*(rng_rainfall=1)+SUM('SOWN PASTURE'!$O$132:$O$132)*(rng_rainfall=2)+SUM('SOWN PASTURE'!$R$132:$R$132)*(rng_rainfall=3))*(rng_sown_pasture_DATA_SHEET) -> 0 | O24: =(SUM('SOWN PASTURE'!$U$132:$U$132))*(rng_sown_pasture_DATA_SHEET) -> 0 | P24: =(SUM('SOWN PASTURE'!$L$133:$L$133)*(rng_rainfall=1)+SUM('SOWN PASTURE'!$O$133:$O$133)*(rng_rainfall=2)+SUM('SOWN PASTURE'!$R$133:$R$133)*(rng_rainfall=3))*(rng_sown_pasture_DATA_SHEET) -> 0 | Q24: =(SUM('SOWN PASTURE'!$U$133:$U$133))*(rng_sown_pasture_DATA_SHEET) -> 0 | R24: =(SUM('SOWN PASTURE'!$L$136:$L$137)*(rng_rainfall=1)+SUM('SOWN PASTURE'!$O$136:$O$137)*(rng_rainfall=2)+SUM('SOWN PASTURE'!$R$136:$R$137)*(rng_rainfall=3))*(rng_sown_pasture_DATA_SHEET) -> 0 | S24: =(SUM('SOWN PASTURE'!$U$136:$U$137))*(rng_sown_pasture_DATA_SHEET) -> 0 | T24: 0 | U24: 0 | V24: 0 | W24: =('SOWN PASTURE'!$U$160)*(rng_sown_pasture_DATA_SHEET) -> 0
B25: Self Regen Pasture | C25: =('SELF REGEN PASTURE'!U$6)*(rng_self_regen_DATA_SHEET) -> 0 | D25: =(SUM('SELF REGEN PASTURE'!L$162)*(rng_rainfall=1)+SUM('SELF REGEN PASTURE'!O$162)*(rng_rainfall=2)+SUM('SELF REGEN PASTURE'!R$162)*(rng_rainfall=3))*(rng_self_regen_DATA_SHEET) -> 0 | E25: =('SELF REGEN PASTURE'!U$162)*(rng_self_regen_DATA_SHEET) -> 0 | F25: =(SUM('SELF REGEN PASTURE'!L$11)*(rng_rainfall=1)+SUM('SELF REGEN PASTURE'!O$11)*(rng_rainfall=2)+SUM('SELF REGEN PASTURE'!R$11)*(rng_rainfall=3))*(rng_self_regen_DATA_SHEET) -> 0 | G25: =('SELF REGEN PASTURE'!U$11)*(rng_self_regen_DATA_SHEET) -> 0 | H25: =(SUM('SELF REGEN PASTURE'!L$14:L$34)*(rng_rainfall=1)+SUM('SELF REGEN PASTURE'!O$14:O$34)*(rng_rainfall=2)+SUM('SELF REGEN PASTURE'!R$14:R$34)*(rng_rainfall=3))*(rng_self_regen_DATA_SHEET) -> 0 | I25: =(SUM('SELF REGEN PASTURE'!U$14:U$34))*(rng_self_regen_DATA_SHEET) -> 0 | J25: =(SUM('SELF REGEN PASTURE'!L$37:L$53)*(rng_rainfall=1)+SUM('SELF REGEN PASTURE'!O$37:O$53)*(rng_rainfall=2)+SUM('SELF REGEN PASTURE'!R$37:R$53)*(rng_rainfall=3))*(rng_self_regen_DATA_SHEET) -> 0 | K25: =(SUM('SELF REGEN PASTURE'!U$37:U$53))*(rng_self_regen_DATA_SHEET) -> 0 | L25: =(SUM('SELF REGEN PASTURE'!L$57:L$128)*(rng_rainfall=1)+SUM('SELF REGEN PASTURE'!O$57:O$128)*(rng_rainfall=2)+SUM('SELF REGEN PASTURE'!R$57:R$128)*(rng_rainfall=3))*(rng_self_regen_DATA_SHEET) -> 0 | M25: =(SUM('SELF REGEN PASTURE'!U$57:U$128))*(rng_self_regen_DATA_SHEET) -> 0 | N25: =(SUM('SELF REGEN PASTURE'!L$132:L$132)*(rng_rainfall=1)+SUM('SELF REGEN PASTURE'!O$132:O$132)*(rng_rainfall=2)+SUM('SELF REGEN PASTURE'!R$132:R$132)*(rng_rainfall=3))*(rng_self_regen_DATA_SHEET) -> 0 | O25: =(SUM('SELF REGEN PASTURE'!U$132:U$132))*(rng_self_regen_DATA_SHEET) -> 0 | P25: =(SUM('SELF REGEN PASTURE'!P$133:P$133)*(rng_rainfall=1)+SUM('SELF REGEN PASTURE'!S$133:S$133)*(rng_rainfall=2)+SUM('SELF REGEN PASTURE'!V$133:V$133)*(rng_rainfall=3))*(rng_self_regen_DATA_SHEET) -> 0 | Q25: =(SUM('SELF REGEN PASTURE'!U$133:U$133))*(rng_self_regen_DATA_SHEET) -> 0 | R25: =(SUM('SELF REGEN PASTURE'!V$136:V$137)*(rng_rainfall=1)+SUM('SELF REGEN PASTURE'!Y$136:Y$137)*(rng_rainfall=2)+SUM('SELF REGEN PASTURE'!AB$136:AB$137)*(rng_rainfall=3))*(rng_self_regen_DATA_SHEET) -> 0 | S25: =(SUM('SELF REGEN PASTURE'!AE$136:AE$137))*(rng_self_regen_DATA_SHEET) -> 0 | T25: 0 | U25: 0 | V25: 0 | W25: =('SELF REGEN PASTURE'!U$160)*(rng_self_regen_DATA_SHEET) -> 0
B26: Lucerne Pasture Cereal | C26: =('LUCERNE PASTURE CEREAL'!$U$6)*(rng_LUC_CEREAL_DATA_SHEET) -> 0 | D26: =(SUM('LUCERNE PASTURE CEREAL'!L$163)*(rng_rainfall=1)+SUM('LUCERNE PASTURE CEREAL'!O$163)*(rng_rainfall=2)+SUM('LUCERNE PASTURE CEREAL'!R$163)*(rng_rainfall=3))*(rng_LUC_CEREAL_DATA_SHEET) -> 0 | E26: =('LUCERNE PASTURE CEREAL'!U$163)*(rng_LUC_CEREAL_DATA_SHEET) -> 0 | F26: =(SUM('LUCERNE PASTURE CEREAL'!L$11)*(rng_rainfall=1)+SUM('LUCERNE PASTURE CEREAL'!O$11)*(rng_rainfall=2)+SUM('LUCERNE PASTURE CEREAL'!R$11)*(rng_rainfall=3))*(rng_LUC_CEREAL_DATA_SHEET) -> 0 | G26: =('LUCERNE PASTURE CEREAL'!U$11)*(rng_LUC_CEREAL_DATA_SHEET) -> 0 | H26: =(SUM('LUCERNE PASTURE CEREAL'!L$14:L$34)*(rng_rainfall=1)+SUM('LUCERNE PASTURE CEREAL'!O$14:O$34)*(rng_rainfall=2)+SUM('LUCERNE PASTURE CEREAL'!R$14:R$34)*(rng_rainfall=3))*(rng_LUC_CEREAL_DATA_SHEET) -> 0 | I26: =(SUM('LUCERNE PASTURE CEREAL'!U$14:U$34)/7)*(rng_LUC_CEREAL_DATA_SHEET) -> 0 | J26: =(SUM('LUCERNE PASTURE CEREAL'!L$37:L$53,'LUCERNE PASTURE CEREAL'!L$135:L$136)*(rng_rainfall=1)+SUM('LUCERNE PASTURE CEREAL'!O$37:O$53,'LUCERNE PASTURE CEREAL'!O$135:O$136)*(rng_rainfall=2)+SUM('LUCERNE PASTURE CEREAL'!R$37:R$53,'LUCERNE PASTURE CEREAL'!R$135:R$136)*(rng_rainfall=3))*(rng_LUC_CEREAL_DATA_SHEET) -> 0 | K26: =(SUM(SUM('LUCERNE PASTURE CEREAL'!U$37:U$53)/7,'LUCERNE PASTURE CEREAL'!U$135:U$136))*(rng_LUC_CEREAL_DATA_SHEET) -> 0 | L26: =(SUM('LUCERNE PASTURE CEREAL'!L$57:L$111,'LUCERNE PASTURE CEREAL'!L$125:L$133)*(rng_rainfall=1)+SUM('LUCERNE PASTURE CEREAL'!O$57:O$111,'LUCERNE PASTURE CEREAL'!O$125:O$133)*(rng_rainfall=2)+SUM('LUCERNE PASTURE CEREAL'!R$57:R$111,'LUCERNE PASTURE CEREAL'!R$125:R$133)*(rng_rainfall=3))*(rng_LUC_CEREAL_DATA_SHEET) -> 0 | M26: =(SUM(SUM('LUCERNE PASTURE CEREAL'!U$57:U$111)/7,'LUCERNE PASTURE CEREAL'!U$125:U$133))*(rng_LUC_CEREAL_DATA_SHEET) -> 0 | N26: =(SUM('LUCERNE PASTURE CEREAL'!L$113:L$113,'LUCERNE PASTURE CEREAL'!L$138:L$138)*(rng_rainfall=1)+SUM('LUCERNE PASTURE CEREAL'!O$113:O$113,'LUCERNE PASTURE CEREAL'!O$138:O$138)*(rng_rainfall=2)+SUM('LUCERNE PASTURE CEREAL'!R$113:R$113,'LUCERNE PASTURE CEREAL'!R$138:R$138)*(rng_rainfall=3))*(rng_LUC_CEREAL_DATA_SHEET) -> 0 | O26: =(SUM(SUM('LUCERNE PASTURE CEREAL'!U$113:U$113)/7,'LUCERNE PASTURE CEREAL'!U$138:U$138))*(rng_LUC_CEREAL_DATA_SHEET) -> 0 | P26: =(SUM('LUCERNE PASTURE CEREAL'!L$114:L$114,'LUCERNE PASTURE CEREAL'!L$139:L$139)*(rng_rainfall=1)+SUM('LUCERNE PASTURE CEREAL'!O$114:O$114,'LUCERNE PASTURE CEREAL'!O$139:O$139)*(rng_rainfall=2)+SUM('LUCERNE PASTURE CEREAL'!R$114:R$114,'LUCERNE PASTURE CEREAL'!R$139:R$139)*(rng_rainfall=3))*(rng_LUC_CEREAL_DATA_SHEET) -> 0 | Q26: =(SUM(SUM('LUCERNE PASTURE CEREAL'!U$114:W$114)/7,'LUCERNE PASTURE CEREAL'!U$139:W$139))*(rng_LUC_CEREAL_DATA_SHEET) -> 0 | R26: =(SUM('LUCERNE PASTURE CEREAL'!L$142:L$143)*(rng_rainfall=1)+SUM('LUCERNE PASTURE CEREAL'!O$142:O$143)*(rng_rainfall=2)+SUM('LUCERNE PASTURE CEREAL'!R$142:R$143)*(rng_rainfall=3))*(rng_LUC_CEREAL_DATA_SHEET) -> 0 | S26: =(SUM('LUCERNE PASTURE CEREAL'!U$142:W$143))*(rng_LUC_CEREAL_DATA_SHEET) -> 0 | T26: 0 | U26: 0 | V26: 0 | W26: =('LUCERNE PASTURE CEREAL'!$U$161)*(rng_LUC_CEREAL_DATA_SHEET) -> 0
B27: Lucerne Pasture Grazing | C27: =('LUCERNE PASTURE GRAZING'!$U$6)*(rng_LUC_GRAZ_DATA_SHEET) -> 0 | D27: =(SUM('LUCERNE PASTURE GRAZING'!L$163)*(rng_rainfall=1)+SUM('LUCERNE PASTURE GRAZING'!O$163)*(rng_rainfall=2)+SUM('LUCERNE PASTURE GRAZING'!R$163)*(rng_rainfall=3))*(rng_LUC_GRAZ_DATA_SHEET) -> 0 | E27: =('LUCERNE PASTURE GRAZING'!U$163)*(rng_LUC_GRAZ_DATA_SHEET) -> 0 | F27: =(SUM('LUCERNE PASTURE GRAZING'!L$11)*(rng_rainfall=1)+SUM('LUCERNE PASTURE GRAZING'!O$11)*(rng_rainfall=2)+SUM('LUCERNE PASTURE GRAZING'!R$11)*(rng_rainfall=3))*(rng_LUC_GRAZ_DATA_SHEET) -> 0 | G27: =('LUCERNE PASTURE GRAZING'!U$11)*(rng_LUC_GRAZ_DATA_SHEET) -> 0 | H27: =(SUM('LUCERNE PASTURE GRAZING'!L$14:L$34)*(rng_rainfall=1)+SUM('LUCERNE PASTURE GRAZING'!O$14:O$34)*(rng_rainfall=2)+SUM('LUCERNE PASTURE GRAZING'!R$14:R$34)*(rng_rainfall=3))*(rng_LUC_GRAZ_DATA_SHEET) -> 0 | I27: =(SUM('LUCERNE PASTURE GRAZING'!U$14:U$34)/7)*(rng_LUC_GRAZ_DATA_SHEET) -> 0 | J27: =(SUM('LUCERNE PASTURE GRAZING'!L$37:L$53,'LUCERNE PASTURE GRAZING'!L$135:L$136)*(rng_rainfall=1)+SUM('LUCERNE PASTURE GRAZING'!O$37:O$53,'LUCERNE PASTURE GRAZING'!O$135:O$136)*(rng_rainfall=2)+SUM('LUCERNE PASTURE GRAZING'!R$37:R$53,'LUCERNE PASTURE GRAZING'!R$135:R$136)*(rng_rainfall=3))*(rng_LUC_GRAZ_DATA_SHEET) -> 0 | K27: =(SUM(SUM('LUCERNE PASTURE GRAZING'!U$37:U$53)/7,'LUCERNE PASTURE GRAZING'!U$135:U$136))*(rng_LUC_GRAZ_DATA_SHEET) -> 0 | L27: =(SUM('LUCERNE PASTURE GRAZING'!L$57:L$111,'LUCERNE PASTURE GRAZING'!L$125:L$133)*(rng_rainfall=1)+SUM('LUCERNE PASTURE GRAZING'!O$57:O$111,'LUCERNE PASTURE GRAZING'!O$125:O$133)*(rng_rainfall=2)+SUM('LUCERNE PASTURE GRAZING'!R$57:R$111,'LUCERNE PASTURE GRAZING'!R$125:R$133)*(rng_rainfall=3))*(rng_LUC_GRAZ_DATA_SHEET) -> 0 | M27: =(SUM(SUM('LUCERNE PASTURE GRAZING'!U$57:U$111)/7,'LUCERNE PASTURE GRAZING'!U$125:U$133))*(rng_LUC_GRAZ_DATA_SHEET) -> 0 | N27: =(SUM('LUCERNE PASTURE GRAZING'!L$113:L$113,'LUCERNE PASTURE GRAZING'!L$138:L$138)*(rng_rainfall=1)+SUM('LUCERNE PASTURE GRAZING'!O$113:O$113,'LUCERNE PASTURE GRAZING'!O$138:O$138)*(rng_rainfall=2)+SUM('LUCERNE PASTURE GRAZING'!R$113:R$113,'LUCERNE PASTURE GRAZING'!R$138:R$138)*(rng_rainfall=3))*(rng_LUC_GRAZ_DATA_SHEET) -> 0 | O27: =(SUM(SUM('LUCERNE PASTURE GRAZING'!U$113:U$113)/7,'LUCERNE PASTURE GRAZING'!U$138:U$138))*(rng_LUC_GRAZ_DATA_SHEET) -> 0 | P27: =(SUM('LUCERNE PASTURE GRAZING'!L$114:L$114,'LUCERNE PASTURE GRAZING'!L$139:L$139)*(rng_rainfall=1)+SUM('LUCERNE PASTURE GRAZING'!O$114:O$114,'LUCERNE PASTURE GRAZING'!O$139:O$139)*(rng_rainfall=2)+SUM('LUCERNE PASTURE GRAZING'!R$114:R$114,'LUCERNE PASTURE GRAZING'!R$139:R$139)*(rng_rainfall=3))*(rng_LUC_GRAZ_DATA_SHEET) -> 0 | Q27: =(SUM(SUM('LUCERNE PASTURE GRAZING'!U$114:W$114)/7,'LUCERNE PASTURE GRAZING'!U$139:W$139))*(rng_LUC_GRAZ_DATA_SHEET) -> 0 | R27: =(SUM('LUCERNE PASTURE GRAZING'!L$142:L$143)*(rng_rainfall=1)+SUM('LUCERNE PASTURE GRAZING'!O$142:O$143)*(rng_rainfall=2)+SUM('LUCERNE PASTURE GRAZING'!R$142:R$143)*(rng_rainfall=3))*(rng_LUC_GRAZ_DATA_SHEET) -> 0 | S27: =(SUM('LUCERNE PASTURE GRAZING'!U$142:W$143))*(rng_LUC_GRAZ_DATA_SHEET) -> 0 | T27: 0 | U27: 0 | V27: 0 | W27: =('LUCERNE PASTURE GRAZING'!$U$161)*(rng_LUC_GRAZ_DATA_SHEET) -> 0
B28: Phalaris Sub Pasture Cereal | C28: =('PHALARIS SUB PASTURE CEREAL'!$U$6)*(rng_PHA_CEREAL_DATA_SHEET) -> 0 | D28: =(SUM('PHALARIS SUB PASTURE CEREAL'!L$162)*(rng_rainfall=1)+SUM('PHALARIS SUB PASTURE CEREAL'!O$162)*(rng_rainfall=2)+SUM('PHALARIS SUB PASTURE CEREAL'!R$162)*(rng_rainfall=3))*(rng_PHA_CEREAL_DATA_SHEET) -> 0 | E28: =('PHALARIS SUB PASTURE CEREAL'!U$162)*(rng_PHA_CEREAL_DATA_SHEET) -> 0 | F28: =(SUM('PHALARIS SUB PASTURE CEREAL'!L$11)*(rng_rainfall=1)+SUM('PHALARIS SUB PASTURE CEREAL'!O$11)*(rng_rainfall=2)+SUM('PHALARIS SUB PASTURE CEREAL'!R$11)*(rng_rainfall=3))*(rng_PHA_CEREAL_DATA_SHEET) -> 0 | G28: =('PHALARIS SUB PASTURE CEREAL'!U$11)*(rng_PHA_CEREAL_DATA_SHEET) -> 0 | H28: =(SUM('PHALARIS SUB PASTURE CEREAL'!L$14:L$34)*(rng_rainfall=1)+SUM('PHALARIS SUB PASTURE CEREAL'!O$14:O$34)*(rng_rainfall=2)+SUM('PHALARIS SUB PASTURE CEREAL'!R$14:R$34)*(rng_rainfall=3))*(rng_PHA_CEREAL_DATA_SHEET) -> 0 | I28: =(SUM('PHALARIS SUB PASTURE CEREAL'!U$14:U$34)/7)*(rng_PHA_CEREAL_DATA_SHEET) -> 0 | J28: =(SUM('PHALARIS SUB PASTURE CEREAL'!L$37:L$53,'PHALARIS SUB PASTURE CEREAL'!L$134:L$135)*(rng_rainfall=1)+SUM('PHALARIS SUB PASTURE CEREAL'!O$37:O$53,'PHALARIS SUB PASTURE CEREAL'!O$134:O$135)*(rng_rainfall=2)+SUM('PHALARIS SUB PASTURE CEREAL'!R$37:R$53,'PHALARIS SUB PASTURE CEREAL'!R$134:R$135)*(rng_rainfall=3))*(rng_PHA_CEREAL_DATA_SHEET) -> 0 | K28: =(SUM(SUM('PHALARIS SUB PASTURE CEREAL'!U$37:U$53)/7,'PHALARIS SUB PASTURE CEREAL'!U$134:U$135))*(rng_PHA_CEREAL_DATA_SHEET) -> 0 | L28: =(SUM('PHALARIS SUB PASTURE CEREAL'!L$57:L$111,'PHALARIS SUB PASTURE CEREAL'!L$125:L$133)*(rng_rainfall=1)+SUM('PHALARIS SUB PASTURE CEREAL'!O$57:O$111,'PHALARIS SUB PASTURE CEREAL'!O$125:O$133)*(rng_rainfall=2)+SUM('PHALARIS SUB PASTURE CEREAL'!R$57:R$111,'PHALARIS SUB PASTURE CEREAL'!R$125:R$133)*(rng_rainfall=3))*(rng_PHA_CEREAL_DATA_SHEET) -> 0 | M28: =(SUM(SUM('PHALARIS SUB PASTURE CEREAL'!U$57:U$111)/7,'PHALARIS SUB PASTURE CEREAL'!U$125:U$133))*(rng_PHA_CEREAL_DATA_SHEET) -> 0 | N28: =(SUM('PHALARIS SUB PASTURE CEREAL'!L$113:L$113,'PHALARIS SUB PASTURE CEREAL'!L$138:L$138)*(rng_rainfall=1)+SUM('PHALARIS SUB PASTURE CEREAL'!O$113:O$113,'PHALARIS SUB PASTURE CEREAL'!O$138:O$138)*(rng_rainfall=2)+SUM('PHALARIS SUB PASTURE CEREAL'!R$113:R$113,'PHALARIS SUB PASTURE CEREAL'!R$138:R$138)*(rng_rainfall=3))*(rng_PHA_CEREAL_DATA_SHEET) -> 0 | O28: =(SUM(SUM('PHALARIS SUB PASTURE CEREAL'!U$113:U$113)/7,'PHALARIS SUB PASTURE CEREAL'!U$138:U$138))*(rng_PHA_CEREAL_DATA_SHEET) -> 0 | P28: =(SUM('PHALARIS SUB PASTURE CEREAL'!L$114:L$114,'PHALARIS SUB PASTURE CEREAL'!L$139:L$139)*(rng_rainfall=1)+SUM('PHALARIS SUB PASTURE CEREAL'!O$114:O$114,'PHALARIS SUB PASTURE CEREAL'!O$139:O$139)*(rng_rainfall=2)+SUM('PHALARIS SUB PASTURE CEREAL'!R$114:R$114,'PHALARIS SUB PASTURE CEREAL'!R$139:R$139)*(rng_rainfall=3))*(rng_PHA_CEREAL_DATA_SHEET) -> 0 | Q28: =(SUM(SUM('PHALARIS SUB PASTURE CEREAL'!U$114:W$114)/7,'PHALARIS SUB PASTURE CEREAL'!U$139:W$139))*(rng_PHA_CEREAL_DATA_SHEET) -> 0 | R28: =(SUM('PHALARIS SUB PASTURE CEREAL'!L$142:L$143)*(rng_rainfall=1)+SUM('PHALARIS SUB PASTURE CEREAL'!O$142:O$143)*(rng_rainfall=2)+SUM('PHALARIS SUB PASTURE CEREAL'!R$142:R$143)*(rng_rainfall=3))*(rng_PHA_CEREAL_DATA_SHEET) -> 0 | S28: =(SUM('PHALARIS SUB PASTURE CEREAL'!U$142:W$143))*(rng_PHA_CEREAL_DATA_SHEET) -> 0 | T28: 0 | U28: 0 | V28: 0 | W28: =('PHALARIS SUB PASTURE CEREAL'!$U$160)*(rng_PHA_CEREAL_DATA_SHEET) -> 0
B29: Phalaris Sub Grazing | C29: =('PHALARIS SUB PASTURE GRAZING'!$U$6)*(rng_PHA_GRAZING_DATA_SHEET) -> 0 | D29: =(SUM('PHALARIS SUB PASTURE GRAZING'!L$162)*(rng_rainfall=1)+SUM('PHALARIS SUB PASTURE GRAZING'!O$162)*(rng_rainfall=2)+SUM('PHALARIS SUB PASTURE GRAZING'!R$162)*(rng_rainfall=3))*(rng_PHA_GRAZING_DATA_SHEET) -> 0 | E29: =('PHALARIS SUB PASTURE GRAZING'!U$162)*(rng_PHA_GRAZING_DATA_SHEET) -> 0 | F29: =(SUM('PHALARIS SUB PASTURE GRAZING'!L$11)*(rng_rainfall=1)+SUM('PHALARIS SUB PASTURE GRAZING'!O$11)*(rng_rainfall=2)+SUM('PHALARIS SUB PASTURE GRAZING'!R$11)*(rng_rainfall=3))*(rng_PHA_GRAZING_DATA_SHEET) -> 0 | G29: =('PHALARIS SUB PASTURE GRAZING'!U$11)*(rng_PHA_GRAZING_DATA_SHEET) -> 0 | H29: =(SUM('PHALARIS SUB PASTURE GRAZING'!L$14:L$34)*(rng_rainfall=1)+SUM('PHALARIS SUB PASTURE GRAZING'!O$14:O$34)*(rng_rainfall=2)+SUM('PHALARIS SUB PASTURE GRAZING'!R$14:R$34)*(rng_rainfall=3))*(rng_PHA_GRAZING_DATA_SHEET) -> 0 | I29: =(SUM('PHALARIS SUB PASTURE GRAZING'!U$14:U$34)/7)*(rng_PHA_GRAZING_DATA_SHEET) -> 0 | J29: =(SUM('PHALARIS SUB PASTURE GRAZING'!L$37:L$53,'PHALARIS SUB PASTURE GRAZING'!L$134:L$135)*(rng_rainfall=1)+SUM('PHALARIS SUB PASTURE GRAZING'!O$37:O$53,'PHALARIS SUB PASTURE GRAZING'!O$134:O$135)*(rng_rainfall=2)+SUM('PHALARIS SUB PASTURE GRAZING'!R$37:R$53,'PHALARIS SUB PASTURE GRAZING'!R$134:R$135)*(rng_rainfall=3))*(rng_PHA_GRAZING_DATA_SHEET) -> 0 | K29: =(SUM(SUM('PHALARIS SUB PASTURE GRAZING'!U$37:U$53)/7,'PHALARIS SUB PASTURE GRAZING'!U$134:U$135))*(rng_PHA_GRAZING_DATA_SHEET) -> 0 | L29: =(SUM('PHALARIS SUB PASTURE GRAZING'!L$57:L$111,'PHALARIS SUB PASTURE GRAZING'!L$125:L$133)*(rng_rainfall=1)+SUM('PHALARIS SUB PASTURE GRAZING'!O$57:O$111,'PHALARIS SUB PASTURE GRAZING'!O$125:O$133)*(rng_rainfall=2)+SUM('PHALARIS SUB PASTURE GRAZING'!R$57:R$111,'PHALARIS SUB PASTURE GRAZING'!R$125:R$133)*(rng_rainfall=3))*(rng_PHA_GRAZING_DATA_SHEET) -> 0 | M29: =(SUM(SUM('PHALARIS SUB PASTURE GRAZING'!U$57:U$111)/7,'PHALARIS SUB PASTURE GRAZING'!U$125:U$133))*(rng_PHA_GRAZING_DATA_SHEET) -> 0 | N29: =(SUM('PHALARIS SUB PASTURE GRAZING'!L$113:L$113,'PHALARIS SUB PASTURE GRAZING'!L$138:L$138)*(rng_rainfall=1)+SUM('PHALARIS SUB PASTURE GRAZING'!O$113:O$113,'PHALARIS SUB PASTURE GRAZING'!O$138:O$138)*(rng_rainfall=2)+SUM('PHALARIS SUB PASTURE GRAZING'!R$113:R$113,'PHALARIS SUB PASTURE GRAZING'!R$138:R$138)*(rng_rainfall=3))*(rng_PHA_GRAZING_DATA_SHEET) -> 0 | O29: =(SUM(SUM('PHALARIS SUB PASTURE GRAZING'!U$113:U$113)/7,'PHALARIS SUB PASTURE GRAZING'!U$138:U$138))*(rng_PHA_GRAZING_DATA_SHEET) -> 0 | P29: =(SUM('PHALARIS SUB PASTURE GRAZING'!L$114:L$114,'PHALARIS SUB PASTURE GRAZING'!L$139:L$139)*(rng_rainfall=1)+SUM('PHALARIS SUB PASTURE GRAZING'!O$114:O$114,'PHALARIS SUB PASTURE GRAZING'!O$139:O$139)*(rng_rainfall=2)+SUM('PHALARIS SUB PASTURE GRAZING'!R$114:R$114,'PHALARIS SUB PASTURE GRAZING'!R$139:R$139)*(rng_rainfall=3))*(rng_PHA_GRAZING_DATA_SHEET) -> 0 | Q29: =(SUM(SUM('PHALARIS SUB PASTURE GRAZING'!U$114:W$114)/7,'PHALARIS SUB PASTURE GRAZING'!U$139:W$139))*(rng_PHA_GRAZING_DATA_SHEET) -> 0 | R29: =(SUM('PHALARIS SUB PASTURE GRAZING'!L$142:L$143)*(rng_rainfall=1)+SUM('PHALARIS SUB PASTURE GRAZING'!O$142:O$143)*(rng_rainfall=2)+SUM('PHALARIS SUB PASTURE GRAZING'!R$142:R$143)*(rng_rainfall=3))*(rng_PHA_GRAZING_DATA_SHEET) -> 0 | S29: =(SUM('PHALARIS SUB PASTURE GRAZING'!U$142:W$143))*(rng_PHA_GRAZING_DATA_SHEET) -> 0 | T29: 0 | U29: 0 | V29: 0 | W29: =('PHALARIS SUB PASTURE GRAZING'!$U$160)*(rng_PHA_GRAZING_DATA_SHEET) -> 0
B30: ="TOTAL "&IF(var_rotationtype=2,"-ROTATION 1","") -> TOTAL | C30: =SUM(C6:C29) -> 0 | E30: =SUM(E6:E29) -> 0 | G30: =SUM(G6:G29) -> 0 | I30: =SUM(I6:I29) -> 0 | K30: =SUM(K6:K29) -> 0 | M30: =SUM(M6:M29) -> 0 | O30: =SUM(O6:O29) -> 0 | Q30: =SUM(Q6:Q29) -> 0 | S30: =SUM(S6:S29) -> 0 | U30: =SUM(U6:U29) -> 0 | W30: =SUM(W6:W29) -> 0
B32: ="Profit and Loss Statement "&IF(var_rotationtype=2,"(Rotation 1)","") -> Profit and Loss Statement
B33: Overhead Costs | E33: Amount | F33: Comments
B34: General Overheads | F34: Rates, subscriptions, telephone, power, general insurance, etc
B35: General R&M | F35: ="Excluding "&IF(Q30=0,"",TEXT(Q30,"$#,##0_);($#,##0)"))&" Cropping R&M" -> Excluding Cropping R&M
B36: Permanent Wages | F36: Wages paid to permanent employees, including family members
B37: Managers allowance-personal drawings | F37: Personel drawings
B38: Machinery & plant depreciation | F38: Normally 8 to 12% of market value; usually allow 10% (do not include leased machinery)
B39: Infrastructure depreciation | F39: Buildings, fences & watering systems
B40: Leasing (land and machinery)
B41: Debt Servicing | F41: Interest and bank fees
B42: Total Overheads | E42: =SUM(E34:E41) -> 0
B43: Farm Business Profit / Loss | E43: =E30-E42 -> 0
B45: Percent Crop Income
B46: Wheat breakeven price | C46: (to cover variable | E46: =IFERROR(((C6/SUM(C6:C23)*SUM(E34,E36,E37,E40,E41)*E45)+(SUM(E38:E39)*(C6/SUM(C6:C23))))/(((var_rain="Low")*WHEAT!$L$10*WHEAT!$U$6)+((var_rain="medium")*WHEAT!$O$10*WHEAT!$U$6)+((var_rain="High")*WHEAT!$R$10*WHEAT!$U$6))+(((var_rain="Low")*WHEAT!$L$164)+((var_rain="medium")*WHEAT!$O$164)+((var_rain="High")*WHEAT!$R$164)),0) -> 0
B47: Wheat breakeven yield | C47: and overhead costs) | E47: =(E46*(((var_rain="Low")*WHEAT!$L$10)+((var_rain="medium")*WHEAT!$O$10)+((var_rain="High")*WHEAT!$R$10)))/(((var_rain="Low")*WHEAT!$L$8)+((var_rain="medium")*WHEAT!$O$8)+((var_rain="High")*WHEAT!$R$8)) ->  | F47: /t/ha
D49: Gross Margin | F49: Income | H49: Seeds & Levies | J49: Fertiliser | L49: Chemicals | N49: Fuel & Oil | P49: Machinery R&M | R49: Freight | T49: Other | V49: Total Var Costs
B50: Crop - Rotation 2 | C50: Area
B51: Wheat | C51: =('WHEAT R2'!U6)*(rng_APW_Wheat_DATA_Sheet_R2) -> 0 | D51: =(SUM('WHEAT R2'!L162)*(rng_rainfall=1)+SUM('WHEAT R2'!O162)*(rng_rainfall=2)+SUM('WHEAT R2'!R162)*(rng_rainfall=3))*(rng_APW_Wheat_DATA_Sheet_R2) -> 0 | E51: =('WHEAT R2'!U162)*(rng_APW_Wheat_DATA_Sheet_R2) -> 0 | F51: =(SUM('WHEAT R2'!L11)*(rng_rainfall=1)+SUM('WHEAT R2'!O11)*(rng_rainfall=2)+SUM('WHEAT R2'!R11)*(rng_rainfall=3))*(rng_APW_Wheat_DATA_Sheet_R2) -> 0 | G51: =('WHEAT R2'!U11)*(rng_APW_Wheat_DATA_Sheet_R2) -> 0 | H51: =(SUM('WHEAT R2'!L14:L34)*(rng_rainfall=1)+SUM('WHEAT R2'!O14:O34)*(rng_rainfall=2)+SUM('WHEAT R2'!R14:R34)*(rng_rainfall=3))*(rng_APW_Wheat_DATA_Sheet_R2) -> 0 | I51: =(SUM('WHEAT R2'!U14:U34))*(rng_APW_Wheat_DATA_Sheet_R2) -> 0 | J51: =(SUM('WHEAT R2'!$L$37:$L$53)*(rng_rainfall=1)+SUM('WHEAT R2'!$O$37:$O$53)*(rng_rainfall=2)+SUM('WHEAT R2'!$R$37:$R$53)*(rng_rainfall=3))*(rng_APW_Wheat_DATA_Sheet_R2) -> 0 | K51: =(SUM('WHEAT R2'!$U$37:$U$53))*(rng_APW_Wheat_DATA_Sheet_R2) -> 0 | L51: =(SUM('WHEAT R2'!$L$57:$L$128)*(rng_rainfall=1)+SUM('WHEAT R2'!$O$57:$O$128)*(rng_rainfall=2)+SUM('WHEAT R2'!$R$57:$R$128)*(rng_rainfall=3))*(rng_APW_Wheat_DATA_Sheet_R2) -> 0 | M51: =(SUM('WHEAT R2'!$U$57:$U$128))*(rng_APW_Wheat_DATA_Sheet_R2) -> 0 | N51: =(SUM('WHEAT R2'!$L$132:$L$132)*(rng_rainfall=1)+SUM('WHEAT R2'!$O$132:$O$132)*(rng_rainfall=2)+SUM('WHEAT R2'!$R$132:$R$132)*(rng_rainfall=3))*(rng_APW_Wheat_DATA_Sheet_R2) -> 0 | O51: =(SUM('WHEAT R2'!$U$132:$U$132))*(rng_APW_Wheat_DATA_Sheet_R2) -> 0 | P51: =(SUM('WHEAT R2'!$L$133:$L$133)*(rng_rainfall=1)+SUM('WHEAT R2'!$O$133:$O$133)*(rng_rainfall=2)+SUM('WHEAT R2'!$R$133:$R$133)*(rng_rainfall=3))*(rng_APW_Wheat_DATA_Sheet_R2) -> 0 | Q51: =(SUM('WHEAT R2'!$U$133:$U$133))*(rng_APW_Wheat_DATA_Sheet_R2) -> 0 | R51: =(SUM('WHEAT R2'!$L$136:$L$137)*(rng_rainfall=1)+SUM('WHEAT R2'!$O$136:$O$137)*(rng_rainfall=2)+SUM('WHEAT R2'!$R$136:$R$137)*(rng_rainfall=3))*(rng_APW_Wheat_DATA_Sheet_R2) -> 0 | S51: =(SUM('WHEAT R2'!$U$136:$U$137))*(rng_APW_Wheat_DATA_Sheet_R2) -> 0 | T51: =SUM(V51,-R51,-P51,-N51,-L51,-J51,-H51) -> 0 | U51: =SUM(W51,-S51,-Q51,-O51,-M51,-K51,-I51) -> 0 | V51: =IFERROR(W51/C51,0) -> 0 | W51: =('WHEAT R2'!$U$160)*(rng_APW_Wheat_DATA_Sheet_R2) -> 0
B52: Durum | C52: =('DURUM R2'!U6)*(rng_Durum_DATA_Sheet_R2) -> 0 | D52: =(SUM('DURUM R2'!L162)*(rng_rainfall=1)+SUM('DURUM R2'!O162)*(rng_rainfall=2)+SUM('DURUM R2'!R162)*(rng_rainfall=3))*(rng_Durum_DATA_Sheet_R2) -> 0 | E52: =('DURUM R2'!U162)*(rng_Durum_DATA_Sheet_R2) -> 0 | F52: =(SUM('DURUM R2'!L11)*(rng_rainfall=1)+SUM('DURUM R2'!O11)*(rng_rainfall=2)+SUM('DURUM R2'!R11)*(rng_rainfall=3))*(rng_Durum_DATA_Sheet_R2) -> 0 | G52: =('DURUM R2'!U11)*(rng_Durum_DATA_Sheet_R2) -> 0 | H52: =(SUM('DURUM R2'!L14:L34)*(rng_rainfall=1)+SUM('DURUM R2'!O14:O34)*(rng_rainfall=2)+SUM('DURUM R2'!R14:R34)*(rng_rainfall=3))*(rng_Durum_DATA_Sheet_R2) -> 0 | I52: =(SUM('DURUM R2'!U14:U34))*(rng_Durum_DATA_Sheet_R2) -> 0 | J52: =(SUM('DURUM R2'!$L$37:$L$53)*(rng_rainfall=1)+SUM('DURUM R2'!$O$37:$O$53)*(rng_rainfall=2)+SUM('DURUM R2'!$R$37:$R$53)*(rng_rainfall=3))*(rng_Durum_DATA_Sheet_R2) -> 0 | K52: =(SUM('DURUM R2'!$U$37:$U$53))*(rng_Durum_DATA_Sheet_R2) -> 0 | L52: =(SUM('DURUM R2'!$L$57:$L$128)*(rng_rainfall=1)+SUM('DURUM R2'!$O$57:$O$128)*(rng_rainfall=2)+SUM('DURUM R2'!$R$57:$R$128)*(rng_rainfall=3))*(rng_Durum_DATA_Sheet_R2) -> 0 | M52: =(SUM('DURUM R2'!$U$57:$U$128))*(rng_Durum_DATA_Sheet_R2) -> 0 | N52: =(SUM('DURUM R2'!$L$132:$L$132)*(rng_rainfall=1)+SUM('DURUM R2'!$O$132:$O$132)*(rng_rainfall=2)+SUM('DURUM R2'!$R$132:$R$132)*(rng_rainfall=3))*(rng_Durum_DATA_Sheet_R2) -> 0 | O52: =(SUM('DURUM R2'!$U$132:$U$132))*(rng_Durum_DATA_Sheet_R2) -> 0 | P52: =(SUM('DURUM R2'!$L$133:$L$133)*(rng_rainfall=1)+SUM('DURUM R2'!$O$133:$O$133)*(rng_rainfall=2)+SUM('DURUM R2'!$R$133:$R$133)*(rng_rainfall=3))*(rng_Durum_DATA_Sheet_R2) -> 0 | Q52: =(SUM('DURUM R2'!$U$133:$U$133))*(rng_Durum_DATA_Sheet_R2) -> 0 | R52: =(SUM('DURUM R2'!$L$136:$L$137)*(rng_rainfall=1)+SUM('DURUM R2'!$O$136:$O$137)*(rng_rainfall=2)+SUM('DURUM R2'!$R$136:$R$137)*(rng_rainfall=3))*(rng_Durum_DATA_Sheet_R2) -> 0 | S52: =(SUM('DURUM R2'!$U$136:$U$137))*(rng_Durum_DATA_Sheet_R2) -> 0 | T52: 0 | U52: 0 | V52: 0 | W52: =('DURUM R2'!$U$160)*(rng_Durum_DATA_Sheet_R2) -> 0
B53: Malt Barley | C53: =('MALT BARLEY R2'!U6)*(rng_Malt_Barley_DATA_Sheet_R2) -> 0 | D53: =(SUM('MALT BARLEY R2'!L162)*(rng_rainfall=1)+SUM('MALT BARLEY R2'!O162)*(rng_rainfall=2)+SUM('MALT BARLEY R2'!R162)*(rng_rainfall=3))*(rng_Malt_Barley_DATA_Sheet_R2) -> 0 | E53: =('MALT BARLEY R2'!U162)*(rng_Malt_Barley_DATA_Sheet_R2) -> 0 | F53: =(SUM('MALT BARLEY R2'!L11)*(rng_rainfall=1)+SUM('MALT BARLEY R2'!O11)*(rng_rainfall=2)+SUM('MALT BARLEY R2'!R11)*(rng_rainfall=3))*(rng_Malt_Barley_DATA_Sheet_R2) -> 0 | G53: =('MALT BARLEY R2'!U11)*(rng_Malt_Barley_DATA_Sheet_R2) -> 0 | H53: =(SUM('MALT BARLEY R2'!L14:L34)*(rng_rainfall=1)+SUM('MALT BARLEY R2'!O14:O34)*(rng_rainfall=2)+SUM('MALT BARLEY R2'!R14:R34)*(rng_rainfall=3))*(rng_Malt_Barley_DATA_Sheet_R2) -> 0 | I53: =(SUM('MALT BARLEY R2'!U14:U34))*(rng_Malt_Barley_DATA_Sheet_R2) -> 0 | J53: =(SUM('MALT BARLEY R2'!$L$37:$L$53)*(rng_rainfall=1)+SUM('MALT BARLEY R2'!$O$37:$O$53)*(rng_rainfall=2)+SUM('MALT BARLEY R2'!$R$37:$R$53)*(rng_rainfall=3))*(rng_Malt_Barley_DATA_Sheet_R2) -> 0 | K53: =(SUM('MALT BARLEY R2'!$U$37:$U$53))*(rng_Malt_Barley_DATA_Sheet_R2) -> 0 | L53: =(SUM('MALT BARLEY R2'!$L$57:$L$128)*(rng_rainfall=1)+SUM('MALT BARLEY R2'!$O$57:$O$128)*(rng_rainfall=2)+SUM('MALT BARLEY R2'!$R$57:$R$128)*(rng_rainfall=3))*(rng_Malt_Barley_DATA_Sheet_R2) -> 0 | M53: =(SUM('MALT BARLEY R2'!$U$57:$U$128))*(rng_Malt_Barley_DATA_Sheet_R2) -> 0 | N53: =(SUM('MALT BARLEY R2'!$L$132:$L$132)*(rng_rainfall=1)+SUM('MALT BARLEY R2'!$O$132:$O$132)*(rng_rainfall=2)+SUM('MALT BARLEY R2'!$R$132:$R$132)*(rng_rainfall=3))*(rng_Malt_Barley_DATA_Sheet_R2) -> 0 | O53: =(SUM('MALT BARLEY R2'!$U$132:$U$132))*(rng_Malt_Barley_DATA_Sheet_R2) -> 0 | P53: =(SUM('MALT BARLEY R2'!$L$133:$L$133)*(rng_rainfall=1)+SUM('MALT BARLEY R2'!$O$133:$O$133)*(rng_rainfall=2)+SUM('MALT BARLEY R2'!$R$133:$R$133)*(rng_rainfall=3))*(rng_Malt_Barley_DATA_Sheet_R2) -> 0 | Q53: =(SUM('MALT BARLEY R2'!$U$133:$U$133))*(rng_Malt_Barley_DATA_Sheet_R2) -> 0 | R53: =(SUM('MALT BARLEY R2'!$L$136:$L$137)*(rng_rainfall=1)+SUM('MALT BARLEY R2'!$O$136:$O$137)*(rng_rainfall=2)+SUM('MALT BARLEY R2'!$R$136:$R$137)*(rng_rainfall=3))*(rng_Malt_Barley_DATA_Sheet_R2) -> 0 | S53: =(SUM('MALT BARLEY R2'!$U$136:$U$137))*(rng_Malt_Barley_DATA_Sheet_R2) -> 0 | T53: 0 | U53: 0 | V53: 0 | W53: =('MALT BARLEY R2'!$U$160)*(rng_Malt_Barley_DATA_Sheet_R2) -> 0
B54: Feed Barley | C54: =('FEED BARLEY R2'!U6)*(rng_Feed_Barley_DATA_Sheet_R2) -> 0 | D54: =(SUM('FEED BARLEY R2'!L162)*(rng_rainfall=1)+SUM('FEED BARLEY R2'!O162)*(rng_rainfall=2)+SUM('FEED BARLEY R2'!R162)*(rng_rainfall=3))*(rng_Feed_Barley_DATA_Sheet_R2) -> 0 | E54: =('FEED BARLEY R2'!U162)*(rng_Feed_Barley_DATA_Sheet_R2) -> 0 | F54: =(SUM('FEED BARLEY R2'!L11)*(rng_rainfall=1)+SUM('FEED BARLEY R2'!O11)*(rng_rainfall=2)+SUM('FEED BARLEY R2'!R11)*(rng_rainfall=3))*(rng_Feed_Barley_DATA_Sheet_R2) -> 0 | G54: =('FEED BARLEY R2'!U11)*(rng_Feed_Barley_DATA_Sheet_R2) -> 0 | H54: =(SUM('FEED BARLEY R2'!L14:L34)*(rng_rainfall=1)+SUM('FEED BARLEY R2'!O14:O34)*(rng_rainfall=2)+SUM('FEED BARLEY R2'!R14:R34)*(rng_rainfall=3))*(rng_Feed_Barley_DATA_Sheet_R2) -> 0 | I54: =(SUM('FEED BARLEY R2'!U14:U34))*(rng_Feed_Barley_DATA_Sheet_R2) -> 0 | J54: =(SUM('FEED BARLEY R2'!$L$37:$L$53)*(rng_rainfall=1)+SUM('FEED BARLEY R2'!$O$37:$O$53)*(rng_rainfall=2)+SUM('FEED BARLEY R2'!$R$37:$R$53)*(rng_rainfall=3))*(rng_Feed_Barley_DATA_Sheet_R2) -> 0 | K54: =(SUM('FEED BARLEY R2'!$U$37:$U$53))*(rng_Feed_Barley_DATA_Sheet_R2) -> 0 | L54: =(SUM('FEED BARLEY R2'!$L$57:$L$128)*(rng_rainfall=1)+SUM('FEED BARLEY R2'!$O$57:$O$128)*(rng_rainfall=2)+SUM('FEED BARLEY R2'!$R$57:$R$128)*(rng_rainfall=3))*(rng_Feed_Barley_DATA_Sheet_R2) -> 0 | M54: =(SUM('FEED BARLEY R2'!$U$57:$U$128))*(rng_Feed_Barley_DATA_Sheet_R2) -> 0 | N54: =(SUM('FEED BARLEY R2'!$L$132:$L$132)*(rng_rainfall=1)+SUM('FEED BARLEY R2'!$O$132:$O$132)*(rng_rainfall=2)+SUM('FEED BARLEY R2'!$R$132:$R$132)*(rng_rainfall=3))*(rng_Feed_Barley_DATA_Sheet_R2) -> 0 | O54: =(SUM('FEED BARLEY R2'!$U$132:$U$132))*(rng_Feed_Barley_DATA_Sheet_R2) -> 0 | P54: =(SUM('FEED BARLEY R2'!$L$133:$L$133)*(rng_rainfall=1)+SUM('FEED BARLEY R2'!$O$133:$O$133)*(rng_rainfall=2)+SUM('FEED BARLEY R2'!$R$133:$R$133)*(rng_rainfall=3))*(rng_Feed_Barley_DATA_Sheet_R2) -> 0 | Q54: =(SUM('FEED BARLEY R2'!$U$133:$U$133))*(rng_Feed_Barley_DATA_Sheet_R2) -> 0 | R54: =(SUM('FEED BARLEY R2'!$L$136:$L$137)*(rng_rainfall=1)+SUM('FEED BARLEY R2'!$O$136:$O$137)*(rng_rainfall=2)+SUM('FEED BARLEY R2'!$R$136:$R$137)*(rng_rainfall=3))*(rng_Feed_Barley_DATA_Sheet_R2) -> 0 | S54: =(SUM('FEED BARLEY R2'!$U$136:$U$137))*(rng_Feed_Barley_DATA_Sheet_R2) -> 0 | T54: 0 | U54: 0 | V54: 0 | W54: =('FEED BARLEY R2'!$U$160)*(rng_Feed_Barley_DATA_Sheet_R2) -> 0
B55: Milling Oats | C55: =('MILLING OATS R2'!U6)*(rng_Milling_DATA_Sheet_R2) -> 0 | D55: =(SUM('MILLING OATS R2'!L162)*(rng_rainfall=1)+SUM('MILLING OATS R2'!O162)*(rng_rainfall=2)+SUM('MILLING OATS R2'!R162)*(rng_rainfall=3))*(rng_Milling_DATA_Sheet_R2) -> 0 | E55: =('MILLING OATS R2'!U162)*(rng_Milling_DATA_Sheet_R2) -> 0 | F55: =(SUM('MILLING OATS R2'!L11)*(rng_rainfall=1)+SUM('MILLING OATS R2'!O11)*(rng_rainfall=2)+SUM('MILLING OATS R2'!R11)*(rng_rainfall=3))*(rng_Milling_DATA_Sheet_R2) -> 0 | G55: =('MILLING OATS R2'!U11)*(rng_Milling_DATA_Sheet_R2) -> 0 | H55: =(SUM('MILLING OATS R2'!L14:L34)*(rng_rainfall=1)+SUM('MILLING OATS R2'!O14:O34)*(rng_rainfall=2)+SUM('MILLING OATS R2'!R14:R34)*(rng_rainfall=3))*(rng_Milling_DATA_Sheet_R2) -> 0 | I55: =(SUM('MILLING OATS R2'!U14:U34))*(rng_Milling_DATA_Sheet_R2) -> 0 | J55: =(SUM('MILLING OATS R2'!$L$37:$L$53)*(rng_rainfall=1)+SUM('MILLING OATS R2'!$O$37:$O$53)*(rng_rainfall=2)+SUM('MILLING OATS R2'!$R$37:$R$53)*(rng_rainfall=3))*(rng_Milling_DATA_Sheet_R2) -> 0 | K55: =(SUM('MILLING OATS R2'!$U$37:$U$53))*(rng_Milling_DATA_Sheet_R2) -> 0 | L55: =(SUM('MILLING OATS R2'!$L$57:$L$128)*(rng_rainfall=1)+SUM('MILLING OATS R2'!$O$57:$O$128)*(rng_rainfall=2)+SUM('MILLING OATS R2'!$R$57:$R$128)*(rng_rainfall=3))*(rng_Milling_DATA_Sheet_R2) -> 0 | M55: =(SUM('MILLING OATS R2'!$U$57:$U$128))*(rng_Milling_DATA_Sheet_R2) -> 0 | N55: =(SUM('MILLING OATS R2'!$L$132:$L$132)*(rng_rainfall=1)+SUM('MILLING OATS R2'!$O$132:$O$132)*(rng_rainfall=2)+SUM('MILLING OATS R2'!$R$132:$R$132)*(rng_rainfall=3))*(rng_Milling_DATA_Sheet_R2) -> 0 | O55: =(SUM('MILLING OATS R2'!$U$132:$U$132))*(rng_Milling_DATA_Sheet_R2) -> 0 | P55: =(SUM('MILLING OATS R2'!$L$133:$L$133)*(rng_rainfall=1)+SUM('MILLING OATS R2'!$O$133:$O$133)*(rng_rainfall=2)+SUM('MILLING OATS R2'!$R$133:$R$133)*(rng_rainfall=3))*(rng_Milling_DATA_Sheet_R2) -> 0 | Q55: =(SUM('MILLING OATS R2'!$U$133:$U$133))*(rng_Milling_DATA_Sheet_R2) -> 0 | R55: =(SUM('MILLING OATS R2'!$L$136:$L$137)*(rng_rainfall=1)+SUM('MILLING OATS R2'!$O$136:$O$137)*(rng_rainfall=2)+SUM('MILLING OATS R2'!$R$136:$R$137)*(rng_rainfall=3))*(rng_Milling_DATA_Sheet_R2) -> 0 | S55: =(SUM('MILLING OATS R2'!$U$136:$U$137))*(rng_Milling_DATA_Sheet_R2) -> 0 | T55: 0 | U55: 0 | V55: 0 | W55: =('MILLING OATS R2'!$U$160)*(rng_Milling_DATA_Sheet_R2) -> 0
B56: Triticale | C56: =('TRITICALE R2'!U6)*(rng_Triticale_DATA_Sheet_R2) -> 0 | D56: =(SUM('TRITICALE R2'!L162)*(rng_rainfall=1)+SUM('TRITICALE R2'!O162)*(rng_rainfall=2)+SUM('TRITICALE R2'!R162)*(rng_rainfall=3))*(rng_Triticale_DATA_Sheet_R2) -> 0 | E56: =('TRITICALE R2'!U162)*(rng_Triticale_DATA_Sheet_R2) -> 0 | F56: =(SUM('TRITICALE R2'!L11)*(rng_rainfall=1)+SUM('TRITICALE R2'!O11)*(rng_rainfall=2)+SUM('TRITICALE R2'!R11)*(rng_rainfall=3))*(rng_Triticale_DATA_Sheet_R2) -> 0 | G56: =('TRITICALE R2'!U11)*(rng_Triticale_DATA_Sheet_R2) -> 0 | H56: =(SUM('TRITICALE R2'!L14:L34)*(rng_rainfall=1)+SUM('TRITICALE R2'!O14:O34)*(rng_rainfall=2)+SUM('TRITICALE R2'!R14:R34)*(rng_rainfall=3))*(rng_Triticale_DATA_Sheet_R2) -> 0 | I56: =(SUM('TRITICALE R2'!U14:U34))*(rng_Triticale_DATA_Sheet_R2) -> 0 | J56: =(SUM('TRITICALE R2'!$L$37:$L$53)*(rng_rainfall=1)+SUM('TRITICALE R2'!$O$37:$O$53)*(rng_rainfall=2)+SUM('TRITICALE R2'!$R$37:$R$53)*(rng_rainfall=3))*(rng_Triticale_DATA_Sheet_R2) -> 0 | K56: =(SUM('TRITICALE R2'!$U$37:$U$53))*(rng_Triticale_DATA_Sheet_R2) -> 0 | L56: =(SUM('TRITICALE R2'!$L$57:$L$128)*(rng_rainfall=1)+SUM('TRITICALE R2'!$O$57:$O$128)*(rng_rainfall=2)+SUM('TRITICALE R2'!$R$57:$R$128)*(rng_rainfall=3))*(rng_Triticale_DATA_Sheet_R2) -> 0 | M56: =(SUM('TRITICALE R2'!$U$57:$U$128))*(rng_Triticale_DATA_Sheet_R2) -> 0 | N56: =(SUM('TRITICALE R2'!$L$132:$L$132)*(rng_rainfall=1)+SUM('TRITICALE R2'!$O$132:$O$132)*(rng_rainfall=2)+SUM('TRITICALE R2'!$R$132:$R$132)*(rng_rainfall=3))*(rng_Triticale_DATA_Sheet_R2) -> 0 | O56: =(SUM('TRITICALE R2'!$U$132:$U$132))*(rng_Triticale_DATA_Sheet_R2) -> 0 | P56: =(SUM('TRITICALE R2'!$L$133:$L$133)*(rng_rainfall=1)+SUM('TRITICALE R2'!$O$133:$O$133)*(rng_rainfall=2)+SUM('TRITICALE R2'!$R$133:$R$133)*(rng_rainfall=3))*(rng_Triticale_DATA_Sheet_R2) -> 0 | Q56: =(SUM('TRITICALE R2'!$U$133:$U$133))*(rng_Triticale_DATA_Sheet_R2) -> 0 | R56: =(SUM('TRITICALE R2'!$L$136:$L$137)*(rng_rainfall=1)+SUM('TRITICALE R2'!$O$136:$O$137)*(rng_rainfall=2)+SUM('TRITICALE R2'!$R$136:$R$137)*(rng_rainfall=3))*(rng_Triticale_DATA_Sheet_R2) -> 0 | S56: =(SUM('TRITICALE R2'!$U$136:$U$137))*(rng_Triticale_DATA_Sheet_R2) -> 0 | T56: 0 | U56: 0 | V56: 0 | W56: =('TRITICALE R2'!$U$160)*(rng_Triticale_DATA_Sheet_R2) -> 0
B57: Export Oaten Hay | C57: =('EXPORT OATEN HAY R2'!U6)*(rng_Export_DATA_Sheet_R2) -> 0 | D57: =(SUM('EXPORT OATEN HAY R2'!L162)*(rng_rainfall=1)+SUM('EXPORT OATEN HAY R2'!O162)*(rng_rainfall=2)+SUM('EXPORT OATEN HAY R2'!R162)*(rng_rainfall=3))*(rng_Export_DATA_Sheet_R2) -> 0 | E57: =('EXPORT OATEN HAY R2'!U162)*(rng_Export_DATA_Sheet_R2) -> 0 | F57: =(SUM('EXPORT OATEN HAY R2'!L11)*(rng_rainfall=1)+SUM('EXPORT OATEN HAY R2'!O11)*(rng_rainfall=2)+SUM('EXPORT OATEN HAY R2'!R11)*(rng_rainfall=3))*(rng_Export_DATA_Sheet_R2) -> 0 | G57: =('EXPORT OATEN HAY R2'!U11)*(rng_Export_DATA_Sheet_R2) -> 0 | H57: =(SUM('EXPORT OATEN HAY R2'!L14:L34)*(rng_rainfall=1)+SUM('EXPORT OATEN HAY R2'!O14:O34)*(rng_rainfall=2)+SUM('EXPORT OATEN HAY R2'!R14:R34)*(rng_rainfall=3))*(rng_Export_DATA_Sheet_R2) -> 0 | I57: =(SUM('EXPORT OATEN HAY R2'!U14:U34))*(rng_Export_DATA_Sheet_R2) -> 0 | J57: =(SUM('EXPORT OATEN HAY R2'!$L$37:$L$53)*(rng_rainfall=1)+SUM('EXPORT OATEN HAY R2'!$O$37:$O$53)*(rng_rainfall=2)+SUM('EXPORT OATEN HAY R2'!$R$37:$R$53)*(rng_rainfall=3))*(rng_Export_DATA_Sheet_R2) -> 0 | K57: =(SUM('EXPORT OATEN HAY R2'!$U$37:$U$53))*(rng_Export_DATA_Sheet_R2) -> 0 | L57: =(SUM('EXPORT OATEN HAY R2'!$L$57:$L$128)*(rng_rainfall=1)+SUM('EXPORT OATEN HAY R2'!$O$57:$O$128)*(rng_rainfall=2)+SUM('EXPORT OATEN HAY R2'!$R$57:$R$128)*(rng_rainfall=3))*(rng_Export_DATA_Sheet_R2) -> 0 | M57: =(SUM('EXPORT OATEN HAY R2'!$U$57:$U$128))*(rng_Export_DATA_Sheet_R2) -> 0 | N57: =(SUM('EXPORT OATEN HAY R2'!$L$132:$L$132)*(rng_rainfall=1)+SUM('EXPORT OATEN HAY R2'!$O$132:$O$132)*(rng_rainfall=2)+SUM('EXPORT OATEN HAY R2'!$R$132:$R$132)*(rng_rainfall=3))*(rng_Export_DATA_Sheet_R2) -> 0 | O57: =(SUM('EXPORT OATEN HAY R2'!$U$132:$U$132))*(rng_Export_DATA_Sheet_R2) -> 0 | P57: =(SUM('EXPORT OATEN HAY R2'!$L$133:$L$133)*(rng_rainfall=1)+SUM('EXPORT OATEN HAY R2'!$O$133:$O$133)*(rng_rainfall=2)+SUM('EXPORT OATEN HAY R2'!$R$133:$R$133)*(rng_rainfall=3))*(rng_Export_DATA_Sheet_R2) -> 0 | Q57: =(SUM('EXPORT OATEN HAY R2'!$U$133:$U$133))*(rng_Export_DATA_Sheet_R2) -> 0 | R57: =(SUM('EXPORT OATEN HAY R2'!$L$136:$L$137)*(rng_rainfall=1)+SUM('EXPORT OATEN HAY R2'!$O$136:$O$137)*(rng_rainfall=2)+SUM('EXPORT OATEN HAY R2'!$R$136:$R$137)*(rng_rainfall=3))*(rng_Export_DATA_Sheet_R2) -> 0 | S57: =(SUM('EXPORT OATEN HAY R2'!$U$136:$U$137))*(rng_Export_DATA_Sheet_R2) -> 0 | T57: 0 | U57: 0 | V57: 0 | W57: =('EXPORT OATEN HAY R2'!$U$160)*(rng_Export_DATA_Sheet_R2) -> 0
B58: Vetch | C58: =('VETCH R2'!U6)*(rng_Vetch_DATA_Sheet_R2) -> 0 | D58: =(SUM('VETCH R2'!L162)*(rng_rainfall=1)+SUM('VETCH R2'!O162)*(rng_rainfall=2)+SUM('VETCH R2'!R162)*(rng_rainfall=3))*(rng_Vetch_DATA_Sheet_R2) -> 0 | E58: =('VETCH R2'!U162)*(rng_Vetch_DATA_Sheet_R2) -> 0 | F58: =(SUM('VETCH R2'!L11)*(rng_rainfall=1)+SUM('VETCH R2'!O11)*(rng_rainfall=2)+SUM('VETCH R2'!R11)*(rng_rainfall=3))*(rng_Vetch_DATA_Sheet_R2) -> 0 | G58: =('VETCH R2'!U11)*(rng_Vetch_DATA_Sheet_R2) -> 0 | H58: =(SUM('VETCH R2'!L14:L34)*(rng_rainfall=1)+SUM('VETCH R2'!O14:O34)*(rng_rainfall=2)+SUM('VETCH R2'!R14:R34)*(rng_rainfall=3))*(rng_Vetch_DATA_Sheet_R2) -> 0 | I58: =(SUM('VETCH R2'!U14:U34))*(rng_Vetch_DATA_Sheet_R2) -> 0 | J58: =(SUM('VETCH R2'!$L$37:$L$53)*(rng_rainfall=1)+SUM('VETCH R2'!$O$37:$O$53)*(rng_rainfall=2)+SUM('VETCH R2'!$R$37:$R$53)*(rng_rainfall=3))*(rng_Vetch_DATA_Sheet_R2) -> 0 | K58: =(SUM('VETCH R2'!$U$37:$U$53))*(rng_Vetch_DATA_Sheet_R2) -> 0 | L58: =(SUM('VETCH R2'!$L$57:$L$128)*(rng_rainfall=1)+SUM('VETCH R2'!$O$57:$O$128)*(rng_rainfall=2)+SUM('VETCH R2'!$R$57:$R$128)*(rng_rainfall=3))*(rng_Vetch_DATA_Sheet_R2) -> 0 | M58: =(SUM('VETCH R2'!$U$57:$U$128))*(rng_Vetch_DATA_Sheet_R2) -> 0 | N58: =(SUM('VETCH R2'!$L$132:$L$132)*(rng_rainfall=1)+SUM('VETCH R2'!$O$132:$O$132)*(rng_rainfall=2)+SUM('VETCH R2'!$R$132:$R$132)*(rng_rainfall=3))*(rng_Vetch_DATA_Sheet_R2) -> 0 | O58: =(SUM('VETCH R2'!$U$132:$U$132))*(rng_Vetch_DATA_Sheet_R2) -> 0 | P58: =(SUM('VETCH R2'!$L$133:$L$133)*(rng_rainfall=1)+SUM('VETCH R2'!$O$133:$O$133)*(rng_rainfall=2)+SUM('VETCH R2'!$R$133:$R$133)*(rng_rainfall=3))*(rng_Vetch_DATA_Sheet_R2) -> 0 | Q58: =(SUM('VETCH R2'!$U$133:$U$133))*(rng_Vetch_DATA_Sheet_R2) -> 0 | R58: =(SUM('VETCH R2'!$L$136:$L$137)*(rng_rainfall=1)+SUM('VETCH R2'!$O$136:$O$137)*(rng_rainfall=2)+SUM('VETCH R2'!$R$136:$R$137)*(rng_rainfall=3))*(rng_Vetch_DATA_Sheet_R2) -> 0 | S58: =(SUM('VETCH R2'!$U$136:$U$137))*(rng_Vetch_DATA_Sheet_R2) -> 0 | T58: 0 | U58: 0 | V58: 0 | W58: =('VETCH R2'!$U$160)*(rng_Vetch_DATA_Sheet_R2) -> 0
B59: Lupins | C59: =('LUPINS R2'!U6)*(rng_Lupins_DATA_Sheet_R2) -> 0 | D59: =(SUM('LUPINS R2'!L162)*(rng_rainfall=1)+SUM('LUPINS R2'!O162)*(rng_rainfall=2)+SUM('LUPINS R2'!R162)*(rng_rainfall=3))*(rng_Lupins_DATA_Sheet_R2) -> 0 | E59: =('LUPINS R2'!U162)*(rng_Lupins_DATA_Sheet_R2) -> 0 | F59: =(SUM('LUPINS R2'!L11)*(rng_rainfall=1)+SUM('LUPINS R2'!O11)*(rng_rainfall=2)+SUM('LUPINS R2'!R11)*(rng_rainfall=3))*(rng_Lupins_DATA_Sheet_R2) -> 0 | G59: =('LUPINS R2'!U11)*(rng_Lupins_DATA_Sheet_R2) -> 0 | H59: =(SUM('LUPINS R2'!L14:L34)*(rng_rainfall=1)+SUM('LUPINS R2'!O14:O34)*(rng_rainfall=2)+SUM('LUPINS R2'!R14:R34)*(rng_rainfall=3))*(rng_Lupins_DATA_Sheet_R2) -> 0 | I59: =(SUM('LUPINS R2'!U14:U34))*(rng_Lupins_DATA_Sheet_R2) -> 0 | J59: =(SUM('LUPINS R2'!$L$37:$L$53)*(rng_rainfall=1)+SUM('LUPINS R2'!$O$37:$O$53)*(rng_rainfall=2)+SUM('LUPINS R2'!$R$37:$R$53)*(rng_rainfall=3))*(rng_Lupins_DATA_Sheet_R2) -> 0 | K59: =(SUM('LUPINS R2'!$U$37:$U$53))*(rng_Lupins_DATA_Sheet_R2) -> 0 | L59: =(SUM('LUPINS R2'!$L$57:$L$128)*(rng_rainfall=1)+SUM('LUPINS R2'!$O$57:$O$128)*(rng_rainfall=2)+SUM('LUPINS R2'!$R$57:$R$128)*(rng_rainfall=3))*(rng_Lupins_DATA_Sheet_R2) -> 0 | M59: =(SUM('LUPINS R2'!$U$57:$U$128))*(rng_Lupins_DATA_Sheet_R2) -> 0 | N59: =(SUM('LUPINS R2'!$L$132:$L$132)*(rng_rainfall=1)+SUM('LUPINS R2'!$O$132:$O$132)*(rng_rainfall=2)+SUM('LUPINS R2'!$R$132:$R$132)*(rng_rainfall=3))*(rng_Lupins_DATA_Sheet_R2) -> 0 | O59: =(SUM('LUPINS R2'!$U$132:$U$132))*(rng_Lupins_DATA_Sheet_R2) -> 0 | P59: =(SUM('LUPINS R2'!$L$133:$L$133)*(rng_rainfall=1)+SUM('LUPINS R2'!$O$133:$O$133)*(rng_rainfall=2)+SUM('LUPINS R2'!$R$133:$R$133)*(rng_rainfall=3))*(rng_Lupins_DATA_Sheet_R2) -> 0 | Q59: =(SUM('LUPINS R2'!$U$133:$U$133))*(rng_Lupins_DATA_Sheet_R2) -> 0 | R59: =(SUM('LUPINS R2'!$L$136:$L$137)*(rng_rainfall=1)+SUM('LUPINS R2'!$O$136:$O$137)*(rng_rainfall=2)+SUM('LUPINS R2'!$R$136:$R$137)*(rng_rainfall=3))*(rng_Lupins_DATA_Sheet_R2) -> 0 | S59: =(SUM('LUPINS R2'!$U$136:$U$137))*(rng_Lupins_DATA_Sheet_R2) -> 0 | T59: 0 | U59: 0 | V59: 0 | W59: =('LUPINS R2'!$U$160)*(rng_Lupins_DATA_Sheet_R2) -> 0
B60: Lentils | C60: =('LENTILS R2'!U6)*(rng_lentils_DATA_Sheet_R2) -> 0 | D60: =(SUM('LENTILS R2'!L162)*(rng_rainfall=1)+SUM('LENTILS R2'!O162)*(rng_rainfall=2)+SUM('LENTILS R2'!R162)*(rng_rainfall=3))*(rng_lentils_DATA_Sheet_R2) -> 0 | E60: =('LENTILS R2'!U162)*(rng_lentils_DATA_Sheet_R2) -> 0 | F60: =(SUM('LENTILS R2'!L11)*(rng_rainfall=1)+SUM('LENTILS R2'!O11)*(rng_rainfall=2)+SUM('LENTILS R2'!R11)*(rng_rainfall=3))*(rng_lentils_DATA_Sheet_R2) -> 0 | G60: =('LENTILS R2'!U11)*(rng_lentils_DATA_Sheet_R2) -> 0 | H60: =(SUM('LENTILS R2'!L14:L34)*(rng_rainfall=1)+SUM('LENTILS R2'!O14:O34)*(rng_rainfall=2)+SUM('LENTILS R2'!R14:R34)*(rng_rainfall=3))*(rng_lentils_DATA_Sheet_R2) -> 0 | I60: =(SUM('LENTILS R2'!U14:U34))*(rng_lentils_DATA_Sheet_R2) -> 0 | J60: =(SUM('LENTILS R2'!$L$37:$L$53)*(rng_rainfall=1)+SUM('LENTILS R2'!$O$37:$O$53)*(rng_rainfall=2)+SUM('LENTILS R2'!$R$37:$R$53)*(rng_rainfall=3))*(rng_lentils_DATA_Sheet_R2) -> 0 | K60: =(SUM('LENTILS R2'!$U$37:$U$53))*(rng_lentils_DATA_Sheet_R2) -> 0 | L60: =(SUM('LENTILS R2'!$L$57:$L$128)*(rng_rainfall=1)+SUM('LENTILS R2'!$O$57:$O$128)*(rng_rainfall=2)+SUM('LENTILS R2'!$R$57:$R$128)*(rng_rainfall=3))*(rng_lentils_DATA_Sheet_R2) -> 0 | M60: =(SUM('LENTILS R2'!$U$57:$U$128))*(rng_lentils_DATA_Sheet_R2) -> 0 | N60: =(SUM('LENTILS R2'!$L$132:$L$132)*(rng_rainfall=1)+SUM('LENTILS R2'!$O$132:$O$132)*(rng_rainfall=2)+SUM('LENTILS R2'!$R$132:$R$132)*(rng_rainfall=3))*(rng_lentils_DATA_Sheet_R2) -> 0 | O60: =(SUM('LENTILS R2'!$U$132:$U$132))*(rng_lentils_DATA_Sheet_R2) -> 0 | P60: =(SUM('LENTILS R2'!$L$133:$L$133)*(rng_rainfall=1)+SUM('LENTILS R2'!$O$133:$O$133)*(rng_rainfall=2)+SUM('LENTILS R2'!$R$133:$R$133)*(rng_rainfall=3))*(rng_lentils_DATA_Sheet_R2) -> 0 | Q60: =(SUM('LENTILS R2'!$U$133:$U$133))*(rng_lentils_DATA_Sheet_R2) -> 0 | R60: =(SUM('LENTILS R2'!$L$136:$L$137)*(rng_rainfall=1)+SUM('LENTILS R2'!$O$136:$O$137)*(rng_rainfall=2)+SUM('LENTILS R2'!$R$136:$R$137)*(rng_rainfall=3))*(rng_lentils_DATA_Sheet_R2) -> 0 | S60: =(SUM('LENTILS R2'!$U$136:$U$137))*(rng_lentils_DATA_Sheet_R2) -> 0 | T60: 0 | U60: 0 | V60: 0 | W60: =('LENTILS R2'!$U$160)*(rng_lentils_DATA_Sheet_R2) -> 0
B61: Lentils IMI Tolerant | C61: =('LENTILS IMI TOLERANT R2'!U6)*(rng_lentils_imi_DATA_Sheet_R2) -> 0 | D61: =(SUM('LENTILS IMI TOLERANT R2'!L162)*(rng_rainfall=1)+SUM('LENTILS IMI TOLERANT R2'!O162)*(rng_rainfall=2)+SUM('LENTILS IMI TOLERANT R2'!R162)*(rng_rainfall=3))*(rng_lentils_imi_DATA_Sheet_R2) -> 0 | E61: =('LENTILS IMI TOLERANT R2'!U162)*(rng_lentils_imi_DATA_Sheet_R2) -> 0 | F61: =(SUM('LENTILS IMI TOLERANT R2'!L11)*(rng_rainfall=1)+SUM('LENTILS IMI TOLERANT R2'!O11)*(rng_rainfall=2)+SUM('LENTILS IMI TOLERANT R2'!R11)*(rng_rainfall=3))*(rng_lentils_imi_DATA_Sheet_R2) -> 0 | G61: =('LENTILS IMI TOLERANT R2'!U11)*(rng_lentils_imi_DATA_Sheet_R2) -> 0 | H61: =(SUM('LENTILS IMI TOLERANT R2'!L14:L34)*(rng_rainfall=1)+SUM('LENTILS IMI TOLERANT R2'!O14:O34)*(rng_rainfall=2)+SUM('LENTILS IMI TOLERANT R2'!R14:R34)*(rng_rainfall=3))*(rng_lentils_imi_DATA_Sheet_R2) -> 0 | I61: =(SUM('LENTILS IMI TOLERANT R2'!U14:U34))*(rng_lentils_imi_DATA_Sheet_R2) -> 0 | J61: =(SUM('LENTILS IMI TOLERANT R2'!$L$37:$L$53)*(rng_rainfall=1)+SUM('LENTILS IMI TOLERANT R2'!$O$37:$O$53)*(rng_rainfall=2)+SUM('LENTILS IMI TOLERANT R2'!$R$37:$R$53)*(rng_rainfall=3))*(rng_lentils_imi_DATA_Sheet_R2) -> 0 | K61: =(SUM('LENTILS IMI TOLERANT R2'!$U$37:$U$53))*(rng_lentils_imi_DATA_Sheet_R2) -> 0 | L61: =(SUM('LENTILS IMI TOLERANT R2'!$L$57:$L$128)*(rng_rainfall=1)+SUM('LENTILS IMI TOLERANT R2'!$O$57:$O$128)*(rng_rainfall=2)+SUM('LENTILS IMI TOLERANT R2'!$R$57:$R$128)*(rng_rainfall=3))*(rng_lentils_imi_DATA_Sheet_R2) -> 0 | M61: =(SUM('LENTILS IMI TOLERANT R2'!$U$57:$U$128))*(rng_lentils_imi_DATA_Sheet_R2) -> 0 | N61: =(SUM('LENTILS IMI TOLERANT R2'!$L$132:$L$132)*(rng_rainfall=1)+SUM('LENTILS IMI TOLERANT R2'!$O$132:$O$132)*(rng_rainfall=2)+SUM('LENTILS IMI TOLERANT R2'!$R$132:$R$132)*(rng_rainfall=3))*(rng_lentils_imi_DATA_Sheet_R2) -> 0 | O61: =(SUM('LENTILS IMI TOLERANT R2'!$U$132:$U$132))*(rng_lentils_imi_DATA_Sheet_R2) -> 0 | P61: =(SUM('LENTILS IMI TOLERANT R2'!$L$133:$L$133)*(rng_rainfall=1)+SUM('LENTILS IMI TOLERANT R2'!$O$133:$O$133)*(rng_rainfall=2)+SUM('LENTILS IMI TOLERANT R2'!$R$133:$R$133)*(rng_rainfall=3))*(rng_lentils_imi_DATA_Sheet_R2) -> 0 | Q61: =(SUM('LENTILS IMI TOLERANT R2'!$U$133:$U$133))*(rng_lentils_imi_DATA_Sheet_R2) -> 0 | R61: =(SUM('LENTILS IMI TOLERANT R2'!$L$136:$L$137)*(rng_rainfall=1)+SUM('LENTILS IMI TOLERANT R2'!$O$136:$O$137)*(rng_rainfall=2)+SUM('LENTILS IMI TOLERANT R2'!$R$136:$R$137)*(rng_rainfall=3))*(rng_lentils_imi_DATA_Sheet_R2) -> 0 | S61: =(SUM('LENTILS IMI TOLERANT R2'!$U$136:$U$137))*(rng_lentils_imi_DATA_Sheet_R2) -> 0 | T61: 0 | U61: 0 | V61: 0 | W61: =('LENTILS IMI TOLERANT R2'!$U$160)*(rng_lentils_imi_DATA_Sheet_R2) -> 0
B62: Field Peas | C62: =('PEAS R2'!U6)*(rng_Field_Peas_DATA_Sheet_R2) -> 0 | D62: =(SUM('PEAS R2'!L162)*(rng_rainfall=1)+SUM('PEAS R2'!O162)*(rng_rainfall=2)+SUM('PEAS R2'!R162)*(rng_rainfall=3))*(rng_Field_Peas_DATA_Sheet_R2) -> 0 | E62: =('PEAS R2'!U162)*(rng_Field_Peas_DATA_Sheet_R2) -> 0 | F62: =(SUM('PEAS R2'!L11)*(rng_rainfall=1)+SUM('PEAS R2'!O11)*(rng_rainfall=2)+SUM('PEAS R2'!R11)*(rng_rainfall=3))*(rng_Field_Peas_DATA_Sheet_R2) -> 0 | G62: =('PEAS R2'!U11)*(rng_Field_Peas_DATA_Sheet_R2) -> 0 | H62: =(SUM('PEAS R2'!L14:L34)*(rng_rainfall=1)+SUM('PEAS R2'!O14:O34)*(rng_rainfall=2)+SUM('PEAS R2'!R14:R34)*(rng_rainfall=3))*(rng_Field_Peas_DATA_Sheet_R2) -> 0 | I62: =(SUM('PEAS R2'!U14:U34))*(rng_Field_Peas_DATA_Sheet_R2) -> 0 | J62: =(SUM('PEAS R2'!$L$37:$L$53)*(rng_rainfall=1)+SUM('PEAS R2'!$O$37:$O$53)*(rng_rainfall=2)+SUM('PEAS R2'!$R$37:$R$53)*(rng_rainfall=3))*(rng_Field_Peas_DATA_Sheet_R2) -> 0 | K62: =(SUM('PEAS R2'!$U$37:$U$53))*(rng_Field_Peas_DATA_Sheet_R2) -> 0 | L62: =(SUM('PEAS R2'!$L$57:$L$128)*(rng_rainfall=1)+SUM('PEAS R2'!$O$57:$O$128)*(rng_rainfall=2)+SUM('PEAS R2'!$R$57:$R$128)*(rng_rainfall=3))*(rng_Field_Peas_DATA_Sheet_R2) -> 0 | M62: =(SUM('PEAS R2'!$U$57:$U$128))*(rng_Field_Peas_DATA_Sheet_R2) -> 0 | N62: =(SUM('PEAS R2'!$L$132:$L$132)*(rng_rainfall=1)+SUM('PEAS R2'!$O$132:$O$132)*(rng_rainfall=2)+SUM('PEAS R2'!$R$132:$R$132)*(rng_rainfall=3))*(rng_Field_Peas_DATA_Sheet_R2) -> 0 | O62: =(SUM('PEAS R2'!$U$132:$U$132))*(rng_Field_Peas_DATA_Sheet_R2) -> 0 | P62: =(SUM('PEAS R2'!$L$133:$L$133)*(rng_rainfall=1)+SUM('PEAS R2'!$O$133:$O$133)*(rng_rainfall=2)+SUM('PEAS R2'!$R$133:$R$133)*(rng_rainfall=3))*(rng_Field_Peas_DATA_Sheet_R2) -> 0 | Q62: =(SUM('PEAS R2'!$U$133:$U$133))*(rng_Field_Peas_DATA_Sheet_R2) -> 0 | R62: =(SUM('PEAS R2'!$L$136:$L$137)*(rng_rainfall=1)+SUM('PEAS R2'!$O$136:$O$137)*(rng_rainfall=2)+SUM('PEAS R2'!$R$136:$R$137)*(rng_rainfall=3))*(rng_Field_Peas_DATA_Sheet_R2) -> 0 | S62: =(SUM('PEAS R2'!$U$136:$U$137))*(rng_Field_Peas_DATA_Sheet_R2) -> 0 | T62: 0 | U62: 0 | V62: 0 | W62: =('PEAS R2'!$U$160)*(rng_Field_Peas_DATA_Sheet_R2) -> 0
B63: Faba Beans | C63: =('BEANS R2'!U6)*(rng_Beans_DATA_Sheet_R2) -> 0 | D63: =(SUM('BEANS R2'!L162)*(rng_rainfall=1)+SUM('BEANS R2'!O162)*(rng_rainfall=2)+SUM('BEANS R2'!R162)*(rng_rainfall=3))*(rng_Beans_DATA_Sheet_R2) -> 0 | E63: =('BEANS R2'!U162)*(rng_Beans_DATA_Sheet_R2) -> 0 | F63: =(SUM('BEANS R2'!L11)*(rng_rainfall=1)+SUM('BEANS R2'!O11)*(rng_rainfall=2)+SUM('BEANS R2'!R11)*(rng_rainfall=3))*(rng_Beans_DATA_Sheet_R2) -> 0 | G63: =('BEANS R2'!U11)*(rng_Beans_DATA_Sheet_R2) -> 0 | H63: =(SUM('BEANS R2'!L14:L34)*(rng_rainfall=1)+SUM('BEANS R2'!O14:O34)*(rng_rainfall=2)+SUM('BEANS R2'!R14:R34)*(rng_rainfall=3))*(rng_Beans_DATA_Sheet_R2) -> 0 | I63: =(SUM('BEANS R2'!U14:U34))*(rng_Beans_DATA_Sheet_R2) -> 0 | J63: =(SUM('BEANS R2'!$L$37:$L$53)*(rng_rainfall=1)+SUM('BEANS R2'!$O$37:$O$53)*(rng_rainfall=2)+SUM('BEANS R2'!$R$37:$R$53)*(rng_rainfall=3))*(rng_Beans_DATA_Sheet_R2) -> 0 | K63: =(SUM('BEANS R2'!$U$37:$U$53))*(rng_Beans_DATA_Sheet_R2) -> 0 | L63: =(SUM('BEANS R2'!$L$57:$L$128)*(rng_rainfall=1)+SUM('BEANS R2'!$O$57:$O$128)*(rng_rainfall=2)+SUM('BEANS R2'!$R$57:$R$128)*(rng_rainfall=3))*(rng_Beans_DATA_Sheet_R2) -> 0 | M63: =(SUM('BEANS R2'!$U$57:$U$128))*(rng_Beans_DATA_Sheet_R2) -> 0 | N63: =(SUM('BEANS R2'!$L$132:$L$132)*(rng_rainfall=1)+SUM('BEANS R2'!$O$132:$O$132)*(rng_rainfall=2)+SUM('BEANS R2'!$R$132:$R$132)*(rng_rainfall=3))*(rng_Beans_DATA_Sheet_R2) -> 0 | O63: =(SUM('BEANS R2'!$U$132:$U$132))*(rng_Beans_DATA_Sheet_R2) -> 0 | P63: =(SUM('BEANS R2'!$L$133:$L$133)*(rng_rainfall=1)+SUM('BEANS R2'!$O$133:$O$133)*(rng_rainfall=2)+SUM('BEANS R2'!$R$133:$R$133)*(rng_rainfall=3))*(rng_Beans_DATA_Sheet_R2) -> 0 | Q63: =(SUM('BEANS R2'!$U$133:$U$133))*(rng_Beans_DATA_Sheet_R2) -> 0 | R63: =(SUM('BEANS R2'!$L$136:$L$137)*(rng_rainfall=1)+SUM('BEANS R2'!$O$136:$O$137)*(rng_rainfall=2)+SUM('BEANS R2'!$R$136:$R$137)*(rng_rainfall=3))*(rng_Beans_DATA_Sheet_R2) -> 0 | S63: =(SUM('BEANS R2'!$U$136:$U$137))*(rng_Beans_DATA_Sheet_R2) -> 0 | T63: 0 | U63: 0 | V63: 0 | W63: =('BEANS R2'!$U$160)*(rng_Beans_DATA_Sheet_R2) -> 0
B64: Kabuli Chickpeas | C64: =('CHICKPEAS R2'!U6)*(rng_Chickpeas_DATA_Sheet_R2) -> 0 | D64: =(SUM('CHICKPEAS R2'!L162)*(rng_rainfall=1)+SUM('CHICKPEAS R2'!O162)*(rng_rainfall=2)+SUM('CHICKPEAS R2'!R162)*(rng_rainfall=3))*(rng_Chickpeas_DATA_Sheet_R2) -> 0 | E64: =('CHICKPEAS R2'!U162)*(rng_Chickpeas_DATA_Sheet_R2) -> 0 | F64: =(SUM('CHICKPEAS R2'!L11)*(rng_rainfall=1)+SUM('CHICKPEAS R2'!O11)*(rng_rainfall=2)+SUM('CHICKPEAS R2'!R11)*(rng_rainfall=3))*(rng_Chickpeas_DATA_Sheet_R2) -> 0 | G64: =('CHICKPEAS R2'!U11)*(rng_Chickpeas_DATA_Sheet_R2) -> 0 | H64: =(SUM('CHICKPEAS R2'!L14:L34)*(rng_rainfall=1)+SUM('CHICKPEAS R2'!O14:O34)*(rng_rainfall=2)+SUM('CHICKPEAS R2'!R14:R34)*(rng_rainfall=3))*(rng_Chickpeas_DATA_Sheet_R2) -> 0 | I64: =(SUM('CHICKPEAS R2'!U14:U34))*(rng_Chickpeas_DATA_Sheet_R2) -> 0 | J64: =(SUM('CHICKPEAS R2'!$L$37:$L$53)*(rng_rainfall=1)+SUM('CHICKPEAS R2'!$O$37:$O$53)*(rng_rainfall=2)+SUM('CHICKPEAS R2'!$R$37:$R$53)*(rng_rainfall=3))*(rng_Chickpeas_DATA_Sheet_R2) -> 0 | K64: =(SUM('CHICKPEAS R2'!$U$37:$U$53))*(rng_Chickpeas_DATA_Sheet_R2) -> 0 | L64: =(SUM('CHICKPEAS R2'!$L$57:$L$128)*(rng_rainfall=1)+SUM('CHICKPEAS R2'!$O$57:$O$128)*(rng_rainfall=2)+SUM('CHICKPEAS R2'!$R$57:$R$128)*(rng_rainfall=3))*(rng_Chickpeas_DATA_Sheet_R2) -> 0 | M64: =(SUM('CHICKPEAS R2'!$U$57:$U$128))*(rng_Chickpeas_DATA_Sheet_R2) -> 0 | N64: =(SUM('CHICKPEAS R2'!$L$132:$L$132)*(rng_rainfall=1)+SUM('CHICKPEAS R2'!$O$132:$O$132)*(rng_rainfall=2)+SUM('CHICKPEAS R2'!$R$132:$R$132)*(rng_rainfall=3))*(rng_Chickpeas_DATA_Sheet_R2) -> 0 | O64: =(SUM('CHICKPEAS R2'!$U$132:$U$132))*(rng_Chickpeas_DATA_Sheet_R2) -> 0 | P64: =(SUM('CHICKPEAS R2'!$L$133:$L$133)*(rng_rainfall=1)+SUM('CHICKPEAS R2'!$O$133:$O$133)*(rng_rainfall=2)+SUM('CHICKPEAS R2'!$R$133:$R$133)*(rng_rainfall=3))*(rng_Chickpeas_DATA_Sheet_R2) -> 0 | Q64: =(SUM('CHICKPEAS R2'!$U$133:$U$133))*(rng_Chickpeas_DATA_Sheet_R2) -> 0 | R64: =(SUM('CHICKPEAS R2'!$L$136:$L$137)*(rng_rainfall=1)+SUM('CHICKPEAS R2'!$O$136:$O$137)*(rng_rainfall=2)+SUM('CHICKPEAS R2'!$R$136:$R$137)*(rng_rainfall=3))*(rng_Chickpeas_DATA_Sheet_R2) -> 0 | S64: =(SUM('CHICKPEAS R2'!$U$136:$U$137))*(rng_Chickpeas_DATA_Sheet_R2) -> 0 | T64: 0 | U64: 0 | V64: 0 | W64: =('CHICKPEAS R2'!$U$160)*(rng_Chickpeas_DATA_Sheet_R2) -> 0
B65: Canola Clearfield | C65: =('CANOLA CLEARFIELD R2'!U6)*(rng_Canola_Clear_DATA_Sheet_R2) -> 0 | D65: =(SUM('CANOLA CLEARFIELD R2'!L162)*(rng_rainfall=1)+SUM('CANOLA CLEARFIELD R2'!O162)*(rng_rainfall=2)+SUM('CANOLA CLEARFIELD R2'!R162)*(rng_rainfall=3))*(rng_Canola_Clear_DATA_Sheet_R2) -> 0 | E65: =('CANOLA CLEARFIELD R2'!U162)*(rng_Canola_Clear_DATA_Sheet_R2) -> 0 | F65: =(SUM('CANOLA CLEARFIELD R2'!L11)*(rng_rainfall=1)+SUM('CANOLA CLEARFIELD R2'!O11)*(rng_rainfall=2)+SUM('CANOLA CLEARFIELD R2'!R11)*(rng_rainfall=3))*(rng_Canola_Clear_DATA_Sheet_R2) -> 0 | G65: =('CANOLA CLEARFIELD R2'!U11)*(rng_Canola_Clear_DATA_Sheet_R2) -> 0 | H65: =(SUM('CANOLA CLEARFIELD R2'!L14:L34)*(rng_rainfall=1)+SUM('CANOLA CLEARFIELD R2'!O14:O34)*(rng_rainfall=2)+SUM('CANOLA CLEARFIELD R2'!R14:R34)*(rng_rainfall=3))*(rng_Canola_Clear_DATA_Sheet_R2) -> 0 | I65: =(SUM('CANOLA CLEARFIELD R2'!U14:U34))*(rng_Canola_Clear_DATA_Sheet_R2) -> 0 | J65: =(SUM('CANOLA CLEARFIELD R2'!$L$37:$L$53)*(rng_rainfall=1)+SUM('CANOLA CLEARFIELD R2'!$O$37:$O$53)*(rng_rainfall=2)+SUM('CANOLA CLEARFIELD R2'!$R$37:$R$53)*(rng_rainfall=3))*(rng_Canola_Clear_DATA_Sheet_R2) -> 0 | K65: =(SUM('CANOLA CLEARFIELD R2'!$U$37:$U$53))*(rng_Canola_Clear_DATA_Sheet_R2) -> 0 | L65: =(SUM('CANOLA CLEARFIELD R2'!$L$57:$L$128)*(rng_rainfall=1)+SUM('CANOLA CLEARFIELD R2'!$O$57:$O$128)*(rng_rainfall=2)+SUM('CANOLA CLEARFIELD R2'!$R$57:$R$128)*(rng_rainfall=3))*(rng_Canola_Clear_DATA_Sheet_R2) -> 0 | M65: =(SUM('CANOLA CLEARFIELD R2'!$U$57:$U$128))*(rng_Canola_Clear_DATA_Sheet_R2) -> 0 | N65: =(SUM('CANOLA CLEARFIELD R2'!$L$132:$L$132)*(rng_rainfall=1)+SUM('CANOLA CLEARFIELD R2'!$O$132:$O$132)*(rng_rainfall=2)+SUM('CANOLA CLEARFIELD R2'!$R$132:$R$132)*(rng_rainfall=3))*(rng_Canola_Clear_DATA_Sheet_R2) -> 0 | O65: =(SUM('CANOLA CLEARFIELD R2'!$U$132:$U$132))*(rng_Canola_Clear_DATA_Sheet_R2) -> 0 | P65: =(SUM('CANOLA CLEARFIELD R2'!$L$133:$L$133)*(rng_rainfall=1)+SUM('CANOLA CLEARFIELD R2'!$O$133:$O$133)*(rng_rainfall=2)+SUM('CANOLA CLEARFIELD R2'!$R$133:$R$133)*(rng_rainfall=3))*(rng_Canola_Clear_DATA_Sheet_R2) -> 0 | Q65: =(SUM('CANOLA CLEARFIELD R2'!$U$133:$U$133))*(rng_Canola_Clear_DATA_Sheet_R2) -> 0 | R65: =(SUM('CANOLA CLEARFIELD R2'!$L$136:$L$137)*(rng_rainfall=1)+SUM('CANOLA CLEARFIELD R2'!$O$136:$O$137)*(rng_rainfall=2)+SUM('CANOLA CLEARFIELD R2'!$R$136:$R$137)*(rng_rainfall=3))*(rng_Canola_Clear_DATA_Sheet_R2) -> 0 | S65: =(SUM('CANOLA CLEARFIELD R2'!$U$136:$U$137))*(rng_Canola_Clear_DATA_Sheet_R2) -> 0 | T65: 0 | U65: 0 | V65: 0 | W65: =('CANOLA CLEARFIELD R2'!$U$160)*(rng_Canola_Clear_DATA_Sheet_R2) -> 0
B66: Canola Conventional | C66: =('CANOLA CONVENTIONAL R2'!U6)*(rng_Canola_Conv_DATA_Sheet_R2) -> 0 | D66: =(SUM('CANOLA CONVENTIONAL R2'!L162)*(rng_rainfall=1)+SUM('CANOLA CONVENTIONAL R2'!O162)*(rng_rainfall=2)+SUM('CANOLA CONVENTIONAL R2'!R162)*(rng_rainfall=3))*(rng_Canola_Conv_DATA_Sheet_R2) -> 0 | E66: =('CANOLA CONVENTIONAL R2'!U162)*(rng_Canola_Conv_DATA_Sheet_R2) -> 0 | F66: =(SUM('CANOLA CONVENTIONAL R2'!L11)*(rng_rainfall=1)+SUM('CANOLA CONVENTIONAL R2'!O11)*(rng_rainfall=2)+SUM('CANOLA CONVENTIONAL R2'!R11)*(rng_rainfall=3))*(rng_Canola_Conv_DATA_Sheet_R2) -> 0 | G66: =('CANOLA CONVENTIONAL R2'!U11)*(rng_Canola_Conv_DATA_Sheet_R2) -> 0 | H66: =(SUM('CANOLA CONVENTIONAL R2'!L14:L34)*(rng_rainfall=1)+SUM('CANOLA CONVENTIONAL R2'!O14:O34)*(rng_rainfall=2)+SUM('CANOLA CONVENTIONAL R2'!R14:R34)*(rng_rainfall=3))*(rng_Canola_Conv_DATA_Sheet_R2) -> 0 | I66: =(SUM('CANOLA CONVENTIONAL R2'!U14:U34))*(rng_Canola_Conv_DATA_Sheet_R2) -> 0 | J66: =(SUM('CANOLA CONVENTIONAL R2'!$L$37:$L$53)*(rng_rainfall=1)+SUM('CANOLA CONVENTIONAL R2'!$O$37:$O$53)*(rng_rainfall=2)+SUM('CANOLA CONVENTIONAL R2'!$R$37:$R$53)*(rng_rainfall=3))*(rng_Canola_Conv_DATA_Sheet_R2) -> 0 | K66: =(SUM('CANOLA CONVENTIONAL R2'!$U$37:$U$53))*(rng_Canola_Conv_DATA_Sheet_R2) -> 0 | L66: =(SUM('CANOLA CONVENTIONAL R2'!$L$57:$L$128)*(rng_rainfall=1)+SUM('CANOLA CONVENTIONAL R2'!$O$57:$O$128)*(rng_rainfall=2)+SUM('CANOLA CONVENTIONAL R2'!$R$57:$R$128)*(rng_rainfall=3))*(rng_Canola_Conv_DATA_Sheet_R2) -> 0 | M66: =(SUM('CANOLA CONVENTIONAL R2'!$U$57:$U$128))*(rng_Canola_Conv_DATA_Sheet_R2) -> 0 | N66: =(SUM('CANOLA CONVENTIONAL R2'!$L$132:$L$132)*(rng_rainfall=1)+SUM('CANOLA CONVENTIONAL R2'!$O$132:$O$132)*(rng_rainfall=2)+SUM('CANOLA CONVENTIONAL R2'!$R$132:$R$132)*(rng_rainfall=3))*(rng_Canola_Conv_DATA_Sheet_R2) -> 0 | O66: =(SUM('CANOLA CONVENTIONAL R2'!$U$132:$U$132))*(rng_Canola_Conv_DATA_Sheet_R2) -> 0 | P66: =(SUM('CANOLA CONVENTIONAL R2'!$L$133:$L$133)*(rng_rainfall=1)+SUM('CANOLA CONVENTIONAL R2'!$O$133:$O$133)*(rng_rainfall=2)+SUM('CANOLA CONVENTIONAL R2'!$R$133:$R$133)*(rng_rainfall=3))*(rng_Canola_Conv_DATA_Sheet_R2) -> 0 | Q66: =(SUM('CANOLA CONVENTIONAL R2'!$U$133:$U$133))*(rng_Canola_Conv_DATA_Sheet_R2) -> 0 | R66: =(SUM('CANOLA CONVENTIONAL R2'!$L$136:$L$137)*(rng_rainfall=1)+SUM('CANOLA CONVENTIONAL R2'!$O$136:$O$137)*(rng_rainfall=2)+SUM('CANOLA CONVENTIONAL R2'!$R$136:$R$137)*(rng_rainfall=3))*(rng_Canola_Conv_DATA_Sheet_R2) -> 0 | S66: =(SUM('CANOLA CONVENTIONAL R2'!$U$136:$U$137))*(rng_Canola_Conv_DATA_Sheet_R2) -> 0 | T66: 0 | U66: 0 | V66: 0 | W66: =('CANOLA CONVENTIONAL R2'!$U$160)*(rng_Canola_Conv_DATA_Sheet_R2) -> 0
B67: Canola RoundUp Ready | C67: =('CANOLA ROUNDUP READY R2'!U7)*(rng_Canola_Round_DATA_Sheet_R2) -> 0 | D67: =(SUM('CANOLA ROUNDUP READY R2'!L162)*(rng_rainfall=1)+SUM('CANOLA ROUNDUP READY R2'!O162)*(rng_rainfall=2)+SUM('CANOLA ROUNDUP READY R2'!R162)*(rng_rainfall=3))*(rng_Canola_Round_DATA_Sheet_R2) -> 0 | E67: =('CANOLA ROUNDUP READY R2'!U162)*(rng_Canola_Round_DATA_Sheet_R2) -> 0 | F67: =(SUM('CANOLA ROUNDUP READY R2'!L11)*(rng_rainfall=1)+SUM('CANOLA ROUNDUP READY R2'!O11)*(rng_rainfall=2)+SUM('CANOLA ROUNDUP READY R2'!R11)*(rng_rainfall=3))*(rng_Canola_Round_DATA_Sheet_R2) -> 0 | G67: =('CANOLA ROUNDUP READY R2'!U11)*(rng_Canola_Round_DATA_Sheet_R2) -> 0 | H67: =(SUM('CANOLA ROUNDUP READY R2'!L14:L34)*(rng_rainfall=1)+SUM('CANOLA ROUNDUP READY R2'!O14:O34)*(rng_rainfall=2)+SUM('CANOLA ROUNDUP READY R2'!R14:R34)*(rng_rainfall=3))*(rng_Canola_Round_DATA_Sheet_R2) -> 0 | I67: =(SUM('CANOLA ROUNDUP READY R2'!U14:U34))*(rng_Canola_Round_DATA_Sheet_R2) -> 0 | J67: =(SUM('CANOLA ROUNDUP READY R2'!$L$37:$L$53)*(rng_rainfall=1)+SUM('CANOLA ROUNDUP READY R2'!$O$37:$O$53)*(rng_rainfall=2)+SUM('CANOLA ROUNDUP READY R2'!$R$37:$R$53)*(rng_rainfall=3))*(rng_Canola_Round_DATA_Sheet_R2) -> 0 | K67: =(SUM('CANOLA ROUNDUP READY R2'!$U$37:$U$53))*(rng_Canola_Round_DATA_Sheet_R2) -> 0 | L67: =(SUM('CANOLA ROUNDUP READY R2'!$L$57:$L$118)*(rng_rainfall=1)+SUM('CANOLA ROUNDUP READY R2'!$O$57:$O$118)*(rng_rainfall=2)+SUM('CANOLA ROUNDUP READY R2'!$R$57:$R$118)*(rng_rainfall=3))*(rng_Canola_Round_DATA_Sheet_R2) -> 0 | M67: =(SUM('CANOLA ROUNDUP READY R2'!$U$57:$U$128))*(rng_Canola_Round_DATA_Sheet_R2) -> 0 | N67: =(SUM('CANOLA ROUNDUP READY R2'!$L$118:$L$132)*(rng_rainfall=1)+SUM('CANOLA ROUNDUP READY R2'!$O$118:$O$132)*(rng_rainfall=2)+SUM('CANOLA ROUNDUP READY R2'!$R$118:$R$132)*(rng_rainfall=3))*(rng_Canola_Round_DATA_Sheet_R2) -> 0 | O67: =(SUM('CANOLA ROUNDUP READY R2'!$U$132:$U$132))*(rng_Canola_Round_DATA_Sheet_R2) -> 0 | P67: =(SUM('CANOLA ROUNDUP READY R2'!$L$118:$L$133)*(rng_rainfall=1)+SUM('CANOLA ROUNDUP READY R2'!$O$118:$O$133)*(rng_rainfall=2)+SUM('CANOLA ROUNDUP READY R2'!$R$118:$R$133)*(rng_rainfall=3))*(rng_Canola_Round_DATA_Sheet_R2) -> 0 | Q67: =(SUM('CANOLA ROUNDUP READY R2'!$U$133:$U$133))*(rng_Canola_Round_DATA_Sheet_R2) -> 0 | R67: =(SUM('CANOLA ROUNDUP READY R2'!$L$136:$L$137)*(rng_rainfall=1)+SUM('CANOLA ROUNDUP READY R2'!$O$136:$O$137)*(rng_rainfall=2)+SUM('CANOLA ROUNDUP READY R2'!$R$15:$R$35)*(rng_rainfall=3))*(rng_Canola_Round_DATA_Sheet_R2) -> 0 | S67: =(SUM('CANOLA ROUNDUP READY R2'!$U$136:$U$137))*(rng_Canola_Round_DATA_Sheet_R2) -> 0 | T67: 0 | U67: 0 | V67: 0 | W67: =('CANOLA ROUNDUP READY R2'!$U$160)*(rng_Canola_Round_DATA_Sheet_R2) -> 0
B68: Canola Tri Tolerant | C68: =('CANOLA TRITOLERANT R2'!U6)*(rng_Canola_Tri_DATA_Sheet_R2) -> 0 | D68: =(SUM('CANOLA TRITOLERANT R2'!L162)*(rng_rainfall=1)+SUM('CANOLA TRITOLERANT R2'!O162)*(rng_rainfall=2)+SUM('CANOLA TRITOLERANT R2'!R162)*(rng_rainfall=3))*(rng_Canola_Tri_DATA_Sheet_R2) -> 0 | E68: =('CANOLA TRITOLERANT R2'!U162)*(rng_Canola_Tri_DATA_Sheet_R2) -> 0 | F68: =(SUM('CANOLA TRITOLERANT R2'!L11)*(rng_rainfall=1)+SUM('CANOLA TRITOLERANT R2'!O11)*(rng_rainfall=2)+SUM('CANOLA TRITOLERANT R2'!R11)*(rng_rainfall=3))*(rng_Canola_Tri_DATA_Sheet_R2) -> 0 | G68: =('CANOLA TRITOLERANT R2'!U11)*(rng_Canola_Tri_DATA_Sheet_R2) -> 0 | H68: =(SUM('CANOLA TRITOLERANT R2'!L14:L34)*(rng_rainfall=1)+SUM('CANOLA TRITOLERANT R2'!O14:O34)*(rng_rainfall=2)+SUM('CANOLA TRITOLERANT R2'!R14:R34)*(rng_rainfall=3))*(rng_Canola_Tri_DATA_Sheet_R2) -> 0 | I68: =(SUM('CANOLA TRITOLERANT R2'!U14:U34))*(rng_Canola_Tri_DATA_Sheet_R2) -> 0 | J68: =(SUM('CANOLA TRITOLERANT R2'!$L$37:$L$53)*(rng_rainfall=1)+SUM('CANOLA TRITOLERANT R2'!$O$37:$O$53)*(rng_rainfall=2)+SUM('CANOLA TRITOLERANT R2'!$R$37:$R$53)*(rng_rainfall=3))*(rng_Canola_Tri_DATA_Sheet_R2) -> 0 | K68: =(SUM('CANOLA TRITOLERANT R2'!$U$37:$U$53))*(rng_Canola_Tri_DATA_Sheet_R2) -> 0 | L68: =(SUM('CANOLA TRITOLERANT R2'!$L$57:$L$128)*(rng_rainfall=1)+SUM('CANOLA TRITOLERANT R2'!$O$57:$O$128)*(rng_rainfall=2)+SUM('CANOLA TRITOLERANT R2'!$R$57:$R$128)*(rng_rainfall=3))*(rng_Canola_Tri_DATA_Sheet_R2) -> 0 | M68: =(SUM('CANOLA TRITOLERANT R2'!$U$57:$U$128))*(rng_Canola_Tri_DATA_Sheet_R2) -> 0 | N68: =(SUM('CANOLA TRITOLERANT R2'!$L$132:$L$132)*(rng_rainfall=1)+SUM('CANOLA TRITOLERANT R2'!$O$132:$O$132)*(rng_rainfall=2)+SUM('CANOLA TRITOLERANT R2'!$R$132:$R$132)*(rng_rainfall=3))*(rng_Canola_Tri_DATA_Sheet_R2) -> 0 | O68: =(SUM('CANOLA TRITOLERANT R2'!$U$132:$U$132))*(rng_Canola_Tri_DATA_Sheet_R2) -> 0 | P68: =(SUM('CANOLA TRITOLERANT R2'!$L$133:$L$133)*(rng_rainfall=1)+SUM('CANOLA TRITOLERANT R2'!$O$133:$O$133)*(rng_rainfall=2)+SUM('CANOLA TRITOLERANT R2'!$R$133:$R$133)*(rng_rainfall=3))*(rng_Canola_Tri_DATA_Sheet_R2) -> 0 | Q68: =(SUM('CANOLA TRITOLERANT R2'!$U$133:$U$133))*(rng_Canola_Tri_DATA_Sheet_R2) -> 0 | R68: =(SUM('CANOLA TRITOLERANT R2'!$L$136:$L$137)*(rng_rainfall=1)+SUM('CANOLA TRITOLERANT R2'!$O$136:$O$137)*(rng_rainfall=2)+SUM('CANOLA TRITOLERANT R2'!$R$136:$R$137)*(rng_rainfall=3))*(rng_Canola_Tri_DATA_Sheet_R2) -> 0 | S68: =(SUM('CANOLA TRITOLERANT R2'!$U$136:$U$137))*(rng_Canola_Tri_DATA_Sheet_R2) -> 0 | T68: 0 | U68: 0 | V68: 0 | W68: =('CANOLA TRITOLERANT R2'!$U$160)*(rng_Canola_Tri_DATA_Sheet_R2) -> 0
B69: Sown Pasture | C69: =('SOWN PASTURE R2'!U6)*(rng_sown_pasture_DATA_Sheet_R2) -> 0 | D69: =(SUM('SOWN PASTURE R2'!L162)*(rng_rainfall=1)+SUM('SOWN PASTURE R2'!O162)*(rng_rainfall=2)+SUM('SOWN PASTURE R2'!R162)*(rng_rainfall=3))*(rng_sown_pasture_DATA_Sheet_R2) -> 0 | E69: =('SOWN PASTURE R2'!U162)*(rng_sown_pasture_DATA_Sheet_R2) -> 0 | F69: =(SUM('SOWN PASTURE R2'!L11)*(rng_rainfall=1)+SUM('SOWN PASTURE R2'!O11)*(rng_rainfall=2)+SUM('SOWN PASTURE R2'!R11)*(rng_rainfall=3))*(rng_sown_pasture_DATA_Sheet_R2) -> 0 | G69: =('SOWN PASTURE R2'!U11)*(rng_sown_pasture_DATA_Sheet_R2) -> 0 | H69: =(SUM('SOWN PASTURE R2'!L14:L34)*(rng_rainfall=1)+SUM('SOWN PASTURE R2'!O14:O34)*(rng_rainfall=2)+SUM('SOWN PASTURE R2'!R14:R34)*(rng_rainfall=3))*(rng_sown_pasture_DATA_Sheet_R2) -> 0 | I69: =(SUM('SOWN PASTURE R2'!U14:U34))*(rng_sown_pasture_DATA_Sheet_R2) -> 0 | J69: =(SUM('SOWN PASTURE R2'!$L$37:$L$53)*(rng_rainfall=1)+SUM('SOWN PASTURE R2'!$O$37:$O$53)*(rng_rainfall=2)+SUM('SOWN PASTURE R2'!$R$37:$R$53)*(rng_rainfall=3))*(rng_sown_pasture_DATA_Sheet_R2) -> 0 | K69: =(SUM('SOWN PASTURE R2'!$U$37:$U$53))*(rng_sown_pasture_DATA_Sheet_R2) -> 0 | L69: =(SUM('SOWN PASTURE R2'!$L$57:$L$128)*(rng_rainfall=1)+SUM('SOWN PASTURE R2'!$O$57:$O$128)*(rng_rainfall=2)+SUM('SOWN PASTURE R2'!$R$57:$R$128)*(rng_rainfall=3))*(rng_sown_pasture_DATA_Sheet_R2) -> 0 | M69: =(SUM('SOWN PASTURE R2'!$U$57:$U$128))*(rng_sown_pasture_DATA_Sheet_R2) -> 0 | N69: =(SUM('SOWN PASTURE R2'!$L$132:$L$132)*(rng_rainfall=1)+SUM('SOWN PASTURE R2'!$O$132:$O$132)*(rng_rainfall=2)+SUM('SOWN PASTURE R2'!$R$132:$R$132)*(rng_rainfall=3))*(rng_sown_pasture_DATA_Sheet_R2) -> 0 | O69: =(SUM('SOWN PASTURE R2'!$U$132:$U$132))*(rng_sown_pasture_DATA_Sheet_R2) -> 0 | P69: =(SUM('SOWN PASTURE R2'!$L$133:$L$133)*(rng_rainfall=1)+SUM('SOWN PASTURE R2'!$O$133:$O$133)*(rng_rainfall=2)+SUM('SOWN PASTURE R2'!$R$133:$R$133)*(rng_rainfall=3))*(rng_sown_pasture_DATA_Sheet_R2) -> 0 | Q69: =(SUM('SOWN PASTURE R2'!$U$133:$U$133))*(rng_sown_pasture_DATA_Sheet_R2) -> 0 | R69: =(SUM('SOWN PASTURE R2'!$L$136:$L$137)*(rng_rainfall=1)+SUM('SOWN PASTURE R2'!$O$136:$O$137)*(rng_rainfall=2)+SUM('SOWN PASTURE R2'!$R$136:$R$137)*(rng_rainfall=3))*(rng_sown_pasture_DATA_Sheet_R2) -> 0 | S69: =(SUM('SOWN PASTURE R2'!$U$136:$U$137))*(rng_sown_pasture_DATA_Sheet_R2) -> 0 | T69: 0 | U69: 0 | V69: 0 | W69: =('SOWN PASTURE R2'!$U$160)*(rng_sown_pasture_DATA_Sheet_R2) -> 0
B70: Self Regen Pasture | C70: =('SELF REGEN PASTURE R2'!U6)*(rng_self_regen_DATA_Sheet_R2) -> 0 | D70: =(SUM('SELF REGEN PASTURE R2'!L162)*(rng_rainfall=1)+SUM('SELF REGEN PASTURE R2'!O162)*(rng_rainfall=2)+SUM('SELF REGEN PASTURE R2'!R162)*(rng_rainfall=3))*(rng_self_regen_DATA_Sheet_R2) -> 0 | E70: =('SELF REGEN PASTURE R2'!U162)*(rng_self_regen_DATA_Sheet_R2) -> 0 | F70: =(SUM('SELF REGEN PASTURE R2'!L11)*(rng_rainfall=1)+SUM('SELF REGEN PASTURE R2'!O11)*(rng_rainfall=2)+SUM('SELF REGEN PASTURE R2'!R11)*(rng_rainfall=3))*(rng_self_regen_DATA_Sheet_R2) -> 0 | G70: =('SELF REGEN PASTURE R2'!U11)*(rng_self_regen_DATA_Sheet_R2) -> 0 | H70: =(SUM('SELF REGEN PASTURE R2'!L14:L34)*(rng_rainfall=1)+SUM('SELF REGEN PASTURE R2'!O14:O34)*(rng_rainfall=2)+SUM('SELF REGEN PASTURE R2'!R14:R34)*(rng_rainfall=3))*(rng_self_regen_DATA_Sheet_R2) -> 0 | I70: =(SUM('SELF REGEN PASTURE R2'!U14:U34))*(rng_self_regen_DATA_Sheet_R2) -> 0 | J70: =(SUM('SELF REGEN PASTURE R2'!L$37:L$53)*(rng_rainfall=1)+SUM('SELF REGEN PASTURE R2'!O$37:O$53)*(rng_rainfall=2)+SUM('SELF REGEN PASTURE R2'!R$37:R$53)*(rng_rainfall=3))*(rng_self_regen_DATA_Sheet_R2) -> 0 | K70: =(SUM('SELF REGEN PASTURE R2'!U$37:U$53))*(rng_self_regen_DATA_Sheet_R2) -> 0 | L70: =(SUM('SELF REGEN PASTURE R2'!L$57:L$128)*(rng_rainfall=1)+SUM('SELF REGEN PASTURE R2'!O$57:O$128)*(rng_rainfall=2)+SUM('SELF REGEN PASTURE R2'!R$57:R$128)*(rng_rainfall=3))*(rng_self_regen_DATA_Sheet_R2) -> 0 | M70: =(SUM('SELF REGEN PASTURE R2'!U$57:U$128))*(rng_self_regen_DATA_Sheet_R2) -> 0 | N70: =(SUM('SELF REGEN PASTURE R2'!L$132:L$132)*(rng_rainfall=1)+SUM('SELF REGEN PASTURE R2'!O$132:O$132)*(rng_rainfall=2)+SUM('SELF REGEN PASTURE R2'!R$132:R$132)*(rng_rainfall=3))*(rng_self_regen_DATA_Sheet_R2) -> 0 | O70: =(SUM('SELF REGEN PASTURE R2'!U$132:U$132))*(rng_self_regen_DATA_Sheet_R2) -> 0 | P70: =(SUM('SELF REGEN PASTURE R2'!L$133:L$133)*(rng_rainfall=1)+SUM('SELF REGEN PASTURE R2'!O$133:O$133)*(rng_rainfall=2)+SUM('SELF REGEN PASTURE R2'!R$133:R$133)*(rng_rainfall=3))*(rng_self_regen_DATA_Sheet_R2) -> 0 | Q70: =(SUM('SELF REGEN PASTURE R2'!U$133:W$133))*(rng_self_regen_DATA_Sheet_R2) -> 0 | R70: =(SUM('SELF REGEN PASTURE R2'!L$136:L$137)*(rng_rainfall=1)+SUM('SELF REGEN PASTURE R2'!O$136:O$137)*(rng_rainfall=2)+SUM('SELF REGEN PASTURE R2'!R$136:R$137)*(rng_rainfall=3))*(rng_self_regen_DATA_Sheet_R2) -> 0 | S70: =(SUM('SELF REGEN PASTURE R2'!U$136:W$137))*(rng_self_regen_DATA_Sheet_R2) -> 0 | T70: 0 | U70: 0 | V70: 0 | W70: =('SELF REGEN PASTURE R2'!U$160)*(rng_self_regen_DATA_Sheet_R2) -> 0
B71: Lucerne Pasture Cereal | C71: =('LUCERNE PASTURE CEREAL R2'!U$6)*(rng_LUC_CEREAL_DATA_SHEET_R2) -> 0 | D71: =(SUM('LUCERNE PASTURE CEREAL R2'!L$163)*(rng_rainfall=1)+SUM('LUCERNE PASTURE CEREAL R2'!O$163)*(rng_rainfall=2)+SUM('LUCERNE PASTURE CEREAL R2'!R$163)*(rng_rainfall=3))*(rng_LUC_CEREAL_DATA_SHEET_R2) -> 0 | E71: =('LUCERNE PASTURE CEREAL R2'!U$163)*(rng_LUC_CEREAL_DATA_SHEET_R2) -> 0 | F71: =(SUM('LUCERNE PASTURE CEREAL R2'!L$11)*(rng_rainfall=1)+SUM('LUCERNE PASTURE CEREAL R2'!O$11)*(rng_rainfall=2)+SUM('LUCERNE PASTURE CEREAL R2'!R$11)*(rng_rainfall=3))*(rng_LUC_CEREAL_DATA_SHEET_R2) -> 0 | G71: =('LUCERNE PASTURE CEREAL R2'!U$11)*(rng_LUC_CEREAL_DATA_SHEET_R2) -> 0 | H71: =(SUM('LUCERNE PASTURE CEREAL R2'!L$14:L$34)*(rng_rainfall=1)+SUM('LUCERNE PASTURE CEREAL R2'!O$14:O$34)*(rng_rainfall=2)+SUM('LUCERNE PASTURE CEREAL R2'!R$14:R$34)*(rng_rainfall=3))*(rng_LUC_CEREAL_DATA_SHEET_R2) -> 0 | I71: =(SUM('LUCERNE PASTURE CEREAL R2'!U$14:U$34)/7)*(rng_LUC_CEREAL_DATA_SHEET_R2) -> 0 | J71: =(SUM('LUCERNE PASTURE CEREAL R2'!L$37:L$53,'LUCERNE PASTURE CEREAL R2'!L$135:L$136)*(rng_rainfall=1)+SUM('LUCERNE PASTURE CEREAL R2'!O$37:O$53,'LUCERNE PASTURE CEREAL R2'!O$135:O$136)*(rng_rainfall=2)+SUM('LUCERNE PASTURE CEREAL R2'!R$37:R$53,'LUCERNE PASTURE CEREAL R2'!R$135:R$136)*(rng_rainfall=3))*(rng_LUC_CEREAL_DATA_SHEET_R2) -> 0 | K71: =(SUM(SUM('LUCERNE PASTURE CEREAL R2'!U$37:U$53)/7,'LUCERNE PASTURE CEREAL R2'!U$135:U$136))*(rng_LUC_CEREAL_DATA_SHEET_R2) -> 0 | L71: =(SUM('LUCERNE PASTURE CEREAL R2'!L$57:L$111,'LUCERNE PASTURE CEREAL R2'!L$125:L$133)*(rng_rainfall=1)+SUM('LUCERNE PASTURE CEREAL R2'!O$57:O$111,'LUCERNE PASTURE CEREAL R2'!O$125:O$133)*(rng_rainfall=2)+SUM('LUCERNE PASTURE CEREAL R2'!R$57:R$111,'LUCERNE PASTURE CEREAL R2'!R$125:R$133)*(rng_rainfall=3))*(rng_LUC_CEREAL_DATA_SHEET_R2) -> 0 | M71: =(SUM(SUM('LUCERNE PASTURE CEREAL R2'!U$57:U$111)/7,'LUCERNE PASTURE CEREAL R2'!U$125:U$133))*(rng_LUC_CEREAL_DATA_SHEET_R2) -> 0 | N71: =(SUM('LUCERNE PASTURE CEREAL R2'!L$113:L$113,'LUCERNE PASTURE CEREAL R2'!L$138:L$138)*(rng_rainfall=1)+SUM('LUCERNE PASTURE CEREAL R2'!O$113:O$113,'LUCERNE PASTURE CEREAL R2'!O$138:O$138)*(rng_rainfall=2)+SUM('LUCERNE PASTURE CEREAL R2'!R$113:R$113,'LUCERNE PASTURE CEREAL R2'!R$138:R$138)*(rng_rainfall=3))*(rng_LUC_CEREAL_DATA_SHEET_R2) -> 0 | O71: =(SUM(SUM('LUCERNE PASTURE CEREAL R2'!U$113:U$113)/7,'LUCERNE PASTURE CEREAL R2'!U$138:U$138))*(rng_LUC_CEREAL_DATA_SHEET_R2) -> 0 | P71: =(SUM('LUCERNE PASTURE CEREAL R2'!L$114:L$114,'LUCERNE PASTURE CEREAL R2'!L$139:L$139)*(rng_rainfall=1)+SUM('LUCERNE PASTURE CEREAL R2'!O$114:O$114,'LUCERNE PASTURE CEREAL R2'!O$139:O$139)*(rng_rainfall=2)+SUM('LUCERNE PASTURE CEREAL R2'!R$114:R$114,'LUCERNE PASTURE CEREAL R2'!R$139:R$139)*(rng_rainfall=3))*(rng_LUC_CEREAL_DATA_SHEET_R2) -> 0 | Q71: =(SUM(SUM('LUCERNE PASTURE CEREAL R2'!U$114:W$114)/7,'LUCERNE PASTURE CEREAL R2'!U$139:W$139))*(rng_LUC_CEREAL_DATA_SHEET_R2) -> 0 | R71: =(SUM('LUCERNE PASTURE CEREAL R2'!L$142:L$143)*(rng_rainfall=1)+SUM('LUCERNE PASTURE CEREAL R2'!O$142:O$143)*(rng_rainfall=2)+SUM('LUCERNE PASTURE CEREAL R2'!R$142:R$143)*(rng_rainfall=3))*(rng_LUC_CEREAL_DATA_SHEET_R2) -> 0 | S71: =(SUM('LUCERNE PASTURE CEREAL R2'!U$142:W$143))*(rng_LUC_CEREAL_DATA_SHEET_R2) -> 0 | T71: 0 | U71: 0 | V71: 0 | W71: =('LUCERNE PASTURE CEREAL R2'!$U$161)*(rng_LUC_CEREAL_DATA_SHEET_R2) -> 0
B72: Lucerne Pasture Grazing | C72: =('LUCERNE PASTURE GRAZING R2'!U$6)*(rng_LUC_GRAZ_DATA_SHEET_R2) -> 0 | D72: =(SUM('LUCERNE PASTURE GRAZING R2'!L$163)*(rng_rainfall=1)+SUM('LUCERNE PASTURE GRAZING R2'!O$163)*(rng_rainfall=2)+SUM('LUCERNE PASTURE GRAZING R2'!R$163)*(rng_rainfall=3))*(rng_LUC_GRAZ_DATA_SHEET_R2) -> 0 | E72: =('LUCERNE PASTURE GRAZING R2'!U$163)*(rng_LUC_GRAZ_DATA_SHEET_R2) -> 0 | F72: =(SUM('LUCERNE PASTURE GRAZING R2'!L$11)*(rng_rainfall=1)+SUM('LUCERNE PASTURE GRAZING R2'!O$11)*(rng_rainfall=2)+SUM('LUCERNE PASTURE GRAZING R2'!R$11)*(rng_rainfall=3))*(rng_LUC_GRAZ_DATA_SHEET_R2) -> 0 | G72: =('LUCERNE PASTURE GRAZING R2'!U$11)*(rng_LUC_GRAZ_DATA_SHEET_R2) -> 0 | H72: =(SUM('LUCERNE PASTURE GRAZING R2'!L$14:L$34)*(rng_rainfall=1)+SUM('LUCERNE PASTURE GRAZING R2'!O$14:O$34)*(rng_rainfall=2)+SUM('LUCERNE PASTURE GRAZING R2'!R$14:R$34)*(rng_rainfall=3))*(rng_LUC_GRAZ_DATA_SHEET_R2) -> 0 | I72: =(SUM('LUCERNE PASTURE GRAZING R2'!U$14:U$34)/7)*(rng_LUC_GRAZ_DATA_SHEET_R2) -> 0 | J72: =(SUM('LUCERNE PASTURE GRAZING R2'!L$37:L$53,'LUCERNE PASTURE GRAZING R2'!L$135:L$136)*(rng_rainfall=1)+SUM('LUCERNE PASTURE GRAZING R2'!O$37:O$53,'LUCERNE PASTURE GRAZING R2'!O$135:O$136)*(rng_rainfall=2)+SUM('LUCERNE PASTURE GRAZING R2'!R$37:R$53,'LUCERNE PASTURE GRAZING R2'!R$135:R$136)*(rng_rainfall=3))*(rng_LUC_GRAZ_DATA_SHEET_R2) -> 0 | K72: =(SUM(SUM('LUCERNE PASTURE GRAZING R2'!U$37:U$53)/7,'LUCERNE PASTURE GRAZING R2'!U$135:U$136))*(rng_LUC_GRAZ_DATA_SHEET_R2) -> 0 | L72: =(SUM('LUCERNE PASTURE GRAZING R2'!L$57:L$111,'LUCERNE PASTURE GRAZING R2'!L$125:L$133)*(rng_rainfall=1)+SUM('LUCERNE PASTURE GRAZING R2'!O$57:O$111,'LUCERNE PASTURE GRAZING R2'!O$125:O$133)*(rng_rainfall=2)+SUM('LUCERNE PASTURE GRAZING R2'!R$57:R$111,'LUCERNE PASTURE GRAZING R2'!R$125:R$133)*(rng_rainfall=3))*(rng_LUC_GRAZ_DATA_SHEET_R2) -> 0 | M72: =(SUM(SUM('LUCERNE PASTURE GRAZING R2'!U$57:U$111)/7,'LUCERNE PASTURE GRAZING R2'!U$125:U$133))*(rng_LUC_GRAZ_DATA_SHEET_R2) -> 0 | N72: =(SUM('LUCERNE PASTURE GRAZING R2'!L$113:L$113,'LUCERNE PASTURE GRAZING R2'!L$138:L$138)*(rng_rainfall=1)+SUM('LUCERNE PASTURE GRAZING R2'!O$113:O$113,'LUCERNE PASTURE GRAZING R2'!O$138:O$138)*(rng_rainfall=2)+SUM('LUCERNE PASTURE GRAZING R2'!R$113:R$113,'LUCERNE PASTURE GRAZING R2'!R$138:R$138)*(rng_rainfall=3))*(rng_LUC_GRAZ_DATA_SHEET_R2) -> 0 | O72: =(SUM(SUM('LUCERNE PASTURE GRAZING R2'!U$113:U$113)/7,'LUCERNE PASTURE GRAZING R2'!U$138:U$138))*(rng_LUC_GRAZ_DATA_SHEET_R2) -> 0 | P72: =(SUM('LUCERNE PASTURE GRAZING R2'!L$114:L$114,'LUCERNE PASTURE GRAZING R2'!L$139:L$139)*(rng_rainfall=1)+SUM('LUCERNE PASTURE GRAZING R2'!O$114:O$114,'LUCERNE PASTURE GRAZING R2'!O$139:O$139)*(rng_rainfall=2)+SUM('LUCERNE PASTURE GRAZING R2'!R$114:R$114,'LUCERNE PASTURE GRAZING R2'!R$139:R$139)*(rng_rainfall=3))*(rng_LUC_GRAZ_DATA_SHEET_R2) -> 0 | Q72: =(SUM(SUM('LUCERNE PASTURE GRAZING R2'!U$114:W$114)/7,'LUCERNE PASTURE GRAZING R2'!U$139:W$139))*(rng_LUC_GRAZ_DATA_SHEET_R2) -> 0 | R72: =(SUM('LUCERNE PASTURE GRAZING R2'!L$142:L$143)*(rng_rainfall=1)+SUM('LUCERNE PASTURE GRAZING R2'!O$142:O$143)*(rng_rainfall=2)+SUM('LUCERNE PASTURE GRAZING R2'!R$142:R$143)*(rng_rainfall=3))*(rng_LUC_GRAZ_DATA_SHEET_R2) -> 0 | S72: =(SUM('LUCERNE PASTURE GRAZING R2'!U$142:W$143))*(rng_LUC_GRAZ_DATA_SHEET_R2) -> 0 | T72: 0 | U72: 0 | V72: 0 | W72: =('LUCERNE PASTURE GRAZING R2'!$U$161)*(rng_LUC_GRAZ_DATA_SHEET_R2) -> 0
B73: Phalaris Sub Pasture Cereal | C73: =('PHALARIS SUB PASTURE CEREAL R2'!U$6)*(rng_PHA_CEREAL_DATA_SHEET_R2) -> 0 | D73: =(SUM('PHALARIS SUB PASTURE CEREAL R2'!L$162)*(rng_rainfall=1)+SUM('PHALARIS SUB PASTURE CEREAL R2'!O$162)*(rng_rainfall=2)+SUM('PHALARIS SUB PASTURE CEREAL R2'!R$162)*(rng_rainfall=3))*(rng_PHA_CEREAL_DATA_SHEET_R2) -> 0 | E73: =('PHALARIS SUB PASTURE CEREAL R2'!U$162)*(rng_PHA_CEREAL_DATA_SHEET_R2) -> 0 | F73: =(SUM('PHALARIS SUB PASTURE CEREAL R2'!L$11)*(rng_rainfall=1)+SUM('PHALARIS SUB PASTURE CEREAL R2'!O$11)*(rng_rainfall=2)+SUM('PHALARIS SUB PASTURE CEREAL R2'!R$11)*(rng_rainfall=3))*(rng_PHA_CEREAL_DATA_SHEET_R2) -> 0 | G73: =('PHALARIS SUB PASTURE CEREAL R2'!U$11)*(rng_PHA_CEREAL_DATA_SHEET_R2) -> 0 | H73: =(SUM('PHALARIS SUB PASTURE CEREAL R2'!L$14:L$34)*(rng_rainfall=1)+SUM('PHALARIS SUB PASTURE CEREAL R2'!O$14:O$34)*(rng_rainfall=2)+SUM('PHALARIS SUB PASTURE CEREAL R2'!R$14:R$34)*(rng_rainfall=3))*(rng_PHA_CEREAL_DATA_SHEET_R2) -> 0 | I73: =(SUM('PHALARIS SUB PASTURE CEREAL R2'!U$14:U$34)/7)*(rng_PHA_CEREAL_DATA_SHEET_R2) -> 0 | J73: =(SUM('PHALARIS SUB PASTURE CEREAL R2'!L$37:L$53,'PHALARIS SUB PASTURE CEREAL R2'!L$134:L$135)*(rng_rainfall=1)+SUM('PHALARIS SUB PASTURE CEREAL R2'!O$37:O$53,'PHALARIS SUB PASTURE CEREAL R2'!O$134:O$135)*(rng_rainfall=2)+SUM('PHALARIS SUB PASTURE CEREAL R2'!R$37:R$53,'PHALARIS SUB PASTURE CEREAL R2'!R$134:R$135)*(rng_rainfall=3))*(rng_PHA_CEREAL_DATA_SHEET_R2) -> 0 | K73: =(SUM(SUM('PHALARIS SUB PASTURE CEREAL R2'!U$37:U$53)/7,'PHALARIS SUB PASTURE CEREAL R2'!U$134:U$135))*(rng_PHA_CEREAL_DATA_SHEET_R2) -> 0 | L73: =(SUM('PHALARIS SUB PASTURE CEREAL R2'!L$57:L$111,'PHALARIS SUB PASTURE CEREAL R2'!L$125:L$133)*(rng_rainfall=1)+SUM('PHALARIS SUB PASTURE CEREAL R2'!O$57:O$111,'PHALARIS SUB PASTURE CEREAL R2'!O$125:O$133)*(rng_rainfall=2)+SUM('PHALARIS SUB PASTURE CEREAL R2'!R$57:R$111,'PHALARIS SUB PASTURE CEREAL R2'!R$125:R$133)*(rng_rainfall=3))*(rng_PHA_CEREAL_DATA_SHEET_R2) -> 0 | M73: =(SUM(SUM('PHALARIS SUB PASTURE CEREAL R2'!U$57:U$111)/7,'PHALARIS SUB PASTURE CEREAL R2'!U$125:U$133))*(rng_PHA_CEREAL_DATA_SHEET_R2) -> 0 | N73: =(SUM('PHALARIS SUB PASTURE CEREAL R2'!L$113:L$113,'PHALARIS SUB PASTURE CEREAL R2'!L$138:L$138)*(rng_rainfall=1)+SUM('PHALARIS SUB PASTURE CEREAL R2'!O$113:O$113,'PHALARIS SUB PASTURE CEREAL R2'!O$138:O$138)*(rng_rainfall=2)+SUM('PHALARIS SUB PASTURE CEREAL R2'!R$113:R$113,'PHALARIS SUB PASTURE CEREAL R2'!R$138:R$138)*(rng_rainfall=3))*(rng_PHA_CEREAL_DATA_SHEET_R2) -> 0 | O73: =(SUM(SUM('PHALARIS SUB PASTURE CEREAL R2'!U$113:U$113)/7,'PHALARIS SUB PASTURE CEREAL R2'!U$138:U$138))*(rng_PHA_CEREAL_DATA_SHEET_R2) -> 0 | P73: =(SUM('PHALARIS SUB PASTURE CEREAL R2'!L$114:L$114,'PHALARIS SUB PASTURE CEREAL R2'!L$139:L$139)*(rng_rainfall=1)+SUM('PHALARIS SUB PASTURE CEREAL R2'!O$114:O$114,'PHALARIS SUB PASTURE CEREAL R2'!O$139:O$139)*(rng_rainfall=2)+SUM('PHALARIS SUB PASTURE CEREAL R2'!R$114:R$114,'PHALARIS SUB PASTURE CEREAL R2'!R$139:R$139)*(rng_rainfall=3))*(rng_PHA_CEREAL_DATA_SHEET_R2) -> 0 | Q73: =(SUM(SUM('PHALARIS SUB PASTURE CEREAL R2'!U$114:W$114)/7,'PHALARIS SUB PASTURE CEREAL R2'!U$139:W$139))*(rng_PHA_CEREAL_DATA_SHEET_R2) -> 0 | R73: =(SUM('PHALARIS SUB PASTURE CEREAL R2'!L$142:L$143)*(rng_rainfall=1)+SUM('PHALARIS SUB PASTURE CEREAL R2'!O$142:O$143)*(rng_rainfall=2)+SUM('PHALARIS SUB PASTURE CEREAL R2'!R$142:R$143)*(rng_rainfall=3))*(rng_PHA_CEREAL_DATA_SHEET_R2) -> 0 | S73: =(SUM('PHALARIS SUB PASTURE CEREAL R2'!U$142:W$143))*(rng_PHA_CEREAL_DATA_SHEET_R2) -> 0 | T73: 0 | U73: 0 | V73: 0 | W73: =('PHALARIS SUB PASTURE CEREAL R2'!$U$160)*(rng_PHA_CEREAL_DATA_SHEET_R2) -> 0
B74: Phalaris Sub Grazing | C74: =('PHALARIS SUB PASTURE GRAZING R2'!U$6)*(rng_PHA_GRAZING_DATA_SHEET_R2) -> 0 | D74: =(SUM('PHALARIS SUB PASTURE GRAZING R2'!L$162)*(rng_rainfall=1)+SUM('PHALARIS SUB PASTURE GRAZING R2'!O$162)*(rng_rainfall=2)+SUM('PHALARIS SUB PASTURE GRAZING R2'!R$162)*(rng_rainfall=3))*(rng_PHA_GRAZING_DATA_SHEET_R2) -> 0 | E74: =('PHALARIS SUB PASTURE GRAZING R2'!U$162)*(rng_PHA_GRAZING_DATA_SHEET_R2) -> 0 | F74: =(SUM('PHALARIS SUB PASTURE GRAZING R2'!L$11)*(rng_rainfall=1)+SUM('PHALARIS SUB PASTURE GRAZING R2'!O$11)*(rng_rainfall=2)+SUM('PHALARIS SUB PASTURE GRAZING R2'!R$11)*(rng_rainfall=3))*(rng_PHA_GRAZING_DATA_SHEET_R2) -> 0 | G74: =('PHALARIS SUB PASTURE GRAZING R2'!U$11)*(rng_PHA_GRAZING_DATA_SHEET_R2) -> 0 | H74: =(SUM('PHALARIS SUB PASTURE GRAZING R2'!L$14:L$34)*(rng_rainfall=1)+SUM('PHALARIS SUB PASTURE GRAZING R2'!O$14:O$34)*(rng_rainfall=2)+SUM('PHALARIS SUB PASTURE GRAZING R2'!R$14:R$34)*(rng_rainfall=3))*(rng_PHA_GRAZING_DATA_SHEET_R2) -> 0 | I74: =(SUM('PHALARIS SUB PASTURE GRAZING R2'!U$14:U$34)/7)*(rng_PHA_GRAZING_DATA_SHEET_R2) -> 0 | J74: =(SUM('PHALARIS SUB PASTURE GRAZING R2'!L$37:L$53,'PHALARIS SUB PASTURE GRAZING R2'!L$134:L$135)*(rng_rainfall=1)+SUM('PHALARIS SUB PASTURE GRAZING R2'!O$37:O$53,'PHALARIS SUB PASTURE GRAZING R2'!O$134:O$135)*(rng_rainfall=2)+SUM('PHALARIS SUB PASTURE GRAZING R2'!R$37:R$53,'PHALARIS SUB PASTURE GRAZING R2'!R$134:R$135)*(rng_rainfall=3))*(rng_PHA_GRAZING_DATA_SHEET_R2) -> 0 | K74: =(SUM(SUM('PHALARIS SUB PASTURE GRAZING R2'!U$37:U$53)/7,'PHALARIS SUB PASTURE GRAZING R2'!U$134:U$135))*(rng_PHA_GRAZING_DATA_SHEET_R2) -> 0 | L74: =(SUM('PHALARIS SUB PASTURE GRAZING R2'!L$57:L$111,'PHALARIS SUB PASTURE GRAZING R2'!L$125:L$133)*(rng_rainfall=1)+SUM('PHALARIS SUB PASTURE GRAZING R2'!O$57:O$111,'PHALARIS SUB PASTURE GRAZING R2'!O$125:O$133)*(rng_rainfall=2)+SUM('PHALARIS SUB PASTURE GRAZING R2'!R$57:R$111,'PHALARIS SUB PASTURE GRAZING R2'!R$125:R$133)*(rng_rainfall=3))*(rng_PHA_GRAZING_DATA_SHEET_R2) -> 0 | M74: =(SUM(SUM('PHALARIS SUB PASTURE GRAZING R2'!U$57:U$111)/7,'PHALARIS SUB PASTURE GRAZING R2'!U$125:U$133))*(rng_PHA_GRAZING_DATA_SHEET_R2) -> 0 | N74: =(SUM('PHALARIS SUB PASTURE GRAZING R2'!L$113:L$113,'PHALARIS SUB PASTURE GRAZING R2'!L$138:L$138)*(rng_rainfall=1)+SUM('PHALARIS SUB PASTURE GRAZING R2'!O$113:O$113,'PHALARIS SUB PASTURE GRAZING R2'!O$138:O$138)*(rng_rainfall=2)+SUM('PHALARIS SUB PASTURE GRAZING R2'!R$113:R$113,'PHALARIS SUB PASTURE GRAZING R2'!R$138:R$138)*(rng_rainfall=3))*(rng_PHA_GRAZING_DATA_SHEET_R2) -> 0 | O74: =(SUM(SUM('PHALARIS SUB PASTURE GRAZING R2'!U$113:U$113)/7,'PHALARIS SUB PASTURE GRAZING R2'!U$138:U$138))*(rng_PHA_GRAZING_DATA_SHEET_R2) -> 0 | P74: =(SUM('PHALARIS SUB PASTURE GRAZING R2'!L$114:L$114,'PHALARIS SUB PASTURE GRAZING R2'!L$139:L$139)*(rng_rainfall=1)+SUM('PHALARIS SUB PASTURE GRAZING R2'!O$114:O$114,'PHALARIS SUB PASTURE GRAZING R2'!O$139:O$139)*(rng_rainfall=2)+SUM('PHALARIS SUB PASTURE GRAZING R2'!R$114:R$114,'PHALARIS SUB PASTURE GRAZING R2'!R$139:R$139)*(rng_rainfall=3))*(rng_PHA_GRAZING_DATA_SHEET_R2) -> 0 | Q74: =(SUM(SUM('PHALARIS SUB PASTURE GRAZING R2'!U$114:W$114)/7,'PHALARIS SUB PASTURE GRAZING R2'!U$139:W$139))*(rng_PHA_GRAZING_DATA_SHEET_R2) -> 0 | R74: =(SUM('PHALARIS SUB PASTURE GRAZING R2'!L$142:L$143)*(rng_rainfall=1)+SUM('PHALARIS SUB PASTURE GRAZING R2'!O$142:O$143)*(rng_rainfall=2)+SUM('PHALARIS SUB PASTURE GRAZING R2'!R$142:R$143)*(rng_rainfall=3))*(rng_PHA_GRAZING_DATA_SHEET_R2) -> 0 | S74: =(SUM('PHALARIS SUB PASTURE GRAZING R2'!U$142:W$143))*(rng_PHA_GRAZING_DATA_SHEET_R2) -> 0 | T74: 0 | U74: 0 | V74: 0 | W74: =('PHALARIS SUB PASTURE GRAZING R2'!$U$160)*(rng_PHA_GRAZING_DATA_SHEET_R2) -> 0
B75: TOTAL-ROTATION 2 | C75: =SUM(C51:C74) -> 0 | E75: =SUM(E51:E74) -> 0 | G75: =SUM(G51:G74) -> 0 | I75: =SUM(I51:I74) -> 0 | K75: =SUM(K51:K74) -> 0 | M75: =SUM(M51:M74) -> 0 | O75: =SUM(O51:O74) -> 0 | Q75: =SUM(Q51:Q74) -> 0 | S75: =SUM(S51:S74) -> 0 | U75: =SUM(U51:U74) -> 0 | W75: =SUM(W51:W74) -> 0
B77: Profit and Loss Statement (Rotation 2)
B78: Overhead Costs | E78: Amount | F78: Comments
B79: General Overheads | F79: Rates, subscriptions, telephone, power, general insurance, general repairs etc
B80: General R&M | F80: ="Excluding "&IF(Q75=0,"",TEXT(Q75,"$#,##0_);($#,##0)"))&" Cropping R&M" -> Excluding Cropping R&M
B81: Permanent Wages | F81: Wages paid to permanent employees, including family members
B82: Managers allowance-personal drawings | F82: Personel drawings
B83: Machinery & plant depreciation | F83: Normally 8 to 12% of market value; usually allow 10% (do not include leased machinery)
B84: Infrastructure depreciation | F84: Buildings, fences & watering systems
B85: Leasing (land and machinery)
B86: Debt Servicing | F86: Interest and bank fees
B87: Total Overheads | E87: =SUM(E79:E86) -> 0
B88: Farm Business Profit / Loss | E88: =E75-E87 -> 0
B90: Percent Crop Income
B91: Wheat breakeven price | C91: (to cover variable | E91: =IFERROR(((C51/SUM(C51:C68)*SUM(E79,E81,E82,E85,E86)*E90)+(SUM(E83:E84)*(C51/SUM(C51:C68))))/(((var_rain="Low")*WHEAT!$L$10*WHEAT!$U$6)+((var_rain="medium")*WHEAT!$O$10*WHEAT!$U$6)+((var_rain="High")*WHEAT!$R$10*WHEAT!$U$6))+(((var_rain="Low")*WHEAT!$L$164)+((var_rain="medium")*WHEAT!$O$164)+((var_rain="High")*WHEAT!$R$164)),0) -> 0
B92: Wheat breakeven yield | C92: and overhead costs) | E92: =(E91*(((var_rain="Low")*WHEAT!$L$10)+((var_rain="medium")*WHEAT!$O$10)+((var_rain="High")*WHEAT!$R$10)))/(((var_rain="Low")*WHEAT!$L$8)+((var_rain="medium")*WHEAT!$O$8)+((var_rain="High")*WHEAT!$R$8)) ->  | F92: /t/ha

Sheet Cash Flow
A1: Cash Flow
A2: Insert percentage of estimated "Income" and "Expenses" for each month
A3: Note: All prices and costs are GST exclusive.
A4: Income | B4: March | C4: April | D4: May | E4: June | F4: July | G4: Aug | H4: Sept | I4: Oct | J4: Nov | K4: Dec | L4: Jan | M4: Feb
A5: Wheat
A6: Barley
A7: Other cereals
A8: Pulses
A9: Canola
A10: Hay
A12: Expenses
A13: Fertiliser
A14: Chemicals
A15: Fuel and Oil
A16: R & M machinery
A17: Bank Interest
A19: Cash Flow for Peak Debt
A20: System 1 | B20: March | C20: April | D20: May | E20: June | F20: July | G20: Aug | H20: Sept | I20: Oct | J20: Nov | K20: Dec | L20: Jan | M20: Feb | N20: Total
A21: Income
A22: Wheat | B22: =Summary!$G6*B5 -> 0 | C22: =Summary!$G6*C5 -> 0 | D22: =Summary!$G6*D5 -> 0 | E22: =Summary!$G6*E5 -> 0 | F22: =Summary!$G6*F5 -> 0 | G22: =Summary!$G6*G5 -> 0 | H22: =Summary!$G6*H5 -> 0 | I22: =Summary!$G6*I5 -> 0 | J22: =Summary!$G6*J5 -> 0 | K22: =Summary!$G6*K5 -> 0 | L22: =Summary!$G6*L5 -> 0 | M22: =Summary!$G6*M5 -> 0 | N22: =SUM(B22:M22) -> 0 | O22: Reset formulas in aqua cells to the left for this row only
A23: Barley | B23: =(Summary!$G8+Summary!$G9)*B6 -> 0 | C23: =(Summary!$G8+Summary!$G9)*C6 -> 0 | D23: =(Summary!$G8+Summary!$G9)*D6 -> 0 | E23: =(Summary!$G8+Summary!$G9)*E6 -> 0 | F23: =(Summary!$G8+Summary!$G9)*F6 -> 0 | G23: =(Summary!$G8+Summary!$G9)*G6 -> 0 | H23: =(Summary!$G8+Summary!$G9)*H6 -> 0 | I23: =(Summary!$G8+Summary!$G9)*I6 -> 0 | J23: =(Summary!$G8+Summary!$G9)*J6 -> 0 | K23: =(Summary!$G8+Summary!$G9)*K6 -> 0 | L23: =(Summary!$G8+Summary!$G9)*L6 -> 0 | M23: =(Summary!$G8+Summary!$G9)*M6 -> 0 | N23: 0 | O23: Reset formulas in aqua cells to the left for this row only
A24: Other cereals | B24: =(Summary!$G7+Summary!$G10+Summary!$G11)*'Cash Flow'!B7 -> 0 | C24: =(Summary!$G7+Summary!$G10+Summary!$G11)*'Cash Flow'!C7 -> 0 | D24: =(Summary!$G7+Summary!$G10+Summary!$G11)*'Cash Flow'!D7 -> 0 | E24: =(Summary!$G7+Summary!$G10+Summary!$G11)*'Cash Flow'!E7 -> 0 | F24: =(Summary!$G7+Summary!$G10+Summary!$G11)*'Cash Flow'!F7 -> 0 | G24: =(Summary!$G7+Summary!$G10+Summary!$G11)*'Cash Flow'!G7 -> 0 | H24: =(Summary!$G7+Summary!$G10+Summary!$G11)*'Cash Flow'!H7 -> 0 | I24: =(Summary!$G7+Summary!$G10+Summary!$G11)*'Cash Flow'!I7 -> 0 | J24: =(Summary!$G7+Summary!$G10+Summary!$G11)*'Cash Flow'!J7 -> 0 | K24: =(Summary!$G7+Summary!$G10+Summary!$G11)*'Cash Flow'!K7 -> 0 | L24: =(Summary!$G7+Summary!$G10+Summary!$G11)*'Cash Flow'!L7 -> 0 | M24: =(Summary!$G7+Summary!$G10+Summary!$G11)*'Cash Flow'!M7 -> 0 | N24: 0 | O24: Reset formulas in aqua cells to the left for this row only
A25: Pulses | B25: =(SUM(Summary!$G13:$G16)+Summary!$G18+Summary!$G19)*'Cash Flow'!B8 -> 0 | C25: =(SUM(Summary!$G13:$G16)+Summary!$G18+Summary!$G19)*'Cash Flow'!C8 -> 0 | D25: =(SUM(Summary!$G13:$G16)+Summary!$G18+Summary!$G19)*'Cash Flow'!D8 -> 0 | E25: =(SUM(Summary!$G13:$G16)+Summary!$G18+Summary!$G19)*'Cash Flow'!E8 -> 0 | F25: =(SUM(Summary!$G13:$G16)+Summary!$G18+Summary!$G19)*'Cash Flow'!F8 -> 0 | G25: =(SUM(Summary!$G13:$G16)+Summary!$G18+Summary!$G19)*'Cash Flow'!G8 -> 0 | H25: =(SUM(Summary!$G13:$G16)+Summary!$G18+Summary!$G19)*'Cash Flow'!H8 -> 0 | I25: =(SUM(Summary!$G13:$G16)+Summary!$G18+Summary!$G19)*'Cash Flow'!I8 -> 0 | J25: =(SUM(Summary!$G13:$G16)+Summary!$G18+Summary!$G19)*'Cash Flow'!J8 -> 0 | K25: =(SUM(Summary!$G13:$G16)+Summary!$G18+Summary!$G19)*'Cash Flow'!K8 -> 0 | L25: =(SUM(Summary!$G13:$G16)+Summary!$G18+Summary!$G19)*'Cash Flow'!L8 -> 0 | M25: =(SUM(Summary!$G13:$G16)+Summary!$G18+Summary!$G19)*'Cash Flow'!M8 -> 0 | N25: 0 | O25: Reset formulas in aqua cells to the left for this row only
A26: Canola | B26: =SUM(Summary!$G$20:$G$23)*'Cash Flow'!B9 -> 0 | C26: =SUM(Summary!$G$20:$G$23)*'Cash Flow'!C9 -> 0 | D26: =SUM(Summary!$G$20:$G$23)*'Cash Flow'!D9 -> 0 | E26: =SUM(Summary!$G$20:$G$23)*'Cash Flow'!E9 -> 0 | F26: =SUM(Summary!$G$20:$G$23)*'Cash Flow'!F9 -> 0 | G26: =SUM(Summary!$G$20:$G$23)*'Cash Flow'!G9 -> 0 | H26: =SUM(Summary!$G$20:$G$23)*'Cash Flow'!H9 -> 0 | I26: =SUM(Summary!$G$20:$G$23)*'Cash Flow'!I9 -> 0 | J26: =SUM(Summary!$G$20:$G$23)*'Cash Flow'!J9 -> 0 | K26: =SUM(Summary!$G$20:$G$23)*'Cash Flow'!K9 -> 0 | L26: =SUM(Summary!$G$20:$G$23)*'Cash Flow'!L9 -> 0 | M26: =SUM(Summary!$G$20:$G$23)*'Cash Flow'!M9 -> 0 | N26: 0 | O26: Reset formulas in aqua cells to the left for this row only
A27: Hay | B27: =Summary!$G12*'Cash Flow'!B10 -> 0 | C27: =Summary!$G12*'Cash Flow'!C10 -> 0 | D27: =Summary!$G12*'Cash Flow'!D10 -> 0 | E27: =Summary!$G12*'Cash Flow'!E10 -> 0 | F27: =Summary!$G12*'Cash Flow'!F10 -> 0 | G27: =Summary!$G12*'Cash Flow'!G10 -> 0 | H27: =Summary!$G12*'Cash Flow'!H10 -> 0 | I27: =Summary!$G12*'Cash Flow'!I10 -> 0 | J27: =Summary!$G12*'Cash Flow'!J10 -> 0 | K27: =Summary!$G12*'Cash Flow'!K10 -> 0 | L27: =Summary!$G12*'Cash Flow'!L10 -> 0 | M27: =Summary!$G12*'Cash Flow'!M10 -> 0 | N27: 0 | O27: Reset formulas in aqua cells to the left for this row only
A28: Wool | N28: 0 | P28: Obtain from Livestock Gross margins file
A29: Lamb Sales | N29: 0 | P29: Obtain from Livestock Gross margins file
A30: Other Livestock | N30: 0 | P30: Obtain from Livestock Gross margins file
A31: Contracting | N31: 0
A32: Other Income | N32: 0
N33: 0
N34: 0
A35: Monthly Income | B35: =SUM(B22:B32) -> 0 | C35: 0 | D35: 0 | E35: 0 | F35: 0 | G35: 0 | H35: 0 | I35: 0 | J35: 0 | K35: 0 | L35: 0 | M35: 0 | N35: 0
A37: Costs | B37: March | C37: April | D37: May | E37: June | F37: July | G37: Aug | H37: Sept | I37: Oct | J37: Nov | K37: Dec | L37: Jan | M37: Feb | N37: Total
A38: Fetiliser | B38: =Summary!$K30*'Cash Flow'!B13 -> 0 | C38: =Summary!$K30*'Cash Flow'!C13 -> 0 | D38: =Summary!$K30*'Cash Flow'!D13 -> 0 | E38: =Summary!$K30*'Cash Flow'!E13 -> 0 | F38: =Summary!$K30*'Cash Flow'!F13 -> 0 | G38: =Summary!$K30*'Cash Flow'!G13 -> 0 | H38: =Summary!$K30*'Cash Flow'!H13 -> 0 | I38: =Summary!$K30*'Cash Flow'!I13 -> 0 | J38: =Summary!$K30*'Cash Flow'!J13 -> 0 | K38: =Summary!$K30*'Cash Flow'!K13 -> 0 | L38: =Summary!$K30*'Cash Flow'!L13 -> 0 | M38: =Summary!$K30*'Cash Flow'!M13 -> 0 | N38: =SUM(B38:M38) -> 0 | O38: Reset formulas in aqua cells to the left for this row only
A39: Chemicals | B39: =Summary!$M30*B14 -> 0 | C39: =Summary!$M30*C14 -> 0 | D39: =Summary!$M30*D14 -> 0 | E39: =Summary!$M30*E14 -> 0 | F39: =Summary!$M30*F14 -> 0 | G39: =Summary!$M30*G14 -> 0 | H39: =Summary!$M30*H14 -> 0 | I39: =Summary!$M30*I14 -> 0 | J39: =Summary!$M30*J14 -> 0 | K39: =Summary!$M30*K14 -> 0 | L39: =Summary!$M30*L14 -> 0 | M39: =Summary!$M30*M14 -> 0 | N39: 0 | O39: Reset formulas in aqua cells to the left for this row only
A40: Seed | N40: 0 | O40: =Summary!I30 -> 0 | P40: Cropping/Pastures
A41: Fuel and Oil | N41: 0 | O41: =Summary!O30 -> 0 | P41: Cropping/Pastures
A42: R & M machinery | N42: 0 | O42: =Summary!Q30 -> 0 | P42: Cropping/Pastures
A43: R & M infrastructure | N43: 0
A44: Contract work | N44: 0
A45: Freight | N45: 0 | O45: =Summary!S30 -> 0 | P45: Cropping
A46: Land Lease | N46: 0
A47: Machinery Lease | N47: 0
A48: Bank Interest | B48: =Summary!$E41*B17 -> 0 | C48: =Summary!$E41*C17 -> 0 | D48: =Summary!$E41*D17 -> 0 | E48: =Summary!$E41*E17 -> 0 | F48: =Summary!$E41*F17 -> 0 | G48: =Summary!$E41*G17 -> 0 | H48: =Summary!$E41*H17 -> 0 | I48: =Summary!$E41*I17 -> 0 | J48: =Summary!$E41*J17 -> 0 | K48: =Summary!$E41*K17 -> 0 | L48: =Summary!$E41*L17 -> 0 | M48: =Summary!$E41*M17 -> 0 | N48: 0 | O48: Reset formulas in aqua cells to the left for this row only
A49: General Overheads | B49: =Summary!$E34/12 -> 0 | C49: =Summary!$E34/12 -> 0 | D49: =Summary!$E34/12 -> 0 | E49: =Summary!$E34/12 -> 0 | F49: =Summary!$E34/12 -> 0 | G49: =Summary!$E34/12 -> 0 | H49: =Summary!$E34/12 -> 0 | I49: =Summary!$E34/12 -> 0 | J49: =Summary!$E34/12 -> 0 | K49: =Summary!$E34/12 -> 0 | L49: =Summary!$E34/12 -> 0 | M49: =Summary!$E34/12 -> 0 | N49: 0 | O49: Reset formulas in aqua cells to the left for this row only
A50: Permanent Wages | B50: =Summary!$E36/12 -> 0 | C50: =Summary!$E36/12 -> 0 | D50: =Summary!$E36/12 -> 0 | E50: =Summary!$E36/12 -> 0 | F50: =Summary!$E36/12 -> 0 | G50: =Summary!$E36/12 -> 0 | H50: =Summary!$E36/12 -> 0 | I50: =Summary!$E36/12 -> 0 | J50: =Summary!$E36/12 -> 0 | K50: =Summary!$E36/12 -> 0 | L50: =Summary!$E36/12 -> 0 | M50: =Summary!$E36/12 -> 0 | N50: 0 | O50: Reset formulas in aqua cells to the left for this row only
A51: Personal Drawings | B51: =Summary!$E37/12 -> 0 | C51: =Summary!$E37/12 -> 0 | D51: =Summary!$E37/12 -> 0 | E51: =Summary!$E37/12 -> 0 | F51: =Summary!$E37/12 -> 0 | G51: =Summary!$E37/12 -> 0 | H51: =Summary!$E37/12 -> 0 | I51: =Summary!$E37/12 -> 0 | J51: =Summary!$E37/12 -> 0 | K51: =Summary!$E37/12 -> 0 | L51: =Summary!$E37/12 -> 0 | M51: =Summary!$E37/12 -> 0 | N51: 0 | O51: Reset formulas in aqua cells to the left for this row only
A52: Shearing & crutching | N52: 0 | P52: Obtain from Livestock Gross margins file
A53: Animal Health | N53: 0 | P53: Obtain from Livestock Gross margins file
A54: Livestock purchases | N54: 0 | P54: Obtain from Livestock Gross margins file
A55: Livestock Fodder | N55: 0
N56: 0
N57: 0
N58: 0
A59: Monthly Costs | B59: =SUM(B38:B55) -> 0 | C59: 0 | D59: 0 | E59: 0 | F59: 0 | G59: 0 | H59: 0 | I59: 0 | J59: 0 | K59: 0 | L59: 0 | M59: 0 | N59: 0
A60: Monthly Balance | B60: =B35-B59 -> 0 | C60: 0 | D60: 0 | E60: 0 | F60: 0 | G60: 0 | H60: 0 | I60: 0 | J60: 0 | K60: 0 | L60: 0 | M60: 0 | N60: 0
A61: Peak Debt | B61: =$B63+B60 -> 0 | C61: =B61+C60 -> 0 | D61: 0 | E61: 0 | F61: 0 | G61: 0 | H61: 0 | I61: 0 | J61: 0 | K61: 0 | L61: 0 | M61: 0
A63: Starting Balance | B63: 0 | C63: Short term debt as negative
A65: Peak Debt | B65: =MIN(B61:M61) -> 0

Sheet Cashflow Template (hidden)
A1: This is a system sheet. It contains the formulas for the cashflow sheet that are copied back when the reset macros are run
B22: =Summary!$G6*B5 -> 0 | C22: =Summary!$G6*C5 -> 0 | D22: =Summary!$G6*D5 -> 0 | E22: =Summary!$G6*E5 -> 0 | F22: =Summary!$G6*F5 -> 0 | G22: =Summary!$G6*G5 -> 0 | H22: =Summary!$G6*H5 -> 0 | I22: =Summary!$G6*I5 -> 0 | J22: =Summary!$G6*J5 -> 0 | K22: =Summary!$G6*K5 -> 0 | L22: =Summary!$G6*L5 -> 0 | M22: =Summary!$G6*M5 -> 0
B23: =(Summary!$G8+Summary!$G9)*B6 -> 0 | C23: =(Summary!$G8+Summary!$G9)*C6 -> 0 | D23: =(Summary!$G8+Summary!$G9)*D6 -> 0 | E23: =(Summary!$G8+Summary!$G9)*E6 -> 0 | F23: =(Summary!$G8+Summary!$G9)*F6 -> 0 | G23: =(Summary!$G8+Summary!$G9)*G6 -> 0 | H23: =(Summary!$G8+Summary!$G9)*H6 -> 0 | I23: =(Summary!$G8+Summary!$G9)*I6 -> 0 | J23: =(Summary!$G8+Summary!$G9)*J6 -> 0 | K23: =(Summary!$G8+Summary!$G9)*K6 -> 0 | L23: =(Summary!$G8+Summary!$G9)*L6 -> 0 | M23: =(Summary!$G8+Summary!$G9)*M6 -> 0
B24: =(Summary!$G7+Summary!$G10+Summary!$G11)*B7 -> 0 | C24: =(Summary!$G7+Summary!$G10+Summary!$G11)*C7 -> 0 | D24: =(Summary!$G7+Summary!$G10+Summary!$G11)*D7 -> 0 | E24: =(Summary!$G7+Summary!$G10+Summary!$G11)*E7 -> 0 | F24: =(Summary!$G7+Summary!$G10+Summary!$G11)*F7 -> 0 | G24: =(Summary!$G7+Summary!$G10+Summary!$G11)*G7 -> 0 | H24: =(Summary!$G7+Summary!$G10+Summary!$G11)*H7 -> 0 | I24: =(Summary!$G7+Summary!$G10+Summary!$G11)*I7 -> 0 | J24: =(Summary!$G7+Summary!$G10+Summary!$G11)*J7 -> 0 | K24: =(Summary!$G7+Summary!$G10+Summary!$G11)*K7 -> 0 | L24: =(Summary!$G7+Summary!$G10+Summary!$G11)*L7 -> 0 | M24: =(Summary!$G7+Summary!$G10+Summary!$G11)*M7 -> 0
B25: =(SUM(Summary!$G13:$G16)+Summary!$G18+Summary!$G19)*B8 -> 0 | C25: =(SUM(Summary!$G13:$G16)+Summary!$G18+Summary!$G19)*C8 -> 0 | D25: =(SUM(Summary!$G13:$G16)+Summary!$G18+Summary!$G19)*D8 -> 0 | E25: =(SUM(Summary!$G13:$G16)+Summary!$G18+Summary!$G19)*E8 -> 0 | F25: =(SUM(Summary!$G13:$G16)+Summary!$G18+Summary!$G19)*F8 -> 0 | G25: =(SUM(Summary!$G13:$G16)+Summary!$G18+Summary!$G19)*G8 -> 0 | H25: =(SUM(Summary!$G13:$G16)+Summary!$G18+Summary!$G19)*H8 -> 0 | I25: =(SUM(Summary!$G13:$G16)+Summary!$G18+Summary!$G19)*I8 -> 0 | J25: =(SUM(Summary!$G13:$G16)+Summary!$G18+Summary!$G19)*J8 -> 0 | K25: =(SUM(Summary!$G13:$G16)+Summary!$G18+Summary!$G19)*K8 -> 0 | L25: =(SUM(Summary!$G13:$G16)+Summary!$G18+Summary!$G19)*L8 -> 0 | M25: =(SUM(Summary!$G13:$G16)+Summary!$G18+Summary!$G19)*M8 -> 0
B26: =SUM(Summary!G20:G23)*B9 -> 0 | C26: =SUM(Summary!H20:H23)*C9 -> 0 | D26: =SUM(Summary!I20:I23)*D9 -> 0 | E26: =SUM(Summary!J20:J23)*E9 -> 0 | F26: =SUM(Summary!K20:K23)*F9 -> 0 | G26: =SUM(Summary!L20:L23)*G9 -> 0 | H26: =SUM(Summary!M20:M23)*H9 -> 0 | I26: =SUM(Summary!T20:T23)*I9 -> 0 | J26: =SUM(Summary!U20:U23)*J9 -> 0 | K26: =SUM(Summary!V20:V23)*K9 -> 0 | L26: =SUM(Summary!W20:W23)*L9 -> 0 | M26: =SUM(Summary!X20:X23)*M9 -> 0
B27: =Summary!$G12*B10 -> 0 | C27: =Summary!$G12*C10 -> 0 | D27: =Summary!$G12*D10 -> 0 | E27: =Summary!$G12*E10 -> 0 | F27: =Summary!$G12*F10 -> 0 | G27: =Summary!$G12*G10 -> 0 | H27: =Summary!$G12*H10 -> 0 | I27: =Summary!$G12*I10 -> 0 | J27: =Summary!$G12*J10 -> 0 | K27: =Summary!$G12*K10 -> 0 | L27: =Summary!$G12*L10 -> 0 | M27: =Summary!$G12*M10 -> 0
B38: =Summary!$K30*B13 -> 0 | C38: =Summary!$K30*C13 -> 0 | D38: =Summary!$K30*D13 -> 0 | E38: =Summary!$K30*E13 -> 0 | F38: =Summary!$K30*F13 -> 0 | G38: =Summary!$K30*G13 -> 0 | H38: =Summary!$K30*H13 -> 0 | I38: =Summary!$K30*I13 -> 0 | J38: =Summary!$K30*J13 -> 0 | K38: =Summary!$K30*K13 -> 0 | L38: =Summary!$K30*L13 -> 0 | M38: =Summary!$K30*M13 -> 0
B39: =Summary!$M30*B14 -> 0 | C39: =Summary!$M30*C14 -> 0 | D39: =Summary!$M30*D14 -> 0 | E39: =Summary!$M30*E14 -> 0 | F39: =Summary!$M30*F14 -> 0 | G39: =Summary!$M30*G14 -> 0 | H39: =Summary!$M30*H14 -> 0 | I39: =Summary!$M30*I14 -> 0 | J39: =Summary!$M30*J14 -> 0 | K39: =Summary!$M30*K14 -> 0 | L39: =Summary!$M30*L14 -> 0 | M39: =Summary!$M30*M14 -> 0
B48: =Summary!$E41*B17 -> 0 | C48: =Summary!$E41*C17 -> 0 | D48: =Summary!$E41*D17 -> 0 | E48: =Summary!$E41*E17 -> 0 | F48: =Summary!$E41*F17 -> 0 | G48: =Summary!$E41*G17 -> 0 | H48: =Summary!$E41*H17 -> 0 | I48: =Summary!$E41*I17 -> 0 | J48: =Summary!$E41*J17 -> 0 | K48: =Summary!$E41*K17 -> 0 | L48: =Summary!$E41*L17 -> 0 | M48: =Summary!$E41*M17 -> 0
B49: =Summary!$E34/12 -> 0 | C49: =Summary!$E34/12 -> 0 | D49: =Summary!$E34/12 -> 0 | E49: =Summary!$E34/12 -> 0 | F49: =Summary!$E34/12 -> 0 | G49: =Summary!$E34/12 -> 0 | H49: =Summary!$E34/12 -> 0 | I49: =Summary!$E34/12 -> 0 | J49: =Summary!$E34/12 -> 0 | K49: =Summary!$E34/12 -> 0 | L49: =Summary!$E34/12 -> 0 | M49: =Summary!$E34/12 -> 0
B50: =Summary!$E36/12 -> 0 | C50: =Summary!$E36/12 -> 0 | D50: =Summary!$E36/12 -> 0 | E50: =Summary!$E36/12 -> 0 | F50: =Summary!$E36/12 -> 0 | G50: =Summary!$E36/12 -> 0 | H50: =Summary!$E36/12 -> 0 | I50: =Summary!$E36/12 -> 0 | J50: =Summary!$E36/12 -> 0 | K50: =Summary!$E36/12 -> 0 | L50: =Summary!$E36/12 -> 0 | M50: =Summary!$E36/12 -> 0
B51: =Summary!$E37/12 -> 0 | C51: =Summary!$E37/12 -> 0 | D51: =Summary!$E37/12 -> 0 | E51: =Summary!$E37/12 -> 0 | F51: =Summary!$E37/12 -> 0 | G51: =Summary!$E37/12 -> 0 | H51: =Summary!$E37/12 -> 0 | I51: =Summary!$E37/12 -> 0 | J51: =Summary!$E37/12 -> 0 | K51: =Summary!$E37/12 -> 0 | L51: =Summary!$E37/12 -> 0 | M51: =Summary!$E37/12 -> 0

Sheet CROP SHEETS>>
B2: INTENTIONALLY BLANK

Sheet WHEAT (hidden)
C1: Wheat | F1: hide | G1: show | H1: hide | I1: show | J1: =IF(rng_rainfall=1,"show","hide") -> hide | K1: hide | L1: =IF(rng_rainfall=1,"show","hide") -> hide | M1: =IF(rng_rainfall=2,"show","hide") -> hide | N1: hide | O1: =IF(rng_rainfall=2,"show","hide") -> hide | P1: =IF(rng_rainfall=3,"show","hide") -> hide | Q1: hide | R1: =IF(rng_rainfall=3,"show","hide") -> hide | S1: hide
C2: =UPPER(var_crop)&" "&IF(var_rotationtype=2,"ROTATION 1","")&" GROSS MARGIN - "&TEXT(m_year,"0000") -> WHEAT GROSS MARGIN - 2025
Y3: Reset Yellow Cell Formulas Below
C4: INCOME | L4: RAINFALL | O4: RAINFALL | R4: RAINFALL | U4: YOUR | Z4: ="GM SENSITIVITY-"&var_crop -> GM SENSITIVITY-Wheat | AD4: Cash Price $/t
C5: =IF(rng_rainfall="","PLEASE SELECT A RAINFALL ZONE ON THE MAIN SHEET!","") -> PLEASE SELECT A RAINFALL ZONE ON THE MAIN SHEET! | L5: ZONE | O5: ZONE | R5: ZONE | U5: ESTIMATE | Z5: =var_rain&" Rainfall" ->  | AB5: Poor | AC5: Below Average | AD5: Average | AE5: Above Average | AF5: Very Good
C6: =IF(rng_machinery="","PLEASE SELECT A MACHINERY METHOD ON THE MAIN SHEET!","") -> PLEASE SELECT A MACHINERY METHOD ON THE MAIN SHEET! | L6: LOW | O6: MEDIUM | R6: HIGH | V6: =IF(ISBLANK(U6),"<-Enter Crop Size in Ha","Ha") -> <-Enter Crop Size in Ha | AA6: Yield $/t | AB6: =VLOOKUP(var_crop,tbl_hist_prices[],MATCH("Price_"&var_rain&"_"&AB$5,tbl_hist_prices[#Headers],0),0) ->  | AC6: =VLOOKUP(var_crop,tbl_hist_prices[],MATCH("Price_"&var_rain&"_"&AC$5,tbl_hist_prices[#Headers],0),0) ->  | AD6: =VLOOKUP(var_crop,tbl_hist_prices[],MATCH("Price_"&var_rain&"_"&AD$5,tbl_hist_prices[#Headers],0),0) ->  | AE6: =VLOOKUP(var_crop,tbl_hist_prices[],MATCH("Price_"&var_rain&"_"&AE$5,tbl_hist_prices[#Headers],0),0) ->  | AF6: =VLOOKUP(var_crop,tbl_hist_prices[],MATCH("Price_"&var_rain&"_"&AF$5,tbl_hist_prices[#Headers],0),0) -> 
Z7: Poor | AA7: =VLOOKUP(var_crop,tbl_hist_prices[],MATCH(var_rain&"_"&Z7,tbl_hist_prices[#Headers],0),0) ->  | AB7: =AB$6*$AA7-SUM(OFFSET($L$15,0,(rng_rainfall*3)-3,15),OFFSET($L$38,0,(rng_rainfall*3)-3,98),OFFSET($L$137,0,(rng_rainfall*3)-3,11),OFFSET($L$153,0,(rng_rainfall*3)-3,4))-AB$6*$AA7*($E$32+$E$151/1000)-$AA7*($E$33+$E$136) -> 
C8: ="Price ("&Year_Short&" Forecast)" -> Price (25/26 Forecast) | I8: Reset Price | L8: =VLOOKUP(var_crop,tbl_hist_prices[#Data],MATCH("Price_"&L6&"_Average",tbl_hist_prices[#Headers],0),0) -> 340 | M8: =VLOOKUP(var_crop,tbl_hist_prices[#Data],MATCH("Price_"&R[-2]C&"_Average",tbl_hist_prices[#Headers],0),0) | O8: =VLOOKUP(var_crop,tbl_hist_prices[#Data],MATCH("Price_"&O6&"_Average",tbl_hist_prices[#Headers],0),0) -> 340 | P8: =VLOOKUP(var_crop,tbl_hist_prices[#Data],MATCH("Price_"&R[-2]C&"_Average",tbl_hist_prices[#Headers],0),0) | R8: =VLOOKUP(var_crop,tbl_hist_prices[#Data],MATCH("Price_"&R6&"_Average",tbl_hist_prices[#Headers],0),0) -> 340 | S8: =VLOOKUP(var_crop,tbl_hist_prices[#Data],MATCH("Price_"&R[-2]C&"_Average",tbl_hist_prices[#Headers],0),0) | U8: =$U$6*(IF(rng_rainfall=1,L8*L10,IF(rng_rainfall=2,O8*O10,R8*R10))) -> 0 | Z8: Below Average | AA8: =VLOOKUP(var_crop,tbl_hist_prices[],MATCH(var_rain&"_"&Z8,tbl_hist_prices[#Headers],0),0) -> 
Z9: Average | AA9: =VLOOKUP(var_crop,tbl_hist_prices[],MATCH(var_rain&"_"&Z9,tbl_hist_prices[#Headers],0),0) -> 
C10: Yield (t/ha) | I10: Reset Yield | L10: =VLOOKUP(var_crop,tbl_hist_prices[],MATCH("LOW"&"_AVERAGE",tbl_hist_prices[[#Headers],[Commodity]:[High_Very Good]],0),0) -> 1.8 | M10: =VLOOKUP(var_crop,tbl_hist_prices,MATCH("LOW"&"_AVERAGE",tbl_hist_prices[[#Headers],[Commodity]:[High_Very Good]],0),0) | O10: =VLOOKUP(var_crop,tbl_hist_prices[],MATCH("MEDIUM"&"_AVERAGE",tbl_hist_prices[[#Headers],[Commodity]:[High_Very Good]],0),0) -> 3.2 | P10: =VLOOKUP(var_crop,tbl_hist_prices,MATCH("MEDIUM"&"_AVERAGE",tbl_hist_prices[[#Headers],[Commodity]:[High_Very Good]],0),0) | R10: =VLOOKUP(var_crop,tbl_hist_prices[],MATCH("HIGH"&"_AVERAGE",tbl_hist_prices[[#Headers],[Commodity]:[High_Very Good]],0),0) -> 4.8 | S10: =VLOOKUP(var_crop,tbl_hist_prices,MATCH("HIGH"&"_AVERAGE",tbl_hist_prices[[#Headers],[Commodity]:[High_Very Good]],0),0) | Z10: Above Average | AA10: =VLOOKUP(var_crop,tbl_hist_prices[],MATCH(var_rain&"_"&Z10,tbl_hist_prices[#Headers],0),0) -> 
C11: GROSS INCOME | L11: =L8*L10 -> 612 | O11: =O8*O10 -> 1088 | R11: =R8*R10 -> 1632 | U11: =SUM(U8:U10) -> 0 | Z11: Very Good | AA11: =VLOOKUP(var_crop,tbl_hist_prices[],MATCH(var_rain&"_"&Z11,tbl_hist_prices[#Headers],0),0) -> 
C12: VARIABLE COSTS
C14: Seed | E14: Cost | G14: Unit | J14: Rate/ha | L14: $/ha | M14: Rate/ha | O14: $/ha | P14: Rate/ha | R14: $/ha | U14: $
C15: Seed | D15: Reset Cost | E15: =VLOOKUP($C15&"Cost",CHOOSE({1,2},tbl_seed[Name]&tbl_seed[Type],INDIRECT("tbl_seed["&var_crop&"]")),2,0) -> 0.38 | F15: =VLOOKUP(R[0]C3&"Cost",CHOOSE({1,2},tbl_seed[Name]&tbl_seed[Type],INDIRECT("tbl_seed["&var_crop&"]")),2,0) | G15: =VLOOKUP($C15&"Cost",CHOOSE({1,2},tbl_seed[Name]&tbl_seed[Type],tbl_seed[Unit]),2,0) -> $/kg | H15: =VLOOKUP(r[0]c3&"Cost",CHOOSE({1,2},tbl_seed[Name]&tbl_seed[Type],tbl_seed[Unit]),2,0) | I15: Reset Rate | J15: =VLOOKUP($C15&"Low",CHOOSE({1,2},tbl_seed[Name]&tbl_seed[Rainfall],INDIRECT("tbl_seed["&var_crop&"]")),2,0) -> 60 | K15: =VLOOKUP(r[0]c3&"Low",CHOOSE({1,2},tbl_seed[Name]&tbl_seed[Rainfall],INDIRECT("tbl_seed["&var_crop&"]")),2,0) | L15: =(J15*E15) -> 22.8 | M15: =VLOOKUP($C15&"Medium",CHOOSE({1,2},tbl_seed[Name]&tbl_seed[Rainfall],INDIRECT("tbl_seed["&var_crop&"]")),2,0) -> 80 | N15: =VLOOKUP(r[0]c3&"Medium",CHOOSE({1,2},tbl_seed[Name]&tbl_seed[Rainfall],INDIRECT("tbl_seed["&var_crop&"]")),2,0) | O15: =(M15*E15) -> 30.4 | P15: =VLOOKUP($C15&"High",CHOOSE({1,2},tbl_seed[Name]&tbl_seed[Rainfall],INDIRECT("tbl_seed["&var_crop&"]")),2,0) -> 100 | Q15: =VLOOKUP(r[0]c3&"High",CHOOSE({1,2},tbl_seed[Name]&tbl_seed[Rainfall],INDIRECT("tbl_seed["&var_crop&"]")),2,0) | R15: =P15*E15 -> 38 | U15: =$U$6*(IF(rng_rainfall=1,L15,IF(rng_rainfall=2,O15,R15))) -> 0
C16: Seed Treatment(1) Smuts and Bunts | D16: Reset Cost | E16: =VLOOKUP($C16&"Cost",CHOOSE({1,2},tbl_seed[Name]&tbl_seed[Type],INDIRECT("tbl_seed["&var_crop&"]")),2,0) -> 0.046 | F16: =VLOOKUP(R[0]C3&"Cost",CHOOSE({1,2},tbl_seed[Name]&tbl_seed[Type],INDIRECT("tbl_seed["&var_crop&"]")),2,0) | G16: =VLOOKUP($C16&"Cost",CHOOSE({1,2},tbl_seed[Name]&tbl_seed[Type],tbl_seed[Unit]),2,0) -> $/kg | H16: =VLOOKUP(r[0]c3&"Cost",CHOOSE({1,2},tbl_seed[Name]&tbl_seed[Type],tbl_seed[Unit]),2,0) | I16: Reset Rate | J16: =VLOOKUP($C16&"Low",CHOOSE({1,2},tbl_seed[Name]&tbl_seed[Rainfall],INDIRECT("tbl_seed["&var_crop&"]")),2,0) -> 60 | K16: =VLOOKUP(r[0]c3&"Low",CHOOSE({1,2},tbl_seed[Name]&tbl_seed[Rainfall],INDIRECT("tbl_seed["&var_crop&"]")),2,0) | L16: =(J16*E16) -> 2.76 | M16: =VLOOKUP($C16&"Medium",CHOOSE({1,2},tbl_seed[Name]&tbl_seed[Rainfall],INDIRECT("tbl_seed["&var_crop&"]")),2,0) -> 80 | N16: =VLOOKUP(r[0]c3&"Medium",CHOOSE({1,2},tbl_seed[Name]&tbl_seed[Rainfall],INDIRECT("tbl_seed["&var_crop&"]")),2,0) | O16: 3.68 | P16: =VLOOKUP($C16&"High",CHOOSE({1,2},tbl_seed[Name]&tbl_seed[Rainfall],INDIRECT("tbl_seed["&var_crop&"]")),2,0) -> 100 | Q16: =VLOOKUP(r[0]c3&"High",CHOOSE({1,2},tbl_seed[Name]&tbl_seed[Rainfall],INDIRECT("tbl_seed["&var_crop&"]")),2,0) | R16: =P16*E16 -> 4.6 | U16: =$U$6*(IF(rng_rainfall=1,L16,IF(rng_rainfall=2,O16,R16))) -> 0
C17: Seed Treatment(2) Systiva Seed Dressing | D17: Reset Cost | E17: =VLOOKUP($C17&"Cost",CHOOSE({1,2},tbl_seed[Name]&tbl_seed[Type],INDIRECT("tbl_seed["&var_crop&"]")),2,0) -> 0.102 | F17: =VLOOKUP(R[0]C3&"Cost",CHOOSE({1,2},tbl_seed[Name]&tbl_seed[Type],INDIRECT("tbl_seed["&var_crop&"]")),2,0) | G17: =VLOOKUP($C17&"Cost",CHOOSE({1,2},tbl_seed[Name]&tbl_seed[Type],tbl_seed[Unit]),2,0) -> $/kg | H17: =VLOOKUP(r[0]c3&"Cost",CHOOSE({1,2},tbl_seed[Name]&tbl_seed[Type],tbl_seed[Unit]),2,0) | I17: Reset Rate | J17: =VLOOKUP($C17&"Low",CHOOSE({1,2},tbl_seed[Name]&tbl_seed[Rainfall],INDIRECT("tbl_seed["&var_crop&"]")),2,0) -> 60 | K17: =VLOOKUP(r[0]c3&"Low",CHOOSE({1,2},tbl_seed[Name]&tbl_seed[Rainfall],INDIRECT("tbl_seed["&var_crop&"]")),2,0) | L17: =(J17*E17) -> 6.12 | M17: =VLOOKUP($C17&"Medium",CHOOSE({1,2},tbl_seed[Name]&tbl_seed[Rainfall],INDIRECT("tbl_seed["&var_crop&"]")),2,0) -> 80 | N17: =VLOOKUP(r[0]c3&"Medium",CHOOSE({1,2},tbl_seed[Name]&tbl_seed[Rainfall],INDIRECT("tbl_seed["&var_crop&"]")),2,0) | O17: 8.16 | P17: =VLOOKUP($C17&"High",CHOOSE({1,2},tbl_seed[Name]&tbl_seed[Rainfall],INDIRECT("tbl_seed["&var_crop&"]")),2,0) -> 100 | Q17: =VLOOKUP(r[0]c3&"High",CHOOSE({1,2},tbl_seed[Name]&tbl_seed[Rainfall],INDIRECT("tbl_seed["&var_crop&"]")),2,0) | R17: =P17*E17 -> 10.2 | U17: =$U$6*(IF(rng_rainfall=1,L17,IF(rng_rainfall=2,O17,R17))) -> 0
D18: Reset Cost | F18: =VLOOKUP(R[0]C3&"Cost",CHOOSE({1,2},tbl_seed[Name]&tbl_seed[Type],INDIRECT("tbl_seed["&var_crop&"]")),2,0) | H18: =VLOOKUP(r[0]c3&"Cost",CHOOSE({1,2},tbl_seed[Name]&tbl_seed[Type],tbl_seed[Unit]),2,0) | I18: Reset Rate | K18: =VLOOKUP(r[0]c3&"Low",CHOOSE({1,2},tbl_seed[Name]&tbl_seed[Rainfall],INDIRECT("tbl_seed["&var_crop&"]")),2,0) | L18: =(J18*E18) -> 0 | N18: =VLOOKUP(r[0]c3&"Medium",CHOOSE({1,2},tbl_seed[Name]&tbl_seed[Rainfall],INDIRECT("tbl_seed["&var_crop&"]")),2,0) | O18: 0 | Q18: =VLOOKUP(r[0]c3&"High",CHOOSE({1,2},tbl_seed[Name]&tbl_seed[Rainfall],INDIRECT("tbl_seed["&var_crop&"]")),2,0) | R18: =P18*E18 -> 0 | U18: =$U$6*(IF(rng_rainfall=1,L18,IF(rng_rainfall=2,O18,R18))) -> 0
D19: Reset Cost | F19: =VLOOKUP(R[0]C3&"Cost",CHOOSE({1,2},tbl_seed[Name]&tbl_seed[Type],INDIRECT("tbl_seed["&var_crop&"]")),2,0) | H19: =VLOOKUP(r[0]c3&"Cost",CHOOSE({1,2},tbl_seed[Name]&tbl_seed[Type],tbl_seed[Unit]),2,0) | I19: Reset Rate | K19: =VLOOKUP(r[0]c3&"Low",CHOOSE({1,2},tbl_seed[Name]&tbl_seed[Rainfall],INDIRECT("tbl_seed["&var_crop&"]")),2,0) | L19: =(J19*E19) -> 0 | N19: =VLOOKUP(r[0]c3&"Medium",CHOOSE({1,2},tbl_seed[Name]&tbl_seed[Rainfall],INDIRECT("tbl_seed["&var_crop&"]")),2,0) | O19: 0 | Q19: =VLOOKUP(r[0]c3&"High",CHOOSE({1,2},tbl_seed[Name]&tbl_seed[Rainfall],INDIRECT("tbl_seed["&var_crop&"]")),2,0) | R19: =P19*E19 -> 0 | U19: =$U$6*(IF(rng_rainfall=1,L19,IF(rng_rainfall=2,O19,R19))) -> 0
D20: Reset Cost | F20: =VLOOKUP(R[0]C3&"Cost",CHOOSE({1,2},tbl_seed[Name]&tbl_seed[Type],INDIRECT("tbl_seed["&var_crop&"]")),2,0) | H20: =VLOOKUP(r[0]c3&"Cost",CHOOSE({1,2},tbl_seed[Name]&tbl_seed[Type],tbl_seed[Unit]),2,0) | I20: Reset Rate | K20: =VLOOKUP(r[0]c3&"Low",CHOOSE({1,2},tbl_seed[Name]&tbl_seed[Rainfall],INDIRECT("tbl_seed["&var_crop&"]")),2,0) | L20: =(J20*E20) -> 0 | N20: =VLOOKUP(r[0]c3&"Medium",CHOOSE({1,2},tbl_seed[Name]&tbl_seed[Rainfall],INDIRECT("tbl_seed["&var_crop&"]")),2,0) | O20: 0 | Q20: =VLOOKUP(r[0]c3&"High",CHOOSE({1,2},tbl_seed[Name]&tbl_seed[Rainfall],INDIRECT("tbl_seed["&var_crop&"]")),2,0) | R20: =P20*E20 -> 0 | U20: =$U$6*(IF(rng_rainfall=1,L20,IF(rng_rainfall=2,O20,R20))) -> 0
D21: Reset Cost | F21: =VLOOKUP(R[0]C3&"Cost",CHOOSE({1,2},tbl_seed[Name]&tbl_seed[Type],INDIRECT("tbl_seed["&var_crop&"]")),2,0) | H21: =VLOOKUP(r[0]c3&"Cost",CHOOSE({1,2},tbl_seed[Name]&tbl_seed[Type],tbl_seed[Unit]),2,0) | I21: Reset Rate | K21: =VLOOKUP(r[0]c3&"Low",CHOOSE({1,2},tbl_seed[Name]&tbl_seed[Rainfall],INDIRECT("tbl_seed["&var_crop&"]")),2,0) | L21: 0 | N21: =VLOOKUP(r[0]c3&"Medium",CHOOSE({1,2},tbl_seed[Name]&tbl_seed[Rainfall],INDIRECT("tbl_seed["&var_crop&"]")),2,0) | O21: 0 | Q21: =VLOOKUP(r[0]c3&"High",CHOOSE({1,2},tbl_seed[Name]&tbl_seed[Rainfall],INDIRECT("tbl_seed["&var_crop&"]")),2,0) | R21: 0 | U21: 0
D22: Reset Cost | F22: =VLOOKUP(R[0]C3&"Cost",CHOOSE({1,2},tbl_seed[Name]&tbl_seed[Type],INDIRECT("tbl_seed["&var_crop&"]")),2,0) | H22: =VLOOKUP(r[0]c3&"Cost",CHOOSE({1,2},tbl_seed[Name]&tbl_seed[Type],tbl_seed[Unit]),2,0) | I22: Reset Rate | K22: =VLOOKUP(r[0]c3&"Low",CHOOSE({1,2},tbl_seed[Name]&tbl_seed[Rainfall],INDIRECT("tbl_seed["&var_crop&"]")),2,0) | L22: 0 | N22: =VLOOKUP(r[0]c3&"Medium",CHOOSE({1,2},tbl_seed[Name]&tbl_seed[Rainfall],INDIRECT("tbl_seed["&var_crop&"]")),2,0) | O22: 0 | Q22: =VLOOKUP(r[0]c3&"High",CHOOSE({1,2},tbl_seed[Name]&tbl_seed[Rainfall],INDIRECT("tbl_seed["&var_crop&"]")),2,0) | R22: 0 | U22: 0
D23: Reset Cost | F23: =VLOOKUP(R[0]C3&"Cost",CHOOSE({1,2},tbl_seed[Name]&tbl_seed[Type],INDIRECT("tbl_seed["&var_crop&"]")),2,0) | H23: =VLOOKUP(r[0]c3&"Cost",CHOOSE({1,2},tbl_seed[Name]&tbl_seed[Type],tbl_seed[Unit]),2,0) | I23: Reset Rate | K23: =VLOOKUP(r[0]c3&"Low",CHOOSE({1,2},tbl_seed[Name]&tbl_seed[Rainfall],INDIRECT("tbl_seed["&var_crop&"]")),2,0) | L23: 0 | N23: =VLOOKUP(r[0]c3&"Medium",CHOOSE({1,2},tbl_seed[Name]&tbl_seed[Rainfall],INDIRECT("tbl_seed["&var_crop&"]")),2,0) | O23: 0 | Q23: =VLOOKUP(r[0]c3&"High",CHOOSE({1,2},tbl_seed[Name]&tbl_seed[Rainfall],INDIRECT("tbl_seed["&var_crop&"]")),2,0) | R23: 0 | U23: 0
D24: Reset Cost | F24: =VLOOKUP(R[0]C3&"Cost",CHOOSE({1,2},tbl_seed[Name]&tbl_seed[Type],INDIRECT("tbl_seed["&var_crop&"]")),2,0) | H24: =VLOOKUP(r[0]c3&"Cost",CHOOSE({1,2},tbl_seed[Name]&tbl_seed[Type],tbl_seed[Unit]),2,0) | I24: Reset Rate | K24: =VLOOKUP(r[0]c3&"Low",CHOOSE({1,2},tbl_seed[Name]&tbl_seed[Rainfall],INDIRECT("tbl_seed["&var_crop&"]")),2,0) | L24: 0 | N24: =VLOOKUP(r[0]c3&"Medium",CHOOSE({1,2},tbl_seed[Name]&tbl_seed[Rainfall],INDIRECT("tbl_seed["&var_crop&"]")),2,0) | O24: 0 | Q24: =VLOOKUP(r[0]c3&"High",CHOOSE({1,2},tbl_seed[Name]&tbl_seed[Rainfall],INDIRECT("tbl_seed["&var_crop&"]")),2,0) | R24: 0 | U24: 0
D25: Reset Cost | F25: =VLOOKUP(R[0]C3&"Cost",CHOOSE({1,2},tbl_seed[Name]&tbl_seed[Type],INDIRECT("tbl_seed["&var_crop&"]")),2,0) | H25: =VLOOKUP(r[0]c3&"Cost",CHOOSE({1,2},tbl_seed[Name]&tbl_seed[Type],tbl_seed[Unit]),2,0) | I25: Reset Rate | K25: =VLOOKUP(r[0]c3&"Low",CHOOSE({1,2},tbl_seed[Name]&tbl_seed[Rainfall],INDIRECT("tbl_seed["&var_crop&"]")),2,0) | L25: 0 | N25: =VLOOKUP(r[0]c3&"Medium",CHOOSE({1,2},tbl_seed[Name]&tbl_seed[Rainfall],INDIRECT("tbl_seed["&var_crop&"]")),2,0) | O25: 0 | Q25: =VLOOKUP(r[0]c3&"High",CHOOSE({1,2},tbl_seed[Name]&tbl_seed[Rainfall],INDIRECT("tbl_seed["&var_crop&"]")),2,0) | R25: 0 | U25: 0
D26: Reset Cost | F26: =VLOOKUP(R[0]C3&"Cost",CHOOSE({1,2},tbl_seed[Name]&tbl_seed[Type],INDIRECT("tbl_seed["&var_crop&"]")),2,0) | H26: =VLOOKUP(r[0]c3&"Cost",CHOOSE({1,2},tbl_seed[Name]&tbl_seed[Type],tbl_seed[Unit]),2,0) | I26: Reset Rate | K26: =VLOOKUP(r[0]c3&"Low",CHOOSE({1,2},tbl_seed[Name]&tbl_seed[Rainfall],INDIRECT("tbl_seed["&var_crop&"]")),2,0) | L26: 0 | N26: =VLOOKUP(r[0]c3&"Medium",CHOOSE({1,2},tbl_seed[Name]&tbl_seed[Rainfall],INDIRECT("tbl_seed["&var_crop&"]")),2,0) | O26: 0 | Q26: =VLOOKUP(r[0]c3&"High",CHOOSE({1,2},tbl_seed[Name]&tbl_seed[Rainfall],INDIRECT("tbl_seed["&var_crop&"]")),2,0) | R26: 0 | U26: 0
D27: Reset Cost | F27: =VLOOKUP(R[0]C3&"Cost",CHOOSE({1,2},tbl_seed[Name]&tbl_seed[Type],INDIRECT("tbl_seed["&var_crop&"]")),2,0) | H27: =VLOOKUP(r[0]c3&"Cost",CHOOSE({1,2},tbl_seed[Name]&tbl_seed[Type],tbl_seed[Unit]),2,0) | I27: Reset Rate | K27: =VLOOKUP(r[0]c3&"Low",CHOOSE({1,2},tbl_seed[Name]&tbl_seed[Rainfall],INDIRECT("tbl_seed["&var_crop&"]")),2,0) | L27: 0 | N27: =VLOOKUP(r[0]c3&"Medium",CHOOSE({1,2},tbl_seed[Name]&tbl_seed[Rainfall],INDIRECT("tbl_seed["&var_crop&"]")),2,0) | O27: 0 | Q27: =VLOOKUP(r[0]c3&"High",CHOOSE({1,2},tbl_seed[Name]&tbl_seed[Rainfall],INDIRECT("tbl_seed["&var_crop&"]")),2,0) | R27: 0 | U27: 0
D28: Reset Cost | F28: =VLOOKUP(R[0]C3&"Cost",CHOOSE({1,2},tbl_seed[Name]&tbl_seed[Type],INDIRECT("tbl_seed["&var_crop&"]")),2,0) | H28: =VLOOKUP(r[0]c3&"Cost",CHOOSE({1,2},tbl_seed[Name]&tbl_seed[Type],tbl_seed[Unit]),2,0) | I28: Reset Rate | K28: =VLOOKUP(r[0]c3&"Low",CHOOSE({1,2},tbl_seed[Name]&tbl_seed[Rainfall],INDIRECT("tbl_seed["&var_crop&"]")),2,0) | L28: 0 | N28: =VLOOKUP(r[0]c3&"Medium",CHOOSE({1,2},tbl_seed[Name]&tbl_seed[Rainfall],INDIRECT("tbl_seed["&var_crop&"]")),2,0) | O28: 0 | Q28: =VLOOKUP(r[0]c3&"High",CHOOSE({1,2},tbl_seed[Name]&tbl_seed[Rainfall],INDIRECT("tbl_seed["&var_crop&"]")),2,0) | R28: 0 | U28: 0
D29: Reset Cost | F29: =VLOOKUP(R[0]C3&"Cost",CHOOSE({1,2},tbl_seed[Name]&tbl_seed[Type],INDIRECT("tbl_seed["&var_crop&"]")),2,0) | H29: =VLOOKUP(r[0]c3&"Cost",CHOOSE({1,2},tbl_seed[Name]&tbl_seed[Type],tbl_seed[Unit]),2,0) | I29: Reset Rate | K29: =VLOOKUP(r[0]c3&"Low",CHOOSE({1,2},tbl_seed[Name]&tbl_seed[Rainfall],INDIRECT("tbl_seed["&var_crop&"]")),2,0) | L29: 0 | N29: =VLOOKUP(r[0]c3&"Medium",CHOOSE({1,2},tbl_seed[Name]&tbl_seed[Rainfall],INDIRECT("tbl_seed["&var_crop&"]")),2,0) | O29: 0 | Q29: =VLOOKUP(r[0]c3&"High",CHOOSE({1,2},tbl_seed[Name]&tbl_seed[Rainfall],INDIRECT("tbl_seed["&var_crop&"]")),2,0) | R29: 0 | U29: 0
C31: Levies
C32: GRDC Levies | E32: =var_grdc_levy -> 0.01 | G32: Gross Income | L32: =L11*$E$32 -> 6.12 | O32: =E32*O11 -> 10.88 | R32: =E32*R11 -> 16.32 | U32: =U11*E32 -> 0
C33: EPR & state levies | D33: Reset Levy | E33: =IFERROR(VLOOKUP($C33,tbl_seed[],MATCH(var_crop,tbl_seed[#Headers],0),0),0) -> 3.5 | F33: =IFERROR(VLOOKUP(r[0]c3,tbl_seed,MATCH(var_crop,tbl_seed[#Headers],0),0),0) | G33: tonne sold | L33: =E33*L10 -> 6.3 | O33: =E33*O10 -> 11.2 | R33: =E33*R10 -> 16.8 | U33: =$U$6*(IF(rng_rainfall=1,L33,IF(rng_rainfall=2,O33,R33))) -> 0
C37: Fertiliser (Bulk) | E37: Cost | G37: Unit | J37: Rate/ha | L37: $/ha | M37: Rate/ha | O37: $/ha | P37: Rate/ha | R37: $/ha | U37: $
C38: DAP 18:20 | D38: Reset Cost | E38: =VLOOKUP($C38,tbl_fert[[Name]:[Cost]],MATCH("Cost",tbl_fert[#Headers],0),0) -> 1.07 | F38: =VLOOKUP(r[0]c3,tbl_fert[[Name]:[Cost]],MATCH("Cost",tbl_fert[#Headers],0),0) | G38: =VLOOKUP($C38,tbl_fert[[Name]:[Cost]],MATCH("Units",tbl_fert[#Headers],0),0) -> kg | H38: =VLOOKUP(r[0]c3,tbl_fert[[Name]:[Cost]],MATCH("Units",tbl_fert[#Headers],0),0) | I38: Reset Rate | J38: =VLOOKUP($C38&"Low",CHOOSE({1,2},tbl_fert[Name]&tbl_fert[Rainfall],INDIRECT("tbl_fert["&var_crop&"]")),2,0) -> 45 | K38: =VLOOKUP(r[0]c3&"Low",CHOOSE({1,2},tbl_fert[Name]&tbl_fert[Rainfall],INDIRECT("tbl_fert["&var_crop&"]")),2,0) | L38: =(J38*E38) -> 48.15 | M38: =VLOOKUP($C38&"Medium",CHOOSE({1,2},tbl_fert[Name]&tbl_fert[Rainfall],INDIRECT("tbl_fert["&var_crop&"]")),2,0) -> 70 | N38: =VLOOKUP(r[0]c3&"Medium",CHOOSE({1,2},tbl_fert[Name]&tbl_fert[Rainfall],INDIRECT("tbl_fert["&var_crop&"]")),2,0) | O38: =(M38*E38) -> 74.9 | P38: =VLOOKUP($C38&"High",CHOOSE({1,2},tbl_fert[Name]&tbl_fert[Rainfall],INDIRECT("tbl_fert["&var_crop&"]")),2,0) -> 100 | Q38: =VLOOKUP(r[0]c3&"High",CHOOSE({1,2},tbl_fert[Name]&tbl_fert[Rainfall],INDIRECT("tbl_fert["&var_crop&"]")),2,0) | R38: =P38*E38 -> 107 | U38: =$U$6*(IF(rng_rainfall=1,L38,IF(rng_rainfall=2,O38,R38))) -> 0
C39: Urea | D39: Reset Cost | E39: =VLOOKUP($C39,tbl_fert[[Name]:[Cost]],MATCH("Cost",tbl_fert[#Headers],0),0) -> 0.65 | F39: =VLOOKUP(r[0]c3,tbl_fert[[Name]:[Cost]],MATCH("Cost",tbl_fert[#Headers],0),0) | G39: =VLOOKUP($C39,tbl_fert[[Name]:[Cost]],MATCH("Units",tbl_fert[#Headers],0),0) -> kg | H39: =VLOOKUP(r[0]c3,tbl_fert[[Name]:[Cost]],MATCH("Units",tbl_fert[#Headers],0),0) | I39: Reset Rate | J39: =VLOOKUP($C39&"Low",CHOOSE({1,2},tbl_fert[Name]&tbl_fert[Rainfall],INDIRECT("tbl_fert["&var_crop&"]")),2,0) -> 0 | K39: =VLOOKUP(r[0]c3&"Low",CHOOSE({1,2},tbl_fert[Name]&tbl_fert[Rainfall],INDIRECT("tbl_fert["&var_crop&"]")),2,0) | L39: =(J39*E39) -> 0 | M39: =VLOOKUP($C39&"Medium",CHOOSE({1,2},tbl_fert[Name]&tbl_fert[Rainfall],INDIRECT("tbl_fert["&var_crop&"]")),2,0) -> 100 | N39: =VLOOKUP(r[0]c3&"Medium",CHOOSE({1,2},tbl_fert[Name]&tbl_fert[Rainfall],INDIRECT("tbl_fert["&var_crop&"]")),2,0) | O39: =(M39*E39) -> 65 | P39: =VLOOKUP($C39&"High",CHOOSE({1,2},tbl_fert[Name]&tbl_fert[Rainfall],INDIRECT("tbl_fert["&var_crop&"]")),2,0) -> 200 | Q39: =VLOOKUP(r[0]c3&"High",CHOOSE({1,2},tbl_fert[Name]&tbl_fert[Rainfall],INDIRECT("tbl_fert["&var_crop&"]")),2,0) | R39: =P39*E39 -> 130 | U39: =$U$6*(IF(rng_rainfall=1,L39,IF(rng_rainfall=2,O39,R39))) -> 0
C40: Flutriafol (on fert) | D40: Reset Cost | E40: =VLOOKUP($C40,tbl_fert[[Name]:[Cost]],MATCH("Cost",tbl_fert[#Headers],0),0) -> 45 | F40: =VLOOKUP(r[0]c3,tbl_fert[[Name]:[Cost]],MATCH("Cost",tbl_fert[#Headers],0),0) | G40: =VLOOKUP($C40,tbl_fert[[Name]:[Cost]],MATCH("Units",tbl_fert[#Headers],0),0) -> litre | H40: =VLOOKUP(r[0]c3,tbl_fert[[Name]:[Cost]],MATCH("Units",tbl_fert[#Headers],0),0) | I40: Reset Rate | J40: =VLOOKUP($C40&"Low",CHOOSE({1,2},tbl_fert[Name]&tbl_fert[Rainfall],INDIRECT("tbl_fert["&var_crop&"]")),2,0) -> 0.2 | K40: =VLOOKUP(r[0]c3&"Low",CHOOSE({1,2},tbl_fert[Name]&tbl_fert[Rainfall],INDIRECT("tbl_fert["&var_crop&"]")),2,0) | L40: =(J40*E40) -> 9 | M40: =VLOOKUP($C40&"Medium",CHOOSE({1,2},tbl_fert[Name]&tbl_fert[Rainfall],INDIRECT("tbl_fert["&var_crop&"]")),2,0) -> 0.2 | N40: =VLOOKUP(r[0]c3&"Medium",CHOOSE({1,2},tbl_fert[Name]&tbl_fert[Rainfall],INDIRECT("tbl_fert["&var_crop&"]")),2,0) | O40: =(M40*E40) -> 9 | P40: =VLOOKUP($C40&"High",CHOOSE({1,2},tbl_fert[Name]&tbl_fert[Rainfall],INDIRECT("tbl_fert["&var_crop&"]")),2,0) -> 0.2 | Q40: =VLOOKUP(r[0]c3&"High",CHOOSE({1,2},tbl_fert[Name]&tbl_fert[Rainfall],INDIRECT("tbl_fert["&var_crop&"]")),2,0) | R40: =P40*E40 -> 9 | U40: =$U$6*(IF(rng_rainfall=1,L40,IF(rng_rainfall=2,O40,R40))) -> 0
D41: Reset Cost | F41: =VLOOKUP(r[0]c3,tbl_fert[[Name]:[Cost]],MATCH("Cost",tbl_fert[#Headers],0),0) | H41: =VLOOKUP(r[0]c3,tbl_fert[[Name]:[Cost]],MATCH("Units",tbl_fert[#Headers],0),0) | I41: Reset Rate | K41: =VLOOKUP(r[0]c3&"Low",CHOOSE({1,2},tbl_fert[Name]&tbl_fert[Rainfall],INDIRECT("tbl_fert["&var_crop&"]")),2,0) | L41: =(J41*E41) -> 0 | N41: =VLOOKUP(r[0]c3&"Medium",CHOOSE({1,2},tbl_fert[Name]&tbl_fert[Rainfall],INDIRECT("tbl_fert["&var_crop&"]")),2,0) | O41: =(M41*E41) -> 0 | Q41: =VLOOKUP(r[0]c3&"High",CHOOSE({1,2},tbl_fert[Name]&tbl_fert[Rainfall],INDIRECT("tbl_fert["&var_crop&"]")),2,0) | R41: =P41*E41 -> 0 | U41: 0
D42: Reset Cost | F42: =VLOOKUP(r[0]c3,tbl_fert[[Name]:[Cost]],MATCH("Cost",tbl_fert[#Headers],0),0) | H42: =VLOOKUP(r[0]c3,tbl_fert[[Name]:[Cost]],MATCH("Units",tbl_fert[#Headers],0),0) | I42: Reset Rate | K42: =VLOOKUP(r[0]c3&"Low",CHOOSE({1,2},tbl_fert[Name]&tbl_fert[Rainfall],INDIRECT("tbl_fert["&var_crop&"]")),2,0) | L42: 0 | N42: =VLOOKUP(r[0]c3&"Medium",CHOOSE({1,2},tbl_fert[Name]&tbl_fert[Rainfall],INDIRECT("tbl_fert["&var_crop&"]")),2,0) | O42: 0 | Q42: =VLOOKUP(r[0]c3&"High",CHOOSE({1,2},tbl_fert[Name]&tbl_fert[Rainfall],INDIRECT("tbl_fert["&var_crop&"]")),2,0) | R42: 0 | U42: 0
D43: Reset Cost | F43: =VLOOKUP(r[0]c3,tbl_fert[[Name]:[Cost]],MATCH("Cost",tbl_fert[#Headers],0),0) | H43: =VLOOKUP(r[0]c3,tbl_fert[[Name]:[Cost]],MATCH("Units",tbl_fert[#Headers],0),0) | I43: Reset Rate | K43: =VLOOKUP(r[0]c3&"Low",CHOOSE({1,2},tbl_fert[Name]&tbl_fert[Rainfall],INDIRECT("tbl_fert["&var_crop&"]")),2,0) | L43: 0 | N43: =VLOOKUP(r[0]c3&"Medium",CHOOSE({1,2},tbl_fert[Name]&tbl_fert[Rainfall],INDIRECT("tbl_fert["&var_crop&"]")),2,0) | O43: 0 | Q43: =VLOOKUP(r[0]c3&"High",CHOOSE({1,2},tbl_fert[Name]&tbl_fert[Rainfall],INDIRECT("tbl_fert["&var_crop&"]")),2,0) | R43: 0 | U43: 0
D44: Reset Cost | F44: =VLOOKUP(r[0]c3,tbl_fert[[Name]:[Cost]],MATCH("Cost",tbl_fert[#Headers],0),0) | H44: =VLOOKUP(r[0]c3,tbl_fert[[Name]:[Cost]],MATCH("Units",tbl_fert[#Headers],0),0) | I44: Reset Rate | K44: =VLOOKUP(r[0]c3&"Low",CHOOSE({1,2},tbl_fert[Name]&tbl_fert[Rainfall],INDIRECT("tbl_fert["&var_crop&"]")),2,0) | L44: 0 | N44: =VLOOKUP(r[0]c3&"Medium",CHOOSE({1,2},tbl_fert[Name]&tbl_fert[Rainfall],INDIRECT("tbl_fert["&var_crop&"]")),2,0) | O44: 0 | Q44: =VLOOKUP(r[0]c3&"High",CHOOSE({1,2},tbl_fert[Name]&tbl_fert[Rainfall],INDIRECT("tbl_fert["&var_crop&"]")),2,0) | R44: 0 | U44: 0
D45: Reset Cost | F45: =VLOOKUP(r[0]c3,tbl_fert[[Name]:[Cost]],MATCH("Cost",tbl_fert[#Headers],0),0) | H45: =VLOOKUP(r[0]c3,tbl_fert[[Name]:[Cost]],MATCH("Units",tbl_fert[#Headers],0),0) | I45: Reset Rate | K45: =VLOOKUP(r[0]c3&"Low",CHOOSE({1,2},tbl_fert[Name]&tbl_fert[Rainfall],INDIRECT("tbl_fert["&var_crop&"]")),2,0) | L45: 0 | N45: =VLOOKUP(r[0]c3&"Medium",CHOOSE({1,2},tbl_fert[Name]&tbl_fert[Rainfall],INDIRECT("tbl_fert["&var_crop&"]")),2,0) | O45: 0 | Q45: =VLOOKUP(r[0]c3&"High",CHOOSE({1,2},tbl_fert[Name]&tbl_fert[Rainfall],INDIRECT("tbl_fert["&var_crop&"]")),2,0) | R45: 0 | U45: 0
D46: Reset Cost | F46: =VLOOKUP(r[0]c3,tbl_fert[[Name]:[Cost]],MATCH("Cost",tbl_fert[#Headers],0),0) | H46: =VLOOKUP(r[0]c3,tbl_fert[[Name]:[Cost]],MATCH("Units",tbl_fert[#Headers],0),0) | I46: Reset Rate | K46: =VLOOKUP(r[0]c3&"Low",CHOOSE({1,2},tbl_fert[Name]&tbl_fert[Rainfall],INDIRECT("tbl_fert["&var_crop&"]")),2,0) | L46: 0 | N46: =VLOOKUP(r[0]c3&"Medium",CHOOSE({1,2},tbl_fert[Name]&tbl_fert[Rainfall],INDIRECT("tbl_fert["&var_crop&"]")),2,0) | O46: 0 | Q46: =VLOOKUP(r[0]c3&"High",CHOOSE({1,2},tbl_fert[Name]&tbl_fert[Rainfall],INDIRECT("tbl_fert["&var_crop&"]")),2,0) | R46: 0 | U46: 0
D47: Reset Cost | F47: =VLOOKUP(r[0]c3,tbl_fert[[Name]:[Cost]],MATCH("Cost",tbl_fert[#Headers],0),0) | H47: =VLOOKUP(r[0]c3,tbl_fert[[Name]:[Cost]],MATCH("Units",tbl_fert[#Headers],0),0) | I47: Reset Rate | K47: =VLOOKUP(r[0]c3&"Low",CHOOSE({1,2},tbl_fert[Name]&tbl_fert[Rainfall],INDIRECT("tbl_fert["&var_crop&"]")),2,0) | L47: 0 | N47: =VLOOKUP(r[0]c3&"Medium",CHOOSE({1,2},tbl_fert[Name]&tbl_fert[Rainfall],INDIRECT("tbl_fert["&var_crop&"]")),2,0) | O47: 0 | Q47: =VLOOKUP(r[0]c3&"High",CHOOSE({1,2},tbl_fert[Name]&tbl_fert[Rainfall],INDIRECT("tbl_fert["&var_crop&"]")),2,0) | R47: 0 | U47: 0
D48: Reset Cost | F48: =VLOOKUP(r[0]c3,tbl_fert[[Name]:[Cost]],MATCH("Cost",tbl_fert[#Headers],0),0) | H48: =VLOOKUP(r[0]c3,tbl_fert[[Name]:[Cost]],MATCH("Units",tbl_fert[#Headers],0),0) | I48: Reset Rate | K48: =VLOOKUP(r[0]c3&"Low",CHOOSE({1,2},tbl_fert[Name]&tbl_fert[Rainfall],INDIRECT("tbl_fert["&var_crop&"]")),2,0) | L48: 0 | N48: =VLOOKUP(r[0]c3&"Medium",CHOOSE({1,2},tbl_fert[Name]&tbl_fert[Rainfall],INDIRECT("tbl_fert["&var_crop&"]")),2,0) | O48: 0 | Q48: =VLOOKUP(r[0]c3&"High",CHOOSE({1,2},tbl_fert[Name]&tbl_fert[Rainfall],INDIRECT("tbl_fert["&var_crop&"]")),2,0) | R48: 0 | U48: 0
D49: Reset Cost | F49: =VLOOKUP(r[0]c3,tbl_fert[[Name]:[Cost]],MATCH("Cost",tbl_fert[#Headers],0),0) | H49: =VLOOKUP(r[0]c3,tbl_fert[[Name]:[Cost]],MATCH("Units",tbl_fert[#Headers],0),0) | I49: Reset Rate | K49: =VLOOKUP(r[0]c3&"Low",CHOOSE({1,2},tbl_fert[Name]&tbl_fert[Rainfall],INDIRECT("tbl_fert["&var_crop&"]")),2,0) | L49: 0 | N49: =VLOOKUP(r[0]c3&"Medium",CHOOSE({1,2},tbl_fert[Name]&tbl_fert[Rainfall],INDIRECT("tbl_fert["&var_crop&"]")),2,0) | O49: 0 | Q49: =VLOOKUP(r[0]c3&"High",CHOOSE({1,2},tbl_fert[Name]&tbl_fert[Rainfall],INDIRECT("tbl_fert["&var_crop&"]")),2,0) | R49: 0 | U49: 0
D50: Reset Cost | F50: =VLOOKUP(r[0]c3,tbl_fert[[Name]:[Cost]],MATCH("Cost",tbl_fert[#Headers],0),0) | H50: =VLOOKUP(r[0]c3,tbl_fert[[Name]:[Cost]],MATCH("Units",tbl_fert[#Headers],0),0) | I50: Reset Rate | K50: =VLOOKUP(r[0]c3&"Low",CHOOSE({1,2},tbl_fert[Name]&tbl_fert[Rainfall],INDIRECT("tbl_fert["&var_crop&"]")),2,0) | L50: 0 | N50: =VLOOKUP(r[0]c3&"Medium",CHOOSE({1,2},tbl_fert[Name]&tbl_fert[Rainfall],INDIRECT("tbl_fert["&var_crop&"]")),2,0) | O50: 0 | Q50: =VLOOKUP(r[0]c3&"High",CHOOSE({1,2},tbl_fert[Name]&tbl_fert[Rainfall],INDIRECT("tbl_fert["&var_crop&"]")),2,0) | R50: 0 | U50: 0
D51: Reset Cost | F51: =VLOOKUP(r[0]c3,tbl_fert[[Name]:[Cost]],MATCH("Cost",tbl_fert[#Headers],0),0) | H51: =VLOOKUP(r[0]c3,tbl_fert[[Name]:[Cost]],MATCH("Units",tbl_fert[#Headers],0),0) | I51: Reset Rate | K51: =VLOOKUP(r[0]c3&"Low",CHOOSE({1,2},tbl_fert[Name]&tbl_fert[Rainfall],INDIRECT("tbl_fert["&var_crop&"]")),2,0) | L51: 0 | N51: =VLOOKUP(r[0]c3&"Medium",CHOOSE({1,2},tbl_fert[Name]&tbl_fert[Rainfall],INDIRECT("tbl_fert["&var_crop&"]")),2,0) | O51: 0 | Q51: =VLOOKUP(r[0]c3&"High",CHOOSE({1,2},tbl_fert[Name]&tbl_fert[Rainfall],INDIRECT("tbl_fert["&var_crop&"]")),2,0) | R51: 0 | U51: 0
D52: Reset Cost | F52: =VLOOKUP(r[0]c3,tbl_fert[[Name]:[Cost]],MATCH("Cost",tbl_fert[#Headers],0),0) | H52: =VLOOKUP(r[0]c3,tbl_fert[[Name]:[Cost]],MATCH("Units",tbl_fert[#Headers],0),0) | I52: Reset Rate | K52: =VLOOKUP(r[0]c3&"Low",CHOOSE({1,2},tbl_fert[Name]&tbl_fert[Rainfall],INDIRECT("tbl_fert["&var_crop&"]")),2,0) | L52: 0 | N52: =VLOOKUP(r[0]c3&"Medium",CHOOSE({1,2},tbl_fert[Name]&tbl_fert[Rainfall],INDIRECT("tbl_fert["&var_crop&"]")),2,0) | O52: 0 | Q52: =VLOOKUP(r[0]c3&"High",CHOOSE({1,2},tbl_fert[Name]&tbl_fert[Rainfall],INDIRECT("tbl_fert["&var_crop&"]")),2,0) | R52: 0 | U52: 0
C57: Herbicides | E57: Cost | G57: Unit | J57: Rate/ha | L57: $/ha | M57: Rate/ha | O57: $/ha | P57: Rate/ha | R57: $/ha | U57: $
C58: Summer Weed Control | G58: Various | I58: Reset $/ha | L58: =var_summer_weed -> 25 | M58: =var_summer_weed | O58: =var_summer_weed -> 25 | P58: =var_summer_weed | R58: =var_summer_weed -> 25 | S58: =var_summer_weed | U58: =$U$6*(IF(rng_rainfall=1,L58,IF(rng_rainfall=2,O58,R58))) -> 0
C59: Herbicides
C60: Trifluralin 480g/L | D60: Reset Cost | E60: =VLOOKUP($C60,tbl_chemicals[[Name]:[Cost]],MATCH("Cost",tbl_chemicals[#Headers],0),0) -> 8.5 | F60: =VLOOKUP(r[0]c3,tbl_chemicals[[Name]:[Cost]],MATCH("Cost",tbl_chemicals[#Headers],0),0) | G60: =VLOOKUP($C60,tbl_chemicals[[Name]:[Cost]],MATCH("Units",tbl_chemicals[#Headers],0),0) -> litre | H60: =VLOOKUP(r[0]c3,tbl_chemicals[[Name]:[Cost]],MATCH("Units",tbl_chemicals[#Headers],0),0) | I60: Reset Rate | J60: =VLOOKUP($C60&"Low",CHOOSE({1,2},tbl_chemicals[Name]&tbl_chemicals[Rainfall],INDIRECT("tbl_chemicals["&var_crop&"]")),2,0) -> 1.5 | K60: =VLOOKUP(r[0]c3&"Low",CHOOSE({1,2},tbl_chemicals[Name]&tbl_chemicals[Rainfall],INDIRECT("tbl_chemicals["&var_crop&"]")),2,0) | L60: =(J60*$E60)+IFERROR(VLOOKUP($C60,tbl_chemicals[],MATCH("Adjuvant Cost/ha",tbl_chemicals[#Headers],0),0),0)*(J60<>0) -> 12.75 | M60: =VLOOKUP($C60&"Medium",CHOOSE({1,2},tbl_chemicals[Name]&tbl_chemicals[Rainfall],INDIRECT("tbl_chemicals["&var_crop&"]")),2,0) -> 0 | N60: =VLOOKUP(r[0]c3&"Medium",CHOOSE({1,2},tbl_chemicals[Name]&tbl_chemicals[Rainfall],INDIRECT("tbl_chemicals["&var_crop&"]")),2,0) | O60: =(M60*$E60)+IFERROR(VLOOKUP($C60,tbl_chemicals[],MATCH("Adjuvant Cost/ha",tbl_chemicals[#Headers],0),0),0)*(M60<>0) -> 0 | P60: =VLOOKUP($C60&"High",CHOOSE({1,2},tbl_chemicals[Name]&tbl_chemicals[Rainfall],INDIRECT("tbl_chemicals["&var_crop&"]")),2,0) -> 0 | Q60: =VLOOKUP(r[0]c3&"High",CHOOSE({1,2},tbl_chemicals[Name]&tbl_chemicals[Rainfall],INDIRECT("tbl_chemicals["&var_crop&"]")),2,0) | R60: =(P60*$E60)+IFERROR(VLOOKUP($C60,tbl_chemicals[],MATCH("Adjuvant Cost/ha",tbl_chemicals[#Headers],0),0),0)*(P60<>0) -> 0 | U60: =$U$6*(IF(rng_rainfall=1,L60,IF(rng_rainfall=2,O60,R60))) -> 0
C61: Tri-allate 500g/L | D61: Reset Cost | E61: =VLOOKUP($C61,tbl_chemicals[[Name]:[Cost]],MATCH("Cost",tbl_chemicals[#Headers],0),0) -> 15 | F61: =VLOOKUP(r[0]c3,tbl_chemicals[[Name]:[Cost]],MATCH("Cost",tbl_chemicals[#Headers],0),0) | G61: =VLOOKUP($C61,tbl_chemicals[[Name]:[Cost]],MATCH("Units",tbl_chemicals[#Headers],0),0) -> litre | H61: =VLOOKUP(r[0]c3,tbl_chemicals[[Name]:[Cost]],MATCH("Units",tbl_chemicals[#Headers],0),0) | I61: Reset Rate | J61: =VLOOKUP($C61&"Low",CHOOSE({1,2},tbl_chemicals[Name]&tbl_chemicals[Rainfall],INDIRECT("tbl_chemicals["&var_crop&"]")),2,0) -> 1.6 | K61: =VLOOKUP(r[0]c3&"Low",CHOOSE({1,2},tbl_chemicals[Name]&tbl_chemicals[Rainfall],INDIRECT("tbl_chemicals["&var_crop&"]")),2,0) | L61: =(J61*$E61)+IFERROR(VLOOKUP($C61,tbl_chemicals[],MATCH("Adjuvant Cost/ha",tbl_chemicals[#Headers],0),0),0)*(J61<>0) -> 24 | M61: =VLOOKUP($C61&"Medium",CHOOSE({1,2},tbl_chemicals[Name]&tbl_chemicals[Rainfall],INDIRECT("tbl_chemicals["&var_crop&"]")),2,0) -> 0 | N61: =VLOOKUP(r[0]c3&"Medium",CHOOSE({1,2},tbl_chemicals[Name]&tbl_chemicals[Rainfall],INDIRECT("tbl_chemicals["&var_crop&"]")),2,0) | O61: =(M61*$E61)+IFERROR(VLOOKUP($C61,tbl_chemicals[],MATCH("Adjuvant Cost/ha",tbl_chemicals[#Headers],0),0),0)*(M61<>0) -> 0 | P61: =VLOOKUP($C61&"High",CHOOSE({1,2},tbl_chemicals[Name]&tbl_chemicals[Rainfall],INDIRECT("tbl_chemicals["&var_crop&"]")),2,0) -> 2 | Q61: =VLOOKUP(r[0]c3&"High",CHOOSE({1,2},tbl_chemicals[Name]&tbl_chemicals[Rainfall],INDIRECT("tbl_chemicals["&var_crop&"]")),2,0) | R61: =(P61*$E61)+IFERROR(VLOOKUP($C61,tbl_chemicals[],MATCH("Adjuvant Cost/ha",tbl_chemicals[#Headers],0),0),0)*(P61<>0) -> 30 | U61: 0
C62: Glyphosate 540g/L | D62: Reset Cost | E62: =VLOOKUP($C62,tbl_chemicals[[Name]:[Cost]],MATCH("Cost",tbl_chemicals[#Headers],0),0) -> 7.65 | F62: =VLOOKUP(r[0]c3,tbl_chemicals[[Name]:[Cost]],MATCH("Cost",tbl_chemicals[#Headers],0),0) | G62: =VLOOKUP($C62,tbl_chemicals[[Name]:[Cost]],MATCH("Units",tbl_chemicals[#Headers],0),0) -> litre | H62: =VLOOKUP(r[0]c3,tbl_chemicals[[Name]:[Cost]],MATCH("Units",tbl_chemicals[#Headers],0),0) | I62: Reset Rate | J62: =VLOOKUP($C62&"Low",CHOOSE({1,2},tbl_chemicals[Name]&tbl_chemicals[Rainfall],INDIRECT("tbl_chemicals["&var_crop&"]")),2,0) -> 1.2 | K62: =VLOOKUP(r[0]c3&"Low",CHOOSE({1,2},tbl_chemicals[Name]&tbl_chemicals[Rainfall],INDIRECT("tbl_chemicals["&var_crop&"]")),2,0) | L62: =(J62*$E62)+IFERROR(VLOOKUP($C62,tbl_chemicals[],MATCH("Adjuvant Cost/ha",tbl_chemicals[#Headers],0),0),0)*(J62<>0) -> 9.18 | M62: =VLOOKUP($C62&"Medium",CHOOSE({1,2},tbl_chemicals[Name]&tbl_chemicals[Rainfall],INDIRECT("tbl_chemicals["&var_crop&"]")),2,0) -> 1.2 | N62: =VLOOKUP(r[0]c3&"Medium",CHOOSE({1,2},tbl_chemicals[Name]&tbl_chemicals[Rainfall],INDIRECT("tbl_chemicals["&var_crop&"]")),2,0) | O62: =(M62*$E62)+IFERROR(VLOOKUP($C62,tbl_chemicals[],MATCH("Adjuvant Cost/ha",tbl_chemicals[#Headers],0),0),0)*(M62<>0) -> 9.18 | P62: =VLOOKUP($C62&"High",CHOOSE({1,2},tbl_chemicals[Name]&tbl_chemicals[Rainfall],INDIRECT("tbl_chemicals["&var_crop&"]")),2,0) -> 1.2 | Q62: =VLOOKUP(r[0]c3&"High",CHOOSE({1,2},tbl_chemicals[Name]&tbl_chemicals[Rainfall],INDIRECT("tbl_chemicals["&var_crop&"]")),2,0) | R62: =(P62*$E62)+IFERROR(VLOOKUP($C62,tbl_chemicals[],MATCH("Adjuvant Cost/ha",tbl_chemicals[#Headers],0),0),0)*(P62<>0) -> 9.18 | U62: 0
C63: Carfentrazone 400g/L (Hammer) | D63: Reset Cost | E63: =VLOOKUP($C63,tbl_chemicals[[Name]:[Cost]],MATCH("Cost",tbl_chemicals[#Headers],0),0) -> 185 | F63: =VLOOKUP(r[0]c3,tbl_chemicals[[Name]:[Cost]],MATCH("Cost",tbl_chemicals[#Headers],0),0) | G63: =VLOOKUP($C63,tbl_chemicals[[Name]:[Cost]],MATCH("Units",tbl_chemicals[#Headers],0),0) -> litre | H63: =VLOOKUP(r[0]c3,tbl_chemicals[[Name]:[Cost]],MATCH("Units",tbl_chemicals[#Headers],0),0) | I63: Reset Rate | J63: =VLOOKUP($C63&"Low",CHOOSE({1,2},tbl_chemicals[Name]&tbl_chemicals[Rainfall],INDIRECT("tbl_chemicals["&var_crop&"]")),2,0) -> 0.02 | K63: =VLOOKUP(r[0]c3&"Low",CHOOSE({1,2},tbl_chemicals[Name]&tbl_chemicals[Rainfall],INDIRECT("tbl_chemicals["&var_crop&"]")),2,0) | L63: =(J63*$E63)+IFERROR(VLOOKUP($C63,tbl_chemicals[],MATCH("Adjuvant Cost/ha",tbl_chemicals[#Headers],0),0),0)*(J63<>0) -> 3.7 | M63: =VLOOKUP($C63&"Medium",CHOOSE({1,2},tbl_chemicals[Name]&tbl_chemicals[Rainfall],INDIRECT("tbl_chemicals["&var_crop&"]")),2,0) -> 0.02 | N63: =VLOOKUP(r[0]c3&"Medium",CHOOSE({1,2},tbl_chemicals[Name]&tbl_chemicals[Rainfall],INDIRECT("tbl_chemicals["&var_crop&"]")),2,0) | O63: =(M63*$E63)+IFERROR(VLOOKUP($C63,tbl_chemicals[],MATCH("Adjuvant Cost/ha",tbl_chemicals[#Headers],0),0),0)*(M63<>0) -> 3.7 | P63: =VLOOKUP($C63&"High",CHOOSE({1,2},tbl_chemicals[Name]&tbl_chemicals[Rainfall],INDIRECT("tbl_chemicals["&var_crop&"]")),2,0) -> 0.02 | Q63: =VLOOKUP(r[0]c3&"High",CHOOSE({1,2},tbl_chemicals[Name]&tbl_chemicals[Rainfall],INDIRECT("tbl_chemicals["&var_crop&"]")),2,0) | R63: =(P63*$E63)+IFERROR(VLOOKUP($C63,tbl_chemicals[],MATCH("Adjuvant Cost/ha",tbl_chemicals[#Headers],0),0),0)*(P63<>0) -> 3.7 | U63: 0
C64: Sakura® | D64: Reset Cost | E64: =VLOOKUP($C64,tbl_chemicals[[Name]:[Cost]],MATCH("Cost",tbl_chemicals[#Headers],0),0) -> 253 | F64: =VLOOKUP(r[0]c3,tbl_chemicals[[Name]:[Cost]],MATCH("Cost",tbl_chemicals[#Headers],0),0) | G64: =VLOOKUP($C64,tbl_chemicals[[Name]:[Cost]],MATCH("Units",tbl_chemicals[#Headers],0),0) -> kg | H64: =VLOOKUP(r[0]c3,tbl_chemicals[[Name]:[Cost]],MATCH("Units",tbl_chemicals[#Headers],0),0) | I64: Reset Rate | J64: =VLOOKUP($C64&"Low",CHOOSE({1,2},tbl_chemicals[Name]&tbl_chemicals[Rainfall],INDIRECT("tbl_chemicals["&var_crop&"]")),2,0) -> 0 | K64: =VLOOKUP(r[0]c3&"Low",CHOOSE({1,2},tbl_chemicals[Name]&tbl_chemicals[Rainfall],INDIRECT("tbl_chemicals["&var_crop&"]")),2,0) | L64: =(J64*$E64)+IFERROR(VLOOKUP($C64,tbl_chemicals[],MATCH("Adjuvant Cost/ha",tbl_chemicals[#Headers],0),0),0)*(J64<>0) -> 0 | M64: =VLOOKUP($C64&"Medium",CHOOSE({1,2},tbl_chemicals[Name]&tbl_chemicals[Rainfall],INDIRECT("tbl_chemicals["&var_crop&"]")),2,0) -> 0.118 | N64: =VLOOKUP(r[0]c3&"Medium",CHOOSE({1,2},tbl_chemicals[Name]&tbl_chemicals[Rainfall],INDIRECT("tbl_chemicals["&var_crop&"]")),2,0) | O64: =(M64*$E64)+IFERROR(VLOOKUP($C64,tbl_chemicals[],MATCH("Adjuvant Cost/ha",tbl_chemicals[#Headers],0),0),0)*(M64<>0) -> 29.854 | P64: =VLOOKUP($C64&"High",CHOOSE({1,2},tbl_chemicals[Name]&tbl_chemicals[Rainfall],INDIRECT("tbl_chemicals["&var_crop&"]")),2,0) -> 0.118 | Q64: =VLOOKUP(r[0]c3&"High",CHOOSE({1,2},tbl_chemicals[Name]&tbl_chemicals[Rainfall],INDIRECT("tbl_chemicals["&var_crop&"]")),2,0) | R64: =(P64*$E64)+IFERROR(VLOOKUP($C64,tbl_chemicals[],MATCH("Adjuvant Cost/ha",tbl_chemicals[#Headers],0),0),0)*(P64<>0) -> 29.854 | U64: 0
C65: Topik® EC | D65: Reset Cost | E65: =VLOOKUP($C65,tbl_chemicals[[Name]:[Cost]],MATCH("Cost",tbl_chemicals[#Headers],0),0) -> 32 | F65: =VLOOKUP(r[0]c3,tbl_chemicals[[Name]:[Cost]],MATCH("Cost",tbl_chemicals[#Headers],0),0) | G65: =VLOOKUP($C65,tbl_chemicals[[Name]:[Cost]],MATCH("Units",tbl_chemicals[#Headers],0),0) -> litre | H65: =VLOOKUP(r[0]c3,tbl_chemicals[[Name]:[Cost]],MATCH("Units",tbl_chemicals[#Headers],0),0) | I65: Reset Rate | J65: =VLOOKUP($C65&"Low",CHOOSE({1,2},tbl_chemicals[Name]&tbl_chemicals[Rainfall],INDIRECT("tbl_chemicals["&var_crop&"]")),2,0) -> 0 | K65: =VLOOKUP(r[0]c3&"Low",CHOOSE({1,2},tbl_chemicals[Name]&tbl_chemicals[Rainfall],INDIRECT("tbl_chemicals["&var_crop&"]")),2,0) | L65: =(J65*$E65)+IFERROR(VLOOKUP($C65,tbl_chemicals[],MATCH("Adjuvant Cost/ha",tbl_chemicals[#Headers],0),0),0)*(J65<>0) -> 0 | M65: =VLOOKUP($C65&"Medium",CHOOSE({1,2},tbl_chemicals[Name]&tbl_chemicals[Rainfall],INDIRECT("tbl_chemicals["&var_crop&"]")),2,0) -> 0.085 | N65: =VLOOKUP(r[0]c3&"Medium",CHOOSE({1,2},tbl_chemicals[Name]&tbl_chemicals[Rainfall],INDIRECT("tbl_chemicals["&var_crop&"]")),2,0) | O65: =(M65*$E65)+IFERROR(VLOOKUP($C65,tbl_chemicals[],MATCH("Adjuvant Cost/ha",tbl_chemicals[#Headers],0),0),0)*(M65<>0) -> 6.37625 | P65: =VLOOKUP($C65&"High",CHOOSE({1,2},tbl_chemicals[Name]&tbl_chemicals[Rainfall],INDIRECT("tbl_chemicals["&var_crop&"]")),2,0) -> 0.085 | Q65: =VLOOKUP(r[0]c3&"High",CHOOSE({1,2},tbl_chemicals[Name]&tbl_chemicals[Rainfall],INDIRECT("tbl_chemicals["&var_crop&"]")),2,0) | R65: =(P65*$E65)+IFERROR(VLOOKUP($C65,tbl_chemicals[],MATCH("Adjuvant Cost/ha",tbl_chemicals[#Headers],0),0),0)*(P65<>0) -> 6.37625 | U65: 0
C66: M.C.P.A. LVE | D66: Reset Cost | E66: =VLOOKUP($C66,tbl_chemicals[[Name]:[Cost]],MATCH("Cost",tbl_chemicals[#Headers],0),0) -> 13.25 | F66: =VLOOKUP(r[0]c3,tbl_chemicals[[Name]:[Cost]],MATCH("Cost",tbl_chemicals[#Headers],0),0) | G66: =VLOOKUP($C66,tbl_chemicals[[Name]:[Cost]],MATCH("Units",tbl_chemicals[#Headers],0),0) -> litre | H66: =VLOOKUP(r[0]c3,tbl_chemicals[[Name]:[Cost]],MATCH("Units",tbl_chemicals[#Headers],0),0) | I66: Reset Rate | J66: =VLOOKUP($C66&"Low",CHOOSE({1,2},tbl_chemicals[Name]&tbl_chemicals[Rainfall],INDIRECT("tbl_chemicals["&var_crop&"]")),2,0) -> 0.5 | K66: =VLOOKUP(r[0]c3&"Low",CHOOSE({1,2},tbl_chemicals[Name]&tbl_chemicals[Rainfall],INDIRECT("tbl_chemicals["&var_crop&"]")),2,0) | L66: =(J66*$E66)+IFERROR(VLOOKUP($C66,tbl_chemicals[],MATCH("Adjuvant Cost/ha",tbl_chemicals[#Headers],0),0),0)*(J66<>0) -> 6.625 | M66: =VLOOKUP($C66&"Medium",CHOOSE({1,2},tbl_chemicals[Name]&tbl_chemicals[Rainfall],INDIRECT("tbl_chemicals["&var_crop&"]")),2,0) -> 0.5 | N66: =VLOOKUP(r[0]c3&"Medium",CHOOSE({1,2},tbl_chemicals[Name]&tbl_chemicals[Rainfall],INDIRECT("tbl_chemicals["&var_crop&"]")),2,0) | O66: =(M66*$E66)+IFERROR(VLOOKUP($C66,tbl_chemicals[],MATCH("Adjuvant Cost/ha",tbl_chemicals[#Headers],0),0),0)*(M66<>0) -> 6.625 | P66: =VLOOKUP($C66&"High",CHOOSE({1,2},tbl_chemicals[Name]&tbl_chemicals[Rainfall],INDIRECT("tbl_chemicals["&var_crop&"]")),2,0) -> 0.5 | Q66: =VLOOKUP(r[0]c3&"High",CHOOSE({1,2},tbl_chemicals[Name]&tbl_chemicals[Rainfall],INDIRECT("tbl_chemicals["&var_crop&"]")),2,0) | R66: =(P66*$E66)+IFERROR(VLOOKUP($C66,tbl_chemicals[],MATCH("Adjuvant Cost/ha",tbl_chemicals[#Headers],0),0),0)*(P66<>0) -> 6.625 | U66: 0
C67: Metsulfuron methyl | D67: Reset Cost | E67: =VLOOKUP($C67,tbl_chemicals[[Name]:[Cost]],MATCH("Cost",tbl_chemicals[#Headers],0),0) -> 0.07 | F67: =VLOOKUP(r[0]c3,tbl_chemicals[[Name]:[Cost]],MATCH("Cost",tbl_chemicals[#Headers],0),0) | G67: =VLOOKUP($C67,tbl_chemicals[[Name]:[Cost]],MATCH("Units",tbl_chemicals[#Headers],0),0) -> gram | H67: =VLOOKUP(r[0]c3,tbl_chemicals[[Name]:[Cost]],MATCH("Units",tbl_chemicals[#Headers],0),0) | I67: Reset Rate | J67: =VLOOKUP($C67&"Low",CHOOSE({1,2},tbl_chemicals[Name]&tbl_chemicals[Rainfall],INDIRECT("tbl_chemicals["&var_crop&"]")),2,0) -> 5 | K67: =VLOOKUP(r[0]c3&"Low",CHOOSE({1,2},tbl_chemicals[Name]&tbl_chemicals[Rainfall],INDIRECT("tbl_chemicals["&var_crop&"]")),2,0) | L67: =(J67*$E67)+IFERROR(VLOOKUP($C67,tbl_chemicals[],MATCH("Adjuvant Cost/ha",tbl_chemicals[#Headers],0),0),0)*(J67<>0) -> 0.96875 | M67: =VLOOKUP($C67&"Medium",CHOOSE({1,2},tbl_chemicals[Name]&tbl_chemicals[Rainfall],INDIRECT("tbl_chemicals["&var_crop&"]")),2,0) -> 0 | N67: =VLOOKUP(r[0]c3&"Medium",CHOOSE({1,2},tbl_chemicals[Name]&tbl_chemicals[Rainfall],INDIRECT("tbl_chemicals["&var_crop&"]")),2,0) | O67: =(M67*$E67)+IFERROR(VLOOKUP($C67,tbl_chemicals[],MATCH("Adjuvant Cost/ha",tbl_chemicals[#Headers],0),0),0)*(M67<>0) -> 0 | P67: =VLOOKUP($C67&"High",CHOOSE({1,2},tbl_chemicals[Name]&tbl_chemicals[Rainfall],INDIRECT("tbl_chemicals["&var_crop&"]")),2,0) -> 0 | Q67: =VLOOKUP(r[0]c3&"High",CHOOSE({1,2},tbl_chemicals[Name]&tbl_chemicals[Rainfall],INDIRECT("tbl_chemicals["&var_crop&"]")),2,0) | R67: =(P67*$E67)+IFERROR(VLOOKUP($C67,tbl_chemicals[],MATCH("Adjuvant Cost/ha",tbl_chemicals[#Headers],0),0),0)*(P67<>0) -> 0 | U67: 0
C68: Clopyralid 600g/L (Lontrel® Advanced) | D68: Reset Cost | E68: =VLOOKUP($C68,tbl_chemicals[[Name]:[Cost]],MATCH("Cost",tbl_chemicals[#Headers],0),0) -> 75 | F68: =VLOOKUP(r[0]c3,tbl_chemicals[[Name]:[Cost]],MATCH("Cost",tbl_chemicals[#Headers],0),0) | G68: =VLOOKUP($C68,tbl_chemicals[[Name]:[Cost]],MATCH("Units",tbl_chemicals[#Headers],0),0) -> litre | H68: =VLOOKUP(r[0]c3,tbl_chemicals[[Name]:[Cost]],MATCH("Units",tbl_chemicals[#Headers],0),0) | I68: Reset Rate | J68: =VLOOKUP($C68&"Low",CHOOSE({1,2},tbl_chemicals[Name]&tbl_chemicals[Rainfall],INDIRECT("tbl_chemicals["&var_crop&"]")),2,0) -> 0.05 | K68: =VLOOKUP(r[0]c3&"Low",CHOOSE({1,2},tbl_chemicals[Name]&tbl_chemicals[Rainfall],INDIRECT("tbl_chemicals["&var_crop&"]")),2,0) | L68: =(J68*$E68)+IFERROR(VLOOKUP($C68,tbl_chemicals[],MATCH("Adjuvant Cost/ha",tbl_chemicals[#Headers],0),0),0)*(J68<>0) -> 3.75 | M68: =VLOOKUP($C68&"Medium",CHOOSE({1,2},tbl_chemicals[Name]&tbl_chemicals[Rainfall],INDIRECT("tbl_chemicals["&var_crop&"]")),2,0) -> 0 | N68: =VLOOKUP(r[0]c3&"Medium",CHOOSE({1,2},tbl_chemicals[Name]&tbl_chemicals[Rainfall],INDIRECT("tbl_chemicals["&var_crop&"]")),2,0) | O68: =(M68*$E68)+IFERROR(VLOOKUP($C68,tbl_chemicals[],MATCH("Adjuvant Cost/ha",tbl_chemicals[#Headers],0),0),0)*(M68<>0) -> 0 | P68: =VLOOKUP($C68&"High",CHOOSE({1,2},tbl_chemicals[Name]&tbl_chemicals[Rainfall],INDIRECT("tbl_chemicals["&var_crop&"]")),2,0) -> 0 | Q68: =VLOOKUP(r[0]c3&"High",CHOOSE({1,2},tbl_chemicals[Name]&tbl_chemicals[Rainfall],INDIRECT("tbl_chemicals["&var_crop&"]")),2,0) | R68: =(P68*$E68)+IFERROR(VLOOKUP($C68,tbl_chemicals[],MATCH("Adjuvant Cost/ha",tbl_chemicals[#Headers],0),0),0)*(P68<>0) -> 0 | U68: 0
C69: Paradigm® | D69: Reset Cost | E69: =VLOOKUP($C69,tbl_chemicals[[Name]:[Cost]],MATCH("Cost",tbl_chemicals[#Headers],0),0) -> 0.55 | F69: =VLOOKUP(r[0]c3,tbl_chemicals[[Name]:[Cost]],MATCH("Cost",tbl_chemicals[#Headers],0),0) | G69: =VLOOKUP($C69,tbl_chemicals[[Name]:[Cost]],MATCH("Units",tbl_chemicals[#Headers],0),0) -> gram | H69: =VLOOKUP(r[0]c3,tbl_chemicals[[Name]:[Cost]],MATCH("Units",tbl_chemicals[#Headers],0),0) | I69: Reset Rate | J69: =VLOOKUP($C69&"Low",CHOOSE({1,2},tbl_chemicals[Name]&tbl_chemicals[Rainfall],INDIRECT("tbl_chemicals["&var_crop&"]")),2,0) -> 0 | K69: =VLOOKUP(r[0]c3&"Low",CHOOSE({1,2},tbl_chemicals[Name]&tbl_chemicals[Rainfall],INDIRECT("tbl_chemicals["&var_crop&"]")),2,0) | L69: =(J69*$E69)+IFERROR(VLOOKUP($C69,tbl_chemicals[],MATCH("Adjuvant Cost/ha",tbl_chemicals[#Headers],0),0),0)*(J69<>0) -> 0 | M69: =VLOOKUP($C69&"Medium",CHOOSE({1,2},tbl_chemicals[Name]&tbl_chemicals[Rainfall],INDIRECT("tbl_chemicals["&var_crop&"]")),2,0) -> 25 | N69: =VLOOKUP(r[0]c3&"Medium",CHOOSE({1,2},tbl_chemicals[Name]&tbl_chemicals[Rainfall],INDIRECT("tbl_chemicals["&var_crop&"]")),2,0) | O69: =(M69*$E69)+IFERROR(VLOOKUP($C69,tbl_chemicals[],MATCH("Adjuvant Cost/ha",tbl_chemicals[#Headers],0),0),0)*(M69<>0) -> 17.40625 | P69: =VLOOKUP($C69&"High",CHOOSE({1,2},tbl_chemicals[Name]&tbl_chemicals[Rainfall],INDIRECT("tbl_chemicals["&var_crop&"]")),2,0) -> 25 | Q69: =VLOOKUP(r[0]c3&"High",CHOOSE({1,2},tbl_chemicals[Name]&tbl_chemicals[Rainfall],INDIRECT("tbl_chemicals["&var_crop&"]")),2,0) | R69: =(P69*$E69)+IFERROR(VLOOKUP($C69,tbl_chemicals[],MATCH("Adjuvant Cost/ha",tbl_chemicals[#Headers],0),0),0)*(P69<>0) -> 17.40625 | U69: 0
D70: Reset Cost | F70: =VLOOKUP(r[0]c3,tbl_chemicals[[Name]:[Cost]],MATCH("Cost",tbl_chemicals[#Headers],0),0) | H70: =VLOOKUP(r[0]c3,tbl_chemicals[[Name]:[Cost]],MATCH("Units",tbl_chemicals[#Headers],0),0) | I70: Reset Rate | K70: =VLOOKUP(r[0]c3&"Low",CHOOSE({1,2},tbl_chemicals[Name]&tbl_chemicals[Rainfall],INDIRECT("tbl_chemicals["&var_crop&"]")),2,0) | L70: =(J70*$E70)+IFERROR(VLOOKUP($C70,tbl_chemicals[],MATCH("Adjuvant Cost/ha",tbl_chemicals[#Headers],0),0),0)*(J70<>0) -> 0 | N70: =VLOOKUP(r[0]c3&"Medium",CHOOSE({1,2},tbl_chemicals[Name]&tbl_chemicals[Rainfall],INDIRECT("tbl_chemicals["&var_crop&"]")),2,0) | O70: =(M70*$E70)+IFERROR(VLOOKUP($C70,tbl_chemicals[],MATCH("Adjuvant Cost/ha",tbl_chemicals[#Headers],0),0),0)*(M70<>0) -> 0 | Q70: =VLOOKUP(r[0]c3&"High",CHOOSE({1,2},tbl_chemicals[Name]&tbl_chemicals[Rainfall],INDIRECT("tbl_chemicals["&var_crop&"]")),2,0) | R70: =(P70*$E70)+IFERROR(VLOOKUP($C70,tbl_chemicals[],MATCH("Adjuvant Cost/ha",tbl_chemicals[#Headers],0),0),0)*(P70<>0) -> 0 | U70: 0
D71: Reset Cost | F71: =VLOOKUP(r[0]c3,tbl_chemicals[[Name]:[Cost]],MATCH("Cost",tbl_chemicals[#Headers],0),0) | H71: =VLOOKUP(r[0]c3,tbl_chemicals[[Name]:[Cost]],MATCH("Units",tbl_chemicals[#Headers],0),0) | I71: Reset Rate | K71: =VLOOKUP(r[0]c3&"Low",CHOOSE({1,2},tbl_chemicals[Name]&tbl_chemicals[Rainfall],INDIRECT("tbl_chemicals["&var_crop&"]")),2,0) | L71: =(J71*$E71)+IFERROR(VLOOKUP($C71,tbl_chemicals[],MATCH("Adjuvant Cost/ha",tbl_chemicals[#Headers],0),0),0)*(J71<>0) -> 0 | N71: =VLOOKUP(r[0]c3&"Medium",CHOOSE({1,2},tbl_chemicals[Name]&tbl_chemicals[Rainfall],INDIRECT("tbl_chemicals["&var_crop&"]")),2,0) | O71: =(M71*$E71)+IFERROR(VLOOKUP($C71,tbl_chemicals[],MATCH("Adjuvant Cost/ha",tbl_chemicals[#Headers],0),0),0)*(M71<>0) -> 0 | Q71: =VLOOKUP(r[0]c3&"High",CHOOSE({1,2},tbl_chemicals[Name]&tbl_chemicals[Rainfall],INDIRECT("tbl_chemicals["&var_crop&"]")),2,0) | R71: =(P71*$E71)+IFERROR(VLOOKUP($C71,tbl_chemicals[],MATCH("Adjuvant Cost/ha",tbl_chemicals[#Headers],0),0),0)*(P71<>0) -> 0 | U71: 0
D72: Reset Cost | F72: =VLOOKUP(r[0]c3,tbl_chemicals[[Name]:[Cost]],MATCH("Cost",tbl_chemicals[#Headers],0),0) | H72: =VLOOKUP(r[0]c3,tbl_chemicals[[Name]:[Cost]],MATCH("Units",tbl_chemicals[#Headers],0),0) | I72: Reset Rate | K72: =VLOOKUP(r[0]c3&"Low",CHOOSE({1,2},tbl_chemicals[Name]&tbl_chemicals[Rainfall],INDIRECT("tbl_chemicals["&var_crop&"]")),2,0) | L72: =(J72*$E72)+IFERROR(VLOOKUP($C72,tbl_chemicals[],MATCH("Adjuvant Cost/ha",tbl_chemicals[#Headers],0),0),0)*(J72<>0) -> 0 | N72: =VLOOKUP(r[0]c3&"Medium",CHOOSE({1,2},tbl_chemicals[Name]&tbl_chemicals[Rainfall],INDIRECT("tbl_chemicals["&var_crop&"]")),2,0) | O72: =(M72*$E72)+IFERROR(VLOOKUP($C72,tbl_chemicals[],MATCH("Adjuvant Cost/ha",tbl_chemicals[#Headers],0),0),0)*(M72<>0) -> 0 | Q72: =VLOOKUP(r[0]c3&"High",CHOOSE({1,2},tbl_chemicals[Name]&tbl_chemicals[Rainfall],INDIRECT("tbl_chemicals["&var_crop&"]")),2,0) | R72: =(P72*$E72)+IFERROR(VLOOKUP($C72,tbl_chemicals[],MATCH("Adjuvant Cost/ha",tbl_chemicals[#Headers],0),0),0)*(P72<>0) -> 0 | U72: 0
D73: Reset Cost | F73: =VLOOKUP(r[0]c3,tbl_chemicals[[Name]:[Cost]],MATCH("Cost",tbl_chemicals[#Headers],0),0) | H73: =VLOOKUP(r[0]c3,tbl_chemicals[[Name]:[Cost]],MATCH("Units",tbl_chemicals[#Headers],0),0) | I73: Reset Rate | K73: =VLOOKUP(r[0]c3&"Low",CHOOSE({1,2},tbl_chemicals[Name]&tbl_chemicals[Rainfall],INDIRECT("tbl_chemicals["&var_crop&"]")),2,0) | L73: =(J73*$E73)+IFERROR(VLOOKUP($C73,tbl_chemicals[],MATCH("Adjuvant Cost/ha",tbl_chemicals[#Headers],0),0),0)*(J73<>0) -> 0 | N73: =VLOOKUP(r[0]c3&"Medium",CHOOSE({1,2},tbl_chemicals[Name]&tbl_chemicals[Rainfall],INDIRECT("tbl_chemicals["&var_crop&"]")),2,0) | O73: =(M73*$E73)+IFERROR(VLOOKUP($C73,tbl_chemicals[],MATCH("Adjuvant Cost/ha",tbl_chemicals[#Headers],0),0),0)*(M73<>0) -> 0 | Q73: =VLOOKUP(r[0]c3&"High",CHOOSE({1,2},tbl_chemicals[Name]&tbl_chemicals[Rainfall],INDIRECT("tbl_chemicals["&var_crop&"]")),2,0) | R73: =(P73*$E73)+IFERROR(VLOOKUP($C73,tbl_chemicals[],MATCH("Adjuvant Cost/ha",tbl_chemicals[#Headers],0),0),0)*(P73<>0) -> 0 | U73: 0
D74: Reset Cost | F74: =VLOOKUP(r[0]c3,tbl_chemicals[[Name]:[Cost]],MATCH("Cost",tbl_chemicals[#Headers],0),0) | H74: =VLOOKUP(r[0]c3,tbl_chemicals[[Name]:[Cost]],MATCH("Units",tbl_chemicals[#Headers],0),0) | I74: Reset Rate | K74: =VLOOKUP(r[0]c3&"Low",CHOOSE({1,2},tbl_chemicals[Name]&tbl_chemicals[Rainfall],INDIRECT("tbl_chemicals["&var_crop&"]")),2,0) | L74: =(J74*$E74)+IFERROR(VLOOKUP($C74,tbl_chemicals[],MATCH("Adjuvant Cost/ha",tbl_chemicals[#Headers],0),0),0)*(J74<>0) -> 0 | N74: =VLOOKUP(r[0]c3&"Medium",CHOOSE({1,2},tbl_chemicals[Name]&tbl_chemicals[Rainfall],INDIRECT("tbl_chemicals["&var_crop&"]")),2,0) | O74: =(M74*$E74)+IFERROR(VLOOKUP($C74,tbl_chemicals[],MATCH("Adjuvant Cost/ha",tbl_chemicals[#Headers],0),0),0)*(M74<>0) -> 0 | Q74: =VLOOKUP(r[0]c3&"High",CHOOSE({1,2},tbl_chemicals[Name]&tbl_chemicals[Rainfall],INDIRECT("tbl_chemicals["&var_crop&"]")),2,0) | R74: =(P74*$E74)+IFERROR(VLOOKUP($C74,tbl_chemicals[],MATCH("Adjuvant Cost/ha",tbl_chemicals[#Headers],0),0),0)*(P74<>0) -> 0 | U74: 0
D75: Reset Cost | F75: =VLOOKUP(r[0]c3,tbl_chemicals[[Name]:[Cost]],MATCH("Cost",tbl_chemicals[#Headers],0),0) | H75: =VLOOKUP(r[0]c3,tbl_chemicals[[Name]:[Cost]],MATCH("Units",tbl_chemicals[#Headers],0),0) | I75: Reset Rate | K75: =VLOOKUP(r[0]c3&"Low",CHOOSE({1,2},tbl_chemicals[Name]&tbl_chemicals[Rainfall],INDIRECT("tbl_chemicals["&var_crop&"]")),2,0) | L75: =(J75*$E75)+IFERROR(VLOOKUP($C75,tbl_chemicals[],MATCH("Adjuvant Cost/ha",tbl_chemicals[#Headers],0),0),0)*(J75<>0) -> 0 | N75: =VLOOKUP(r[0]c3&"Medium",CHOOSE({1,2},tbl_chemicals[Name]&tbl_chemicals[Rainfall],INDIRECT("tbl_chemicals["&var_crop&"]")),2,0) | O75: =(M75*$E75)+IFERROR(VLOOKUP($C75,tbl_chemicals[],MATCH("Adjuvant Cost/ha",tbl_chemicals[#Headers],0),0),0)*(M75<>0) -> 0 | Q75: =VLOOKUP(r[0]c3&"High",CHOOSE({1,2},tbl_chemicals[Name]&tbl_chemicals[Rainfall],INDIRECT("tbl_chemicals["&var_crop&"]")),2,0) | R75: =(P75*$E75)+IFERROR(VLOOKUP($C75,tbl_chemicals[],MATCH("Adjuvant Cost/ha",tbl_chemicals[#Headers],0),0),0)*(P75<>0) -> 0 | U75: =$U$6*(IF(rng_rainfall=1,L75,IF(rng_rainfall=2,O75,R75))) -> 0
D76: Reset Cost | F76: =VLOOKUP(r[0]c3,tbl_chemicals[[Name]:[Cost]],MATCH("Cost",tbl_chemicals[#Headers],0),0) | H76: =VLOOKUP(r[0]c3,tbl_chemicals[[Name]:[Cost]],MATCH("Units",tbl_chemicals[#Headers],0),0) | I76: Reset Rate | K76: =VLOOKUP(r[0]c3&"Low",CHOOSE({1,2},tbl_chemicals[Name]&tbl_chemicals[Rainfall],INDIRECT("tbl_chemicals["&var_crop&"]")),2,0) | L76: =(J76*$E76)+IFERROR(VLOOKUP($C76,tbl_chemicals[],MATCH("Adjuvant Cost/ha",tbl_chemicals[#Headers],0),0),0)*(J76<>0) -> 0 | N76: =VLOOKUP(r[0]c3&"Medium",CHOOSE({1,2},tbl_chemicals[Name]&tbl_chemicals[Rainfall],INDIRECT("tbl_chemicals["&var_crop&"]")),2,0) | O76: =(M76*$E76)+IFERROR(VLOOKUP($C76,tbl_chemicals[],MATCH("Adjuvant Cost/ha",tbl_chemicals[#Headers],0),0),0)*(M76<>0) -> 0 | Q76: =VLOOKUP(r[0]c3&"High",CHOOSE({1,2},tbl_chemicals[Name]&tbl_chemicals[Rainfall],INDIRECT("tbl_chemicals["&var_crop&"]")),2,0) | R76: =(P76*$E76)+IFERROR(VLOOKUP($C76,tbl_chemicals[],MATCH("Adjuvant Cost/ha",tbl_chemicals[#Headers],0),0),0)*(P76<>0) -> 0 | U76: 0
D77: Reset Cost | F77: =VLOOKUP(r[0]c3,tbl_chemicals[[Name]:[Cost]],MATCH("Cost",tbl_chemicals[#Headers],0),0) | H77: =VLOOKUP(r[0]c3,tbl_chemicals[[Name]:[Cost]],MATCH("Units",tbl_chemicals[#Headers],0),0) | I77: Reset Rate | K77: =VLOOKUP(r[0]c3&"Low",CHOOSE({1,2},tbl_chemicals[Name]&tbl_chemicals[Rainfall],INDIRECT("tbl_chemicals["&var_crop&"]")),2,0) | L77: =(J77*$E77)+IFERROR(VLOOKUP($C77,tbl_chemicals[],MATCH("Adjuvant Cost/ha",tbl_chemicals[#Headers],0),0),0)*(J77<>0) -> 0 | N77: =VLOOKUP(r[0]c3&"Medium",CHOOSE({1,2},tbl_chemicals[Name]&tbl_chemicals[Rainfall],INDIRECT("tbl_chemicals["&var_crop&"]")),2,0) | O77: =(M77*$E77)+IFERROR(VLOOKUP($C77,tbl_chemicals[],MATCH("Adjuvant Cost/ha",tbl_chemicals[#Headers],0),0),0)*(M77<>0) -> 0 | Q77: =VLOOKUP(r[0]c3&"High",CHOOSE({1,2},tbl_chemicals[Name]&tbl_chemicals[Rainfall],INDIRECT("tbl_chemicals["&var_crop&"]")),2,0) | R77: =(P77*$E77)+IFERROR(VLOOKUP($C77,tbl_chemicals[],MATCH("Adjuvant Cost/ha",tbl_chemicals[#Headers],0),0),0)*(P77<>0) -> 0 | U77: 0
D78: Reset Cost | F78: =VLOOKUP(r[0]c3,tbl_chemicals[[Name]:[Cost]],MATCH("Cost",tbl_chemicals[#Headers],0),0) | H78: =VLOOKUP(r[0]c3,tbl_chemicals[[Name]:[Cost]],MATCH("Units",tbl_chemicals[#Headers],0),0) | I78: Reset Rate | K78: =VLOOKUP(r[0]c3&"Low",CHOOSE({1,2},tbl_chemicals[Name]&tbl_chemicals[Rainfall],INDIRECT("tbl_chemicals["&var_crop&"]")),2,0) | L78: =(J78*$E78)+IFERROR(VLOOKUP($C78,tbl_chemicals[],MATCH("Adjuvant Cost/ha",tbl_chemicals[#Headers],0),0),0)*(J78<>0) -> 0 | N78: =VLOOKUP(r[0]c3&"Medium",CHOOSE({1,2},tbl_chemicals[Name]&tbl_chemicals[Rainfall],INDIRECT("tbl_chemicals["&var_crop&"]")),2,0) | O78: =(M78*$E78)+IFERROR(VLOOKUP($C78,tbl_chemicals[],MATCH("Adjuvant Cost/ha",tbl_chemicals[#Headers],0),0),0)*(M78<>0) -> 0 | Q78: =VLOOKUP(r[0]c3&"High",CHOOSE({1,2},tbl_chemicals[Name]&tbl_chemicals[Rainfall],INDIRECT("tbl_chemicals["&var_crop&"]")),2,0) | R78: =(P78*$E78)+IFERROR(VLOOKUP($C78,tbl_chemicals[],MATCH("Adjuvant Cost/ha",tbl_chemicals[#Headers],0),0),0)*(P78<>0) -> 0 | U78: 0
D79: Reset Cost | F79: =VLOOKUP(r[0]c3,tbl_chemicals[[Name]:[Cost]],MATCH("Cost",tbl_chemicals[#Headers],0),0) | H79: =VLOOKUP(r[0]c3,tbl_chemicals[[Name]:[Cost]],MATCH("Units",tbl_chemicals[#Headers],0),0) | I79: Reset Rate | K79: =VLOOKUP(r[0]c3&"Low",CHOOSE({1,2},tbl_chemicals[Name]&tbl_chemicals[Rainfall],INDIRECT("tbl_chemicals["&var_crop&"]")),2,0) | L79: =(J79*$E79)+IFERROR(VLOOKUP($C79,tbl_chemicals[],MATCH("Adjuvant Cost/ha",tbl_chemicals[#Headers],0),0),0)*(J79<>0) -> 0 | N79: =VLOOKUP(r[0]c3&"Medium",CHOOSE({1,2},tbl_chemicals[Name]&tbl_chemicals[Rainfall],INDIRECT("tbl_chemicals["&var_crop&"]")),2,0) | O79: =(M79*$E79)+IFERROR(VLOOKUP($C79,tbl_chemicals[],MATCH("Adjuvant Cost/ha",tbl_chemicals[#Headers],0),0),0)*(M79<>0) -> 0 | Q79: =VLOOKUP(r[0]c3&"High",CHOOSE({1,2},tbl_chemicals[Name]&tbl_chemicals[Rainfall],INDIRECT("tbl_chemicals["&var_crop&"]")),2,0) | R79: =(P79*$E79)+IFERROR(VLOOKUP($C79,tbl_chemicals[],MATCH("Adjuvant Cost/ha",tbl_chemicals[#Headers],0),0),0)*(P79<>0) -> 0 | U79: 0
D80: Reset Cost | F80: =VLOOKUP(r[0]c3,tbl_chemicals[[Name]:[Cost]],MATCH("Cost",tbl_chemicals[#Headers],0),0) | H80: =VLOOKUP(r[0]c3,tbl_chemicals[[Name]:[Cost]],MATCH("Units",tbl_chemicals[#Headers],0),0) | I80: Reset Rate | K80: =VLOOKUP(r[0]c3&"Low",CHOOSE({1,2},tbl_chemicals[Name]&tbl_chemicals[Rainfall],INDIRECT("tbl_chemicals["&var_crop&"]")),2,0) | L80: =(J80*$E80)+IFERROR(VLOOKUP($C80,tbl_chemicals[],MATCH("Adjuvant Cost/ha",tbl_chemicals[#Headers],0),0),0)*(J80<>0) -> 0 | N80: =VLOOKUP(r[0]c3&"Medium",CHOOSE({1,2},tbl_chemicals[Name]&tbl_chemicals[Rainfall],INDIRECT("tbl_chemicals["&var_crop&"]")),2,0) | O80: =(M80*$E80)+IFERROR(VLOOKUP($C80,tbl_chemicals[],MATCH("Adjuvant Cost/ha",tbl_chemicals[#Headers],0),0),0)*(M80<>0) -> 0 | Q80: =VLOOKUP(r[0]c3&"High",CHOOSE({1,2},tbl_chemicals[Name]&tbl_chemicals[Rainfall],INDIRECT("tbl_chemicals["&var_crop&"]")),2,0) | R80: =(P80*$E80)+IFERROR(VLOOKUP($C80,tbl_chemicals[],MATCH("Adjuvant Cost/ha",tbl_chemicals[#Headers],0),0),0)*(P80<>0) -> 0 | U80: 0
D81: Reset Cost | F81: =VLOOKUP(r[0]c3,tbl_chemicals[[Name]:[Cost]],MATCH("Cost",tbl_chemicals[#Headers],0),0) | H81: =VLOOKUP(r[0]c3,tbl_chemicals[[Name]:[Cost]],MATCH("Units",tbl_chemicals[#Headers],0),0) | I81: Reset Rate | K81: =VLOOKUP(r[0]c3&"Low",CHOOSE({1,2},tbl_chemicals[Name]&tbl_chemicals[Rainfall],INDIRECT("tbl_chemicals["&var_crop&"]")),2,0) | L81: =(J81*$E81)+IFERROR(VLOOKUP($C81,tbl_chemicals[],MATCH("Adjuvant Cost/ha",tbl_chemicals[#Headers],0),0),0)*(J81<>0) -> 0 | N81: =VLOOKUP(r[0]c3&"Medium",CHOOSE({1,2},tbl_chemicals[Name]&tbl_chemicals[Rainfall],INDIRECT("tbl_chemicals["&var_crop&"]")),2,0) | O81: =(M81*$E81)+IFERROR(VLOOKUP($C81,tbl_chemicals[],MATCH("Adjuvant Cost/ha",tbl_chemicals[#Headers],0),0),0)*(M81<>0) -> 0 | Q81: =VLOOKUP(r[0]c3&"High",CHOOSE({1,2},tbl_chemicals[Name]&tbl_chemicals[Rainfall],INDIRECT("tbl_chemicals["&var_crop&"]")),2,0) | R81: =(P81*$E81)+IFERROR(VLOOKUP($C81,tbl_chemicals[],MATCH("Adjuvant Cost/ha",tbl_chemicals[#Headers],0),0),0)*(P81<>0) -> 0 | U81: 0
D82: Reset Cost | F82: =VLOOKUP(r[0]c3,tbl_chemicals[[Name]:[Cost]],MATCH("Cost",tbl_chemicals[#Headers],0),0) | H82: =VLOOKUP(r[0]c3,tbl_chemicals[[Name]:[Cost]],MATCH("Units",tbl_chemicals[#Headers],0),0) | I82: Reset Rate | K82: =VLOOKUP(r[0]c3&"Low",CHOOSE({1,2},tbl_chemicals[Name]&tbl_chemicals[Rainfall],INDIRECT("tbl_chemicals["&var_crop&"]")),2,0) | L82: =(J82*$E82)+IFERROR(VLOOKUP($C82,tbl_chemicals[],MATCH("Adjuvant Cost/ha",tbl_chemicals[#Headers],0),0),0)*(J82<>0) -> 0 | N82: =VLOOKUP(r[0]c3&"Medium",CHOOSE({1,2},tbl_chemicals[Name]&tbl_chemicals[Rainfall],INDIRECT("tbl_chemicals["&var_crop&"]")),2,0) | O82: =(M82*$E82)+IFERROR(VLOOKUP($C82,tbl_chemicals[],MATCH("Adjuvant Cost/ha",tbl_chemicals[#Headers],0),0),0)*(M82<>0) -> 0 | Q82: =VLOOKUP(r[0]c3&"High",CHOOSE({1,2},tbl_chemicals[Name]&tbl_chemicals[Rainfall],INDIRECT("tbl_chemicals["&var_crop&"]")),2,0) | R82: =(P82*$E82)+IFERROR(VLOOKUP($C82,tbl_chemicals[],MATCH("Adjuvant Cost/ha",tbl_chemicals[#Headers],0),0),0)*(P82<>0) -> 0 | U82: 0
D83: Reset Cost | F83: =VLOOKUP(r[0]c3,tbl_chemicals[[Name]:[Cost]],MATCH("Cost",tbl_chemicals[#Headers],0),0) | H83: =VLOOKUP(r[0]c3,tbl_chemicals[[Name]:[Cost]],MATCH("Units",tbl_chemicals[#Headers],0),0) | I83: Reset Rate | K83: =VLOOKUP(r[0]c3&"Low",CHOOSE({1,2},tbl_chemicals[Name]&tbl_chemicals[Rainfall],INDIRECT("tbl_chemicals["&var_crop&"]")),2,0) | L83: =(J83*$E83)+IFERROR(VLOOKUP($C83,tbl_chemicals[],MATCH("Adjuvant Cost/ha",tbl_chemicals[#Headers],0),0),0)*(J83<>0) -> 0 | N83: =VLOOKUP(r[0]c3&"Medium",CHOOSE({1,2},tbl_chemicals[Name]&tbl_chemicals[Rainfall],INDIRECT("tbl_chemicals["&var_crop&"]")),2,0) | O83: =(M83*$E83)+IFERROR(VLOOKUP($C83,tbl_chemicals[],MATCH("Adjuvant Cost/ha",tbl_chemicals[#Headers],0),0),0)*(M83<>0) -> 0 | Q83: =VLOOKUP(r[0]c3&"High",CHOOSE({1,2},tbl_chemicals[Name]&tbl_chemicals[Rainfall],INDIRECT("tbl_chemicals["&var_crop&"]")),2,0) | R83: =(P83*$E83)+IFERROR(VLOOKUP($C83,tbl_chemicals[],MATCH("Adjuvant Cost/ha",tbl_chemicals[#Headers],0),0),0)*(P83<>0) -> 0 | U83: 0
D84: Reset Cost | F84: =VLOOKUP(r[0]c3,tbl_chemicals[[Name]:[Cost]],MATCH("Cost",tbl_chemicals[#Headers],0),0) | H84: =VLOOKUP(r[0]c3,tbl_chemicals[[Name]:[Cost]],MATCH("Units",tbl_chemicals[#Headers],0),0) | I84: Reset Rate | K84: =VLOOKUP(r[0]c3&"Low",CHOOSE({1,2},tbl_chemicals[Name]&tbl_chemicals[Rainfall],INDIRECT("tbl_chemicals["&var_crop&"]")),2,0) | L84: =(J84*$E84)+IFERROR(VLOOKUP($C84,tbl_chemicals[],MATCH("Adjuvant Cost/ha",tbl_chemicals[#Headers],0),0),0)*(J84<>0) -> 0 | N84: =VLOOKUP(r[0]c3&"Medium",CHOOSE({1,2},tbl_chemicals[Name]&tbl_chemicals[Rainfall],INDIRECT("tbl_chemicals["&var_crop&"]")),2,0) | O84: =(M84*$E84)+IFERROR(VLOOKUP($C84,tbl_chemicals[],MATCH("Adjuvant Cost/ha",tbl_chemicals[#Headers],0),0),0)*(M84<>0) -> 0 | Q84: =VLOOKUP(r[0]c3&"High",CHOOSE({1,2},tbl_chemicals[Name]&tbl_chemicals[Rainfall],INDIRECT("tbl_chemicals["&var_crop&"]")),2,0) | R84: =(P84*$E84)+IFERROR(VLOOKUP($C84,tbl_chemicals[],MATCH("Adjuvant Cost/ha",tbl_chemicals[#Headers],0),0),0)*(P84<>0) -> 0 | U84: 0
D85: Reset Cost | F85: =VLOOKUP(r[0]c3,tbl_chemicals[[Name]:[Cost]],MATCH("Cost",tbl_chemicals[#Headers],0),0) | H85: =VLOOKUP(r[0]c3,tbl_chemicals[[Name]:[Cost]],MATCH("Units",tbl_chemicals[#Headers],0),0) | I85: Reset Rate | K85: =VLOOKUP(r[0]c3&"Low",CHOOSE({1,2},tbl_chemicals[Name]&tbl_chemicals[Rainfall],INDIRECT("tbl_chemicals["&var_crop&"]")),2,0) | L85: =(J85*$E85)+IFERROR(VLOOKUP($C85,tbl_chemicals[],MATCH("Adjuvant Cost/ha",tbl_chemicals[#Headers],0),0),0)*(J85<>0) -> 0 | N85: =VLOOKUP(r[0]c3&"Medium",CHOOSE({1,2},tbl_chemicals[Name]&tbl_chemicals[Rainfall],INDIRECT("tbl_chemicals["&var_crop&"]")),2,0) | O85: =(M85*$E85)+IFERROR(VLOOKUP($C85,tbl_chemicals[],MATCH("Adjuvant Cost/ha",tbl_chemicals[#Headers],0),0),0)*(M85<>0) -> 0 | Q85: =VLOOKUP(r[0]c3&"High",CHOOSE({1,2},tbl_chemicals[Name]&tbl_chemicals[Rainfall],INDIRECT("tbl_chemicals["&var_crop&"]")),2,0) | R85: =(P85*$E85)+IFERROR(VLOOKUP($C85,tbl_chemicals[],MATCH("Adjuvant Cost/ha",tbl_chemicals[#Headers],0),0),0)*(P85<>0) -> 0 | U85: 0
D86: Reset Cost | F86: =VLOOKUP(r[0]c3,tbl_chemicals[[Name]:[Cost]],MATCH("Cost",tbl_chemicals[#Headers],0),0) | H86: =VLOOKUP(r[0]c3,tbl_chemicals[[Name]:[Cost]],MATCH("Units",tbl_chemicals[#Headers],0),0) | I86: Reset Rate | K86: =VLOOKUP(r[0]c3&"Low",CHOOSE({1,2},tbl_chemicals[Name]&tbl_chemicals[Rainfall],INDIRECT("tbl_chemicals["&var_crop&"]")),2,0) | L86: =(J86*$E86)+IFERROR(VLOOKUP($C86,tbl_chemicals[],MATCH("Adjuvant Cost/ha",tbl_chemicals[#Headers],0),0),0)*(J86<>0) -> 0 | N86: =VLOOKUP(r[0]c3&"Medium",CHOOSE({1,2},tbl_chemicals[Name]&tbl_chemicals[Rainfall],INDIRECT("tbl_chemicals["&var_crop&"]")),2,0) | O86: =(M86*$E86)+IFERROR(VLOOKUP($C86,tbl_chemicals[],MATCH("Adjuvant Cost/ha",tbl_chemicals[#Headers],0),0),0)*(M86<>0) -> 0 | Q86: =VLOOKUP(r[0]c3&"High",CHOOSE({1,2},tbl_chemicals[Name]&tbl_chemicals[Rainfall],INDIRECT("tbl_chemicals["&var_crop&"]")),2,0) | R86: =(P86*$E86)+IFERROR(VLOOKUP($C86,tbl_chemicals[],MATCH("Adjuvant Cost/ha",tbl_chemicals[#Headers],0),0),0)*(P86<>0) -> 0 | U86: 0
D87: Reset Cost | F87: =VLOOKUP(r[0]c3,tbl_chemicals[[Name]:[Cost]],MATCH("Cost",tbl_chemicals[#Headers],0),0) | H87: =VLOOKUP(r[0]c3,tbl_chemicals[[Name]:[Cost]],MATCH("Units",tbl_chemicals[#Headers],0),0) | I87: Reset Rate | K87: =VLOOKUP(r[0]c3&"Low",CHOOSE({1,2},tbl_chemicals[Name]&tbl_chemicals[Rainfall],INDIRECT("tbl_chemicals["&var_crop&"]")),2,0) | L87: =(J87*$E87)+IFERROR(VLOOKUP($C87,tbl_chemicals[],MATCH("Adjuvant Cost/ha",tbl_chemicals[#Headers],0),0),0)*(J87<>0) -> 0 | N87: =VLOOKUP(r[0]c3&"Medium",CHOOSE({1,2},tbl_chemicals[Name]&tbl_chemicals[Rainfall],INDIRECT("tbl_chemicals["&var_crop&"]")),2,0) | O87: =(M87*$E87)+IFERROR(VLOOKUP($C87,tbl_chemicals[],MATCH("Adjuvant Cost/ha",tbl_chemicals[#Headers],0),0),0)*(M87<>0) -> 0 | Q87: =VLOOKUP(r[0]c3&"High",CHOOSE({1,2},tbl_chemicals[Name]&tbl_chemicals[Rainfall],INDIRECT("tbl_chemicals["&var_crop&"]")),2,0) | R87: =(P87*$E87)+IFERROR(VLOOKUP($C87,tbl_chemicals[],MATCH("Adjuvant Cost/ha",tbl_chemicals[#Headers],0),0),0)*(P87<>0) -> 0 | U87: 0
D88: Reset Cost | F88: =VLOOKUP(r[0]c3,tbl_chemicals[[Name]:[Cost]],MATCH("Cost",tbl_chemicals[#Headers],0),0) | H88: =VLOOKUP(r[0]c3,tbl_chemicals[[Name]:[Cost]],MATCH("Units",tbl_chemicals[#Headers],0),0) | I88: Reset Rate | K88: =VLOOKUP(r[0]c3&"Low",CHOOSE({1,2},tbl_chemicals[Name]&tbl_chemicals[Rainfall],INDIRECT("tbl_chemicals["&var_crop&"]")),2,0) | L88: =(J88*$E88)+IFERROR(VLOOKUP($C88,tbl_chemicals[],MATCH("Adjuvant Cost/ha",tbl_chemicals[#Headers],0),0),0)*(J88<>0) -> 0 | N88: =VLOOKUP(r[0]c3&"Medium",CHOOSE({1,2},tbl_chemicals[Name]&tbl_chemicals[Rainfall],INDIRECT("tbl_chemicals["&var_crop&"]")),2,0) | O88: =(M88*$E88)+IFERROR(VLOOKUP($C88,tbl_chemicals[],MATCH("Adjuvant Cost/ha",tbl_chemicals[#Headers],0),0),0)*(M88<>0) -> 0 | Q88: =VLOOKUP(r[0]c3&"High",CHOOSE({1,2},tbl_chemicals[Name]&tbl_chemicals[Rainfall],INDIRECT("tbl_chemicals["&var_crop&"]")),2,0) | R88: =(P88*$E88)+IFERROR(VLOOKUP($C88,tbl_chemicals[],MATCH("Adjuvant Cost/ha",tbl_chemicals[#Headers],0),0),0)*(P88<>0) -> 0 | U88: 0
D89: Reset Cost | F89: =VLOOKUP(r[0]c3,tbl_chemicals[[Name]:[Cost]],MATCH("Cost",tbl_chemicals[#Headers],0),0) | H89: =VLOOKUP(r[0]c3,tbl_chemicals[[Name]:[Cost]],MATCH("Units",tbl_chemicals[#Headers],0),0) | I89: Reset Rate | K89: =VLOOKUP(r[0]c3&"Low",CHOOSE({1,2},tbl_chemicals[Name]&tbl_chemicals[Rainfall],INDIRECT("tbl_chemicals["&var_crop&"]")),2,0) | L89: =(J89*$E89)+IFERROR(VLOOKUP($C89,tbl_chemicals[],MATCH("Adjuvant Cost/ha",tbl_chemicals[#Headers],0),0),0)*(J89<>0) -> 0 | N89: =VLOOKUP(r[0]c3&"Medium",CHOOSE({1,2},tbl_chemicals[Name]&tbl_chemicals[Rainfall],INDIRECT("tbl_chemicals["&var_crop&"]")),2,0) | O89: =(M89*$E89)+IFERROR(VLOOKUP($C89,tbl_chemicals[],MATCH("Adjuvant Cost/ha",tbl_chemicals[#Headers],0),0),0)*(M89<>0) -> 0 | Q89: =VLOOKUP(r[0]c3&"High",CHOOSE({1,2},tbl_chemicals[Name]&tbl_chemicals[Rainfall],INDIRECT("tbl_chemicals["&var_crop&"]")),2,0) | R89: =(P89*$E89)+IFERROR(VLOOKUP($C89,tbl_chemicals[],MATCH("Adjuvant Cost/ha",tbl_chemicals[#Headers],0),0),0)*(P89<>0) -> 0 | U89: 0
C90: Insecticides
D91: Reset Cost | F91: =VLOOKUP(r[0]c3,tbl_chemicals[[Name]:[Cost]],MATCH("Cost",tbl_chemicals[#Headers],0),0) | H91: =VLOOKUP(r[0]c3,tbl_chemicals[[Name]:[Cost]],MATCH("Units",tbl_chemicals[#Headers],0),0) | I91: Reset Rate | K91: =VLOOKUP(r[0]c3&"Low",CHOOSE({1,2},tbl_chemicals[Name]&tbl_chemicals[Rainfall],INDIRECT("tbl_chemicals["&var_crop&"]")),2,0) | L91: =(J91*$E91)+IFERROR(VLOOKUP($C91,tbl_chemicals[],MATCH("Adjuvant Cost/ha",tbl_chemicals[#Headers],0),0),0)*(J91<>0) -> 0 | N91: =VLOOKUP(r[0]c3&"Medium",CHOOSE({1,2},tbl_chemicals[Name]&tbl_chemicals[Rainfall],INDIRECT("tbl_chemicals["&var_crop&"]")),2,0) | O91: =(M91*$E91)+IFERROR(VLOOKUP($C91,tbl_chemicals[],MATCH("Adjuvant Cost/ha",tbl_chemicals[#Headers],0),0),0)*(M91<>0) -> 0 | Q91: =VLOOKUP(r[0]c3&"High",CHOOSE({1,2},tbl_chemicals[Name]&tbl_chemicals[Rainfall],INDIRECT("tbl_chemicals["&var_crop&"]")),2,0) | R91: =(P91*$E91)+IFERROR(VLOOKUP($C91,tbl_chemicals[],MATCH("Adjuvant Cost/ha",tbl_chemicals[#Headers],0),0),0)*(P91<>0) -> 0 | U91: =$U$6*(IF(rng_rainfall=1,L91,IF(rng_rainfall=2,O91,R91))) -> 0
D92: Reset Cost | F92: =VLOOKUP(r[0]c3,tbl_chemicals[[Name]:[Cost]],MATCH("Cost",tbl_chemicals[#Headers],0),0) | H92: =VLOOKUP(r[0]c3,tbl_chemicals[[Name]:[Cost]],MATCH("Units",tbl_chemicals[#Headers],0),0) | I92: Reset Rate | K92: =VLOOKUP(r[0]c3&"Low",CHOOSE({1,2},tbl_chemicals[Name]&tbl_chemicals[Rainfall],INDIRECT("tbl_chemicals["&var_crop&"]")),2,0) | L92: =(J92*$E92)+IFERROR(VLOOKUP($C92,tbl_chemicals[],MATCH("Adjuvant Cost/ha",tbl_chemicals[#Headers],0),0),0)*(J92<>0) -> 0 | N92: =VLOOKUP(r[0]c3&"Medium",CHOOSE({1,2},tbl_chemicals[Name]&tbl_chemicals[Rainfall],INDIRECT("tbl_chemicals["&var_crop&"]")),2,0) | O92: =(M92*$E92)+IFERROR(VLOOKUP($C92,tbl_chemicals[],MATCH("Adjuvant Cost/ha",tbl_chemicals[#Headers],0),0),0)*(M92<>0) -> 0 | Q92: =VLOOKUP(r[0]c3&"High",CHOOSE({1,2},tbl_chemicals[Name]&tbl_chemicals[Rainfall],INDIRECT("tbl_chemicals["&var_crop&"]")),2,0) | R92: =(P92*$E92)+IFERROR(VLOOKUP($C92,tbl_chemicals[],MATCH("Adjuvant Cost/ha",tbl_chemicals[#Headers],0),0),0)*(P92<>0) -> 0 | U92: 0
D93: Reset Cost | F93: =VLOOKUP(r[0]c3,tbl_chemicals[[Name]:[Cost]],MATCH("Cost",tbl_chemicals[#Headers],0),0) | H93: =VLOOKUP(r[0]c3,tbl_chemicals[[Name]:[Cost]],MATCH("Units",tbl_chemicals[#Headers],0),0) | I93: Reset Rate | K93: =VLOOKUP(r[0]c3&"Low",CHOOSE({1,2},tbl_chemicals[Name]&tbl_chemicals[Rainfall],INDIRECT("tbl_chemicals["&var_crop&"]")),2,0) | L93: =(J93*$E93)+IFERROR(VLOOKUP($C93,tbl_chemicals[],MATCH("Adjuvant Cost/ha",tbl_chemicals[#Headers],0),0),0)*(J93<>0) -> 0 | N93: =VLOOKUP(r[0]c3&"Medium",CHOOSE({1,2},tbl_chemicals[Name]&tbl_chemicals[Rainfall],INDIRECT("tbl_chemicals["&var_crop&"]")),2,0) | O93: =(M93*$E93)+IFERROR(VLOOKUP($C93,tbl_chemicals[],MATCH("Adjuvant Cost/ha",tbl_chemicals[#Headers],0),0),0)*(M93<>0) -> 0 | Q93: =VLOOKUP(r[0]c3&"High",CHOOSE({1,2},tbl_chemicals[Name]&tbl_chemicals[Rainfall],INDIRECT("tbl_chemicals["&var_crop&"]")),2,0) | R93: =(P93*$E93)+IFERROR(VLOOKUP($C93,tbl_chemicals[],MATCH("Adjuvant Cost/ha",tbl_chemicals[#Headers],0),0),0)*(P93<>0) -> 0 | U93: 0
D94: Reset Cost | F94: =VLOOKUP(r[0]c3,tbl_chemicals[[Name]:[Cost]],MATCH("Cost",tbl_chemicals[#Headers],0),0) | H94: =VLOOKUP(r[0]c3,tbl_chemicals[[Name]:[Cost]],MATCH("Units",tbl_chemicals[#Headers],0),0) | I94: Reset Rate | K94: =VLOOKUP(r[0]c3&"Low",CHOOSE({1,2},tbl_chemicals[Name]&tbl_chemicals[Rainfall],INDIRECT("tbl_chemicals["&var_crop&"]")),2,0) | L94: =(J94*$E94)+IFERROR(VLOOKUP($C94,tbl_chemicals[],MATCH("Adjuvant Cost/ha",tbl_chemicals[#Headers],0),0),0)*(J94<>0) -> 0 | N94: =VLOOKUP(r[0]c3&"Medium",CHOOSE({1,2},tbl_chemicals[Name]&tbl_chemicals[Rainfall],INDIRECT("tbl_chemicals["&var_crop&"]")),2,0) | O94: =(M94*$E94)+IFERROR(VLOOKUP($C94,tbl_chemicals[],MATCH("Adjuvant Cost/ha",tbl_chemicals[#Headers],0),0),0)*(M94<>0) -> 0 | Q94: =VLOOKUP(r[0]c3&"High",CHOOSE({1,2},tbl_chemicals[Name]&tbl_chemicals[Rainfall],INDIRECT("tbl_chemicals["&var_crop&"]")),2,0) | R94: =(P94*$E94)+IFERROR(VLOOKUP($C94,tbl_chemicals[],MATCH("Adjuvant Cost/ha",tbl_chemicals[#Headers],0),0),0)*(P94<>0) -> 0 | U94: 0
D95: Reset Cost | F95: =VLOOKUP(r[0]c3,tbl_chemicals[[Name]:[Cost]],MATCH("Cost",tbl_chemicals[#Headers],0),0) | H95: =VLOOKUP(r[0]c3,tbl_chemicals[[Name]:[Cost]],MATCH("Units",tbl_chemicals[#Headers],0),0) | I95: Reset Rate | K95: =VLOOKUP(r[0]c3&"Low",CHOOSE({1,2},tbl_chemicals[Name]&tbl_chemicals[Rainfall],INDIRECT("tbl_chemicals["&var_crop&"]")),2,0) | L95: =(J95*$E95)+IFERROR(VLOOKUP($C95,tbl_chemicals[],MATCH("Adjuvant Cost/ha",tbl_chemicals[#Headers],0),0),0)*(J95<>0) -> 0 | N95: =VLOOKUP(r[0]c3&"Medium",CHOOSE({1,2},tbl_chemicals[Name]&tbl_chemicals[Rainfall],INDIRECT("tbl_chemicals["&var_crop&"]")),2,0) | O95: =(M95*$E95)+IFERROR(VLOOKUP($C95,tbl_chemicals[],MATCH("Adjuvant Cost/ha",tbl_chemicals[#Headers],0),0),0)*(M95<>0) -> 0 | Q95: =VLOOKUP(r[0]c3&"High",CHOOSE({1,2},tbl_chemicals[Name]&tbl_chemicals[Rainfall],INDIRECT("tbl_chemicals["&var_crop&"]")),2,0) | R95: =(P95*$E95)+IFERROR(VLOOKUP($C95,tbl_chemicals[],MATCH("Adjuvant Cost/ha",tbl_chemicals[#Headers],0),0),0)*(P95<>0) -> 0 | U95: 0
D96: Reset Cost | F96: =VLOOKUP(r[0]c3,tbl_chemicals[[Name]:[Cost]],MATCH("Cost",tbl_chemicals[#Headers],0),0) | H96: =VLOOKUP(r[0]c3,tbl_chemicals[[Name]:[Cost]],MATCH("Units",tbl_chemicals[#Headers],0),0) | I96: Reset Rate | K96: =VLOOKUP(r[0]c3&"Low",CHOOSE({1,2},tbl_chemicals[Name]&tbl_chemicals[Rainfall],INDIRECT("tbl_chemicals["&var_crop&"]")),2,0) | L96: =(J96*$E96)+IFERROR(VLOOKUP($C96,tbl_chemicals[],MATCH("Adjuvant Cost/ha",tbl_chemicals[#Headers],0),0),0)*(J96<>0) -> 0 | N96: =VLOOKUP(r[0]c3&"Medium",CHOOSE({1,2},tbl_chemicals[Name]&tbl_chemicals[Rainfall],INDIRECT("tbl_chemicals["&var_crop&"]")),2,0) | O96: =(M96*$E96)+IFERROR(VLOOKUP($C96,tbl_chemicals[],MATCH("Adjuvant Cost/ha",tbl_chemicals[#Headers],0),0),0)*(M96<>0) -> 0 | Q96: =VLOOKUP(r[0]c3&"High",CHOOSE({1,2},tbl_chemicals[Name]&tbl_chemicals[Rainfall],INDIRECT("tbl_chemicals["&var_crop&"]")),2,0) | R96: =(P96*$E96)+IFERROR(VLOOKUP($C96,tbl_chemicals[],MATCH("Adjuvant Cost/ha",tbl_chemicals[#Headers],0),0),0)*(P96<>0) -> 0 | U96: 0
D97: Reset Cost | F97: =VLOOKUP(r[0]c3,tbl_chemicals[[Name]:[Cost]],MATCH("Cost",tbl_chemicals[#Headers],0),0) | H97: =VLOOKUP(r[0]c3,tbl_chemicals[[Name]:[Cost]],MATCH("Units",tbl_chemicals[#Headers],0),0) | I97: Reset Rate | K97: =VLOOKUP(r[0]c3&"Low",CHOOSE({1,2},tbl_chemicals[Name]&tbl_chemicals[Rainfall],INDIRECT("tbl_chemicals["&var_crop&"]")),2,0) | L97: =(J97*$E97)+IFERROR(VLOOKUP($C97,tbl_chemicals[],MATCH("Adjuvant Cost/ha",tbl_chemicals[#Headers],0),0),0)*(J97<>0) -> 0 | N97: =VLOOKUP(r[0]c3&"Medium",CHOOSE({1,2},tbl_chemicals[Name]&tbl_chemicals[Rainfall],INDIRECT("tbl_chemicals["&var_crop&"]")),2,0) | O97: =(M97*$E97)+IFERROR(VLOOKUP($C97,tbl_chemicals[],MATCH("Adjuvant Cost/ha",tbl_chemicals[#Headers],0),0),0)*(M97<>0) -> 0 | Q97: =VLOOKUP(r[0]c3&"High",CHOOSE({1,2},tbl_chemicals[Name]&tbl_chemicals[Rainfall],INDIRECT("tbl_chemicals["&var_crop&"]")),2,0) | R97: =(P97*$E97)+IFERROR(VLOOKUP($C97,tbl_chemicals[],MATCH("Adjuvant Cost/ha",tbl_chemicals[#Headers],0),0),0)*(P97<>0) -> 0 | U97: 0
D98: Reset Cost | F98: =VLOOKUP(r[0]c3,tbl_chemicals[[Name]:[Cost]],MATCH("Cost",tbl_chemicals[#Headers],0),0) | H98: =VLOOKUP(r[0]c3,tbl_chemicals[[Name]:[Cost]],MATCH("Units",tbl_chemicals[#Headers],0),0) | I98: Reset Rate | K98: =VLOOKUP(r[0]c3&"Low",CHOOSE({1,2},tbl_chemicals[Name]&tbl_chemicals[Rainfall],INDIRECT("tbl_chemicals["&var_crop&"]")),2,0) | L98: =(J98*$E98)+IFERROR(VLOOKUP($C98,tbl_chemicals[],MATCH("Adjuvant Cost/ha",tbl_chemicals[#Headers],0),0),0)*(J98<>0) -> 0 | N98: =VLOOKUP(r[0]c3&"Medium",CHOOSE({1,2},tbl_chemicals[Name]&tbl_chemicals[Rainfall],INDIRECT("tbl_chemicals["&var_crop&"]")),2,0) | O98: =(M98*$E98)+IFERROR(VLOOKUP($C98,tbl_chemicals[],MATCH("Adjuvant Cost/ha",tbl_chemicals[#Headers],0),0),0)*(M98<>0) -> 0 | Q98: =VLOOKUP(r[0]c3&"High",CHOOSE({1,2},tbl_chemicals[Name]&tbl_chemicals[Rainfall],INDIRECT("tbl_chemicals["&var_crop&"]")),2,0) | R98: =(P98*$E98)+IFERROR(VLOOKUP($C98,tbl_chemicals[],MATCH("Adjuvant Cost/ha",tbl_chemicals[#Headers],0),0),0)*(P98<>0) -> 0 | U98: 0
D99: Reset Cost | F99: =VLOOKUP(r[0]c3,tbl_chemicals[[Name]:[Cost]],MATCH("Cost",tbl_chemicals[#Headers],0),0) | H99: =VLOOKUP(r[0]c3,tbl_chemicals[[Name]:[Cost]],MATCH("Units",tbl_chemicals[#Headers],0),0) | I99: Reset Rate | K99: =VLOOKUP(r[0]c3&"Low",CHOOSE({1,2},tbl_chemicals[Name]&tbl_chemicals[Rainfall],INDIRECT("tbl_chemicals["&var_crop&"]")),2,0) | L99: =(J99*$E99)+IFERROR(VLOOKUP($C99,tbl_chemicals[],MATCH("Adjuvant Cost/ha",tbl_chemicals[#Headers],0),0),0)*(J99<>0) -> 0 | N99: =VLOOKUP(r[0]c3&"Medium",CHOOSE({1,2},tbl_chemicals[Name]&tbl_chemicals[Rainfall],INDIRECT("tbl_chemicals["&var_crop&"]")),2,0) | O99: =(M99*$E99)+IFERROR(VLOOKUP($C99,tbl_chemicals[],MATCH("Adjuvant Cost/ha",tbl_chemicals[#Headers],0),0),0)*(M99<>0) -> 0 | Q99: =VLOOKUP(r[0]c3&"High",CHOOSE({1,2},tbl_chemicals[Name]&tbl_chemicals[Rainfall],INDIRECT("tbl_chemicals["&var_crop&"]")),2,0) | R99: =(P99*$E99)+IFERROR(VLOOKUP($C99,tbl_chemicals[],MATCH("Adjuvant Cost/ha",tbl_chemicals[#Headers],0),0),0)*(P99<>0) -> 0 | U99: 0
D100: Reset Cost | F100: =VLOOKUP(r[0]c3,tbl_chemicals[[Name]:[Cost]],MATCH("Cost",tbl_chemicals[#Headers],0),0) | H100: =VLOOKUP(r[0]c3,tbl_chemicals[[Name]:[Cost]],MATCH("Units",tbl_chemicals[#Headers],0),0) | I100: Reset Rate | K100: =VLOOKUP(r[0]c3&"Low",CHOOSE({1,2},tbl_chemicals[Name]&tbl_chemicals[Rainfall],INDIRECT("tbl_chemicals["&var_crop&"]")),2,0) | L100: =(J100*$E100)+IFERROR(VLOOKUP($C100,tbl_chemicals[],MATCH("Adjuvant Cost/ha",tbl_chemicals[#Headers],0),0),0)*(J100<>0) -> 0 | N100: =VLOOKUP(r[0]c3&"Medium",CHOOSE({1,2},tbl_chemicals[Name]&tbl_chemicals[Rainfall],INDIRECT("tbl_chemicals["&var_crop&"]")),2,0) | O100: =(M100*$E100)+IFERROR(VLOOKUP($C100,tbl_chemicals[],MATCH("Adjuvant Cost/ha",tbl_chemicals[#Headers],0),0),0)*(M100<>0) -> 0 | Q100: =VLOOKUP(r[0]c3&"High",CHOOSE({1,2},tbl_chemicals[Name]&tbl_chemicals[Rainfall],INDIRECT("tbl_chemicals["&var_crop&"]")),2,0) | R100: =(P100*$E100)+IFERROR(VLOOKUP($C100,tbl_chemicals[],MATCH("Adjuvant Cost/ha",tbl_chemicals[#Headers],0),0),0)*(P100<>0) -> 0 | U100: 0
D101: Reset Cost | F101: =VLOOKUP(r[0]c3,tbl_chemicals[[Name]:[Cost]],MATCH("Cost",tbl_chemicals[#Headers],0),0) | H101: =VLOOKUP(r[0]c3,tbl_chemicals[[Name]:[Cost]],MATCH("Units",tbl_chemicals[#Headers],0),0) | I101: Reset Rate | K101: =VLOOKUP(r[0]c3&"Low",CHOOSE({1,2},tbl_chemicals[Name]&tbl_chemicals[Rainfall],INDIRECT("tbl_chemicals["&var_crop&"]")),2,0) | L101: =(J101*$E101)+IFERROR(VLOOKUP($C101,tbl_chemicals[],MATCH("Adjuvant Cost/ha",tbl_chemicals[#Headers],0),0),0)*(J101<>0) -> 0 | N101: =VLOOKUP(r[0]c3&"Medium",CHOOSE({1,2},tbl_chemicals[Name]&tbl_chemicals[Rainfall],INDIRECT("tbl_chemicals["&var_crop&"]")),2,0) | O101: =(M101*$E101)+IFERROR(VLOOKUP($C101,tbl_chemicals[],MATCH("Adjuvant Cost/ha",tbl_chemicals[#Headers],0),0),0)*(M101<>0) -> 0 | Q101: =VLOOKUP(r[0]c3&"High",CHOOSE({1,2},tbl_chemicals[Name]&tbl_chemicals[Rainfall],INDIRECT("tbl_chemicals["&var_crop&"]")),2,0) | R101: =(P101*$E101)+IFERROR(VLOOKUP($C101,tbl_chemicals[],MATCH("Adjuvant Cost/ha",tbl_chemicals[#Headers],0),0),0)*(P101<>0) -> 0 | U101: 0
D102: Reset Cost | F102: =VLOOKUP(r[0]c3,tbl_chemicals[[Name]:[Cost]],MATCH("Cost",tbl_chemicals[#Headers],0),0) | H102: =VLOOKUP(r[0]c3,tbl_chemicals[[Name]:[Cost]],MATCH("Units",tbl_chemicals[#Headers],0),0) | I102: Reset Rate | K102: =VLOOKUP(r[0]c3&"Low",CHOOSE({1,2},tbl_chemicals[Name]&tbl_chemicals[Rainfall],INDIRECT("tbl_chemicals["&var_crop&"]")),2,0) | L102: =(J102*$E102)+IFERROR(VLOOKUP($C102,tbl_chemicals[],MATCH("Adjuvant Cost/ha",tbl_chemicals[#Headers],0),0),0)*(J102<>0) -> 0 | N102: =VLOOKUP(r[0]c3&"Medium",CHOOSE({1,2},tbl_chemicals[Name]&tbl_chemicals[Rainfall],INDIRECT("tbl_chemicals["&var_crop&"]")),2,0) | O102: =(M102*$E102)+IFERROR(VLOOKUP($C102,tbl_chemicals[],MATCH("Adjuvant Cost/ha",tbl_chemicals[#Headers],0),0),0)*(M102<>0) -> 0 | Q102: =VLOOKUP(r[0]c3&"High",CHOOSE({1,2},tbl_chemicals[Name]&tbl_chemicals[Rainfall],INDIRECT("tbl_chemicals["&var_crop&"]")),2,0) | R102: =(P102*$E102)+IFERROR(VLOOKUP($C102,tbl_chemicals[],MATCH("Adjuvant Cost/ha",tbl_chemicals[#Headers],0),0),0)*(P102<>0) -> 0 | U102: 0
D103: Reset Cost | F103: =VLOOKUP(r[0]c3,tbl_chemicals[[Name]:[Cost]],MATCH("Cost",tbl_chemicals[#Headers],0),0) | H103: =VLOOKUP(r[0]c3,tbl_chemicals[[Name]:[Cost]],MATCH("Units",tbl_chemicals[#Headers],0),0) | I103: Reset Rate | K103: =VLOOKUP(r[0]c3&"Low",CHOOSE({1,2},tbl_chemicals[Name]&tbl_chemicals[Rainfall],INDIRECT("tbl_chemicals["&var_crop&"]")),2,0) | L103: =(J103*$E103)+IFERROR(VLOOKUP($C103,tbl_chemicals[],MATCH("Adjuvant Cost/ha",tbl_chemicals[#Headers],0),0),0)*(J103<>0) -> 0 | N103: =VLOOKUP(r[0]c3&"Medium",CHOOSE({1,2},tbl_chemicals[Name]&tbl_chemicals[Rainfall],INDIRECT("tbl_chemicals["&var_crop&"]")),2,0) | O103: =(M103*$E103)+IFERROR(VLOOKUP($C103,tbl_chemicals[],MATCH("Adjuvant Cost/ha",tbl_chemicals[#Headers],0),0),0)*(M103<>0) -> 0 | Q103: =VLOOKUP(r[0]c3&"High",CHOOSE({1,2},tbl_chemicals[Name]&tbl_chemicals[Rainfall],INDIRECT("tbl_chemicals["&var_crop&"]")),2,0) | R103: =(P103*$E103)+IFERROR(VLOOKUP($C103,tbl_chemicals[],MATCH("Adjuvant Cost/ha",tbl_chemicals[#Headers],0),0),0)*(P103<>0) -> 0 | U103: 0
D104: Reset Cost | F104: =VLOOKUP(r[0]c3,tbl_chemicals[[Name]:[Cost]],MATCH("Cost",tbl_chemicals[#Headers],0),0) | H104: =VLOOKUP(r[0]c3,tbl_chemicals[[Name]:[Cost]],MATCH("Units",tbl_chemicals[#Headers],0),0) | I104: Reset Rate | K104: =VLOOKUP(r[0]c3&"Low",CHOOSE({1,2},tbl_chemicals[Name]&tbl_chemicals[Rainfall],INDIRECT("tbl_chemicals["&var_crop&"]")),2,0) | L104: =(J104*$E104)+IFERROR(VLOOKUP($C104,tbl_chemicals[],MATCH("Adjuvant Cost/ha",tbl_chemicals[#Headers],0),0),0)*(J104<>0) -> 0 | N104: =VLOOKUP(r[0]c3&"Medium",CHOOSE({1,2},tbl_chemicals[Name]&tbl_chemicals[Rainfall],INDIRECT("tbl_chemicals["&var_crop&"]")),2,0) | O104: =(M104*$E104)+IFERROR(VLOOKUP($C104,tbl_chemicals[],MATCH("Adjuvant Cost/ha",tbl_chemicals[#Headers],0),0),0)*(M104<>0) -> 0 | Q104: =VLOOKUP(r[0]c3&"High",CHOOSE({1,2},tbl_chemicals[Name]&tbl_chemicals[Rainfall],INDIRECT("tbl_chemicals["&var_crop&"]")),2,0) | R104: =(P104*$E104)+IFERROR(VLOOKUP($C104,tbl_chemicals[],MATCH("Adjuvant Cost/ha",tbl_chemicals[#Headers],0),0),0)*(P104<>0) -> 0 | U104: 0
D105: Reset Cost | F105: =VLOOKUP(r[0]c3,tbl_chemicals[[Name]:[Cost]],MATCH("Cost",tbl_chemicals[#Headers],0),0) | H105: =VLOOKUP(r[0]c3,tbl_chemicals[[Name]:[Cost]],MATCH("Units",tbl_chemicals[#Headers],0),0) | I105: Reset Rate | K105: =VLOOKUP(r[0]c3&"Low",CHOOSE({1,2},tbl_chemicals[Name]&tbl_chemicals[Rainfall],INDIRECT("tbl_chemicals["&var_crop&"]")),2,0) | L105: =(J105*$E105)+IFERROR(VLOOKUP($C105,tbl_chemicals[],MATCH("Adjuvant Cost/ha",tbl_chemicals[#Headers],0),0),0)*(J105<>0) -> 0 | N105: =VLOOKUP(r[0]c3&"Medium",CHOOSE({1,2},tbl_chemicals[Name]&tbl_chemicals[Rainfall],INDIRECT("tbl_chemicals["&var_crop&"]")),2,0) | O105: =(M105*$E105)+IFERROR(VLOOKUP($C105,tbl_chemicals[],MATCH("Adjuvant Cost/ha",tbl_chemicals[#Headers],0),0),0)*(M105<>0) -> 0 | Q105: =VLOOKUP(r[0]c3&"High",CHOOSE({1,2},tbl_chemicals[Name]&tbl_chemicals[Rainfall],INDIRECT("tbl_chemicals["&var_crop&"]")),2,0) | R105: =(P105*$E105)+IFERROR(VLOOKUP($C105,tbl_chemicals[],MATCH("Adjuvant Cost/ha",tbl_chemicals[#Headers],0),0),0)*(P105<>0) -> 0 | U105: 0
C106: Fungicides
C107: Epoxiconazole 125g/L | D107: Reset Cost | E107: =VLOOKUP($C107,tbl_chemicals[[Name]:[Cost]],MATCH("Cost",tbl_chemicals[#Headers],0),0) -> 30 | F107: =VLOOKUP(r[0]c3,tbl_chemicals[[Name]:[Cost]],MATCH("Cost",tbl_chemicals[#Headers],0),0) | G107: =VLOOKUP($C107,tbl_chemicals[[Name]:[Cost]],MATCH("Units",tbl_chemicals[#Headers],0),0) -> litre | H107: =VLOOKUP(r[0]c3,tbl_chemicals[[Name]:[Cost]],MATCH("Units",tbl_chemicals[#Headers],0),0) | I107: Reset Rate | J107: =VLOOKUP($C107&"Low",CHOOSE({1,2},tbl_chemicals[Name]&tbl_chemicals[Rainfall],INDIRECT("tbl_chemicals["&var_crop&"]")),2,0) -> 0 | K107: =VLOOKUP(r[0]c3&"Low",CHOOSE({1,2},tbl_chemicals[Name]&tbl_chemicals[Rainfall],INDIRECT("tbl_chemicals["&var_crop&"]")),2,0) | L107: =(J107*$E107)+IFERROR(VLOOKUP($C107,tbl_chemicals[],MATCH("Adjuvant Cost/ha",tbl_chemicals[#Headers],0),0),0)*(J107<>0) -> 0 | M107: =VLOOKUP($C107&"Medium",CHOOSE({1,2},tbl_chemicals[Name]&tbl_chemicals[Rainfall],INDIRECT("tbl_chemicals["&var_crop&"]")),2,0) -> 0.5 | N107: =VLOOKUP(r[0]c3&"Medium",CHOOSE({1,2},tbl_chemicals[Name]&tbl_chemicals[Rainfall],INDIRECT("tbl_chemicals["&var_crop&"]")),2,0) | O107: =(M107*$E107)+IFERROR(VLOOKUP($C107,tbl_chemicals[],MATCH("Adjuvant Cost/ha",tbl_chemicals[#Headers],0),0),0)*(M107<>0) -> 15 | P107: =VLOOKUP($C107&"High",CHOOSE({1,2},tbl_chemicals[Name]&tbl_chemicals[Rainfall],INDIRECT("tbl_chemicals["&var_crop&"]")),2,0) -> 0.5 | Q107: =VLOOKUP(r[0]c3&"High",CHOOSE({1,2},tbl_chemicals[Name]&tbl_chemicals[Rainfall],INDIRECT("tbl_chemicals["&var_crop&"]")),2,0) | R107: =(P107*$E107)+IFERROR(VLOOKUP($C107,tbl_chemicals[],MATCH("Adjuvant Cost/ha",tbl_chemicals[#Headers],0),0),0)*(P107<>0) -> 15 | U107: =$U$6*(IF(rng_rainfall=1,L107,IF(rng_rainfall=2,O107,R107))) -> 0
C108: Amistar Xtra | D108: Reset Cost | E108: =VLOOKUP($C108,tbl_chemicals[[Name]:[Cost]],MATCH("Cost",tbl_chemicals[#Headers],0),0) -> 29 | F108: =VLOOKUP(r[0]c3,tbl_chemicals[[Name]:[Cost]],MATCH("Cost",tbl_chemicals[#Headers],0),0) | G108: =VLOOKUP($C108,tbl_chemicals[[Name]:[Cost]],MATCH("Units",tbl_chemicals[#Headers],0),0) -> litre | H108: =VLOOKUP(r[0]c3,tbl_chemicals[[Name]:[Cost]],MATCH("Units",tbl_chemicals[#Headers],0),0) | I108: Reset Rate | J108: =VLOOKUP($C108&"Low",CHOOSE({1,2},tbl_chemicals[Name]&tbl_chemicals[Rainfall],INDIRECT("tbl_chemicals["&var_crop&"]")),2,0) -> 0 | K108: =VLOOKUP(r[0]c3&"Low",CHOOSE({1,2},tbl_chemicals[Name]&tbl_chemicals[Rainfall],INDIRECT("tbl_chemicals["&var_crop&"]")),2,0) | L108: =(J108*$E108)+IFERROR(VLOOKUP($C108,tbl_chemicals[],MATCH("Adjuvant Cost/ha",tbl_chemicals[#Headers],0),0),0)*(J108<>0) -> 0 | M108: =VLOOKUP($C108&"Medium",CHOOSE({1,2},tbl_chemicals[Name]&tbl_chemicals[Rainfall],INDIRECT("tbl_chemicals["&var_crop&"]")),2,0) -> 0 | N108: =VLOOKUP(r[0]c3&"Medium",CHOOSE({1,2},tbl_chemicals[Name]&tbl_chemicals[Rainfall],INDIRECT("tbl_chemicals["&var_crop&"]")),2,0) | O108: =(M108*$E108)+IFERROR(VLOOKUP($C108,tbl_chemicals[],MATCH("Adjuvant Cost/ha",tbl_chemicals[#Headers],0),0),0)*(M108<>0) -> 0 | P108: =VLOOKUP($C108&"High",CHOOSE({1,2},tbl_chemicals[Name]&tbl_chemicals[Rainfall],INDIRECT("tbl_chemicals["&var_crop&"]")),2,0) -> 0.4 | Q108: =VLOOKUP(r[0]c3&"High",CHOOSE({1,2},tbl_chemicals[Name]&tbl_chemicals[Rainfall],INDIRECT("tbl_chemicals["&var_crop&"]")),2,0) | R108: =(P108*$E108)+IFERROR(VLOOKUP($C108,tbl_chemicals[],MATCH("Adjuvant Cost/ha",tbl_chemicals[#Headers],0),0),0)*(P108<>0) -> 11.6 | U108: 0
D109: Reset Cost | F109: =VLOOKUP(r[0]c3,tbl_chemicals[[Name]:[Cost]],MATCH("Cost",tbl_chemicals[#Headers],0),0) | H109: =VLOOKUP(r[0]c3,tbl_chemicals[[Name]:[Cost]],MATCH("Units",tbl_chemicals[#Headers],0),0) | I109: Reset Rate | K109: =VLOOKUP(r[0]c3&"Low",CHOOSE({1,2},tbl_chemicals[Name]&tbl_chemicals[Rainfall],INDIRECT("tbl_chemicals["&var_crop&"]")),2,0) | L109: =(J109*$E109)+IFERROR(VLOOKUP($C109,tbl_chemicals[],MATCH("Adjuvant Cost/ha",tbl_chemicals[#Headers],0),0),0)*(J109<>0) -> 0 | N109: =VLOOKUP(r[0]c3&"Medium",CHOOSE({1,2},tbl_chemicals[Name]&tbl_chemicals[Rainfall],INDIRECT("tbl_chemicals["&var_crop&"]")),2,0) | O109: =(M109*$E109)+IFERROR(VLOOKUP($C109,tbl_chemicals[],MATCH("Adjuvant Cost/ha",tbl_chemicals[#Headers],0),0),0)*(M109<>0) -> 0 | Q109: =VLOOKUP(r[0]c3&"High",CHOOSE({1,2},tbl_chemicals[Name]&tbl_chemicals[Rainfall],INDIRECT("tbl_chemicals["&var_crop&"]")),2,0) | R109: =(P109*$E109)+IFERROR(VLOOKUP($C109,tbl_chemicals[],MATCH("Adjuvant Cost/ha",tbl_chemicals[#Headers],0),0),0)*(P109<>0) -> 0 | U109: 0
D110: Reset Cost | F110: =VLOOKUP(r[0]c3,tbl_chemicals[[Name]:[Cost]],MATCH("Cost",tbl_chemicals[#Headers],0),0) | H110: =VLOOKUP(r[0]c3,tbl_chemicals[[Name]:[Cost]],MATCH("Units",tbl_chemicals[#Headers],0),0) | I110: Reset Rate | K110: =VLOOKUP(r[0]c3&"Low",CHOOSE({1,2},tbl_chemicals[Name]&tbl_chemicals[Rainfall],INDIRECT("tbl_chemicals["&var_crop&"]")),2,0) | L110: =(J110*$E110)+IFERROR(VLOOKUP($C110,tbl_chemicals[],MATCH("Adjuvant Cost/ha",tbl_chemicals[#Headers],0),0),0)*(J110<>0) -> 0 | N110: =VLOOKUP(r[0]c3&"Medium",CHOOSE({1,2},tbl_chemicals[Name]&tbl_chemicals[Rainfall],INDIRECT("tbl_chemicals["&var_crop&"]")),2,0) | O110: =(M110*$E110)+IFERROR(VLOOKUP($C110,tbl_chemicals[],MATCH("Adjuvant Cost/ha",tbl_chemicals[#Headers],0),0),0)*(M110<>0) -> 0 | Q110: =VLOOKUP(r[0]c3&"High",CHOOSE({1,2},tbl_chemicals[Name]&tbl_chemicals[Rainfall],INDIRECT("tbl_chemicals["&var_crop&"]")),2,0) | R110: =(P110*$E110)+IFERROR(VLOOKUP($C110,tbl_chemicals[],MATCH("Adjuvant Cost/ha",tbl_chemicals[#Headers],0),0),0)*(P110<>0) -> 0 | U110: 0
D111: Reset Cost | F111: =VLOOKUP(r[0]c3,tbl_chemicals[[Name]:[Cost]],MATCH("Cost",tbl_chemicals[#Headers],0),0) | H111: =VLOOKUP(r[0]c3,tbl_chemicals[[Name]:[Cost]],MATCH("Units",tbl_chemicals[#Headers],0),0) | I111: Reset Rate | K111: =VLOOKUP(r[0]c3&"Low",CHOOSE({1,2},tbl_chemicals[Name]&tbl_chemicals[Rainfall],INDIRECT("tbl_chemicals["&var_crop&"]")),2,0) | L111: =(J111*$E111)+IFERROR(VLOOKUP($C111,tbl_chemicals[],MATCH("Adjuvant Cost/ha",tbl_chemicals[#Headers],0),0),0)*(J111<>0) -> 0 | N111: =VLOOKUP(r[0]c3&"Medium",CHOOSE({1,2},tbl_chemicals[Name]&tbl_chemicals[Rainfall],INDIRECT("tbl_chemicals["&var_crop&"]")),2,0) | O111: =(M111*$E111)+IFERROR(VLOOKUP($C111,tbl_chemicals[],MATCH("Adjuvant Cost/ha",tbl_chemicals[#Headers],0),0),0)*(M111<>0) -> 0 | Q111: =VLOOKUP(r[0]c3&"High",CHOOSE({1,2},tbl_chemicals[Name]&tbl_chemicals[Rainfall],INDIRECT("tbl_chemicals["&var_crop&"]")),2,0) | R111: =(P111*$E111)+IFERROR(VLOOKUP($C111,tbl_chemicals[],MATCH("Adjuvant Cost/ha",tbl_chemicals[#Headers],0),0),0)*(P111<>0) -> 0 | U111: 0
D112: Reset Cost | F112: =VLOOKUP(r[0]c3,tbl_chemicals[[Name]:[Cost]],MATCH("Cost",tbl_chemicals[#Headers],0),0) | H112: =VLOOKUP(r[0]c3,tbl_chemicals[[Name]:[Cost]],MATCH("Units",tbl_chemicals[#Headers],0),0) | I112: Reset Rate | K112: =VLOOKUP(r[0]c3&"Low",CHOOSE({1,2},tbl_chemicals[Name]&tbl_chemicals[Rainfall],INDIRECT("tbl_chemicals["&var_crop&"]")),2,0) | L112: =(J112*$E112)+IFERROR(VLOOKUP($C112,tbl_chemicals[],MATCH("Adjuvant Cost/ha",tbl_chemicals[#Headers],0),0),0)*(J112<>0) -> 0 | N112: =VLOOKUP(r[0]c3&"Medium",CHOOSE({1,2},tbl_chemicals[Name]&tbl_chemicals[Rainfall],INDIRECT("tbl_chemicals["&var_crop&"]")),2,0) | O112: =(M112*$E112)+IFERROR(VLOOKUP($C112,tbl_chemicals[],MATCH("Adjuvant Cost/ha",tbl_chemicals[#Headers],0),0),0)*(M112<>0) -> 0 | Q112: =VLOOKUP(r[0]c3&"High",CHOOSE({1,2},tbl_chemicals[Name]&tbl_chemicals[Rainfall],INDIRECT("tbl_chemicals["&var_crop&"]")),2,0) | R112: =(P112*$E112)+IFERROR(VLOOKUP($C112,tbl_chemicals[],MATCH("Adjuvant Cost/ha",tbl_chemicals[#Headers],0),0),0)*(P112<>0) -> 0 | U112: 0
D113: Reset Cost | F113: =VLOOKUP(r[0]c3,tbl_chemicals[[Name]:[Cost]],MATCH("Cost",tbl_chemicals[#Headers],0),0) | H113: =VLOOKUP(r[0]c3,tbl_chemicals[[Name]:[Cost]],MATCH("Units",tbl_chemicals[#Headers],0),0) | I113: Reset Rate | K113: =VLOOKUP(r[0]c3&"Low",CHOOSE({1,2},tbl_chemicals[Name]&tbl_chemicals[Rainfall],INDIRECT("tbl_chemicals["&var_crop&"]")),2,0) | L113: =(J113*$E113)+IFERROR(VLOOKUP($C113,tbl_chemicals[],MATCH("Adjuvant Cost/ha",tbl_chemicals[#Headers],0),0),0)*(J113<>0) -> 0 | N113: =VLOOKUP(r[0]c3&"Medium",CHOOSE({1,2},tbl_chemicals[Name]&tbl_chemicals[Rainfall],INDIRECT("tbl_chemicals["&var_crop&"]")),2,0) | O113: =(M113*$E113)+IFERROR(VLOOKUP($C113,tbl_chemicals[],MATCH("Adjuvant Cost/ha",tbl_chemicals[#Headers],0),0),0)*(M113<>0) -> 0 | Q113: =VLOOKUP(r[0]c3&"High",CHOOSE({1,2},tbl_chemicals[Name]&tbl_chemicals[Rainfall],INDIRECT("tbl_chemicals["&var_crop&"]")),2,0) | R113: =(P113*$E113)+IFERROR(VLOOKUP($C113,tbl_chemicals[],MATCH("Adjuvant Cost/ha",tbl_chemicals[#Headers],0),0),0)*(P113<>0) -> 0 | U113: 0
D114: Reset Cost | F114: =VLOOKUP(r[0]c3,tbl_chemicals[[Name]:[Cost]],MATCH("Cost",tbl_chemicals[#Headers],0),0) | H114: =VLOOKUP(r[0]c3,tbl_chemicals[[Name]:[Cost]],MATCH("Units",tbl_chemicals[#Headers],0),0) | I114: Reset Rate | K114: =VLOOKUP(r[0]c3&"Low",CHOOSE({1,2},tbl_chemicals[Name]&tbl_chemicals[Rainfall],INDIRECT("tbl_chemicals["&var_crop&"]")),2,0) | L114: =(J114*$E114)+IFERROR(VLOOKUP($C114,tbl_chemicals[],MATCH("Adjuvant Cost/ha",tbl_chemicals[#Headers],0),0),0)*(J114<>0) -> 0 | N114: =VLOOKUP(r[0]c3&"Medium",CHOOSE({1,2},tbl_chemicals[Name]&tbl_chemicals[Rainfall],INDIRECT("tbl_chemicals["&var_crop&"]")),2,0) | O114: =(M114*$E114)+IFERROR(VLOOKUP($C114,tbl_chemicals[],MATCH("Adjuvant Cost/ha",tbl_chemicals[#Headers],0),0),0)*(M114<>0) -> 0 | Q114: =VLOOKUP(r[0]c3&"High",CHOOSE({1,2},tbl_chemicals[Name]&tbl_chemicals[Rainfall],INDIRECT("tbl_chemicals["&var_crop&"]")),2,0) | R114: =(P114*$E114)+IFERROR(VLOOKUP($C114,tbl_chemicals[],MATCH("Adjuvant Cost/ha",tbl_chemicals[#Headers],0),0),0)*(P114<>0) -> 0 | U114: 0
D115: Reset Cost | F115: =VLOOKUP(r[0]c3,tbl_chemicals[[Name]:[Cost]],MATCH("Cost",tbl_chemicals[#Headers],0),0) | H115: =VLOOKUP(r[0]c3,tbl_chemicals[[Name]:[Cost]],MATCH("Units",tbl_chemicals[#Headers],0),0) | I115: Reset Rate | K115: =VLOOKUP(r[0]c3&"Low",CHOOSE({1,2},tbl_chemicals[Name]&tbl_chemicals[Rainfall],INDIRECT("tbl_chemicals["&var_crop&"]")),2,0) | L115: =(J115*$E115)+IFERROR(VLOOKUP($C115,tbl_chemicals[],MATCH("Adjuvant Cost/ha",tbl_chemicals[#Headers],0),0),0)*(J115<>0) -> 0 | N115: =VLOOKUP(r[0]c3&"Medium",CHOOSE({1,2},tbl_chemicals[Name]&tbl_chemicals[Rainfall],INDIRECT("tbl_chemicals["&var_crop&"]")),2,0) | O115: =(M115*$E115)+IFERROR(VLOOKUP($C115,tbl_chemicals[],MATCH("Adjuvant Cost/ha",tbl_chemicals[#Headers],0),0),0)*(M115<>0) -> 0 | Q115: =VLOOKUP(r[0]c3&"High",CHOOSE({1,2},tbl_chemicals[Name]&tbl_chemicals[Rainfall],INDIRECT("tbl_chemicals["&var_crop&"]")),2,0) | R115: =(P115*$E115)+IFERROR(VLOOKUP($C115,tbl_chemicals[],MATCH("Adjuvant Cost/ha",tbl_chemicals[#Headers],0),0),0)*(P115<>0) -> 0 | U115: 0
D116: Reset Cost | F116: =VLOOKUP(r[0]c3,tbl_chemicals[[Name]:[Cost]],MATCH("Cost",tbl_chemicals[#Headers],0),0) | H116: =VLOOKUP(r[0]c3,tbl_chemicals[[Name]:[Cost]],MATCH("Units",tbl_chemicals[#Headers],0),0) | I116: Reset Rate | K116: =VLOOKUP(r[0]c3&"Low",CHOOSE({1,2},tbl_chemicals[Name]&tbl_chemicals[Rainfall],INDIRECT("tbl_chemicals["&var_crop&"]")),2,0) | L116: =(J116*$E116)+IFERROR(VLOOKUP($C116,tbl_chemicals[],MATCH("Adjuvant Cost/ha",tbl_chemicals[#Headers],0),0),0)*(J116<>0) -> 0 | N116: =VLOOKUP(r[0]c3&"Medium",CHOOSE({1,2},tbl_chemicals[Name]&tbl_chemicals[Rainfall],INDIRECT("tbl_chemicals["&var_crop&"]")),2,0) | O116: =(M116*$E116)+IFERROR(VLOOKUP($C116,tbl_chemicals[],MATCH("Adjuvant Cost/ha",tbl_chemicals[#Headers],0),0),0)*(M116<>0) -> 0 | Q116: =VLOOKUP(r[0]c3&"High",CHOOSE({1,2},tbl_chemicals[Name]&tbl_chemicals[Rainfall],INDIRECT("tbl_chemicals["&var_crop&"]")),2,0) | R116: =(P116*$E116)+IFERROR(VLOOKUP($C116,tbl_chemicals[],MATCH("Adjuvant Cost/ha",tbl_chemicals[#Headers],0),0),0)*(P116<>0) -> 0 | U116: 0
D117: Reset Cost | F117: =VLOOKUP(r[0]c3,tbl_chemicals[[Name]:[Cost]],MATCH("Cost",tbl_chemicals[#Headers],0),0) | H117: =VLOOKUP(r[0]c3,tbl_chemicals[[Name]:[Cost]],MATCH("Units",tbl_chemicals[#Headers],0),0) | I117: Reset Rate | K117: =VLOOKUP(r[0]c3&"Low",CHOOSE({1,2},tbl_chemicals[Name]&tbl_chemicals[Rainfall],INDIRECT("tbl_chemicals["&var_crop&"]")),2,0) | L117: =(J117*$E117)+IFERROR(VLOOKUP($C117,tbl_chemicals[],MATCH("Adjuvant Cost/ha",tbl_chemicals[#Headers],0),0),0)*(J117<>0) -> 0 | N117: =VLOOKUP(r[0]c3&"Medium",CHOOSE({1,2},tbl_chemicals[Name]&tbl_chemicals[Rainfall],INDIRECT("tbl_chemicals["&var_crop&"]")),2,0) | O117: =(M117*$E117)+IFERROR(VLOOKUP($C117,tbl_chemicals[],MATCH("Adjuvant Cost/ha",tbl_chemicals[#Headers],0),0),0)*(M117<>0) -> 0 | Q117: =VLOOKUP(r[0]c3&"High",CHOOSE({1,2},tbl_chemicals[Name]&tbl_chemicals[Rainfall],INDIRECT("tbl_chemicals["&var_crop&"]")),2,0) | R117: =(P117*$E117)+IFERROR(VLOOKUP($C117,tbl_chemicals[],MATCH("Adjuvant Cost/ha",tbl_chemicals[#Headers],0),0),0)*(P117<>0) -> 0 | U117: 0
